Workbook

Sheet LiFFT_v1.4.0
A1: LiFFT 1.4.0 | B1: 10 | O1: Instructions | AB1: Unit:English | AC1: 1
B2: The Lifting Fatigue Failure Tool (LiFFT) | AB2: Unit:Metric
B3: Task # | D3: Lever Arm (inch) | F3: Load (lbs) | H3: Moment (ft.lbs.) | J3: Repetitions (per work day) | L3: Damage (cumulative) | N3: % Total (damage) | O3: =IF(AC1=1,"Unit:English","Unit:Metric") -> Unit:English
B5: 1 | D5: 15 | F5: 12 | H5: =IF(OR(D5="",F5=""),"",D5 * F5/12) -> 15 | J5: 1500 | L5: =IF(OR(D5="",F5="",J5=""),"",10^(-5.81636221052493+0.0222878437409416*(H5))*(J5)) -> 0.004943638487 | N5: =IF(OR(D5="",F5="",J5=""),"",(L5)/($N$34)*100) -> 100
B8: 2 | H8: =IF(OR(D8="",F8=""),"",D8 * F8/12) ->  | L8: =IF(OR(D8="",F8="",J8=""),"",10^(-5.81636221052493+0.0222878437409416*(H8))*(J8)) ->  | N8: =IF(OR(D8="",F8="",J8=""),"",(L8)/($N$34)*100) -> 
B11: 3 | H11: =IF(OR(D11="",F11=""),"",D11 * F11/12) ->  | L11: =IF(OR(D11="",F11="",J11=""),"",10^(-5.81636221052493+0.0222878437409416*(H11))*(J11)) ->  | N11: =IF(OR(D11="",F11="",J11=""),"",(L11)/($N$34)*100) -> 
B14: 4 | H14: =IF(OR(D14="",F14=""),"",D14 * F14/12) ->  | L14: =IF(OR(D14="",F14="",J14=""),"",10^(-5.81636221052493+0.0222878437409416*(H14))*(J14)) ->  | N14: =IF(OR(D14="",F14="",J14=""),"",(L14)/($N$34)*100) -> 
B17: 5 | H17: =IF(OR(D17="",F17=""),"",D17 * F17/12) ->  | L17: =IF(OR(D17="",F17="",J17=""),"",10^(-5.81636221052493+0.0222878437409416*(H17))*(J17)) ->  | N17: =IF(OR(D17="",F17="",J17=""),"",(L17)/($N$34)*100) -> 
B20: 6 | H20: =IF(OR(D20="",F20=""),"",D20 * F20/12) ->  | L20: =IF(OR(D20="",F20="",J20=""),"",10^(-5.81636221052493+0.0222878437409416*(H20))*(J20)) ->  | N20: =IF(OR(D20="",F20="",J20=""),"",(L20)/($N$34)*100) -> 
B23: 7 | H23: =IF(OR(D23="",F23=""),"",D23 * F23/12) ->  | L23: =IF(OR(D23="",F23="",J23=""),"",10^(-5.81636221052493+0.0222878437409416*(H23))*(J23)) ->  | N23: =IF(OR(D23="",F23="",J23=""),"",(L23)/($N$34)*100) -> 
B26: 8 | H26: =IF(OR(D26="",F26=""),"",D26 * F26/12) ->  | L26: =IF(OR(D26="",F26="",J26=""),"",10^(-5.81636221052493+0.0222878437409416*(H26))*(J26)) ->  | N26: =IF(OR(D26="",F26="",J26=""),"",(L26)/($N$34)*100) -> 
B29: 9 | H29: =IF(OR(D29="",F29=""),"",D29 * F29/12) ->  | L29: =IF(OR(D29="",F29="",J29=""),"",10^(-5.81636221052493+0.0222878437409416*(H29))*(J29)) ->  | N29: =IF(OR(D29="",F29="",J29=""),"",(L29)/($N$34)*100) -> 
B32: 10 | H32: =IF(OR(D32="",F32=""),"",D32 * F32/12) ->  | L32: =IF(OR(D32="",F32="",J32=""),"",10^(-5.81636221052493+0.0222878437409416*(H32))*(J32)) ->  | N32: =IF(OR(D32="",F32="",J32=""),"",(L32)/($N$34)*100) -> 
H34: Total Cumulative Damage: | N34: =SUM(L5:L33) -> 0.004943638487
H35: Probability of High Risk Job * (%): | N35: =IF($N$34=0,0,ROUND(EXP(1.7229+1.0239*LOG($N$34, 10))/(1+EXP(1.7229+1.0239*LOG($N$34, 10))), 3)) -> 0.346
N37: =IF(AND(DD),"",SUM(L5:L35)) -> 
B39: Lastest Version: http://lifft.pythonanywhere.com/
B40: Excel Version Developers: ________________________
D41: 2016 - 2019 © Sean Gallagher, Richard Sesek, Mark Schall, Rong Huangfu
A47: * A “High Risk Job” is defined as a job experiencing 12+ injuries per 200,000 hours worked, as defined by Marras et al. (1993).
A48: Marras, W.S., Lavender, S.A., Leurgans, S.E., Rajulu, S.L., Allread, W.G., Fathallah, F.A., Ferguson, S.A. (1993). The role of dynamic three-dimensional trunk motion in occupationally-related low back disorders: The effects of workplace factors, trunk position, and trunk motion characteristics on risk of injury. Spine 18(5): 617-628.
H701: =IF(OR(D701="",F701=""),"",(D701)*(F701)*9.8/100) ->  | L701: =IF(OR(D701="",F701="",J701=""),"",10^(-5.81636221052493+0.0222878437409416*((H701)/9.8*39.37*2.2046/12))*(J701)) ->  | N701: =IF(OR(D701="",F701="",J701=""),"",(L701)/($N$34)*100) -> 

Sheet moment_cd_relationship (hidden)
A1: x | B1: y
A2: ft.lbs | B2: damage per cycle (ft.lbs) | C2: task #1 damage (extrapolation bw points) | D2: task #2 damage (extrapolation bw points) | E2: task #3 damage (extrapolation bw points) | F2: task #4 damage (extrapolation bw points) | G2: task #5 damage (extrapolation bw points) | H2: task #6 damage (extrapolation bw points) | I2: task #7 damage (extrapolation bw points) | J2: task #8 damage (extrapolation bw points) | K2: task #9 damage (extrapolation bw points) | L2: task #10 damage (extrapolation bw points)
A3: 0 | B3: 0
A4: 1 | B4: 1.7e-06 | C4: =(('LiFFT_v1.4.0'!$H$5-moment_cd_relationship!A3)*((moment_cd_relationship!B3-moment_cd_relationship!B4)/(moment_cd_relationship!A3-moment_cd_relationship!A4))+moment_cd_relationship!B3)*'LiFFT_v1.4.0'!$J$5 -> 0.03825 | D4: =(('LiFFT_v1.4.0'!$H$8-moment_cd_relationship!A3)*((moment_cd_relationship!B3-moment_cd_relationship!B4)/(moment_cd_relationship!A3-moment_cd_relationship!A4))+moment_cd_relationship!B3)*'LiFFT_v1.4.0'!$J$8 ->  | E4: =(('LiFFT_v1.4.0'!$H$11-moment_cd_relationship!A3)*((moment_cd_relationship!B3-moment_cd_relationship!B4)/(moment_cd_relationship!A3-moment_cd_relationship!A4))+moment_cd_relationship!B3)*'LiFFT_v1.4.0'!$J$11 ->  | F4: =(('LiFFT_v1.4.0'!$H$14-moment_cd_relationship!A3)*((moment_cd_relationship!B3-moment_cd_relationship!B4)/(moment_cd_relationship!A3-moment_cd_relationship!A4))+moment_cd_relationship!B3)*'LiFFT_v1.4.0'!$J$14 ->  | G4: =(('LiFFT_v1.4.0'!$H$17-moment_cd_relationship!A3)*((moment_cd_relationship!B3-moment_cd_relationship!B4)/(moment_cd_relationship!A3-moment_cd_relationship!A4))+moment_cd_relationship!B3)*'LiFFT_v1.4.0'!$J$17 ->  | H4: =(('LiFFT_v1.4.0'!$H$20-moment_cd_relationship!A3)*((moment_cd_relationship!B3-moment_cd_relationship!B4)/(moment_cd_relationship!A3-moment_cd_relationship!A4))+moment_cd_relationship!B3)*'LiFFT_v1.4.0'!$J$20 ->  | I4: =(('LiFFT_v1.4.0'!$H$23-moment_cd_relationship!A3)*((moment_cd_relationship!B3-moment_cd_relationship!B4)/(moment_cd_relationship!A3-moment_cd_relationship!A4))+moment_cd_relationship!B3)*'LiFFT_v1.4.0'!$J$23 ->  | J4: =(('LiFFT_v1.4.0'!$H$26-moment_cd_relationship!A3)*((moment_cd_relationship!B3-moment_cd_relationship!B4)/(moment_cd_relationship!A3-moment_cd_relationship!A4))+moment_cd_relationship!B3)*'LiFFT_v1.4.0'!$J$26 ->  | K4: =(('LiFFT_v1.4.0'!$H$29-moment_cd_relationship!A3)*((moment_cd_relationship!B3-moment_cd_relationship!B4)/(moment_cd_relationship!A3-moment_cd_relationship!A4))+moment_cd_relationship!B3)*'LiFFT_v1.4.0'!$J$29 ->  | L4: =(('LiFFT_v1.4.0'!$H$32-moment_cd_relationship!A3)*((moment_cd_relationship!B3-moment_cd_relationship!B4)/(moment_cd_relationship!A3-moment_cd_relationship!A4))+moment_cd_relationship!B3)*'LiFFT_v1.4.0'!$J$32 -> 
A5: 2 | B5: 1.8e-06 | C5: =(('LiFFT_v1.4.0'!$H$5-moment_cd_relationship!A4)*((moment_cd_relationship!B4-moment_cd_relationship!B5)/(moment_cd_relationship!A4-moment_cd_relationship!A5))+moment_cd_relationship!B4)*'LiFFT_v1.4.0'!$J$5 -> 0.00465 | D5: =(('LiFFT_v1.4.0'!$H$8-moment_cd_relationship!A4)*((moment_cd_relationship!B4-moment_cd_relationship!B5)/(moment_cd_relationship!A4-moment_cd_relationship!A5))+moment_cd_relationship!B4)*'LiFFT_v1.4.0'!$J$8 ->  | E5: =(('LiFFT_v1.4.0'!$H$11-moment_cd_relationship!A4)*((moment_cd_relationship!B4-moment_cd_relationship!B5)/(moment_cd_relationship!A4-moment_cd_relationship!A5))+moment_cd_relationship!B4)*'LiFFT_v1.4.0'!$J$11 ->  | F5: =(('LiFFT_v1.4.0'!$H$14-moment_cd_relationship!A4)*((moment_cd_relationship!B4-moment_cd_relationship!B5)/(moment_cd_relationship!A4-moment_cd_relationship!A5))+moment_cd_relationship!B4)*'LiFFT_v1.4.0'!$J$14 ->  | G5: =(('LiFFT_v1.4.0'!$H$17-moment_cd_relationship!A4)*((moment_cd_relationship!B4-moment_cd_relationship!B5)/(moment_cd_relationship!A4-moment_cd_relationship!A5))+moment_cd_relationship!B4)*'LiFFT_v1.4.0'!$J$17 ->  | H5: =(('LiFFT_v1.4.0'!$H$20-moment_cd_relationship!A4)*((moment_cd_relationship!B4-moment_cd_relationship!B5)/(moment_cd_relationship!A4-moment_cd_relationship!A5))+moment_cd_relationship!B4)*'LiFFT_v1.4.0'!$J$20 ->  | I5: =(('LiFFT_v1.4.0'!$H$23-moment_cd_relationship!A4)*((moment_cd_relationship!B4-moment_cd_relationship!B5)/(moment_cd_relationship!A4-moment_cd_relationship!A5))+moment_cd_relationship!B4)*'LiFFT_v1.4.0'!$J$23 ->  | J5: =(('LiFFT_v1.4.0'!$H$26-moment_cd_relationship!A4)*((moment_cd_relationship!B4-moment_cd_relationship!B5)/(moment_cd_relationship!A4-moment_cd_relationship!A5))+moment_cd_relationship!B4)*'LiFFT_v1.4.0'!$J$26 ->  | K5: =(('LiFFT_v1.4.0'!$H$29-moment_cd_relationship!A4)*((moment_cd_relationship!B4-moment_cd_relationship!B5)/(moment_cd_relationship!A4-moment_cd_relationship!A5))+moment_cd_relationship!B4)*'LiFFT_v1.4.0'!$J$29 ->  | L5: =(('LiFFT_v1.4.0'!$H$32-moment_cd_relationship!A4)*((moment_cd_relationship!B4-moment_cd_relationship!B5)/(moment_cd_relationship!A4-moment_cd_relationship!A5))+moment_cd_relationship!B4)*'LiFFT_v1.4.0'!$J$32 -> 
A6: 3 | B6: 1.9e-06 | C6: =(('LiFFT_v1.4.0'!$H$5-moment_cd_relationship!A5)*((moment_cd_relationship!B5-moment_cd_relationship!B6)/(moment_cd_relationship!A5-moment_cd_relationship!A6))+moment_cd_relationship!B5)*'LiFFT_v1.4.0'!$J$5 -> 0.00465 | D6: =(('LiFFT_v1.4.0'!$H$8-moment_cd_relationship!A5)*((moment_cd_relationship!B5-moment_cd_relationship!B6)/(moment_cd_relationship!A5-moment_cd_relationship!A6))+moment_cd_relationship!B5)*'LiFFT_v1.4.0'!$J$8 ->  | E6: =(('LiFFT_v1.4.0'!$H$11-moment_cd_relationship!A5)*((moment_cd_relationship!B5-moment_cd_relationship!B6)/(moment_cd_relationship!A5-moment_cd_relationship!A6))+moment_cd_relationship!B5)*'LiFFT_v1.4.0'!$J$11 ->  | F6: =(('LiFFT_v1.4.0'!$H$14-moment_cd_relationship!A5)*((moment_cd_relationship!B5-moment_cd_relationship!B6)/(moment_cd_relationship!A5-moment_cd_relationship!A6))+moment_cd_relationship!B5)*'LiFFT_v1.4.0'!$J$14 ->  | G6: =(('LiFFT_v1.4.0'!$H$17-moment_cd_relationship!A5)*((moment_cd_relationship!B5-moment_cd_relationship!B6)/(moment_cd_relationship!A5-moment_cd_relationship!A6))+moment_cd_relationship!B5)*'LiFFT_v1.4.0'!$J$17 ->  | H6: =(('LiFFT_v1.4.0'!$H$20-moment_cd_relationship!A5)*((moment_cd_relationship!B5-moment_cd_relationship!B6)/(moment_cd_relationship!A5-moment_cd_relationship!A6))+moment_cd_relationship!B5)*'LiFFT_v1.4.0'!$J$20 ->  | I6: =(('LiFFT_v1.4.0'!$H$23-moment_cd_relationship!A5)*((moment_cd_relationship!B5-moment_cd_relationship!B6)/(moment_cd_relationship!A5-moment_cd_relationship!A6))+moment_cd_relationship!B5)*'LiFFT_v1.4.0'!$J$23 ->  | J6: =(('LiFFT_v1.4.0'!$H$26-moment_cd_relationship!A5)*((moment_cd_relationship!B5-moment_cd_relationship!B6)/(moment_cd_relationship!A5-moment_cd_relationship!A6))+moment_cd_relationship!B5)*'LiFFT_v1.4.0'!$J$26 ->  | K6: =(('LiFFT_v1.4.0'!$H$29-moment_cd_relationship!A5)*((moment_cd_relationship!B5-moment_cd_relationship!B6)/(moment_cd_relationship!A5-moment_cd_relationship!A6))+moment_cd_relationship!B5)*'LiFFT_v1.4.0'!$J$29 ->  | L6: =(('LiFFT_v1.4.0'!$H$32-moment_cd_relationship!A5)*((moment_cd_relationship!B5-moment_cd_relationship!B6)/(moment_cd_relationship!A5-moment_cd_relationship!A6))+moment_cd_relationship!B5)*'LiFFT_v1.4.0'!$J$32 -> 
A7: 4 | B7: 2e-06 | C7: =(('LiFFT_v1.4.0'!$H$5-moment_cd_relationship!A6)*((moment_cd_relationship!B6-moment_cd_relationship!B7)/(moment_cd_relationship!A6-moment_cd_relationship!A7))+moment_cd_relationship!B6)*'LiFFT_v1.4.0'!$J$5 -> 0.00465 | D7: =(('LiFFT_v1.4.0'!$H$8-moment_cd_relationship!A6)*((moment_cd_relationship!B6-moment_cd_relationship!B7)/(moment_cd_relationship!A6-moment_cd_relationship!A7))+moment_cd_relationship!B6)*'LiFFT_v1.4.0'!$J$8 ->  | E7: =(('LiFFT_v1.4.0'!$H$11-moment_cd_relationship!A6)*((moment_cd_relationship!B6-moment_cd_relationship!B7)/(moment_cd_relationship!A6-moment_cd_relationship!A7))+moment_cd_relationship!B6)*'LiFFT_v1.4.0'!$J$11 ->  | F7: =(('LiFFT_v1.4.0'!$H$14-moment_cd_relationship!A6)*((moment_cd_relationship!B6-moment_cd_relationship!B7)/(moment_cd_relationship!A6-moment_cd_relationship!A7))+moment_cd_relationship!B6)*'LiFFT_v1.4.0'!$J$14 ->  | G7: =(('LiFFT_v1.4.0'!$H$17-moment_cd_relationship!A6)*((moment_cd_relationship!B6-moment_cd_relationship!B7)/(moment_cd_relationship!A6-moment_cd_relationship!A7))+moment_cd_relationship!B6)*'LiFFT_v1.4.0'!$J$17 ->  | H7: =(('LiFFT_v1.4.0'!$H$20-moment_cd_relationship!A6)*((moment_cd_relationship!B6-moment_cd_relationship!B7)/(moment_cd_relationship!A6-moment_cd_relationship!A7))+moment_cd_relationship!B6)*'LiFFT_v1.4.0'!$J$20 ->  | I7: =(('LiFFT_v1.4.0'!$H$23-moment_cd_relationship!A6)*((moment_cd_relationship!B6-moment_cd_relationship!B7)/(moment_cd_relationship!A6-moment_cd_relationship!A7))+moment_cd_relationship!B6)*'LiFFT_v1.4.0'!$J$23 ->  | J7: =(('LiFFT_v1.4.0'!$H$26-moment_cd_relationship!A6)*((moment_cd_relationship!B6-moment_cd_relationship!B7)/(moment_cd_relationship!A6-moment_cd_relationship!A7))+moment_cd_relationship!B6)*'LiFFT_v1.4.0'!$J$26 ->  | K7: =(('LiFFT_v1.4.0'!$H$29-moment_cd_relationship!A6)*((moment_cd_relationship!B6-moment_cd_relationship!B7)/(moment_cd_relationship!A6-moment_cd_relationship!A7))+moment_cd_relationship!B6)*'LiFFT_v1.4.0'!$J$29 ->  | L7: =(('LiFFT_v1.4.0'!$H$32-moment_cd_relationship!A6)*((moment_cd_relationship!B6-moment_cd_relationship!B7)/(moment_cd_relationship!A6-moment_cd_relationship!A7))+moment_cd_relationship!B6)*'LiFFT_v1.4.0'!$J$32 -> 
A8: 5 | B8: 2.1e-06 | C8: =(('LiFFT_v1.4.0'!$H$5-moment_cd_relationship!A7)*((moment_cd_relationship!B7-moment_cd_relationship!B8)/(moment_cd_relationship!A7-moment_cd_relationship!A8))+moment_cd_relationship!B7)*'LiFFT_v1.4.0'!$J$5 -> 0.00465 | D8: =(('LiFFT_v1.4.0'!$H$8-moment_cd_relationship!A7)*((moment_cd_relationship!B7-moment_cd_relationship!B8)/(moment_cd_relationship!A7-moment_cd_relationship!A8))+moment_cd_relationship!B7)*'LiFFT_v1.4.0'!$J$8 ->  | E8: =(('LiFFT_v1.4.0'!$H$11-moment_cd_relationship!A7)*((moment_cd_relationship!B7-moment_cd_relationship!B8)/(moment_cd_relationship!A7-moment_cd_relationship!A8))+moment_cd_relationship!B7)*'LiFFT_v1.4.0'!$J$11 ->  | F8: =(('LiFFT_v1.4.0'!$H$14-moment_cd_relationship!A7)*((moment_cd_relationship!B7-moment_cd_relationship!B8)/(moment_cd_relationship!A7-moment_cd_relationship!A8))+moment_cd_relationship!B7)*'LiFFT_v1.4.0'!$J$14 ->  | G8: =(('LiFFT_v1.4.0'!$H$17-moment_cd_relationship!A7)*((moment_cd_relationship!B7-moment_cd_relationship!B8)/(moment_cd_relationship!A7-moment_cd_relationship!A8))+moment_cd_relationship!B7)*'LiFFT_v1.4.0'!$J$17 ->  | H8: =(('LiFFT_v1.4.0'!$H$20-moment_cd_relationship!A7)*((moment_cd_relationship!B7-moment_cd_relationship!B8)/(moment_cd_relationship!A7-moment_cd_relationship!A8))+moment_cd_relationship!B7)*'LiFFT_v1.4.0'!$J$20 ->  | I8: =(('LiFFT_v1.4.0'!$H$23-moment_cd_relationship!A7)*((moment_cd_relationship!B7-moment_cd_relationship!B8)/(moment_cd_relationship!A7-moment_cd_relationship!A8))+moment_cd_relationship!B7)*'LiFFT_v1.4.0'!$J$23 ->  | J8: =(('LiFFT_v1.4.0'!$H$26-moment_cd_relationship!A7)*((moment_cd_relationship!B7-moment_cd_relationship!B8)/(moment_cd_relationship!A7-moment_cd_relationship!A8))+moment_cd_relationship!B7)*'LiFFT_v1.4.0'!$J$26 ->  | K8: =(('LiFFT_v1.4.0'!$H$29-moment_cd_relationship!A7)*((moment_cd_relationship!B7-moment_cd_relationship!B8)/(moment_cd_relationship!A7-moment_cd_relationship!A8))+moment_cd_relationship!B7)*'LiFFT_v1.4.0'!$J$29 ->  | L8: =(('LiFFT_v1.4.0'!$H$32-moment_cd_relationship!A7)*((moment_cd_relationship!B7-moment_cd_relationship!B8)/(moment_cd_relationship!A7-moment_cd_relationship!A8))+moment_cd_relationship!B7)*'LiFFT_v1.4.0'!$J$32 -> 
A9: 6 | B9: 2.2e-06 | C9: =(('LiFFT_v1.4.0'!$H$5-moment_cd_relationship!A8)*((moment_cd_relationship!B8-moment_cd_relationship!B9)/(moment_cd_relationship!A8-moment_cd_relationship!A9))+moment_cd_relationship!B8)*'LiFFT_v1.4.0'!$J$5 -> 0.00465 | D9: =(('LiFFT_v1.4.0'!$H$8-moment_cd_relationship!A8)*((moment_cd_relationship!B8-moment_cd_relationship!B9)/(moment_cd_relationship!A8-moment_cd_relationship!A9))+moment_cd_relationship!B8)*'LiFFT_v1.4.0'!$J$8 ->  | E9: =(('LiFFT_v1.4.0'!$H$11-moment_cd_relationship!A8)*((moment_cd_relationship!B8-moment_cd_relationship!B9)/(moment_cd_relationship!A8-moment_cd_relationship!A9))+moment_cd_relationship!B8)*'LiFFT_v1.4.0'!$J$11 ->  | F9: =(('LiFFT_v1.4.0'!$H$14-moment_cd_relationship!A8)*((moment_cd_relationship!B8-moment_cd_relationship!B9)/(moment_cd_relationship!A8-moment_cd_relationship!A9))+moment_cd_relationship!B8)*'LiFFT_v1.4.0'!$J$14 ->  | G9: =(('LiFFT_v1.4.0'!$H$17-moment_cd_relationship!A8)*((moment_cd_relationship!B8-moment_cd_relationship!B9)/(moment_cd_relationship!A8-moment_cd_relationship!A9))+moment_cd_relationship!B8)*'LiFFT_v1.4.0'!$J$17 ->  | H9: =(('LiFFT_v1.4.0'!$H$20-moment_cd_relationship!A8)*((moment_cd_relationship!B8-moment_cd_relationship!B9)/(moment_cd_relationship!A8-moment_cd_relationship!A9))+moment_cd_relationship!B8)*'LiFFT_v1.4.0'!$J$20 ->  | I9: =(('LiFFT_v1.4.0'!$H$23-moment_cd_relationship!A8)*((moment_cd_relationship!B8-moment_cd_relationship!B9)/(moment_cd_relationship!A8-moment_cd_relationship!A9))+moment_cd_relationship!B8)*'LiFFT_v1.4.0'!$J$23 ->  | J9: =(('LiFFT_v1.4.0'!$H$26-moment_cd_relationship!A8)*((moment_cd_relationship!B8-moment_cd_relationship!B9)/(moment_cd_relationship!A8-moment_cd_relationship!A9))+moment_cd_relationship!B8)*'LiFFT_v1.4.0'!$J$26 ->  | K9: =(('LiFFT_v1.4.0'!$H$29-moment_cd_relationship!A8)*((moment_cd_relationship!B8-moment_cd_relationship!B9)/(moment_cd_relationship!A8-moment_cd_relationship!A9))+moment_cd_relationship!B8)*'LiFFT_v1.4.0'!$J$29 ->  | L9: =(('LiFFT_v1.4.0'!$H$32-moment_cd_relationship!A8)*((moment_cd_relationship!B8-moment_cd_relationship!B9)/(moment_cd_relationship!A8-moment_cd_relationship!A9))+moment_cd_relationship!B8)*'LiFFT_v1.4.0'!$J$32 -> 
A10: 7 | B10: 2.3e-06 | C10: =(('LiFFT_v1.4.0'!$H$5-moment_cd_relationship!A9)*((moment_cd_relationship!B9-moment_cd_relationship!B10)/(moment_cd_relationship!A9-moment_cd_relationship!A10))+moment_cd_relationship!B9)*'LiFFT_v1.4.0'!$J$5 -> 0.00465 | D10: =(('LiFFT_v1.4.0'!$H$8-moment_cd_relationship!A9)*((moment_cd_relationship!B9-moment_cd_relationship!B10)/(moment_cd_relationship!A9-moment_cd_relationship!A10))+moment_cd_relationship!B9)*'LiFFT_v1.4.0'!$J$8 ->  | E10: =(('LiFFT_v1.4.0'!$H$11-moment_cd_relationship!A9)*((moment_cd_relationship!B9-moment_cd_relationship!B10)/(moment_cd_relationship!A9-moment_cd_relationship!A10))+moment_cd_relationship!B9)*'LiFFT_v1.4.0'!$J$11 ->  | F10: =(('LiFFT_v1.4.0'!$H$14-moment_cd_relationship!A9)*((moment_cd_relationship!B9-moment_cd_relationship!B10)/(moment_cd_relationship!A9-moment_cd_relationship!A10))+moment_cd_relationship!B9)*'LiFFT_v1.4.0'!$J$14 ->  | G10: =(('LiFFT_v1.4.0'!$H$17-moment_cd_relationship!A9)*((moment_cd_relationship!B9-moment_cd_relationship!B10)/(moment_cd_relationship!A9-moment_cd_relationship!A10))+moment_cd_relationship!B9)*'LiFFT_v1.4.0'!$J$17 ->  | H10: =(('LiFFT_v1.4.0'!$H$20-moment_cd_relationship!A9)*((moment_cd_relationship!B9-moment_cd_relationship!B10)/(moment_cd_relationship!A9-moment_cd_relationship!A10))+moment_cd_relationship!B9)*'LiFFT_v1.4.0'!$J$20 ->  | I10: =(('LiFFT_v1.4.0'!$H$23-moment_cd_relationship!A9)*((moment_cd_relationship!B9-moment_cd_relationship!B10)/(moment_cd_relationship!A9-moment_cd_relationship!A10))+moment_cd_relationship!B9)*'LiFFT_v1.4.0'!$J$23 ->  | J10: =(('LiFFT_v1.4.0'!$H$26-moment_cd_relationship!A9)*((moment_cd_relationship!B9-moment_cd_relationship!B10)/(moment_cd_relationship!A9-moment_cd_relationship!A10))+moment_cd_relationship!B9)*'LiFFT_v1.4.0'!$J$26 ->  | K10: =(('LiFFT_v1.4.0'!$H$29-moment_cd_relationship!A9)*((moment_cd_relationship!B9-moment_cd_relationship!B10)/(moment_cd_relationship!A9-moment_cd_relationship!A10))+moment_cd_relationship!B9)*'LiFFT_v1.4.0'!$J$29 ->  | L10: =(('LiFFT_v1.4.0'!$H$32-moment_cd_relationship!A9)*((moment_cd_relationship!B9-moment_cd_relationship!B10)/(moment_cd_relationship!A9-moment_cd_relationship!A10))+moment_cd_relationship!B9)*'LiFFT_v1.4.0'!$J$32 -> 
A11: 8 | B11: 2.4e-06 | C11: =(('LiFFT_v1.4.0'!$H$5-moment_cd_relationship!A10)*((moment_cd_relationship!B10-moment_cd_relationship!B11)/(moment_cd_relationship!A10-moment_cd_relationship!A11))+moment_cd_relationship!B10)*'LiFFT_v1.4.0'!$J$5 -> 0.00465 | D11: =(('LiFFT_v1.4.0'!$H$8-moment_cd_relationship!A10)*((moment_cd_relationship!B10-moment_cd_relationship!B11)/(moment_cd_relationship!A10-moment_cd_relationship!A11))+moment_cd_relationship!B10)*'LiFFT_v1.4.0'!$J$8 ->  | E11: =(('LiFFT_v1.4.0'!$H$11-moment_cd_relationship!A10)*((moment_cd_relationship!B10-moment_cd_relationship!B11)/(moment_cd_relationship!A10-moment_cd_relationship!A11))+moment_cd_relationship!B10)*'LiFFT_v1.4.0'!$J$11 ->  | F11: =(('LiFFT_v1.4.0'!$H$14-moment_cd_relationship!A10)*((moment_cd_relationship!B10-moment_cd_relationship!B11)/(moment_cd_relationship!A10-moment_cd_relationship!A11))+moment_cd_relationship!B10)*'LiFFT_v1.4.0'!$J$14 ->  | G11: =(('LiFFT_v1.4.0'!$H$17-moment_cd_relationship!A10)*((moment_cd_relationship!B10-moment_cd_relationship!B11)/(moment_cd_relationship!A10-moment_cd_relationship!A11))+moment_cd_relationship!B10)*'LiFFT_v1.4.0'!$J$17 ->  | H11: =(('LiFFT_v1.4.0'!$H$20-moment_cd_relationship!A10)*((moment_cd_relationship!B10-moment_cd_relationship!B11)/(moment_cd_relationship!A10-moment_cd_relationship!A11))+moment_cd_relationship!B10)*'LiFFT_v1.4.0'!$J$20 ->  | I11: =(('LiFFT_v1.4.0'!$H$23-moment_cd_relationship!A10)*((moment_cd_relationship!B10-moment_cd_relationship!B11)/(moment_cd_relationship!A10-moment_cd_relationship!A11))+moment_cd_relationship!B10)*'LiFFT_v1.4.0'!$J$23 ->  | J11: =(('LiFFT_v1.4.0'!$H$26-moment_cd_relationship!A10)*((moment_cd_relationship!B10-moment_cd_relationship!B11)/(moment_cd_relationship!A10-moment_cd_relationship!A11))+moment_cd_relationship!B10)*'LiFFT_v1.4.0'!$J$26 ->  | K11: =(('LiFFT_v1.4.0'!$H$29-moment_cd_relationship!A10)*((moment_cd_relationship!B10-moment_cd_relationship!B11)/(moment_cd_relationship!A10-moment_cd_relationship!A11))+moment_cd_relationship!B10)*'LiFFT_v1.4.0'!$J$29 ->  | L11: =(('LiFFT_v1.4.0'!$H$32-moment_cd_relationship!A10)*((moment_cd_relationship!B10-moment_cd_relationship!B11)/(moment_cd_relationship!A10-moment_cd_relationship!A11))+moment_cd_relationship!B10)*'LiFFT_v1.4.0'!$J$32 -> 
A12: 9 | B12: 2.5e-06 | C12: =(('LiFFT_v1.4.0'!$H$5-moment_cd_relationship!A11)*((moment_cd_relationship!B11-moment_cd_relationship!B12)/(moment_cd_relationship!A11-moment_cd_relationship!A12))+moment_cd_relationship!B11)*'LiFFT_v1.4.0'!$J$5 -> 0.00465 | D12: =(('LiFFT_v1.4.0'!$H$8-moment_cd_relationship!A11)*((moment_cd_relationship!B11-moment_cd_relationship!B12)/(moment_cd_relationship!A11-moment_cd_relationship!A12))+moment_cd_relationship!B11)*'LiFFT_v1.4.0'!$J$8 ->  | E12: =(('LiFFT_v1.4.0'!$H$11-moment_cd_relationship!A11)*((moment_cd_relationship!B11-moment_cd_relationship!B12)/(moment_cd_relationship!A11-moment_cd_relationship!A12))+moment_cd_relationship!B11)*'LiFFT_v1.4.0'!$J$11 ->  | F12: =(('LiFFT_v1.4.0'!$H$14-moment_cd_relationship!A11)*((moment_cd_relationship!B11-moment_cd_relationship!B12)/(moment_cd_relationship!A11-moment_cd_relationship!A12))+moment_cd_relationship!B11)*'LiFFT_v1.4.0'!$J$14 ->  | G12: =(('LiFFT_v1.4.0'!$H$17-moment_cd_relationship!A11)*((moment_cd_relationship!B11-moment_cd_relationship!B12)/(moment_cd_relationship!A11-moment_cd_relationship!A12))+moment_cd_relationship!B11)*'LiFFT_v1.4.0'!$J$17 ->  | H12: =(('LiFFT_v1.4.0'!$H$20-moment_cd_relationship!A11)*((moment_cd_relationship!B11-moment_cd_relationship!B12)/(moment_cd_relationship!A11-moment_cd_relationship!A12))+moment_cd_relationship!B11)*'LiFFT_v1.4.0'!$J$20 ->  | I12: =(('LiFFT_v1.4.0'!$H$23-moment_cd_relationship!A11)*((moment_cd_relationship!B11-moment_cd_relationship!B12)/(moment_cd_relationship!A11-moment_cd_relationship!A12))+moment_cd_relationship!B11)*'LiFFT_v1.4.0'!$J$23 ->  | J12: =(('LiFFT_v1.4.0'!$H$26-moment_cd_relationship!A11)*((moment_cd_relationship!B11-moment_cd_relationship!B12)/(moment_cd_relationship!A11-moment_cd_relationship!A12))+moment_cd_relationship!B11)*'LiFFT_v1.4.0'!$J$26 ->  | K12: =(('LiFFT_v1.4.0'!$H$29-moment_cd_relationship!A11)*((moment_cd_relationship!B11-moment_cd_relationship!B12)/(moment_cd_relationship!A11-moment_cd_relationship!A12))+moment_cd_relationship!B11)*'LiFFT_v1.4.0'!$J$29 ->  | L12: =(('LiFFT_v1.4.0'!$H$32-moment_cd_relationship!A11)*((moment_cd_relationship!B11-moment_cd_relationship!B12)/(moment_cd_relationship!A11-moment_cd_relationship!A12))+moment_cd_relationship!B11)*'LiFFT_v1.4.0'!$J$32 -> 
A13: 10 | B13: 2.7e-06 | C13: =(('LiFFT_v1.4.0'!$H$5-moment_cd_relationship!A12)*((moment_cd_relationship!B12-moment_cd_relationship!B13)/(moment_cd_relationship!A12-moment_cd_relationship!A13))+moment_cd_relationship!B12)*'LiFFT_v1.4.0'!$J$5 -> 0.00555 | D13: =(('LiFFT_v1.4.0'!$H$8-moment_cd_relationship!A12)*((moment_cd_relationship!B12-moment_cd_relationship!B13)/(moment_cd_relationship!A12-moment_cd_relationship!A13))+moment_cd_relationship!B12)*'LiFFT_v1.4.0'!$J$8 ->  | E13: =(('LiFFT_v1.4.0'!$H$11-moment_cd_relationship!A12)*((moment_cd_relationship!B12-moment_cd_relationship!B13)/(moment_cd_relationship!A12-moment_cd_relationship!A13))+moment_cd_relationship!B12)*'LiFFT_v1.4.0'!$J$11 ->  | F13: =(('LiFFT_v1.4.0'!$H$14-moment_cd_relationship!A12)*((moment_cd_relationship!B12-moment_cd_relationship!B13)/(moment_cd_relationship!A12-moment_cd_relationship!A13))+moment_cd_relationship!B12)*'LiFFT_v1.4.0'!$J$14 ->  | G13: =(('LiFFT_v1.4.0'!$H$17-moment_cd_relationship!A12)*((moment_cd_relationship!B12-moment_cd_relationship!B13)/(moment_cd_relationship!A12-moment_cd_relationship!A13))+moment_cd_relationship!B12)*'LiFFT_v1.4.0'!$J$17 ->  | H13: =(('LiFFT_v1.4.0'!$H$20-moment_cd_relationship!A12)*((moment_cd_relationship!B12-moment_cd_relationship!B13)/(moment_cd_relationship!A12-moment_cd_relationship!A13))+moment_cd_relationship!B12)*'LiFFT_v1.4.0'!$J$20 ->  | I13: =(('LiFFT_v1.4.0'!$H$23-moment_cd_relationship!A12)*((moment_cd_relationship!B12-moment_cd_relationship!B13)/(moment_cd_relationship!A12-moment_cd_relationship!A13))+moment_cd_relationship!B12)*'LiFFT_v1.4.0'!$J$23 ->  | J13: =(('LiFFT_v1.4.0'!$H$26-moment_cd_relationship!A12)*((moment_cd_relationship!B12-moment_cd_relationship!B13)/(moment_cd_relationship!A12-moment_cd_relationship!A13))+moment_cd_relationship!B12)*'LiFFT_v1.4.0'!$J$26 ->  | K13: =(('LiFFT_v1.4.0'!$H$29-moment_cd_relationship!A12)*((moment_cd_relationship!B12-moment_cd_relationship!B13)/(moment_cd_relationship!A12-moment_cd_relationship!A13))+moment_cd_relationship!B12)*'LiFFT_v1.4.0'!$J$29 ->  | L13: =(('LiFFT_v1.4.0'!$H$32-moment_cd_relationship!A12)*((moment_cd_relationship!B12-moment_cd_relationship!B13)/(moment_cd_relationship!A12-moment_cd_relationship!A13))+moment_cd_relationship!B12)*'LiFFT_v1.4.0'!$J$32 -> 
A14: 11 | B14: 2.8e-06 | C14: =(('LiFFT_v1.4.0'!$H$5-moment_cd_relationship!A13)*((moment_cd_relationship!B13-moment_cd_relationship!B14)/(moment_cd_relationship!A13-moment_cd_relationship!A14))+moment_cd_relationship!B13)*'LiFFT_v1.4.0'!$J$5 -> 0.0048 | D14: =(('LiFFT_v1.4.0'!$H$8-moment_cd_relationship!A13)*((moment_cd_relationship!B13-moment_cd_relationship!B14)/(moment_cd_relationship!A13-moment_cd_relationship!A14))+moment_cd_relationship!B13)*'LiFFT_v1.4.0'!$J$8 ->  | E14: =(('LiFFT_v1.4.0'!$H$11-moment_cd_relationship!A13)*((moment_cd_relationship!B13-moment_cd_relationship!B14)/(moment_cd_relationship!A13-moment_cd_relationship!A14))+moment_cd_relationship!B13)*'LiFFT_v1.4.0'!$J$11 ->  | F14: =(('LiFFT_v1.4.0'!$H$14-moment_cd_relationship!A13)*((moment_cd_relationship!B13-moment_cd_relationship!B14)/(moment_cd_relationship!A13-moment_cd_relationship!A14))+moment_cd_relationship!B13)*'LiFFT_v1.4.0'!$J$14 ->  | G14: =(('LiFFT_v1.4.0'!$H$17-moment_cd_relationship!A13)*((moment_cd_relationship!B13-moment_cd_relationship!B14)/(moment_cd_relationship!A13-moment_cd_relationship!A14))+moment_cd_relationship!B13)*'LiFFT_v1.4.0'!$J$17 ->  | H14: =(('LiFFT_v1.4.0'!$H$20-moment_cd_relationship!A13)*((moment_cd_relationship!B13-moment_cd_relationship!B14)/(moment_cd_relationship!A13-moment_cd_relationship!A14))+moment_cd_relationship!B13)*'LiFFT_v1.4.0'!$J$20 ->  | I14: =(('LiFFT_v1.4.0'!$H$23-moment_cd_relationship!A13)*((moment_cd_relationship!B13-moment_cd_relationship!B14)/(moment_cd_relationship!A13-moment_cd_relationship!A14))+moment_cd_relationship!B13)*'LiFFT_v1.4.0'!$J$23 ->  | J14: =(('LiFFT_v1.4.0'!$H$26-moment_cd_relationship!A13)*((moment_cd_relationship!B13-moment_cd_relationship!B14)/(moment_cd_relationship!A13-moment_cd_relationship!A14))+moment_cd_relationship!B13)*'LiFFT_v1.4.0'!$J$26 ->  | K14: =(('LiFFT_v1.4.0'!$H$29-moment_cd_relationship!A13)*((moment_cd_relationship!B13-moment_cd_relationship!B14)/(moment_cd_relationship!A13-moment_cd_relationship!A14))+moment_cd_relationship!B13)*'LiFFT_v1.4.0'!$J$29 ->  | L14: =(('LiFFT_v1.4.0'!$H$32-moment_cd_relationship!A13)*((moment_cd_relationship!B13-moment_cd_relationship!B14)/(moment_cd_relationship!A13-moment_cd_relationship!A14))+moment_cd_relationship!B13)*'LiFFT_v1.4.0'!$J$32 -> 
A15: 12 | B15: 2.9e-06 | C15: =(('LiFFT_v1.4.0'!$H$5-moment_cd_relationship!A14)*((moment_cd_relationship!B14-moment_cd_relationship!B15)/(moment_cd_relationship!A14-moment_cd_relationship!A15))+moment_cd_relationship!B14)*'LiFFT_v1.4.0'!$J$5 -> 0.0048 | D15: =(('LiFFT_v1.4.0'!$H$8-moment_cd_relationship!A14)*((moment_cd_relationship!B14-moment_cd_relationship!B15)/(moment_cd_relationship!A14-moment_cd_relationship!A15))+moment_cd_relationship!B14)*'LiFFT_v1.4.0'!$J$8 ->  | E15: =(('LiFFT_v1.4.0'!$H$11-moment_cd_relationship!A14)*((moment_cd_relationship!B14-moment_cd_relationship!B15)/(moment_cd_relationship!A14-moment_cd_relationship!A15))+moment_cd_relationship!B14)*'LiFFT_v1.4.0'!$J$11 ->  | F15: =(('LiFFT_v1.4.0'!$H$14-moment_cd_relationship!A14)*((moment_cd_relationship!B14-moment_cd_relationship!B15)/(moment_cd_relationship!A14-moment_cd_relationship!A15))+moment_cd_relationship!B14)*'LiFFT_v1.4.0'!$J$14 ->  | G15: =(('LiFFT_v1.4.0'!$H$17-moment_cd_relationship!A14)*((moment_cd_relationship!B14-moment_cd_relationship!B15)/(moment_cd_relationship!A14-moment_cd_relationship!A15))+moment_cd_relationship!B14)*'LiFFT_v1.4.0'!$J$17 ->  | H15: =(('LiFFT_v1.4.0'!$H$20-moment_cd_relationship!A14)*((moment_cd_relationship!B14-moment_cd_relationship!B15)/(moment_cd_relationship!A14-moment_cd_relationship!A15))+moment_cd_relationship!B14)*'LiFFT_v1.4.0'!$J$20 ->  | I15: =(('LiFFT_v1.4.0'!$H$23-moment_cd_relationship!A14)*((moment_cd_relationship!B14-moment_cd_relationship!B15)/(moment_cd_relationship!A14-moment_cd_relationship!A15))+moment_cd_relationship!B14)*'LiFFT_v1.4.0'!$J$23 ->  | J15: =(('LiFFT_v1.4.0'!$H$26-moment_cd_relationship!A14)*((moment_cd_relationship!B14-moment_cd_relationship!B15)/(moment_cd_relationship!A14-moment_cd_relationship!A15))+moment_cd_relationship!B14)*'LiFFT_v1.4.0'!$J$26 ->  | K15: =(('LiFFT_v1.4.0'!$H$29-moment_cd_relationship!A14)*((moment_cd_relationship!B14-moment_cd_relationship!B15)/(moment_cd_relationship!A14-moment_cd_relationship!A15))+moment_cd_relationship!B14)*'LiFFT_v1.4.0'!$J$29 ->  | L15: =(('LiFFT_v1.4.0'!$H$32-moment_cd_relationship!A14)*((moment_cd_relationship!B14-moment_cd_relationship!B15)/(moment_cd_relationship!A14-moment_cd_relationship!A15))+moment_cd_relationship!B14)*'LiFFT_v1.4.0'!$J$32 -> 
A16: 13 | B16: 3.1e-06 | C16: =(('LiFFT_v1.4.0'!$H$5-moment_cd_relationship!A15)*((moment_cd_relationship!B15-moment_cd_relationship!B16)/(moment_cd_relationship!A15-moment_cd_relationship!A16))+moment_cd_relationship!B15)*'LiFFT_v1.4.0'!$J$5 -> 0.00525 | D16: =(('LiFFT_v1.4.0'!$H$8-moment_cd_relationship!A15)*((moment_cd_relationship!B15-moment_cd_relationship!B16)/(moment_cd_relationship!A15-moment_cd_relationship!A16))+moment_cd_relationship!B15)*'LiFFT_v1.4.0'!$J$8 ->  | E16: =(('LiFFT_v1.4.0'!$H$11-moment_cd_relationship!A15)*((moment_cd_relationship!B15-moment_cd_relationship!B16)/(moment_cd_relationship!A15-moment_cd_relationship!A16))+moment_cd_relationship!B15)*'LiFFT_v1.4.0'!$J$11 ->  | F16: =(('LiFFT_v1.4.0'!$H$14-moment_cd_relationship!A15)*((moment_cd_relationship!B15-moment_cd_relationship!B16)/(moment_cd_relationship!A15-moment_cd_relationship!A16))+moment_cd_relationship!B15)*'LiFFT_v1.4.0'!$J$14 ->  | G16: =(('LiFFT_v1.4.0'!$H$17-moment_cd_relationship!A15)*((moment_cd_relationship!B15-moment_cd_relationship!B16)/(moment_cd_relationship!A15-moment_cd_relationship!A16))+moment_cd_relationship!B15)*'LiFFT_v1.4.0'!$J$17 ->  | H16: =(('LiFFT_v1.4.0'!$H$20-moment_cd_relationship!A15)*((moment_cd_relationship!B15-moment_cd_relationship!B16)/(moment_cd_relationship!A15-moment_cd_relationship!A16))+moment_cd_relationship!B15)*'LiFFT_v1.4.0'!$J$20 ->  | I16: =(('LiFFT_v1.4.0'!$H$23-moment_cd_relationship!A15)*((moment_cd_relationship!B15-moment_cd_relationship!B16)/(moment_cd_relationship!A15-moment_cd_relationship!A16))+moment_cd_relationship!B15)*'LiFFT_v1.4.0'!$J$23 ->  | J16: =(('LiFFT_v1.4.0'!$H$26-moment_cd_relationship!A15)*((moment_cd_relationship!B15-moment_cd_relationship!B16)/(moment_cd_relationship!A15-moment_cd_relationship!A16))+moment_cd_relationship!B15)*'LiFFT_v1.4.0'!$J$26 ->  | K16: =(('LiFFT_v1.4.0'!$H$29-moment_cd_relationship!A15)*((moment_cd_relationship!B15-moment_cd_relationship!B16)/(moment_cd_relationship!A15-moment_cd_relationship!A16))+moment_cd_relationship!B15)*'LiFFT_v1.4.0'!$J$29 ->  | L16: =(('LiFFT_v1.4.0'!$H$32-moment_cd_relationship!A15)*((moment_cd_relationship!B15-moment_cd_relationship!B16)/(moment_cd_relationship!A15-moment_cd_relationship!A16))+moment_cd_relationship!B15)*'LiFFT_v1.4.0'!$J$32 -> 
A17: 14 | B17: 3.2e-06 | C17: =(('LiFFT_v1.4.0'!$H$5-moment_cd_relationship!A16)*((moment_cd_relationship!B16-moment_cd_relationship!B17)/(moment_cd_relationship!A16-moment_cd_relationship!A17))+moment_cd_relationship!B16)*'LiFFT_v1.4.0'!$J$5 -> 0.00495 | D17: =(('LiFFT_v1.4.0'!$H$8-moment_cd_relationship!A16)*((moment_cd_relationship!B16-moment_cd_relationship!B17)/(moment_cd_relationship!A16-moment_cd_relationship!A17))+moment_cd_relationship!B16)*'LiFFT_v1.4.0'!$J$8 ->  | E17: =(('LiFFT_v1.4.0'!$H$11-moment_cd_relationship!A16)*((moment_cd_relationship!B16-moment_cd_relationship!B17)/(moment_cd_relationship!A16-moment_cd_relationship!A17))+moment_cd_relationship!B16)*'LiFFT_v1.4.0'!$J$11 ->  | F17: =(('LiFFT_v1.4.0'!$H$14-moment_cd_relationship!A16)*((moment_cd_relationship!B16-moment_cd_relationship!B17)/(moment_cd_relationship!A16-moment_cd_relationship!A17))+moment_cd_relationship!B16)*'LiFFT_v1.4.0'!$J$14 ->  | G17: =(('LiFFT_v1.4.0'!$H$17-moment_cd_relationship!A16)*((moment_cd_relationship!B16-moment_cd_relationship!B17)/(moment_cd_relationship!A16-moment_cd_relationship!A17))+moment_cd_relationship!B16)*'LiFFT_v1.4.0'!$J$17 ->  | H17: =(('LiFFT_v1.4.0'!$H$20-moment_cd_relationship!A16)*((moment_cd_relationship!B16-moment_cd_relationship!B17)/(moment_cd_relationship!A16-moment_cd_relationship!A17))+moment_cd_relationship!B16)*'LiFFT_v1.4.0'!$J$20 ->  | I17: =(('LiFFT_v1.4.0'!$H$23-moment_cd_relationship!A16)*((moment_cd_relationship!B16-moment_cd_relationship!B17)/(moment_cd_relationship!A16-moment_cd_relationship!A17))+moment_cd_relationship!B16)*'LiFFT_v1.4.0'!$J$23 ->  | J17: =(('LiFFT_v1.4.0'!$H$26-moment_cd_relationship!A16)*((moment_cd_relationship!B16-moment_cd_relationship!B17)/(moment_cd_relationship!A16-moment_cd_relationship!A17))+moment_cd_relationship!B16)*'LiFFT_v1.4.0'!$J$26 ->  | K17: =(('LiFFT_v1.4.0'!$H$29-moment_cd_relationship!A16)*((moment_cd_relationship!B16-moment_cd_relationship!B17)/(moment_cd_relationship!A16-moment_cd_relationship!A17))+moment_cd_relationship!B16)*'LiFFT_v1.4.0'!$J$29 ->  | L17: =(('LiFFT_v1.4.0'!$H$32-moment_cd_relationship!A16)*((moment_cd_relationship!B16-moment_cd_relationship!B17)/(moment_cd_relationship!A16-moment_cd_relationship!A17))+moment_cd_relationship!B16)*'LiFFT_v1.4.0'!$J$32 -> 
A18: 15 | B18: 3.4e-06 | C18: =(('LiFFT_v1.4.0'!$H$5-moment_cd_relationship!A17)*((moment_cd_relationship!B17-moment_cd_relationship!B18)/(moment_cd_relationship!A17-moment_cd_relationship!A18))+moment_cd_relationship!B17)*'LiFFT_v1.4.0'!$J$5 -> 0.0051 | D18: =(('LiFFT_v1.4.0'!$H$8-moment_cd_relationship!A17)*((moment_cd_relationship!B17-moment_cd_relationship!B18)/(moment_cd_relationship!A17-moment_cd_relationship!A18))+moment_cd_relationship!B17)*'LiFFT_v1.4.0'!$J$8 ->  | E18: =(('LiFFT_v1.4.0'!$H$11-moment_cd_relationship!A17)*((moment_cd_relationship!B17-moment_cd_relationship!B18)/(moment_cd_relationship!A17-moment_cd_relationship!A18))+moment_cd_relationship!B17)*'LiFFT_v1.4.0'!$J$11 ->  | F18: =(('LiFFT_v1.4.0'!$H$14-moment_cd_relationship!A17)*((moment_cd_relationship!B17-moment_cd_relationship!B18)/(moment_cd_relationship!A17-moment_cd_relationship!A18))+moment_cd_relationship!B17)*'LiFFT_v1.4.0'!$J$14 ->  | G18: =(('LiFFT_v1.4.0'!$H$17-moment_cd_relationship!A17)*((moment_cd_relationship!B17-moment_cd_relationship!B18)/(moment_cd_relationship!A17-moment_cd_relationship!A18))+moment_cd_relationship!B17)*'LiFFT_v1.4.0'!$J$17 ->  | H18: =(('LiFFT_v1.4.0'!$H$20-moment_cd_relationship!A17)*((moment_cd_relationship!B17-moment_cd_relationship!B18)/(moment_cd_relationship!A17-moment_cd_relationship!A18))+moment_cd_relationship!B17)*'LiFFT_v1.4.0'!$J$20 ->  | I18: =(('LiFFT_v1.4.0'!$H$23-moment_cd_relationship!A17)*((moment_cd_relationship!B17-moment_cd_relationship!B18)/(moment_cd_relationship!A17-moment_cd_relationship!A18))+moment_cd_relationship!B17)*'LiFFT_v1.4.0'!$J$23 ->  | J18: =(('LiFFT_v1.4.0'!$H$26-moment_cd_relationship!A17)*((moment_cd_relationship!B17-moment_cd_relationship!B18)/(moment_cd_relationship!A17-moment_cd_relationship!A18))+moment_cd_relationship!B17)*'LiFFT_v1.4.0'!$J$26 ->  | K18: =(('LiFFT_v1.4.0'!$H$29-moment_cd_relationship!A17)*((moment_cd_relationship!B17-moment_cd_relationship!B18)/(moment_cd_relationship!A17-moment_cd_relationship!A18))+moment_cd_relationship!B17)*'LiFFT_v1.4.0'!$J$29 ->  | L18: =(('LiFFT_v1.4.0'!$H$32-moment_cd_relationship!A17)*((moment_cd_relationship!B17-moment_cd_relationship!B18)/(moment_cd_relationship!A17-moment_cd_relationship!A18))+moment_cd_relationship!B17)*'LiFFT_v1.4.0'!$J$32 -> 
A19: 16 | B19: 3.6e-06 | C19: =(('LiFFT_v1.4.0'!$H$5-moment_cd_relationship!A18)*((moment_cd_relationship!B18-moment_cd_relationship!B19)/(moment_cd_relationship!A18-moment_cd_relationship!A19))+moment_cd_relationship!B18)*'LiFFT_v1.4.0'!$J$5 -> 0.0051 | D19: =(('LiFFT_v1.4.0'!$H$8-moment_cd_relationship!A18)*((moment_cd_relationship!B18-moment_cd_relationship!B19)/(moment_cd_relationship!A18-moment_cd_relationship!A19))+moment_cd_relationship!B18)*'LiFFT_v1.4.0'!$J$8 ->  | E19: =(('LiFFT_v1.4.0'!$H$11-moment_cd_relationship!A18)*((moment_cd_relationship!B18-moment_cd_relationship!B19)/(moment_cd_relationship!A18-moment_cd_relationship!A19))+moment_cd_relationship!B18)*'LiFFT_v1.4.0'!$J$11 ->  | F19: =(('LiFFT_v1.4.0'!$H$14-moment_cd_relationship!A18)*((moment_cd_relationship!B18-moment_cd_relationship!B19)/(moment_cd_relationship!A18-moment_cd_relationship!A19))+moment_cd_relationship!B18)*'LiFFT_v1.4.0'!$J$14 ->  | G19: =(('LiFFT_v1.4.0'!$H$17-moment_cd_relationship!A18)*((moment_cd_relationship!B18-moment_cd_relationship!B19)/(moment_cd_relationship!A18-moment_cd_relationship!A19))+moment_cd_relationship!B18)*'LiFFT_v1.4.0'!$J$17 ->  | H19: =(('LiFFT_v1.4.0'!$H$20-moment_cd_relationship!A18)*((moment_cd_relationship!B18-moment_cd_relationship!B19)/(moment_cd_relationship!A18-moment_cd_relationship!A19))+moment_cd_relationship!B18)*'LiFFT_v1.4.0'!$J$20 ->  | I19: =(('LiFFT_v1.4.0'!$H$23-moment_cd_relationship!A18)*((moment_cd_relationship!B18-moment_cd_relationship!B19)/(moment_cd_relationship!A18-moment_cd_relationship!A19))+moment_cd_relationship!B18)*'LiFFT_v1.4.0'!$J$23 ->  | J19: =(('LiFFT_v1.4.0'!$H$26-moment_cd_relationship!A18)*((moment_cd_relationship!B18-moment_cd_relationship!B19)/(moment_cd_relationship!A18-moment_cd_relationship!A19))+moment_cd_relationship!B18)*'LiFFT_v1.4.0'!$J$26 ->  | K19: =(('LiFFT_v1.4.0'!$H$29-moment_cd_relationship!A18)*((moment_cd_relationship!B18-moment_cd_relationship!B19)/(moment_cd_relationship!A18-moment_cd_relationship!A19))+moment_cd_relationship!B18)*'LiFFT_v1.4.0'!$J$29 ->  | L19: =(('LiFFT_v1.4.0'!$H$32-moment_cd_relationship!A18)*((moment_cd_relationship!B18-moment_cd_relationship!B19)/(moment_cd_relationship!A18-moment_cd_relationship!A19))+moment_cd_relationship!B18)*'LiFFT_v1.4.0'!$J$32 -> 
A20: 17 | B20: 3.8e-06 | C20: =(('LiFFT_v1.4.0'!$H$5-moment_cd_relationship!A19)*((moment_cd_relationship!B19-moment_cd_relationship!B20)/(moment_cd_relationship!A19-moment_cd_relationship!A20))+moment_cd_relationship!B19)*'LiFFT_v1.4.0'!$J$5 -> 0.0051 | D20: =(('LiFFT_v1.4.0'!$H$8-moment_cd_relationship!A19)*((moment_cd_relationship!B19-moment_cd_relationship!B20)/(moment_cd_relationship!A19-moment_cd_relationship!A20))+moment_cd_relationship!B19)*'LiFFT_v1.4.0'!$J$8 ->  | E20: =(('LiFFT_v1.4.0'!$H$11-moment_cd_relationship!A19)*((moment_cd_relationship!B19-moment_cd_relationship!B20)/(moment_cd_relationship!A19-moment_cd_relationship!A20))+moment_cd_relationship!B19)*'LiFFT_v1.4.0'!$J$11 ->  | F20: =(('LiFFT_v1.4.0'!$H$14-moment_cd_relationship!A19)*((moment_cd_relationship!B19-moment_cd_relationship!B20)/(moment_cd_relationship!A19-moment_cd_relationship!A20))+moment_cd_relationship!B19)*'LiFFT_v1.4.0'!$J$14 ->  | G20: =(('LiFFT_v1.4.0'!$H$17-moment_cd_relationship!A19)*((moment_cd_relationship!B19-moment_cd_relationship!B20)/(moment_cd_relationship!A19-moment_cd_relationship!A20))+moment_cd_relationship!B19)*'LiFFT_v1.4.0'!$J$17 ->  | H20: =(('LiFFT_v1.4.0'!$H$20-moment_cd_relationship!A19)*((moment_cd_relationship!B19-moment_cd_relationship!B20)/(moment_cd_relationship!A19-moment_cd_relationship!A20))+moment_cd_relationship!B19)*'LiFFT_v1.4.0'!$J$20 ->  | I20: =(('LiFFT_v1.4.0'!$H$23-moment_cd_relationship!A19)*((moment_cd_relationship!B19-moment_cd_relationship!B20)/(moment_cd_relationship!A19-moment_cd_relationship!A20))+moment_cd_relationship!B19)*'LiFFT_v1.4.0'!$J$23 ->  | J20: =(('LiFFT_v1.4.0'!$H$26-moment_cd_relationship!A19)*((moment_cd_relationship!B19-moment_cd_relationship!B20)/(moment_cd_relationship!A19-moment_cd_relationship!A20))+moment_cd_relationship!B19)*'LiFFT_v1.4.0'!$J$26 ->  | K20: =(('LiFFT_v1.4.0'!$H$29-moment_cd_relationship!A19)*((moment_cd_relationship!B19-moment_cd_relationship!B20)/(moment_cd_relationship!A19-moment_cd_relationship!A20))+moment_cd_relationship!B19)*'LiFFT_v1.4.0'!$J$29 ->  | L20: =(('LiFFT_v1.4.0'!$H$32-moment_cd_relationship!A19)*((moment_cd_relationship!B19-moment_cd_relationship!B20)/(moment_cd_relationship!A19-moment_cd_relationship!A20))+moment_cd_relationship!B19)*'LiFFT_v1.4.0'!$J$32 -> 
A21: 18 | B21: 4e-06 | C21: =(('LiFFT_v1.4.0'!$H$5-moment_cd_relationship!A20)*((moment_cd_relationship!B20-moment_cd_relationship!B21)/(moment_cd_relationship!A20-moment_cd_relationship!A21))+moment_cd_relationship!B20)*'LiFFT_v1.4.0'!$J$5 -> 0.0051 | D21: =(('LiFFT_v1.4.0'!$H$8-moment_cd_relationship!A20)*((moment_cd_relationship!B20-moment_cd_relationship!B21)/(moment_cd_relationship!A20-moment_cd_relationship!A21))+moment_cd_relationship!B20)*'LiFFT_v1.4.0'!$J$8 ->  | E21: =(('LiFFT_v1.4.0'!$H$11-moment_cd_relationship!A20)*((moment_cd_relationship!B20-moment_cd_relationship!B21)/(moment_cd_relationship!A20-moment_cd_relationship!A21))+moment_cd_relationship!B20)*'LiFFT_v1.4.0'!$J$11 ->  | F21: =(('LiFFT_v1.4.0'!$H$14-moment_cd_relationship!A20)*((moment_cd_relationship!B20-moment_cd_relationship!B21)/(moment_cd_relationship!A20-moment_cd_relationship!A21))+moment_cd_relationship!B20)*'LiFFT_v1.4.0'!$J$14 ->  | G21: =(('LiFFT_v1.4.0'!$H$17-moment_cd_relationship!A20)*((moment_cd_relationship!B20-moment_cd_relationship!B21)/(moment_cd_relationship!A20-moment_cd_relationship!A21))+moment_cd_relationship!B20)*'LiFFT_v1.4.0'!$J$17 ->  | H21: =(('LiFFT_v1.4.0'!$H$20-moment_cd_relationship!A20)*((moment_cd_relationship!B20-moment_cd_relationship!B21)/(moment_cd_relationship!A20-moment_cd_relationship!A21))+moment_cd_relationship!B20)*'LiFFT_v1.4.0'!$J$20 ->  | I21: =(('LiFFT_v1.4.0'!$H$23-moment_cd_relationship!A20)*((moment_cd_relationship!B20-moment_cd_relationship!B21)/(moment_cd_relationship!A20-moment_cd_relationship!A21))+moment_cd_relationship!B20)*'LiFFT_v1.4.0'!$J$23 ->  | J21: =(('LiFFT_v1.4.0'!$H$26-moment_cd_relationship!A20)*((moment_cd_relationship!B20-moment_cd_relationship!B21)/(moment_cd_relationship!A20-moment_cd_relationship!A21))+moment_cd_relationship!B20)*'LiFFT_v1.4.0'!$J$26 ->  | K21: =(('LiFFT_v1.4.0'!$H$29-moment_cd_relationship!A20)*((moment_cd_relationship!B20-moment_cd_relationship!B21)/(moment_cd_relationship!A20-moment_cd_relationship!A21))+moment_cd_relationship!B20)*'LiFFT_v1.4.0'!$J$29 ->  | L21: =(('LiFFT_v1.4.0'!$H$32-moment_cd_relationship!A20)*((moment_cd_relationship!B20-moment_cd_relationship!B21)/(moment_cd_relationship!A20-moment_cd_relationship!A21))+moment_cd_relationship!B20)*'LiFFT_v1.4.0'!$J$32 -> 
A22: 19 | B22: 4.2e-06 | C22: =(('LiFFT_v1.4.0'!$H$5-moment_cd_relationship!A21)*((moment_cd_relationship!B21-moment_cd_relationship!B22)/(moment_cd_relationship!A21-moment_cd_relationship!A22))+moment_cd_relationship!B21)*'LiFFT_v1.4.0'!$J$5 -> 0.0051 | D22: =(('LiFFT_v1.4.0'!$H$8-moment_cd_relationship!A21)*((moment_cd_relationship!B21-moment_cd_relationship!B22)/(moment_cd_relationship!A21-moment_cd_relationship!A22))+moment_cd_relationship!B21)*'LiFFT_v1.4.0'!$J$8 ->  | E22: =(('LiFFT_v1.4.0'!$H$11-moment_cd_relationship!A21)*((moment_cd_relationship!B21-moment_cd_relationship!B22)/(moment_cd_relationship!A21-moment_cd_relationship!A22))+moment_cd_relationship!B21)*'LiFFT_v1.4.0'!$J$11 ->  | F22: =(('LiFFT_v1.4.0'!$H$14-moment_cd_relationship!A21)*((moment_cd_relationship!B21-moment_cd_relationship!B22)/(moment_cd_relationship!A21-moment_cd_relationship!A22))+moment_cd_relationship!B21)*'LiFFT_v1.4.0'!$J$14 ->  | G22: =(('LiFFT_v1.4.0'!$H$17-moment_cd_relationship!A21)*((moment_cd_relationship!B21-moment_cd_relationship!B22)/(moment_cd_relationship!A21-moment_cd_relationship!A22))+moment_cd_relationship!B21)*'LiFFT_v1.4.0'!$J$17 ->  | H22: =(('LiFFT_v1.4.0'!$H$20-moment_cd_relationship!A21)*((moment_cd_relationship!B21-moment_cd_relationship!B22)/(moment_cd_relationship!A21-moment_cd_relationship!A22))+moment_cd_relationship!B21)*'LiFFT_v1.4.0'!$J$20 ->  | I22: =(('LiFFT_v1.4.0'!$H$23-moment_cd_relationship!A21)*((moment_cd_relationship!B21-moment_cd_relationship!B22)/(moment_cd_relationship!A21-moment_cd_relationship!A22))+moment_cd_relationship!B21)*'LiFFT_v1.4.0'!$J$23 ->  | J22: =(('LiFFT_v1.4.0'!$H$26-moment_cd_relationship!A21)*((moment_cd_relationship!B21-moment_cd_relationship!B22)/(moment_cd_relationship!A21-moment_cd_relationship!A22))+moment_cd_relationship!B21)*'LiFFT_v1.4.0'!$J$26 ->  | K22: =(('LiFFT_v1.4.0'!$H$29-moment_cd_relationship!A21)*((moment_cd_relationship!B21-moment_cd_relationship!B22)/(moment_cd_relationship!A21-moment_cd_relationship!A22))+moment_cd_relationship!B21)*'LiFFT_v1.4.0'!$J$29 ->  | L22: =(('LiFFT_v1.4.0'!$H$32-moment_cd_relationship!A21)*((moment_cd_relationship!B21-moment_cd_relationship!B22)/(moment_cd_relationship!A21-moment_cd_relationship!A22))+moment_cd_relationship!B21)*'LiFFT_v1.4.0'!$J$32 -> 
A23: 20 | B23: 4.4e-06 | C23: =(('LiFFT_v1.4.0'!$H$5-moment_cd_relationship!A22)*((moment_cd_relationship!B22-moment_cd_relationship!B23)/(moment_cd_relationship!A22-moment_cd_relationship!A23))+moment_cd_relationship!B22)*'LiFFT_v1.4.0'!$J$5 -> 0.0051 | D23: =(('LiFFT_v1.4.0'!$H$8-moment_cd_relationship!A22)*((moment_cd_relationship!B22-moment_cd_relationship!B23)/(moment_cd_relationship!A22-moment_cd_relationship!A23))+moment_cd_relationship!B22)*'LiFFT_v1.4.0'!$J$8 ->  | E23: =(('LiFFT_v1.4.0'!$H$11-moment_cd_relationship!A22)*((moment_cd_relationship!B22-moment_cd_relationship!B23)/(moment_cd_relationship!A22-moment_cd_relationship!A23))+moment_cd_relationship!B22)*'LiFFT_v1.4.0'!$J$11 ->  | F23: =(('LiFFT_v1.4.0'!$H$14-moment_cd_relationship!A22)*((moment_cd_relationship!B22-moment_cd_relationship!B23)/(moment_cd_relationship!A22-moment_cd_relationship!A23))+moment_cd_relationship!B22)*'LiFFT_v1.4.0'!$J$14 ->  | G23: =(('LiFFT_v1.4.0'!$H$17-moment_cd_relationship!A22)*((moment_cd_relationship!B22-moment_cd_relationship!B23)/(moment_cd_relationship!A22-moment_cd_relationship!A23))+moment_cd_relationship!B22)*'LiFFT_v1.4.0'!$J$17 ->  | H23: =(('LiFFT_v1.4.0'!$H$20-moment_cd_relationship!A22)*((moment_cd_relationship!B22-moment_cd_relationship!B23)/(moment_cd_relationship!A22-moment_cd_relationship!A23))+moment_cd_relationship!B22)*'LiFFT_v1.4.0'!$J$20 ->  | I23: =(('LiFFT_v1.4.0'!$H$23-moment_cd_relationship!A22)*((moment_cd_relationship!B22-moment_cd_relationship!B23)/(moment_cd_relationship!A22-moment_cd_relationship!A23))+moment_cd_relationship!B22)*'LiFFT_v1.4.0'!$J$23 ->  | J23: =(('LiFFT_v1.4.0'!$H$26-moment_cd_relationship!A22)*((moment_cd_relationship!B22-moment_cd_relationship!B23)/(moment_cd_relationship!A22-moment_cd_relationship!A23))+moment_cd_relationship!B22)*'LiFFT_v1.4.0'!$J$26 ->  | K23: =(('LiFFT_v1.4.0'!$H$29-moment_cd_relationship!A22)*((moment_cd_relationship!B22-moment_cd_relationship!B23)/(moment_cd_relationship!A22-moment_cd_relationship!A23))+moment_cd_relationship!B22)*'LiFFT_v1.4.0'!$J$29 ->  | L23: =(('LiFFT_v1.4.0'!$H$32-moment_cd_relationship!A22)*((moment_cd_relationship!B22-moment_cd_relationship!B23)/(moment_cd_relationship!A22-moment_cd_relationship!A23))+moment_cd_relationship!B22)*'LiFFT_v1.4.0'!$J$32 -> 
A24: 21 | B24: 4.6e-06 | C24: =(('LiFFT_v1.4.0'!$H$5-moment_cd_relationship!A23)*((moment_cd_relationship!B23-moment_cd_relationship!B24)/(moment_cd_relationship!A23-moment_cd_relationship!A24))+moment_cd_relationship!B23)*'LiFFT_v1.4.0'!$J$5 -> 0.0051 | D24: =(('LiFFT_v1.4.0'!$H$8-moment_cd_relationship!A23)*((moment_cd_relationship!B23-moment_cd_relationship!B24)/(moment_cd_relationship!A23-moment_cd_relationship!A24))+moment_cd_relationship!B23)*'LiFFT_v1.4.0'!$J$8 ->  | E24: =(('LiFFT_v1.4.0'!$H$11-moment_cd_relationship!A23)*((moment_cd_relationship!B23-moment_cd_relationship!B24)/(moment_cd_relationship!A23-moment_cd_relationship!A24))+moment_cd_relationship!B23)*'LiFFT_v1.4.0'!$J$11 ->  | F24: =(('LiFFT_v1.4.0'!$H$14-moment_cd_relationship!A23)*((moment_cd_relationship!B23-moment_cd_relationship!B24)/(moment_cd_relationship!A23-moment_cd_relationship!A24))+moment_cd_relationship!B23)*'LiFFT_v1.4.0'!$J$14 ->  | G24: =(('LiFFT_v1.4.0'!$H$17-moment_cd_relationship!A23)*((moment_cd_relationship!B23-moment_cd_relationship!B24)/(moment_cd_relationship!A23-moment_cd_relationship!A24))+moment_cd_relationship!B23)*'LiFFT_v1.4.0'!$J$17 ->  | H24: =(('LiFFT_v1.4.0'!$H$20-moment_cd_relationship!A23)*((moment_cd_relationship!B23-moment_cd_relationship!B24)/(moment_cd_relationship!A23-moment_cd_relationship!A24))+moment_cd_relationship!B23)*'LiFFT_v1.4.0'!$J$20 ->  | I24: =(('LiFFT_v1.4.0'!$H$23-moment_cd_relationship!A23)*((moment_cd_relationship!B23-moment_cd_relationship!B24)/(moment_cd_relationship!A23-moment_cd_relationship!A24))+moment_cd_relationship!B23)*'LiFFT_v1.4.0'!$J$23 ->  | J24: =(('LiFFT_v1.4.0'!$H$26-moment_cd_relationship!A23)*((moment_cd_relationship!B23-moment_cd_relationship!B24)/(moment_cd_relationship!A23-moment_cd_relationship!A24))+moment_cd_relationship!B23)*'LiFFT_v1.4.0'!$J$26 ->  | K24: =(('LiFFT_v1.4.0'!$H$29-moment_cd_relationship!A23)*((moment_cd_relationship!B23-moment_cd_relationship!B24)/(moment_cd_relationship!A23-moment_cd_relationship!A24))+moment_cd_relationship!B23)*'LiFFT_v1.4.0'!$J$29 ->  | L24: =(('LiFFT_v1.4.0'!$H$32-moment_cd_relationship!A23)*((moment_cd_relationship!B23-moment_cd_relationship!B24)/(moment_cd_relationship!A23-moment_cd_relationship!A24))+moment_cd_relationship!B23)*'LiFFT_v1.4.0'!$J$32 -> 
A25: 22 | B25: 4.8e-06 | C25: =(('LiFFT_v1.4.0'!$H$5-moment_cd_relationship!A24)*((moment_cd_relationship!B24-moment_cd_relationship!B25)/(moment_cd_relationship!A24-moment_cd_relationship!A25))+moment_cd_relationship!B24)*'LiFFT_v1.4.0'!$J$5 -> 0.0051 | D25: =(('LiFFT_v1.4.0'!$H$8-moment_cd_relationship!A24)*((moment_cd_relationship!B24-moment_cd_relationship!B25)/(moment_cd_relationship!A24-moment_cd_relationship!A25))+moment_cd_relationship!B24)*'LiFFT_v1.4.0'!$J$8 ->  | E25: =(('LiFFT_v1.4.0'!$H$11-moment_cd_relationship!A24)*((moment_cd_relationship!B24-moment_cd_relationship!B25)/(moment_cd_relationship!A24-moment_cd_relationship!A25))+moment_cd_relationship!B24)*'LiFFT_v1.4.0'!$J$11 ->  | F25: =(('LiFFT_v1.4.0'!$H$14-moment_cd_relationship!A24)*((moment_cd_relationship!B24-moment_cd_relationship!B25)/(moment_cd_relationship!A24-moment_cd_relationship!A25))+moment_cd_relationship!B24)*'LiFFT_v1.4.0'!$J$14 ->  | G25: =(('LiFFT_v1.4.0'!$H$17-moment_cd_relationship!A24)*((moment_cd_relationship!B24-moment_cd_relationship!B25)/(moment_cd_relationship!A24-moment_cd_relationship!A25))+moment_cd_relationship!B24)*'LiFFT_v1.4.0'!$J$17 ->  | H25: =(('LiFFT_v1.4.0'!$H$20-moment_cd_relationship!A24)*((moment_cd_relationship!B24-moment_cd_relationship!B25)/(moment_cd_relationship!A24-moment_cd_relationship!A25))+moment_cd_relationship!B24)*'LiFFT_v1.4.0'!$J$20 ->  | I25: =(('LiFFT_v1.4.0'!$H$23-moment_cd_relationship!A24)*((moment_cd_relationship!B24-moment_cd_relationship!B25)/(moment_cd_relationship!A24-moment_cd_relationship!A25))+moment_cd_relationship!B24)*'LiFFT_v1.4.0'!$J$23 ->  | J25: =(('LiFFT_v1.4.0'!$H$26-moment_cd_relationship!A24)*((moment_cd_relationship!B24-moment_cd_relationship!B25)/(moment_cd_relationship!A24-moment_cd_relationship!A25))+moment_cd_relationship!B24)*'LiFFT_v1.4.0'!$J$26 ->  | K25: =(('LiFFT_v1.4.0'!$H$29-moment_cd_relationship!A24)*((moment_cd_relationship!B24-moment_cd_relationship!B25)/(moment_cd_relationship!A24-moment_cd_relationship!A25))+moment_cd_relationship!B24)*'LiFFT_v1.4.0'!$J$29 ->  | L25: =(('LiFFT_v1.4.0'!$H$32-moment_cd_relationship!A24)*((moment_cd_relationship!B24-moment_cd_relationship!B25)/(moment_cd_relationship!A24-moment_cd_relationship!A25))+moment_cd_relationship!B24)*'LiFFT_v1.4.0'!$J$32 -> 
A26: 23 | B26: 5.1e-06 | C26: =(('LiFFT_v1.4.0'!$H$5-moment_cd_relationship!A25)*((moment_cd_relationship!B25-moment_cd_relationship!B26)/(moment_cd_relationship!A25-moment_cd_relationship!A26))+moment_cd_relationship!B25)*'LiFFT_v1.4.0'!$J$5 -> 0.00405 | D26: =(('LiFFT_v1.4.0'!$H$8-moment_cd_relationship!A25)*((moment_cd_relationship!B25-moment_cd_relationship!B26)/(moment_cd_relationship!A25-moment_cd_relationship!A26))+moment_cd_relationship!B25)*'LiFFT_v1.4.0'!$J$8 ->  | E26: =(('LiFFT_v1.4.0'!$H$11-moment_cd_relationship!A25)*((moment_cd_relationship!B25-moment_cd_relationship!B26)/(moment_cd_relationship!A25-moment_cd_relationship!A26))+moment_cd_relationship!B25)*'LiFFT_v1.4.0'!$J$11 ->  | F26: =(('LiFFT_v1.4.0'!$H$14-moment_cd_relationship!A25)*((moment_cd_relationship!B25-moment_cd_relationship!B26)/(moment_cd_relationship!A25-moment_cd_relationship!A26))+moment_cd_relationship!B25)*'LiFFT_v1.4.0'!$J$14 ->  | G26: =(('LiFFT_v1.4.0'!$H$17-moment_cd_relationship!A25)*((moment_cd_relationship!B25-moment_cd_relationship!B26)/(moment_cd_relationship!A25-moment_cd_relationship!A26))+moment_cd_relationship!B25)*'LiFFT_v1.4.0'!$J$17 ->  | H26: =(('LiFFT_v1.4.0'!$H$20-moment_cd_relationship!A25)*((moment_cd_relationship!B25-moment_cd_relationship!B26)/(moment_cd_relationship!A25-moment_cd_relationship!A26))+moment_cd_relationship!B25)*'LiFFT_v1.4.0'!$J$20 ->  | I26: =(('LiFFT_v1.4.0'!$H$23-moment_cd_relationship!A25)*((moment_cd_relationship!B25-moment_cd_relationship!B26)/(moment_cd_relationship!A25-moment_cd_relationship!A26))+moment_cd_relationship!B25)*'LiFFT_v1.4.0'!$J$23 ->  | J26: =(('LiFFT_v1.4.0'!$H$26-moment_cd_relationship!A25)*((moment_cd_relationship!B25-moment_cd_relationship!B26)/(moment_cd_relationship!A25-moment_cd_relationship!A26))+moment_cd_relationship!B25)*'LiFFT_v1.4.0'!$J$26 ->  | K26: =(('LiFFT_v1.4.0'!$H$29-moment_cd_relationship!A25)*((moment_cd_relationship!B25-moment_cd_relationship!B26)/(moment_cd_relationship!A25-moment_cd_relationship!A26))+moment_cd_relationship!B25)*'LiFFT_v1.4.0'!$J$29 ->  | L26: =(('LiFFT_v1.4.0'!$H$32-moment_cd_relationship!A25)*((moment_cd_relationship!B25-moment_cd_relationship!B26)/(moment_cd_relationship!A25-moment_cd_relationship!A26))+moment_cd_relationship!B25)*'LiFFT_v1.4.0'!$J$32 -> 
A27: 24 | B27: 5.3e-06 | C27: =(('LiFFT_v1.4.0'!$H$5-moment_cd_relationship!A26)*((moment_cd_relationship!B26-moment_cd_relationship!B27)/(moment_cd_relationship!A26-moment_cd_relationship!A27))+moment_cd_relationship!B26)*'LiFFT_v1.4.0'!$J$5 -> 0.00525 | D27: =(('LiFFT_v1.4.0'!$H$8-moment_cd_relationship!A26)*((moment_cd_relationship!B26-moment_cd_relationship!B27)/(moment_cd_relationship!A26-moment_cd_relationship!A27))+moment_cd_relationship!B26)*'LiFFT_v1.4.0'!$J$8 ->  | E27: =(('LiFFT_v1.4.0'!$H$11-moment_cd_relationship!A26)*((moment_cd_relationship!B26-moment_cd_relationship!B27)/(moment_cd_relationship!A26-moment_cd_relationship!A27))+moment_cd_relationship!B26)*'LiFFT_v1.4.0'!$J$11 ->  | F27: =(('LiFFT_v1.4.0'!$H$14-moment_cd_relationship!A26)*((moment_cd_relationship!B26-moment_cd_relationship!B27)/(moment_cd_relationship!A26-moment_cd_relationship!A27))+moment_cd_relationship!B26)*'LiFFT_v1.4.0'!$J$14 ->  | G27: =(('LiFFT_v1.4.0'!$H$17-moment_cd_relationship!A26)*((moment_cd_relationship!B26-moment_cd_relationship!B27)/(moment_cd_relationship!A26-moment_cd_relationship!A27))+moment_cd_relationship!B26)*'LiFFT_v1.4.0'!$J$17 ->  | H27: =(('LiFFT_v1.4.0'!$H$20-moment_cd_relationship!A26)*((moment_cd_relationship!B26-moment_cd_relationship!B27)/(moment_cd_relationship!A26-moment_cd_relationship!A27))+moment_cd_relationship!B26)*'LiFFT_v1.4.0'!$J$20 ->  | I27: =(('LiFFT_v1.4.0'!$H$23-moment_cd_relationship!A26)*((moment_cd_relationship!B26-moment_cd_relationship!B27)/(moment_cd_relationship!A26-moment_cd_relationship!A27))+moment_cd_relationship!B26)*'LiFFT_v1.4.0'!$J$23 ->  | J27: =(('LiFFT_v1.4.0'!$H$26-moment_cd_relationship!A26)*((moment_cd_relationship!B26-moment_cd_relationship!B27)/(moment_cd_relationship!A26-moment_cd_relationship!A27))+moment_cd_relationship!B26)*'LiFFT_v1.4.0'!$J$26 ->  | K27: =(('LiFFT_v1.4.0'!$H$29-moment_cd_relationship!A26)*((moment_cd_relationship!B26-moment_cd_relationship!B27)/(moment_cd_relationship!A26-moment_cd_relationship!A27))+moment_cd_relationship!B26)*'LiFFT_v1.4.0'!$J$29 ->  | L27: =(('LiFFT_v1.4.0'!$H$32-moment_cd_relationship!A26)*((moment_cd_relationship!B26-moment_cd_relationship!B27)/(moment_cd_relationship!A26-moment_cd_relationship!A27))+moment_cd_relationship!B26)*'LiFFT_v1.4.0'!$J$32 -> 
A28: 25 | B28: 5.6e-06 | C28: =(('LiFFT_v1.4.0'!$H$5-moment_cd_relationship!A27)*((moment_cd_relationship!B27-moment_cd_relationship!B28)/(moment_cd_relationship!A27-moment_cd_relationship!A28))+moment_cd_relationship!B27)*'LiFFT_v1.4.0'!$J$5 -> 0.0039 | D28: =(('LiFFT_v1.4.0'!$H$8-moment_cd_relationship!A27)*((moment_cd_relationship!B27-moment_cd_relationship!B28)/(moment_cd_relationship!A27-moment_cd_relationship!A28))+moment_cd_relationship!B27)*'LiFFT_v1.4.0'!$J$8 ->  | E28: =(('LiFFT_v1.4.0'!$H$11-moment_cd_relationship!A27)*((moment_cd_relationship!B27-moment_cd_relationship!B28)/(moment_cd_relationship!A27-moment_cd_relationship!A28))+moment_cd_relationship!B27)*'LiFFT_v1.4.0'!$J$11 ->  | F28: =(('LiFFT_v1.4.0'!$H$14-moment_cd_relationship!A27)*((moment_cd_relationship!B27-moment_cd_relationship!B28)/(moment_cd_relationship!A27-moment_cd_relationship!A28))+moment_cd_relationship!B27)*'LiFFT_v1.4.0'!$J$14 ->  | G28: =(('LiFFT_v1.4.0'!$H$17-moment_cd_relationship!A27)*((moment_cd_relationship!B27-moment_cd_relationship!B28)/(moment_cd_relationship!A27-moment_cd_relationship!A28))+moment_cd_relationship!B27)*'LiFFT_v1.4.0'!$J$17 ->  | H28: =(('LiFFT_v1.4.0'!$H$20-moment_cd_relationship!A27)*((moment_cd_relationship!B27-moment_cd_relationship!B28)/(moment_cd_relationship!A27-moment_cd_relationship!A28))+moment_cd_relationship!B27)*'LiFFT_v1.4.0'!$J$20 ->  | I28: =(('LiFFT_v1.4.0'!$H$23-moment_cd_relationship!A27)*((moment_cd_relationship!B27-moment_cd_relationship!B28)/(moment_cd_relationship!A27-moment_cd_relationship!A28))+moment_cd_relationship!B27)*'LiFFT_v1.4.0'!$J$23 ->  | J28: =(('LiFFT_v1.4.0'!$H$26-moment_cd_relationship!A27)*((moment_cd_relationship!B27-moment_cd_relationship!B28)/(moment_cd_relationship!A27-moment_cd_relationship!A28))+moment_cd_relationship!B27)*'LiFFT_v1.4.0'!$J$26 ->  | K28: =(('LiFFT_v1.4.0'!$H$29-moment_cd_relationship!A27)*((moment_cd_relationship!B27-moment_cd_relationship!B28)/(moment_cd_relationship!A27-moment_cd_relationship!A28))+moment_cd_relationship!B27)*'LiFFT_v1.4.0'!$J$29 ->  | L28: =(('LiFFT_v1.4.0'!$H$32-moment_cd_relationship!A27)*((moment_cd_relationship!B27-moment_cd_relationship!B28)/(moment_cd_relationship!A27-moment_cd_relationship!A28))+moment_cd_relationship!B27)*'LiFFT_v1.4.0'!$J$32 -> 
A29: 26 | B29: 5.9e-06 | C29: =(('LiFFT_v1.4.0'!$H$5-moment_cd_relationship!A28)*((moment_cd_relationship!B28-moment_cd_relationship!B29)/(moment_cd_relationship!A28-moment_cd_relationship!A29))+moment_cd_relationship!B28)*'LiFFT_v1.4.0'!$J$5 -> 0.0039 | D29: =(('LiFFT_v1.4.0'!$H$8-moment_cd_relationship!A28)*((moment_cd_relationship!B28-moment_cd_relationship!B29)/(moment_cd_relationship!A28-moment_cd_relationship!A29))+moment_cd_relationship!B28)*'LiFFT_v1.4.0'!$J$8 ->  | E29: =(('LiFFT_v1.4.0'!$H$11-moment_cd_relationship!A28)*((moment_cd_relationship!B28-moment_cd_relationship!B29)/(moment_cd_relationship!A28-moment_cd_relationship!A29))+moment_cd_relationship!B28)*'LiFFT_v1.4.0'!$J$11 ->  | F29: =(('LiFFT_v1.4.0'!$H$14-moment_cd_relationship!A28)*((moment_cd_relationship!B28-moment_cd_relationship!B29)/(moment_cd_relationship!A28-moment_cd_relationship!A29))+moment_cd_relationship!B28)*'LiFFT_v1.4.0'!$J$14 ->  | G29: =(('LiFFT_v1.4.0'!$H$17-moment_cd_relationship!A28)*((moment_cd_relationship!B28-moment_cd_relationship!B29)/(moment_cd_relationship!A28-moment_cd_relationship!A29))+moment_cd_relationship!B28)*'LiFFT_v1.4.0'!$J$17 ->  | H29: =(('LiFFT_v1.4.0'!$H$20-moment_cd_relationship!A28)*((moment_cd_relationship!B28-moment_cd_relationship!B29)/(moment_cd_relationship!A28-moment_cd_relationship!A29))+moment_cd_relationship!B28)*'LiFFT_v1.4.0'!$J$20 ->  | I29: =(('LiFFT_v1.4.0'!$H$23-moment_cd_relationship!A28)*((moment_cd_relationship!B28-moment_cd_relationship!B29)/(moment_cd_relationship!A28-moment_cd_relationship!A29))+moment_cd_relationship!B28)*'LiFFT_v1.4.0'!$J$23 ->  | J29: =(('LiFFT_v1.4.0'!$H$26-moment_cd_relationship!A28)*((moment_cd_relationship!B28-moment_cd_relationship!B29)/(moment_cd_relationship!A28-moment_cd_relationship!A29))+moment_cd_relationship!B28)*'LiFFT_v1.4.0'!$J$26 ->  | K29: =(('LiFFT_v1.4.0'!$H$29-moment_cd_relationship!A28)*((moment_cd_relationship!B28-moment_cd_relationship!B29)/(moment_cd_relationship!A28-moment_cd_relationship!A29))+moment_cd_relationship!B28)*'LiFFT_v1.4.0'!$J$29 ->  | L29: =(('LiFFT_v1.4.0'!$H$32-moment_cd_relationship!A28)*((moment_cd_relationship!B28-moment_cd_relationship!B29)/(moment_cd_relationship!A28-moment_cd_relationship!A29))+moment_cd_relationship!B28)*'LiFFT_v1.4.0'!$J$32 -> 
A30: 27 | B30: 6.2e-06 | C30: =(('LiFFT_v1.4.0'!$H$5-moment_cd_relationship!A29)*((moment_cd_relationship!B29-moment_cd_relationship!B30)/(moment_cd_relationship!A29-moment_cd_relationship!A30))+moment_cd_relationship!B29)*'LiFFT_v1.4.0'!$J$5 -> 0.0039 | D30: =(('LiFFT_v1.4.0'!$H$8-moment_cd_relationship!A29)*((moment_cd_relationship!B29-moment_cd_relationship!B30)/(moment_cd_relationship!A29-moment_cd_relationship!A30))+moment_cd_relationship!B29)*'LiFFT_v1.4.0'!$J$8 ->  | E30: =(('LiFFT_v1.4.0'!$H$11-moment_cd_relationship!A29)*((moment_cd_relationship!B29-moment_cd_relationship!B30)/(moment_cd_relationship!A29-moment_cd_relationship!A30))+moment_cd_relationship!B29)*'LiFFT_v1.4.0'!$J$11 ->  | F30: =(('LiFFT_v1.4.0'!$H$14-moment_cd_relationship!A29)*((moment_cd_relationship!B29-moment_cd_relationship!B30)/(moment_cd_relationship!A29-moment_cd_relationship!A30))+moment_cd_relationship!B29)*'LiFFT_v1.4.0'!$J$14 ->  | G30: =(('LiFFT_v1.4.0'!$H$17-moment_cd_relationship!A29)*((moment_cd_relationship!B29-moment_cd_relationship!B30)/(moment_cd_relationship!A29-moment_cd_relationship!A30))+moment_cd_relationship!B29)*'LiFFT_v1.4.0'!$J$17 ->  | H30: =(('LiFFT_v1.4.0'!$H$20-moment_cd_relationship!A29)*((moment_cd_relationship!B29-moment_cd_relationship!B30)/(moment_cd_relationship!A29-moment_cd_relationship!A30))+moment_cd_relationship!B29)*'LiFFT_v1.4.0'!$J$20 ->  | I30: =(('LiFFT_v1.4.0'!$H$23-moment_cd_relationship!A29)*((moment_cd_relationship!B29-moment_cd_relationship!B30)/(moment_cd_relationship!A29-moment_cd_relationship!A30))+moment_cd_relationship!B29)*'LiFFT_v1.4.0'!$J$23 ->  | J30: =(('LiFFT_v1.4.0'!$H$26-moment_cd_relationship!A29)*((moment_cd_relationship!B29-moment_cd_relationship!B30)/(moment_cd_relationship!A29-moment_cd_relationship!A30))+moment_cd_relationship!B29)*'LiFFT_v1.4.0'!$J$26 ->  | K30: =(('LiFFT_v1.4.0'!$H$29-moment_cd_relationship!A29)*((moment_cd_relationship!B29-moment_cd_relationship!B30)/(moment_cd_relationship!A29-moment_cd_relationship!A30))+moment_cd_relationship!B29)*'LiFFT_v1.4.0'!$J$29 ->  | L30: =(('LiFFT_v1.4.0'!$H$32-moment_cd_relationship!A29)*((moment_cd_relationship!B29-moment_cd_relationship!B30)/(moment_cd_relationship!A29-moment_cd_relationship!A30))+moment_cd_relationship!B29)*'LiFFT_v1.4.0'!$J$32 -> 
A31: 28 | B31: 6.5e-06 | C31: =(('LiFFT_v1.4.0'!$H$5-moment_cd_relationship!A30)*((moment_cd_relationship!B30-moment_cd_relationship!B31)/(moment_cd_relationship!A30-moment_cd_relationship!A31))+moment_cd_relationship!B30)*'LiFFT_v1.4.0'!$J$5 -> 0.0039 | D31: =(('LiFFT_v1.4.0'!$H$8-moment_cd_relationship!A30)*((moment_cd_relationship!B30-moment_cd_relationship!B31)/(moment_cd_relationship!A30-moment_cd_relationship!A31))+moment_cd_relationship!B30)*'LiFFT_v1.4.0'!$J$8 ->  | E31: =(('LiFFT_v1.4.0'!$H$11-moment_cd_relationship!A30)*((moment_cd_relationship!B30-moment_cd_relationship!B31)/(moment_cd_relationship!A30-moment_cd_relationship!A31))+moment_cd_relationship!B30)*'LiFFT_v1.4.0'!$J$11 ->  | F31: =(('LiFFT_v1.4.0'!$H$14-moment_cd_relationship!A30)*((moment_cd_relationship!B30-moment_cd_relationship!B31)/(moment_cd_relationship!A30-moment_cd_relationship!A31))+moment_cd_relationship!B30)*'LiFFT_v1.4.0'!$J$14 ->  | G31: =(('LiFFT_v1.4.0'!$H$17-moment_cd_relationship!A30)*((moment_cd_relationship!B30-moment_cd_relationship!B31)/(moment_cd_relationship!A30-moment_cd_relationship!A31))+moment_cd_relationship!B30)*'LiFFT_v1.4.0'!$J$17 ->  | H31: =(('LiFFT_v1.4.0'!$H$20-moment_cd_relationship!A30)*((moment_cd_relationship!B30-moment_cd_relationship!B31)/(moment_cd_relationship!A30-moment_cd_relationship!A31))+moment_cd_relationship!B30)*'LiFFT_v1.4.0'!$J$20 ->  | I31: =(('LiFFT_v1.4.0'!$H$23-moment_cd_relationship!A30)*((moment_cd_relationship!B30-moment_cd_relationship!B31)/(moment_cd_relationship!A30-moment_cd_relationship!A31))+moment_cd_relationship!B30)*'LiFFT_v1.4.0'!$J$23 ->  | J31: =(('LiFFT_v1.4.0'!$H$26-moment_cd_relationship!A30)*((moment_cd_relationship!B30-moment_cd_relationship!B31)/(moment_cd_relationship!A30-moment_cd_relationship!A31))+moment_cd_relationship!B30)*'LiFFT_v1.4.0'!$J$26 ->  | K31: =(('LiFFT_v1.4.0'!$H$29-moment_cd_relationship!A30)*((moment_cd_relationship!B30-moment_cd_relationship!B31)/(moment_cd_relationship!A30-moment_cd_relationship!A31))+moment_cd_relationship!B30)*'LiFFT_v1.4.0'!$J$29 ->  | L31: =(('LiFFT_v1.4.0'!$H$32-moment_cd_relationship!A30)*((moment_cd_relationship!B30-moment_cd_relationship!B31)/(moment_cd_relationship!A30-moment_cd_relationship!A31))+moment_cd_relationship!B30)*'LiFFT_v1.4.0'!$J$32 -> 
A32: 29 | B32: 6.9e-06 | C32: =(('LiFFT_v1.4.0'!$H$5-moment_cd_relationship!A31)*((moment_cd_relationship!B31-moment_cd_relationship!B32)/(moment_cd_relationship!A31-moment_cd_relationship!A32))+moment_cd_relationship!B31)*'LiFFT_v1.4.0'!$J$5 -> 0.00195 | D32: =(('LiFFT_v1.4.0'!$H$8-moment_cd_relationship!A31)*((moment_cd_relationship!B31-moment_cd_relationship!B32)/(moment_cd_relationship!A31-moment_cd_relationship!A32))+moment_cd_relationship!B31)*'LiFFT_v1.4.0'!$J$8 ->  | E32: =(('LiFFT_v1.4.0'!$H$11-moment_cd_relationship!A31)*((moment_cd_relationship!B31-moment_cd_relationship!B32)/(moment_cd_relationship!A31-moment_cd_relationship!A32))+moment_cd_relationship!B31)*'LiFFT_v1.4.0'!$J$11 ->  | F32: =(('LiFFT_v1.4.0'!$H$14-moment_cd_relationship!A31)*((moment_cd_relationship!B31-moment_cd_relationship!B32)/(moment_cd_relationship!A31-moment_cd_relationship!A32))+moment_cd_relationship!B31)*'LiFFT_v1.4.0'!$J$14 ->  | G32: =(('LiFFT_v1.4.0'!$H$17-moment_cd_relationship!A31)*((moment_cd_relationship!B31-moment_cd_relationship!B32)/(moment_cd_relationship!A31-moment_cd_relationship!A32))+moment_cd_relationship!B31)*'LiFFT_v1.4.0'!$J$17 ->  | H32: =(('LiFFT_v1.4.0'!$H$20-moment_cd_relationship!A31)*((moment_cd_relationship!B31-moment_cd_relationship!B32)/(moment_cd_relationship!A31-moment_cd_relationship!A32))+moment_cd_relationship!B31)*'LiFFT_v1.4.0'!$J$20 ->  | I32: =(('LiFFT_v1.4.0'!$H$23-moment_cd_relationship!A31)*((moment_cd_relationship!B31-moment_cd_relationship!B32)/(moment_cd_relationship!A31-moment_cd_relationship!A32))+moment_cd_relationship!B31)*'LiFFT_v1.4.0'!$J$23 ->  | J32: =(('LiFFT_v1.4.0'!$H$26-moment_cd_relationship!A31)*((moment_cd_relationship!B31-moment_cd_relationship!B32)/(moment_cd_relationship!A31-moment_cd_relationship!A32))+moment_cd_relationship!B31)*'LiFFT_v1.4.0'!$J$26 ->  | K32: =(('LiFFT_v1.4.0'!$H$29-moment_cd_relationship!A31)*((moment_cd_relationship!B31-moment_cd_relationship!B32)/(moment_cd_relationship!A31-moment_cd_relationship!A32))+moment_cd_relationship!B31)*'LiFFT_v1.4.0'!$J$29 ->  | L32: =(('LiFFT_v1.4.0'!$H$32-moment_cd_relationship!A31)*((moment_cd_relationship!B31-moment_cd_relationship!B32)/(moment_cd_relationship!A31-moment_cd_relationship!A32))+moment_cd_relationship!B31)*'LiFFT_v1.4.0'!$J$32 -> 
A33: 30 | B33: 7.2e-06 | C33: =(('LiFFT_v1.4.0'!$H$5-moment_cd_relationship!A32)*((moment_cd_relationship!B32-moment_cd_relationship!B33)/(moment_cd_relationship!A32-moment_cd_relationship!A33))+moment_cd_relationship!B32)*'LiFFT_v1.4.0'!$J$5 -> 0.00405 | D33: =(('LiFFT_v1.4.0'!$H$8-moment_cd_relationship!A32)*((moment_cd_relationship!B32-moment_cd_relationship!B33)/(moment_cd_relationship!A32-moment_cd_relationship!A33))+moment_cd_relationship!B32)*'LiFFT_v1.4.0'!$J$8 ->  | E33: =(('LiFFT_v1.4.0'!$H$11-moment_cd_relationship!A32)*((moment_cd_relationship!B32-moment_cd_relationship!B33)/(moment_cd_relationship!A32-moment_cd_relationship!A33))+moment_cd_relationship!B32)*'LiFFT_v1.4.0'!$J$11 ->  | F33: =(('LiFFT_v1.4.0'!$H$14-moment_cd_relationship!A32)*((moment_cd_relationship!B32-moment_cd_relationship!B33)/(moment_cd_relationship!A32-moment_cd_relationship!A33))+moment_cd_relationship!B32)*'LiFFT_v1.4.0'!$J$14 ->  | G33: =(('LiFFT_v1.4.0'!$H$17-moment_cd_relationship!A32)*((moment_cd_relationship!B32-moment_cd_relationship!B33)/(moment_cd_relationship!A32-moment_cd_relationship!A33))+moment_cd_relationship!B32)*'LiFFT_v1.4.0'!$J$17 ->  | H33: =(('LiFFT_v1.4.0'!$H$20-moment_cd_relationship!A32)*((moment_cd_relationship!B32-moment_cd_relationship!B33)/(moment_cd_relationship!A32-moment_cd_relationship!A33))+moment_cd_relationship!B32)*'LiFFT_v1.4.0'!$J$20 ->  | I33: =(('LiFFT_v1.4.0'!$H$23-moment_cd_relationship!A32)*((moment_cd_relationship!B32-moment_cd_relationship!B33)/(moment_cd_relationship!A32-moment_cd_relationship!A33))+moment_cd_relationship!B32)*'LiFFT_v1.4.0'!$J$23 ->  | J33: =(('LiFFT_v1.4.0'!$H$26-moment_cd_relationship!A32)*((moment_cd_relationship!B32-moment_cd_relationship!B33)/(moment_cd_relationship!A32-moment_cd_relationship!A33))+moment_cd_relationship!B32)*'LiFFT_v1.4.0'!$J$26 ->  | K33: =(('LiFFT_v1.4.0'!$H$29-moment_cd_relationship!A32)*((moment_cd_relationship!B32-moment_cd_relationship!B33)/(moment_cd_relationship!A32-moment_cd_relationship!A33))+moment_cd_relationship!B32)*'LiFFT_v1.4.0'!$J$29 ->  | L33: =(('LiFFT_v1.4.0'!$H$32-moment_cd_relationship!A32)*((moment_cd_relationship!B32-moment_cd_relationship!B33)/(moment_cd_relationship!A32-moment_cd_relationship!A33))+moment_cd_relationship!B32)*'LiFFT_v1.4.0'!$J$32 -> 
A34: 31 | B34: 7.6e-06 | C34: =(('LiFFT_v1.4.0'!$H$5-moment_cd_relationship!A33)*((moment_cd_relationship!B33-moment_cd_relationship!B34)/(moment_cd_relationship!A33-moment_cd_relationship!A34))+moment_cd_relationship!B33)*'LiFFT_v1.4.0'!$J$5 -> 0.0018 | D34: =(('LiFFT_v1.4.0'!$H$8-moment_cd_relationship!A33)*((moment_cd_relationship!B33-moment_cd_relationship!B34)/(moment_cd_relationship!A33-moment_cd_relationship!A34))+moment_cd_relationship!B33)*'LiFFT_v1.4.0'!$J$8 ->  | E34: =(('LiFFT_v1.4.0'!$H$11-moment_cd_relationship!A33)*((moment_cd_relationship!B33-moment_cd_relationship!B34)/(moment_cd_relationship!A33-moment_cd_relationship!A34))+moment_cd_relationship!B33)*'LiFFT_v1.4.0'!$J$11 ->  | F34: =(('LiFFT_v1.4.0'!$H$14-moment_cd_relationship!A33)*((moment_cd_relationship!B33-moment_cd_relationship!B34)/(moment_cd_relationship!A33-moment_cd_relationship!A34))+moment_cd_relationship!B33)*'LiFFT_v1.4.0'!$J$14 ->  | G34: =(('LiFFT_v1.4.0'!$H$17-moment_cd_relationship!A33)*((moment_cd_relationship!B33-moment_cd_relationship!B34)/(moment_cd_relationship!A33-moment_cd_relationship!A34))+moment_cd_relationship!B33)*'LiFFT_v1.4.0'!$J$17 ->  | H34: =(('LiFFT_v1.4.0'!$H$20-moment_cd_relationship!A33)*((moment_cd_relationship!B33-moment_cd_relationship!B34)/(moment_cd_relationship!A33-moment_cd_relationship!A34))+moment_cd_relationship!B33)*'LiFFT_v1.4.0'!$J$20 ->  | I34: =(('LiFFT_v1.4.0'!$H$23-moment_cd_relationship!A33)*((moment_cd_relationship!B33-moment_cd_relationship!B34)/(moment_cd_relationship!A33-moment_cd_relationship!A34))+moment_cd_relationship!B33)*'LiFFT_v1.4.0'!$J$23 ->  | J34: =(('LiFFT_v1.4.0'!$H$26-moment_cd_relationship!A33)*((moment_cd_relationship!B33-moment_cd_relationship!B34)/(moment_cd_relationship!A33-moment_cd_relationship!A34))+moment_cd_relationship!B33)*'LiFFT_v1.4.0'!$J$26 ->  | K34: =(('LiFFT_v1.4.0'!$H$29-moment_cd_relationship!A33)*((moment_cd_relationship!B33-moment_cd_relationship!B34)/(moment_cd_relationship!A33-moment_cd_relationship!A34))+moment_cd_relationship!B33)*'LiFFT_v1.4.0'!$J$29 ->  | L34: =(('LiFFT_v1.4.0'!$H$32-moment_cd_relationship!A33)*((moment_cd_relationship!B33-moment_cd_relationship!B34)/(moment_cd_relationship!A33-moment_cd_relationship!A34))+moment_cd_relationship!B33)*'LiFFT_v1.4.0'!$J$32 -> 
A35: 32 | B35: 8e-06 | C35: =(('LiFFT_v1.4.0'!$H$5-moment_cd_relationship!A34)*((moment_cd_relationship!B34-moment_cd_relationship!B35)/(moment_cd_relationship!A34-moment_cd_relationship!A35))+moment_cd_relationship!B34)*'LiFFT_v1.4.0'!$J$5 -> 0.0018 | D35: =(('LiFFT_v1.4.0'!$H$8-moment_cd_relationship!A34)*((moment_cd_relationship!B34-moment_cd_relationship!B35)/(moment_cd_relationship!A34-moment_cd_relationship!A35))+moment_cd_relationship!B34)*'LiFFT_v1.4.0'!$J$8 ->  | E35: =(('LiFFT_v1.4.0'!$H$11-moment_cd_relationship!A34)*((moment_cd_relationship!B34-moment_cd_relationship!B35)/(moment_cd_relationship!A34-moment_cd_relationship!A35))+moment_cd_relationship!B34)*'LiFFT_v1.4.0'!$J$11 ->  | F35: =(('LiFFT_v1.4.0'!$H$14-moment_cd_relationship!A34)*((moment_cd_relationship!B34-moment_cd_relationship!B35)/(moment_cd_relationship!A34-moment_cd_relationship!A35))+moment_cd_relationship!B34)*'LiFFT_v1.4.0'!$J$14 ->  | G35: =(('LiFFT_v1.4.0'!$H$17-moment_cd_relationship!A34)*((moment_cd_relationship!B34-moment_cd_relationship!B35)/(moment_cd_relationship!A34-moment_cd_relationship!A35))+moment_cd_relationship!B34)*'LiFFT_v1.4.0'!$J$17 ->  | H35: =(('LiFFT_v1.4.0'!$H$20-moment_cd_relationship!A34)*((moment_cd_relationship!B34-moment_cd_relationship!B35)/(moment_cd_relationship!A34-moment_cd_relationship!A35))+moment_cd_relationship!B34)*'LiFFT_v1.4.0'!$J$20 ->  | I35: =(('LiFFT_v1.4.0'!$H$23-moment_cd_relationship!A34)*((moment_cd_relationship!B34-moment_cd_relationship!B35)/(moment_cd_relationship!A34-moment_cd_relationship!A35))+moment_cd_relationship!B34)*'LiFFT_v1.4.0'!$J$23 ->  | J35: =(('LiFFT_v1.4.0'!$H$26-moment_cd_relationship!A34)*((moment_cd_relationship!B34-moment_cd_relationship!B35)/(moment_cd_relationship!A34-moment_cd_relationship!A35))+moment_cd_relationship!B34)*'LiFFT_v1.4.0'!$J$26 ->  | K35: =(('LiFFT_v1.4.0'!$H$29-moment_cd_relationship!A34)*((moment_cd_relationship!B34-moment_cd_relationship!B35)/(moment_cd_relationship!A34-moment_cd_relationship!A35))+moment_cd_relationship!B34)*'LiFFT_v1.4.0'!$J$29 ->  | L35: =(('LiFFT_v1.4.0'!$H$32-moment_cd_relationship!A34)*((moment_cd_relationship!B34-moment_cd_relationship!B35)/(moment_cd_relationship!A34-moment_cd_relationship!A35))+moment_cd_relationship!B34)*'LiFFT_v1.4.0'!$J$32 -> 
A36: 33 | B36: 8.4e-06 | C36: =(('LiFFT_v1.4.0'!$H$5-moment_cd_relationship!A35)*((moment_cd_relationship!B35-moment_cd_relationship!B36)/(moment_cd_relationship!A35-moment_cd_relationship!A36))+moment_cd_relationship!B35)*'LiFFT_v1.4.0'!$J$5 -> 0.0018 | D36: =(('LiFFT_v1.4.0'!$H$8-moment_cd_relationship!A35)*((moment_cd_relationship!B35-moment_cd_relationship!B36)/(moment_cd_relationship!A35-moment_cd_relationship!A36))+moment_cd_relationship!B35)*'LiFFT_v1.4.0'!$J$8 ->  | E36: =(('LiFFT_v1.4.0'!$H$11-moment_cd_relationship!A35)*((moment_cd_relationship!B35-moment_cd_relationship!B36)/(moment_cd_relationship!A35-moment_cd_relationship!A36))+moment_cd_relationship!B35)*'LiFFT_v1.4.0'!$J$11 ->  | F36: =(('LiFFT_v1.4.0'!$H$14-moment_cd_relationship!A35)*((moment_cd_relationship!B35-moment_cd_relationship!B36)/(moment_cd_relationship!A35-moment_cd_relationship!A36))+moment_cd_relationship!B35)*'LiFFT_v1.4.0'!$J$14 ->  | G36: =(('LiFFT_v1.4.0'!$H$17-moment_cd_relationship!A35)*((moment_cd_relationship!B35-moment_cd_relationship!B36)/(moment_cd_relationship!A35-moment_cd_relationship!A36))+moment_cd_relationship!B35)*'LiFFT_v1.4.0'!$J$17 ->  | H36: =(('LiFFT_v1.4.0'!$H$20-moment_cd_relationship!A35)*((moment_cd_relationship!B35-moment_cd_relationship!B36)/(moment_cd_relationship!A35-moment_cd_relationship!A36))+moment_cd_relationship!B35)*'LiFFT_v1.4.0'!$J$20 ->  | I36: =(('LiFFT_v1.4.0'!$H$23-moment_cd_relationship!A35)*((moment_cd_relationship!B35-moment_cd_relationship!B36)/(moment_cd_relationship!A35-moment_cd_relationship!A36))+moment_cd_relationship!B35)*'LiFFT_v1.4.0'!$J$23 ->  | J36: =(('LiFFT_v1.4.0'!$H$26-moment_cd_relationship!A35)*((moment_cd_relationship!B35-moment_cd_relationship!B36)/(moment_cd_relationship!A35-moment_cd_relationship!A36))+moment_cd_relationship!B35)*'LiFFT_v1.4.0'!$J$26 ->  | K36: =(('LiFFT_v1.4.0'!$H$29-moment_cd_relationship!A35)*((moment_cd_relationship!B35-moment_cd_relationship!B36)/(moment_cd_relationship!A35-moment_cd_relationship!A36))+moment_cd_relationship!B35)*'LiFFT_v1.4.0'!$J$29 ->  | L36: =(('LiFFT_v1.4.0'!$H$32-moment_cd_relationship!A35)*((moment_cd_relationship!B35-moment_cd_relationship!B36)/(moment_cd_relationship!A35-moment_cd_relationship!A36))+moment_cd_relationship!B35)*'LiFFT_v1.4.0'!$J$32 -> 
A37: 34 | B37: 8.8e-06 | C37: =(('LiFFT_v1.4.0'!$H$5-moment_cd_relationship!A36)*((moment_cd_relationship!B36-moment_cd_relationship!B37)/(moment_cd_relationship!A36-moment_cd_relationship!A37))+moment_cd_relationship!B36)*'LiFFT_v1.4.0'!$J$5 -> 0.0018 | D37: =(('LiFFT_v1.4.0'!$H$8-moment_cd_relationship!A36)*((moment_cd_relationship!B36-moment_cd_relationship!B37)/(moment_cd_relationship!A36-moment_cd_relationship!A37))+moment_cd_relationship!B36)*'LiFFT_v1.4.0'!$J$8 ->  | E37: =(('LiFFT_v1.4.0'!$H$11-moment_cd_relationship!A36)*((moment_cd_relationship!B36-moment_cd_relationship!B37)/(moment_cd_relationship!A36-moment_cd_relationship!A37))+moment_cd_relationship!B36)*'LiFFT_v1.4.0'!$J$11 ->  | F37: =(('LiFFT_v1.4.0'!$H$14-moment_cd_relationship!A36)*((moment_cd_relationship!B36-moment_cd_relationship!B37)/(moment_cd_relationship!A36-moment_cd_relationship!A37))+moment_cd_relationship!B36)*'LiFFT_v1.4.0'!$J$14 ->  | G37: =(('LiFFT_v1.4.0'!$H$17-moment_cd_relationship!A36)*((moment_cd_relationship!B36-moment_cd_relationship!B37)/(moment_cd_relationship!A36-moment_cd_relationship!A37))+moment_cd_relationship!B36)*'LiFFT_v1.4.0'!$J$17 ->  | H37: =(('LiFFT_v1.4.0'!$H$20-moment_cd_relationship!A36)*((moment_cd_relationship!B36-moment_cd_relationship!B37)/(moment_cd_relationship!A36-moment_cd_relationship!A37))+moment_cd_relationship!B36)*'LiFFT_v1.4.0'!$J$20 ->  | I37: =(('LiFFT_v1.4.0'!$H$23-moment_cd_relationship!A36)*((moment_cd_relationship!B36-moment_cd_relationship!B37)/(moment_cd_relationship!A36-moment_cd_relationship!A37))+moment_cd_relationship!B36)*'LiFFT_v1.4.0'!$J$23 ->  | J37: =(('LiFFT_v1.4.0'!$H$26-moment_cd_relationship!A36)*((moment_cd_relationship!B36-moment_cd_relationship!B37)/(moment_cd_relationship!A36-moment_cd_relationship!A37))+moment_cd_relationship!B36)*'LiFFT_v1.4.0'!$J$26 ->  | K37: =(('LiFFT_v1.4.0'!$H$29-moment_cd_relationship!A36)*((moment_cd_relationship!B36-moment_cd_relationship!B37)/(moment_cd_relationship!A36-moment_cd_relationship!A37))+moment_cd_relationship!B36)*'LiFFT_v1.4.0'!$J$29 ->  | L37: =(('LiFFT_v1.4.0'!$H$32-moment_cd_relationship!A36)*((moment_cd_relationship!B36-moment_cd_relationship!B37)/(moment_cd_relationship!A36-moment_cd_relationship!A37))+moment_cd_relationship!B36)*'LiFFT_v1.4.0'!$J$32 -> 
A38: 35 | B38: 9.3e-06 | C38: =(('LiFFT_v1.4.0'!$H$5-moment_cd_relationship!A37)*((moment_cd_relationship!B37-moment_cd_relationship!B38)/(moment_cd_relationship!A37-moment_cd_relationship!A38))+moment_cd_relationship!B37)*'LiFFT_v1.4.0'!$J$5 -> -0.00105 | D38: =(('LiFFT_v1.4.0'!$H$8-moment_cd_relationship!A37)*((moment_cd_relationship!B37-moment_cd_relationship!B38)/(moment_cd_relationship!A37-moment_cd_relationship!A38))+moment_cd_relationship!B37)*'LiFFT_v1.4.0'!$J$8 ->  | E38: =(('LiFFT_v1.4.0'!$H$11-moment_cd_relationship!A37)*((moment_cd_relationship!B37-moment_cd_relationship!B38)/(moment_cd_relationship!A37-moment_cd_relationship!A38))+moment_cd_relationship!B37)*'LiFFT_v1.4.0'!$J$11 ->  | F38: =(('LiFFT_v1.4.0'!$H$14-moment_cd_relationship!A37)*((moment_cd_relationship!B37-moment_cd_relationship!B38)/(moment_cd_relationship!A37-moment_cd_relationship!A38))+moment_cd_relationship!B37)*'LiFFT_v1.4.0'!$J$14 ->  | G38: =(('LiFFT_v1.4.0'!$H$17-moment_cd_relationship!A37)*((moment_cd_relationship!B37-moment_cd_relationship!B38)/(moment_cd_relationship!A37-moment_cd_relationship!A38))+moment_cd_relationship!B37)*'LiFFT_v1.4.0'!$J$17 ->  | H38: =(('LiFFT_v1.4.0'!$H$20-moment_cd_relationship!A37)*((moment_cd_relationship!B37-moment_cd_relationship!B38)/(moment_cd_relationship!A37-moment_cd_relationship!A38))+moment_cd_relationship!B37)*'LiFFT_v1.4.0'!$J$20 ->  | I38: =(('LiFFT_v1.4.0'!$H$23-moment_cd_relationship!A37)*((moment_cd_relationship!B37-moment_cd_relationship!B38)/(moment_cd_relationship!A37-moment_cd_relationship!A38))+moment_cd_relationship!B37)*'LiFFT_v1.4.0'!$J$23 ->  | J38: =(('LiFFT_v1.4.0'!$H$26-moment_cd_relationship!A37)*((moment_cd_relationship!B37-moment_cd_relationship!B38)/(moment_cd_relationship!A37-moment_cd_relationship!A38))+moment_cd_relationship!B37)*'LiFFT_v1.4.0'!$J$26 ->  | K38: =(('LiFFT_v1.4.0'!$H$29-moment_cd_relationship!A37)*((moment_cd_relationship!B37-moment_cd_relationship!B38)/(moment_cd_relationship!A37-moment_cd_relationship!A38))+moment_cd_relationship!B37)*'LiFFT_v1.4.0'!$J$29 ->  | L38: =(('LiFFT_v1.4.0'!$H$32-moment_cd_relationship!A37)*((moment_cd_relationship!B37-moment_cd_relationship!B38)/(moment_cd_relationship!A37-moment_cd_relationship!A38))+moment_cd_relationship!B37)*'LiFFT_v1.4.0'!$J$32 -> 
A39: 36 | B39: 9.7e-06 | C39: =(('LiFFT_v1.4.0'!$H$5-moment_cd_relationship!A38)*((moment_cd_relationship!B38-moment_cd_relationship!B39)/(moment_cd_relationship!A38-moment_cd_relationship!A39))+moment_cd_relationship!B38)*'LiFFT_v1.4.0'!$J$5 -> 0.00195 | D39: =(('LiFFT_v1.4.0'!$H$8-moment_cd_relationship!A38)*((moment_cd_relationship!B38-moment_cd_relationship!B39)/(moment_cd_relationship!A38-moment_cd_relationship!A39))+moment_cd_relationship!B38)*'LiFFT_v1.4.0'!$J$8 ->  | E39: =(('LiFFT_v1.4.0'!$H$11-moment_cd_relationship!A38)*((moment_cd_relationship!B38-moment_cd_relationship!B39)/(moment_cd_relationship!A38-moment_cd_relationship!A39))+moment_cd_relationship!B38)*'LiFFT_v1.4.0'!$J$11 ->  | F39: =(('LiFFT_v1.4.0'!$H$14-moment_cd_relationship!A38)*((moment_cd_relationship!B38-moment_cd_relationship!B39)/(moment_cd_relationship!A38-moment_cd_relationship!A39))+moment_cd_relationship!B38)*'LiFFT_v1.4.0'!$J$14 ->  | G39: =(('LiFFT_v1.4.0'!$H$17-moment_cd_relationship!A38)*((moment_cd_relationship!B38-moment_cd_relationship!B39)/(moment_cd_relationship!A38-moment_cd_relationship!A39))+moment_cd_relationship!B38)*'LiFFT_v1.4.0'!$J$17 ->  | H39: =(('LiFFT_v1.4.0'!$H$20-moment_cd_relationship!A38)*((moment_cd_relationship!B38-moment_cd_relationship!B39)/(moment_cd_relationship!A38-moment_cd_relationship!A39))+moment_cd_relationship!B38)*'LiFFT_v1.4.0'!$J$20 ->  | I39: =(('LiFFT_v1.4.0'!$H$23-moment_cd_relationship!A38)*((moment_cd_relationship!B38-moment_cd_relationship!B39)/(moment_cd_relationship!A38-moment_cd_relationship!A39))+moment_cd_relationship!B38)*'LiFFT_v1.4.0'!$J$23 ->  | J39: =(('LiFFT_v1.4.0'!$H$26-moment_cd_relationship!A38)*((moment_cd_relationship!B38-moment_cd_relationship!B39)/(moment_cd_relationship!A38-moment_cd_relationship!A39))+moment_cd_relationship!B38)*'LiFFT_v1.4.0'!$J$26 ->  | K39: =(('LiFFT_v1.4.0'!$H$29-moment_cd_relationship!A38)*((moment_cd_relationship!B38-moment_cd_relationship!B39)/(moment_cd_relationship!A38-moment_cd_relationship!A39))+moment_cd_relationship!B38)*'LiFFT_v1.4.0'!$J$29 ->  | L39: =(('LiFFT_v1.4.0'!$H$32-moment_cd_relationship!A38)*((moment_cd_relationship!B38-moment_cd_relationship!B39)/(moment_cd_relationship!A38-moment_cd_relationship!A39))+moment_cd_relationship!B38)*'LiFFT_v1.4.0'!$J$32 -> 
A40: 37 | B40: 1.02e-05 | C40: =(('LiFFT_v1.4.0'!$H$5-moment_cd_relationship!A39)*((moment_cd_relationship!B39-moment_cd_relationship!B40)/(moment_cd_relationship!A39-moment_cd_relationship!A40))+moment_cd_relationship!B39)*'LiFFT_v1.4.0'!$J$5 -> -0.0012 | D40: =(('LiFFT_v1.4.0'!$H$8-moment_cd_relationship!A39)*((moment_cd_relationship!B39-moment_cd_relationship!B40)/(moment_cd_relationship!A39-moment_cd_relationship!A40))+moment_cd_relationship!B39)*'LiFFT_v1.4.0'!$J$8 ->  | E40: =(('LiFFT_v1.4.0'!$H$11-moment_cd_relationship!A39)*((moment_cd_relationship!B39-moment_cd_relationship!B40)/(moment_cd_relationship!A39-moment_cd_relationship!A40))+moment_cd_relationship!B39)*'LiFFT_v1.4.0'!$J$11 ->  | F40: =(('LiFFT_v1.4.0'!$H$14-moment_cd_relationship!A39)*((moment_cd_relationship!B39-moment_cd_relationship!B40)/(moment_cd_relationship!A39-moment_cd_relationship!A40))+moment_cd_relationship!B39)*'LiFFT_v1.4.0'!$J$14 ->  | G40: =(('LiFFT_v1.4.0'!$H$17-moment_cd_relationship!A39)*((moment_cd_relationship!B39-moment_cd_relationship!B40)/(moment_cd_relationship!A39-moment_cd_relationship!A40))+moment_cd_relationship!B39)*'LiFFT_v1.4.0'!$J$17 ->  | H40: =(('LiFFT_v1.4.0'!$H$20-moment_cd_relationship!A39)*((moment_cd_relationship!B39-moment_cd_relationship!B40)/(moment_cd_relationship!A39-moment_cd_relationship!A40))+moment_cd_relationship!B39)*'LiFFT_v1.4.0'!$J$20 ->  | I40: =(('LiFFT_v1.4.0'!$H$23-moment_cd_relationship!A39)*((moment_cd_relationship!B39-moment_cd_relationship!B40)/(moment_cd_relationship!A39-moment_cd_relationship!A40))+moment_cd_relationship!B39)*'LiFFT_v1.4.0'!$J$23 ->  | J40: =(('LiFFT_v1.4.0'!$H$26-moment_cd_relationship!A39)*((moment_cd_relationship!B39-moment_cd_relationship!B40)/(moment_cd_relationship!A39-moment_cd_relationship!A40))+moment_cd_relationship!B39)*'LiFFT_v1.4.0'!$J$26 ->  | K40: =(('LiFFT_v1.4.0'!$H$29-moment_cd_relationship!A39)*((moment_cd_relationship!B39-moment_cd_relationship!B40)/(moment_cd_relationship!A39-moment_cd_relationship!A40))+moment_cd_relationship!B39)*'LiFFT_v1.4.0'!$J$29 ->  | L40: =(('LiFFT_v1.4.0'!$H$32-moment_cd_relationship!A39)*((moment_cd_relationship!B39-moment_cd_relationship!B40)/(moment_cd_relationship!A39-moment_cd_relationship!A40))+moment_cd_relationship!B39)*'LiFFT_v1.4.0'!$J$32 -> 
A41: 38 | B41: 1.08e-05 | C41: =(('LiFFT_v1.4.0'!$H$5-moment_cd_relationship!A40)*((moment_cd_relationship!B40-moment_cd_relationship!B41)/(moment_cd_relationship!A40-moment_cd_relationship!A41))+moment_cd_relationship!B40)*'LiFFT_v1.4.0'!$J$5 -> -0.0045 | D41: =(('LiFFT_v1.4.0'!$H$8-moment_cd_relationship!A40)*((moment_cd_relationship!B40-moment_cd_relationship!B41)/(moment_cd_relationship!A40-moment_cd_relationship!A41))+moment_cd_relationship!B40)*'LiFFT_v1.4.0'!$J$8 ->  | E41: =(('LiFFT_v1.4.0'!$H$11-moment_cd_relationship!A40)*((moment_cd_relationship!B40-moment_cd_relationship!B41)/(moment_cd_relationship!A40-moment_cd_relationship!A41))+moment_cd_relationship!B40)*'LiFFT_v1.4.0'!$J$11 ->  | F41: =(('LiFFT_v1.4.0'!$H$14-moment_cd_relationship!A40)*((moment_cd_relationship!B40-moment_cd_relationship!B41)/(moment_cd_relationship!A40-moment_cd_relationship!A41))+moment_cd_relationship!B40)*'LiFFT_v1.4.0'!$J$14 ->  | G41: =(('LiFFT_v1.4.0'!$H$17-moment_cd_relationship!A40)*((moment_cd_relationship!B40-moment_cd_relationship!B41)/(moment_cd_relationship!A40-moment_cd_relationship!A41))+moment_cd_relationship!B40)*'LiFFT_v1.4.0'!$J$17 ->  | H41: =(('LiFFT_v1.4.0'!$H$20-moment_cd_relationship!A40)*((moment_cd_relationship!B40-moment_cd_relationship!B41)/(moment_cd_relationship!A40-moment_cd_relationship!A41))+moment_cd_relationship!B40)*'LiFFT_v1.4.0'!$J$20 ->  | I41: =(('LiFFT_v1.4.0'!$H$23-moment_cd_relationship!A40)*((moment_cd_relationship!B40-moment_cd_relationship!B41)/(moment_cd_relationship!A40-moment_cd_relationship!A41))+moment_cd_relationship!B40)*'LiFFT_v1.4.0'!$J$23 ->  | J41: =(('LiFFT_v1.4.0'!$H$26-moment_cd_relationship!A40)*((moment_cd_relationship!B40-moment_cd_relationship!B41)/(moment_cd_relationship!A40-moment_cd_relationship!A41))+moment_cd_relationship!B40)*'LiFFT_v1.4.0'!$J$26 ->  | K41: =(('LiFFT_v1.4.0'!$H$29-moment_cd_relationship!A40)*((moment_cd_relationship!B40-moment_cd_relationship!B41)/(moment_cd_relationship!A40-moment_cd_relationship!A41))+moment_cd_relationship!B40)*'LiFFT_v1.4.0'!$J$29 ->  | L41: =(('LiFFT_v1.4.0'!$H$32-moment_cd_relationship!A40)*((moment_cd_relationship!B40-moment_cd_relationship!B41)/(moment_cd_relationship!A40-moment_cd_relationship!A41))+moment_cd_relationship!B40)*'LiFFT_v1.4.0'!$J$32 -> 
A42: 39 | B42: 1.13e-05 | C42: =(('LiFFT_v1.4.0'!$H$5-moment_cd_relationship!A41)*((moment_cd_relationship!B41-moment_cd_relationship!B42)/(moment_cd_relationship!A41-moment_cd_relationship!A42))+moment_cd_relationship!B41)*'LiFFT_v1.4.0'!$J$5 -> -0.00105 | D42: =(('LiFFT_v1.4.0'!$H$8-moment_cd_relationship!A41)*((moment_cd_relationship!B41-moment_cd_relationship!B42)/(moment_cd_relationship!A41-moment_cd_relationship!A42))+moment_cd_relationship!B41)*'LiFFT_v1.4.0'!$J$8 ->  | E42: =(('LiFFT_v1.4.0'!$H$11-moment_cd_relationship!A41)*((moment_cd_relationship!B41-moment_cd_relationship!B42)/(moment_cd_relationship!A41-moment_cd_relationship!A42))+moment_cd_relationship!B41)*'LiFFT_v1.4.0'!$J$11 ->  | F42: =(('LiFFT_v1.4.0'!$H$14-moment_cd_relationship!A41)*((moment_cd_relationship!B41-moment_cd_relationship!B42)/(moment_cd_relationship!A41-moment_cd_relationship!A42))+moment_cd_relationship!B41)*'LiFFT_v1.4.0'!$J$14 ->  | G42: =(('LiFFT_v1.4.0'!$H$17-moment_cd_relationship!A41)*((moment_cd_relationship!B41-moment_cd_relationship!B42)/(moment_cd_relationship!A41-moment_cd_relationship!A42))+moment_cd_relationship!B41)*'LiFFT_v1.4.0'!$J$17 ->  | H42: =(('LiFFT_v1.4.0'!$H$20-moment_cd_relationship!A41)*((moment_cd_relationship!B41-moment_cd_relationship!B42)/(moment_cd_relationship!A41-moment_cd_relationship!A42))+moment_cd_relationship!B41)*'LiFFT_v1.4.0'!$J$20 ->  | I42: =(('LiFFT_v1.4.0'!$H$23-moment_cd_relationship!A41)*((moment_cd_relationship!B41-moment_cd_relationship!B42)/(moment_cd_relationship!A41-moment_cd_relationship!A42))+moment_cd_relationship!B41)*'LiFFT_v1.4.0'!$J$23 ->  | J42: =(('LiFFT_v1.4.0'!$H$26-moment_cd_relationship!A41)*((moment_cd_relationship!B41-moment_cd_relationship!B42)/(moment_cd_relationship!A41-moment_cd_relationship!A42))+moment_cd_relationship!B41)*'LiFFT_v1.4.0'!$J$26 ->  | K42: =(('LiFFT_v1.4.0'!$H$29-moment_cd_relationship!A41)*((moment_cd_relationship!B41-moment_cd_relationship!B42)/(moment_cd_relationship!A41-moment_cd_relationship!A42))+moment_cd_relationship!B41)*'LiFFT_v1.4.0'!$J$29 ->  | L42: =(('LiFFT_v1.4.0'!$H$32-moment_cd_relationship!A41)*((moment_cd_relationship!B41-moment_cd_relationship!B42)/(moment_cd_relationship!A41-moment_cd_relationship!A42))+moment_cd_relationship!B41)*'LiFFT_v1.4.0'!$J$32 -> 
A43: 40 | B43: 1.19e-05 | C43: =(('LiFFT_v1.4.0'!$H$5-moment_cd_relationship!A42)*((moment_cd_relationship!B42-moment_cd_relationship!B43)/(moment_cd_relationship!A42-moment_cd_relationship!A43))+moment_cd_relationship!B42)*'LiFFT_v1.4.0'!$J$5 -> -0.00465 | D43: =(('LiFFT_v1.4.0'!$H$8-moment_cd_relationship!A42)*((moment_cd_relationship!B42-moment_cd_relationship!B43)/(moment_cd_relationship!A42-moment_cd_relationship!A43))+moment_cd_relationship!B42)*'LiFFT_v1.4.0'!$J$8 ->  | E43: =(('LiFFT_v1.4.0'!$H$11-moment_cd_relationship!A42)*((moment_cd_relationship!B42-moment_cd_relationship!B43)/(moment_cd_relationship!A42-moment_cd_relationship!A43))+moment_cd_relationship!B42)*'LiFFT_v1.4.0'!$J$11 ->  | F43: =(('LiFFT_v1.4.0'!$H$14-moment_cd_relationship!A42)*((moment_cd_relationship!B42-moment_cd_relationship!B43)/(moment_cd_relationship!A42-moment_cd_relationship!A43))+moment_cd_relationship!B42)*'LiFFT_v1.4.0'!$J$14 ->  | G43: =(('LiFFT_v1.4.0'!$H$17-moment_cd_relationship!A42)*((moment_cd_relationship!B42-moment_cd_relationship!B43)/(moment_cd_relationship!A42-moment_cd_relationship!A43))+moment_cd_relationship!B42)*'LiFFT_v1.4.0'!$J$17 ->  | H43: =(('LiFFT_v1.4.0'!$H$20-moment_cd_relationship!A42)*((moment_cd_relationship!B42-moment_cd_relationship!B43)/(moment_cd_relationship!A42-moment_cd_relationship!A43))+moment_cd_relationship!B42)*'LiFFT_v1.4.0'!$J$20 ->  | I43: =(('LiFFT_v1.4.0'!$H$23-moment_cd_relationship!A42)*((moment_cd_relationship!B42-moment_cd_relationship!B43)/(moment_cd_relationship!A42-moment_cd_relationship!A43))+moment_cd_relationship!B42)*'LiFFT_v1.4.0'!$J$23 ->  | J43: =(('LiFFT_v1.4.0'!$H$26-moment_cd_relationship!A42)*((moment_cd_relationship!B42-moment_cd_relationship!B43)/(moment_cd_relationship!A42-moment_cd_relationship!A43))+moment_cd_relationship!B42)*'LiFFT_v1.4.0'!$J$26 ->  | K43: =(('LiFFT_v1.4.0'!$H$29-moment_cd_relationship!A42)*((moment_cd_relationship!B42-moment_cd_relationship!B43)/(moment_cd_relationship!A42-moment_cd_relationship!A43))+moment_cd_relationship!B42)*'LiFFT_v1.4.0'!$J$29 ->  | L43: =(('LiFFT_v1.4.0'!$H$32-moment_cd_relationship!A42)*((moment_cd_relationship!B42-moment_cd_relationship!B43)/(moment_cd_relationship!A42-moment_cd_relationship!A43))+moment_cd_relationship!B42)*'LiFFT_v1.4.0'!$J$32 -> 
A44: 41 | B44: 1.25e-05 | C44: =(('LiFFT_v1.4.0'!$H$5-moment_cd_relationship!A43)*((moment_cd_relationship!B43-moment_cd_relationship!B44)/(moment_cd_relationship!A43-moment_cd_relationship!A44))+moment_cd_relationship!B43)*'LiFFT_v1.4.0'!$J$5 -> -0.00465 | D44: =(('LiFFT_v1.4.0'!$H$8-moment_cd_relationship!A43)*((moment_cd_relationship!B43-moment_cd_relationship!B44)/(moment_cd_relationship!A43-moment_cd_relationship!A44))+moment_cd_relationship!B43)*'LiFFT_v1.4.0'!$J$8 ->  | E44: =(('LiFFT_v1.4.0'!$H$11-moment_cd_relationship!A43)*((moment_cd_relationship!B43-moment_cd_relationship!B44)/(moment_cd_relationship!A43-moment_cd_relationship!A44))+moment_cd_relationship!B43)*'LiFFT_v1.4.0'!$J$11 ->  | F44: =(('LiFFT_v1.4.0'!$H$14-moment_cd_relationship!A43)*((moment_cd_relationship!B43-moment_cd_relationship!B44)/(moment_cd_relationship!A43-moment_cd_relationship!A44))+moment_cd_relationship!B43)*'LiFFT_v1.4.0'!$J$14 ->  | G44: =(('LiFFT_v1.4.0'!$H$17-moment_cd_relationship!A43)*((moment_cd_relationship!B43-moment_cd_relationship!B44)/(moment_cd_relationship!A43-moment_cd_relationship!A44))+moment_cd_relationship!B43)*'LiFFT_v1.4.0'!$J$17 ->  | H44: =(('LiFFT_v1.4.0'!$H$20-moment_cd_relationship!A43)*((moment_cd_relationship!B43-moment_cd_relationship!B44)/(moment_cd_relationship!A43-moment_cd_relationship!A44))+moment_cd_relationship!B43)*'LiFFT_v1.4.0'!$J$20 ->  | I44: =(('LiFFT_v1.4.0'!$H$23-moment_cd_relationship!A43)*((moment_cd_relationship!B43-moment_cd_relationship!B44)/(moment_cd_relationship!A43-moment_cd_relationship!A44))+moment_cd_relationship!B43)*'LiFFT_v1.4.0'!$J$23 ->  | J44: =(('LiFFT_v1.4.0'!$H$26-moment_cd_relationship!A43)*((moment_cd_relationship!B43-moment_cd_relationship!B44)/(moment_cd_relationship!A43-moment_cd_relationship!A44))+moment_cd_relationship!B43)*'LiFFT_v1.4.0'!$J$26 ->  | K44: =(('LiFFT_v1.4.0'!$H$29-moment_cd_relationship!A43)*((moment_cd_relationship!B43-moment_cd_relationship!B44)/(moment_cd_relationship!A43-moment_cd_relationship!A44))+moment_cd_relationship!B43)*'LiFFT_v1.4.0'!$J$29 ->  | L44: =(('LiFFT_v1.4.0'!$H$32-moment_cd_relationship!A43)*((moment_cd_relationship!B43-moment_cd_relationship!B44)/(moment_cd_relationship!A43-moment_cd_relationship!A44))+moment_cd_relationship!B43)*'LiFFT_v1.4.0'!$J$32 -> 
A45: 42 | B45: 1.32e-05 | C45: =(('LiFFT_v1.4.0'!$H$5-moment_cd_relationship!A44)*((moment_cd_relationship!B44-moment_cd_relationship!B45)/(moment_cd_relationship!A44-moment_cd_relationship!A45))+moment_cd_relationship!B44)*'LiFFT_v1.4.0'!$J$5 -> -0.00855 | D45: =(('LiFFT_v1.4.0'!$H$8-moment_cd_relationship!A44)*((moment_cd_relationship!B44-moment_cd_relationship!B45)/(moment_cd_relationship!A44-moment_cd_relationship!A45))+moment_cd_relationship!B44)*'LiFFT_v1.4.0'!$J$8 ->  | E45: =(('LiFFT_v1.4.0'!$H$11-moment_cd_relationship!A44)*((moment_cd_relationship!B44-moment_cd_relationship!B45)/(moment_cd_relationship!A44-moment_cd_relationship!A45))+moment_cd_relationship!B44)*'LiFFT_v1.4.0'!$J$11 ->  | F45: =(('LiFFT_v1.4.0'!$H$14-moment_cd_relationship!A44)*((moment_cd_relationship!B44-moment_cd_relationship!B45)/(moment_cd_relationship!A44-moment_cd_relationship!A45))+moment_cd_relationship!B44)*'LiFFT_v1.4.0'!$J$14 ->  | G45: =(('LiFFT_v1.4.0'!$H$17-moment_cd_relationship!A44)*((moment_cd_relationship!B44-moment_cd_relationship!B45)/(moment_cd_relationship!A44-moment_cd_relationship!A45))+moment_cd_relationship!B44)*'LiFFT_v1.4.0'!$J$17 ->  | H45: =(('LiFFT_v1.4.0'!$H$20-moment_cd_relationship!A44)*((moment_cd_relationship!B44-moment_cd_relationship!B45)/(moment_cd_relationship!A44-moment_cd_relationship!A45))+moment_cd_relationship!B44)*'LiFFT_v1.4.0'!$J$20 ->  | I45: =(('LiFFT_v1.4.0'!$H$23-moment_cd_relationship!A44)*((moment_cd_relationship!B44-moment_cd_relationship!B45)/(moment_cd_relationship!A44-moment_cd_relationship!A45))+moment_cd_relationship!B44)*'LiFFT_v1.4.0'!$J$23 ->  | J45: =(('LiFFT_v1.4.0'!$H$26-moment_cd_relationship!A44)*((moment_cd_relationship!B44-moment_cd_relationship!B45)/(moment_cd_relationship!A44-moment_cd_relationship!A45))+moment_cd_relationship!B44)*'LiFFT_v1.4.0'!$J$26 ->  | K45: =(('LiFFT_v1.4.0'!$H$29-moment_cd_relationship!A44)*((moment_cd_relationship!B44-moment_cd_relationship!B45)/(moment_cd_relationship!A44-moment_cd_relationship!A45))+moment_cd_relationship!B44)*'LiFFT_v1.4.0'!$J$29 ->  | L45: =(('LiFFT_v1.4.0'!$H$32-moment_cd_relationship!A44)*((moment_cd_relationship!B44-moment_cd_relationship!B45)/(moment_cd_relationship!A44-moment_cd_relationship!A45))+moment_cd_relationship!B44)*'LiFFT_v1.4.0'!$J$32 -> 
A46: 43 | B46: 1.38e-05 | C46: =(('LiFFT_v1.4.0'!$H$5-moment_cd_relationship!A45)*((moment_cd_relationship!B45-moment_cd_relationship!B46)/(moment_cd_relationship!A45-moment_cd_relationship!A46))+moment_cd_relationship!B45)*'LiFFT_v1.4.0'!$J$5 -> -0.0045 | D46: =(('LiFFT_v1.4.0'!$H$8-moment_cd_relationship!A45)*((moment_cd_relationship!B45-moment_cd_relationship!B46)/(moment_cd_relationship!A45-moment_cd_relationship!A46))+moment_cd_relationship!B45)*'LiFFT_v1.4.0'!$J$8 ->  | E46: =(('LiFFT_v1.4.0'!$H$11-moment_cd_relationship!A45)*((moment_cd_relationship!B45-moment_cd_relationship!B46)/(moment_cd_relationship!A45-moment_cd_relationship!A46))+moment_cd_relationship!B45)*'LiFFT_v1.4.0'!$J$11 ->  | F46: =(('LiFFT_v1.4.0'!$H$14-moment_cd_relationship!A45)*((moment_cd_relationship!B45-moment_cd_relationship!B46)/(moment_cd_relationship!A45-moment_cd_relationship!A46))+moment_cd_relationship!B45)*'LiFFT_v1.4.0'!$J$14 ->  | G46: =(('LiFFT_v1.4.0'!$H$17-moment_cd_relationship!A45)*((moment_cd_relationship!B45-moment_cd_relationship!B46)/(moment_cd_relationship!A45-moment_cd_relationship!A46))+moment_cd_relationship!B45)*'LiFFT_v1.4.0'!$J$17 ->  | H46: =(('LiFFT_v1.4.0'!$H$20-moment_cd_relationship!A45)*((moment_cd_relationship!B45-moment_cd_relationship!B46)/(moment_cd_relationship!A45-moment_cd_relationship!A46))+moment_cd_relationship!B45)*'LiFFT_v1.4.0'!$J$20 ->  | I46: =(('LiFFT_v1.4.0'!$H$23-moment_cd_relationship!A45)*((moment_cd_relationship!B45-moment_cd_relationship!B46)/(moment_cd_relationship!A45-moment_cd_relationship!A46))+moment_cd_relationship!B45)*'LiFFT_v1.4.0'!$J$23 ->  | J46: =(('LiFFT_v1.4.0'!$H$26-moment_cd_relationship!A45)*((moment_cd_relationship!B45-moment_cd_relationship!B46)/(moment_cd_relationship!A45-moment_cd_relationship!A46))+moment_cd_relationship!B45)*'LiFFT_v1.4.0'!$J$26 ->  | K46: =(('LiFFT_v1.4.0'!$H$29-moment_cd_relationship!A45)*((moment_cd_relationship!B45-moment_cd_relationship!B46)/(moment_cd_relationship!A45-moment_cd_relationship!A46))+moment_cd_relationship!B45)*'LiFFT_v1.4.0'!$J$29 ->  | L46: =(('LiFFT_v1.4.0'!$H$32-moment_cd_relationship!A45)*((moment_cd_relationship!B45-moment_cd_relationship!B46)/(moment_cd_relationship!A45-moment_cd_relationship!A46))+moment_cd_relationship!B45)*'LiFFT_v1.4.0'!$J$32 -> 
A47: 44 | B47: 1.46e-05 | C47: =(('LiFFT_v1.4.0'!$H$5-moment_cd_relationship!A46)*((moment_cd_relationship!B46-moment_cd_relationship!B47)/(moment_cd_relationship!A46-moment_cd_relationship!A47))+moment_cd_relationship!B46)*'LiFFT_v1.4.0'!$J$5 -> -0.0129 | D47: =(('LiFFT_v1.4.0'!$H$8-moment_cd_relationship!A46)*((moment_cd_relationship!B46-moment_cd_relationship!B47)/(moment_cd_relationship!A46-moment_cd_relationship!A47))+moment_cd_relationship!B46)*'LiFFT_v1.4.0'!$J$8 ->  | E47: =(('LiFFT_v1.4.0'!$H$11-moment_cd_relationship!A46)*((moment_cd_relationship!B46-moment_cd_relationship!B47)/(moment_cd_relationship!A46-moment_cd_relationship!A47))+moment_cd_relationship!B46)*'LiFFT_v1.4.0'!$J$11 ->  | F47: =(('LiFFT_v1.4.0'!$H$14-moment_cd_relationship!A46)*((moment_cd_relationship!B46-moment_cd_relationship!B47)/(moment_cd_relationship!A46-moment_cd_relationship!A47))+moment_cd_relationship!B46)*'LiFFT_v1.4.0'!$J$14 ->  | G47: =(('LiFFT_v1.4.0'!$H$17-moment_cd_relationship!A46)*((moment_cd_relationship!B46-moment_cd_relationship!B47)/(moment_cd_relationship!A46-moment_cd_relationship!A47))+moment_cd_relationship!B46)*'LiFFT_v1.4.0'!$J$17 ->  | H47: =(('LiFFT_v1.4.0'!$H$20-moment_cd_relationship!A46)*((moment_cd_relationship!B46-moment_cd_relationship!B47)/(moment_cd_relationship!A46-moment_cd_relationship!A47))+moment_cd_relationship!B46)*'LiFFT_v1.4.0'!$J$20 ->  | I47: =(('LiFFT_v1.4.0'!$H$23-moment_cd_relationship!A46)*((moment_cd_relationship!B46-moment_cd_relationship!B47)/(moment_cd_relationship!A46-moment_cd_relationship!A47))+moment_cd_relationship!B46)*'LiFFT_v1.4.0'!$J$23 ->  | J47: =(('LiFFT_v1.4.0'!$H$26-moment_cd_relationship!A46)*((moment_cd_relationship!B46-moment_cd_relationship!B47)/(moment_cd_relationship!A46-moment_cd_relationship!A47))+moment_cd_relationship!B46)*'LiFFT_v1.4.0'!$J$26 ->  | K47: =(('LiFFT_v1.4.0'!$H$29-moment_cd_relationship!A46)*((moment_cd_relationship!B46-moment_cd_relationship!B47)/(moment_cd_relationship!A46-moment_cd_relationship!A47))+moment_cd_relationship!B46)*'LiFFT_v1.4.0'!$J$29 ->  | L47: =(('LiFFT_v1.4.0'!$H$32-moment_cd_relationship!A46)*((moment_cd_relationship!B46-moment_cd_relationship!B47)/(moment_cd_relationship!A46-moment_cd_relationship!A47))+moment_cd_relationship!B46)*'LiFFT_v1.4.0'!$J$32 -> 
A48: 45 | B48: 1.53e-05 | C48: =(('LiFFT_v1.4.0'!$H$5-moment_cd_relationship!A47)*((moment_cd_relationship!B47-moment_cd_relationship!B48)/(moment_cd_relationship!A47-moment_cd_relationship!A48))+moment_cd_relationship!B47)*'LiFFT_v1.4.0'!$J$5 -> -0.00855 | D48: =(('LiFFT_v1.4.0'!$H$8-moment_cd_relationship!A47)*((moment_cd_relationship!B47-moment_cd_relationship!B48)/(moment_cd_relationship!A47-moment_cd_relationship!A48))+moment_cd_relationship!B47)*'LiFFT_v1.4.0'!$J$8 ->  | E48: =(('LiFFT_v1.4.0'!$H$11-moment_cd_relationship!A47)*((moment_cd_relationship!B47-moment_cd_relationship!B48)/(moment_cd_relationship!A47-moment_cd_relationship!A48))+moment_cd_relationship!B47)*'LiFFT_v1.4.0'!$J$11 ->  | F48: =(('LiFFT_v1.4.0'!$H$14-moment_cd_relationship!A47)*((moment_cd_relationship!B47-moment_cd_relationship!B48)/(moment_cd_relationship!A47-moment_cd_relationship!A48))+moment_cd_relationship!B47)*'LiFFT_v1.4.0'!$J$14 ->  | G48: =(('LiFFT_v1.4.0'!$H$17-moment_cd_relationship!A47)*((moment_cd_relationship!B47-moment_cd_relationship!B48)/(moment_cd_relationship!A47-moment_cd_relationship!A48))+moment_cd_relationship!B47)*'LiFFT_v1.4.0'!$J$17 ->  | H48: =(('LiFFT_v1.4.0'!$H$20-moment_cd_relationship!A47)*((moment_cd_relationship!B47-moment_cd_relationship!B48)/(moment_cd_relationship!A47-moment_cd_relationship!A48))+moment_cd_relationship!B47)*'LiFFT_v1.4.0'!$J$20 ->  | I48: =(('LiFFT_v1.4.0'!$H$23-moment_cd_relationship!A47)*((moment_cd_relationship!B47-moment_cd_relationship!B48)/(moment_cd_relationship!A47-moment_cd_relationship!A48))+moment_cd_relationship!B47)*'LiFFT_v1.4.0'!$J$23 ->  | J48: =(('LiFFT_v1.4.0'!$H$26-moment_cd_relationship!A47)*((moment_cd_relationship!B47-moment_cd_relationship!B48)/(moment_cd_relationship!A47-moment_cd_relationship!A48))+moment_cd_relationship!B47)*'LiFFT_v1.4.0'!$J$26 ->  | K48: =(('LiFFT_v1.4.0'!$H$29-moment_cd_relationship!A47)*((moment_cd_relationship!B47-moment_cd_relationship!B48)/(moment_cd_relationship!A47-moment_cd_relationship!A48))+moment_cd_relationship!B47)*'LiFFT_v1.4.0'!$J$29 ->  | L48: =(('LiFFT_v1.4.0'!$H$32-moment_cd_relationship!A47)*((moment_cd_relationship!B47-moment_cd_relationship!B48)/(moment_cd_relationship!A47-moment_cd_relationship!A48))+moment_cd_relationship!B47)*'LiFFT_v1.4.0'!$J$32 -> 
A49: 46 | B49: 1.61e-05 | C49: =(('LiFFT_v1.4.0'!$H$5-moment_cd_relationship!A48)*((moment_cd_relationship!B48-moment_cd_relationship!B49)/(moment_cd_relationship!A48-moment_cd_relationship!A49))+moment_cd_relationship!B48)*'LiFFT_v1.4.0'!$J$5 -> -0.01305 | D49: =(('LiFFT_v1.4.0'!$H$8-moment_cd_relationship!A48)*((moment_cd_relationship!B48-moment_cd_relationship!B49)/(moment_cd_relationship!A48-moment_cd_relationship!A49))+moment_cd_relationship!B48)*'LiFFT_v1.4.0'!$J$8 ->  | E49: =(('LiFFT_v1.4.0'!$H$11-moment_cd_relationship!A48)*((moment_cd_relationship!B48-moment_cd_relationship!B49)/(moment_cd_relationship!A48-moment_cd_relationship!A49))+moment_cd_relationship!B48)*'LiFFT_v1.4.0'!$J$11 ->  | F49: =(('LiFFT_v1.4.0'!$H$14-moment_cd_relationship!A48)*((moment_cd_relationship!B48-moment_cd_relationship!B49)/(moment_cd_relationship!A48-moment_cd_relationship!A49))+moment_cd_relationship!B48)*'LiFFT_v1.4.0'!$J$14 ->  | G49: =(('LiFFT_v1.4.0'!$H$17-moment_cd_relationship!A48)*((moment_cd_relationship!B48-moment_cd_relationship!B49)/(moment_cd_relationship!A48-moment_cd_relationship!A49))+moment_cd_relationship!B48)*'LiFFT_v1.4.0'!$J$17 ->  | H49: =(('LiFFT_v1.4.0'!$H$20-moment_cd_relationship!A48)*((moment_cd_relationship!B48-moment_cd_relationship!B49)/(moment_cd_relationship!A48-moment_cd_relationship!A49))+moment_cd_relationship!B48)*'LiFFT_v1.4.0'!$J$20 ->  | I49: =(('LiFFT_v1.4.0'!$H$23-moment_cd_relationship!A48)*((moment_cd_relationship!B48-moment_cd_relationship!B49)/(moment_cd_relationship!A48-moment_cd_relationship!A49))+moment_cd_relationship!B48)*'LiFFT_v1.4.0'!$J$23 ->  | J49: =(('LiFFT_v1.4.0'!$H$26-moment_cd_relationship!A48)*((moment_cd_relationship!B48-moment_cd_relationship!B49)/(moment_cd_relationship!A48-moment_cd_relationship!A49))+moment_cd_relationship!B48)*'LiFFT_v1.4.0'!$J$26 ->  | K49: =(('LiFFT_v1.4.0'!$H$29-moment_cd_relationship!A48)*((moment_cd_relationship!B48-moment_cd_relationship!B49)/(moment_cd_relationship!A48-moment_cd_relationship!A49))+moment_cd_relationship!B48)*'LiFFT_v1.4.0'!$J$29 ->  | L49: =(('LiFFT_v1.4.0'!$H$32-moment_cd_relationship!A48)*((moment_cd_relationship!B48-moment_cd_relationship!B49)/(moment_cd_relationship!A48-moment_cd_relationship!A49))+moment_cd_relationship!B48)*'LiFFT_v1.4.0'!$J$32 -> 
A50: 47 | B50: 1.69e-05 | C50: =(('LiFFT_v1.4.0'!$H$5-moment_cd_relationship!A49)*((moment_cd_relationship!B49-moment_cd_relationship!B50)/(moment_cd_relationship!A49-moment_cd_relationship!A50))+moment_cd_relationship!B49)*'LiFFT_v1.4.0'!$J$5 -> -0.01305 | D50: =(('LiFFT_v1.4.0'!$H$8-moment_cd_relationship!A49)*((moment_cd_relationship!B49-moment_cd_relationship!B50)/(moment_cd_relationship!A49-moment_cd_relationship!A50))+moment_cd_relationship!B49)*'LiFFT_v1.4.0'!$J$8 ->  | E50: =(('LiFFT_v1.4.0'!$H$11-moment_cd_relationship!A49)*((moment_cd_relationship!B49-moment_cd_relationship!B50)/(moment_cd_relationship!A49-moment_cd_relationship!A50))+moment_cd_relationship!B49)*'LiFFT_v1.4.0'!$J$11 ->  | F50: =(('LiFFT_v1.4.0'!$H$14-moment_cd_relationship!A49)*((moment_cd_relationship!B49-moment_cd_relationship!B50)/(moment_cd_relationship!A49-moment_cd_relationship!A50))+moment_cd_relationship!B49)*'LiFFT_v1.4.0'!$J$14 ->  | G50: =(('LiFFT_v1.4.0'!$H$17-moment_cd_relationship!A49)*((moment_cd_relationship!B49-moment_cd_relationship!B50)/(moment_cd_relationship!A49-moment_cd_relationship!A50))+moment_cd_relationship!B49)*'LiFFT_v1.4.0'!$J$17 ->  | H50: =(('LiFFT_v1.4.0'!$H$20-moment_cd_relationship!A49)*((moment_cd_relationship!B49-moment_cd_relationship!B50)/(moment_cd_relationship!A49-moment_cd_relationship!A50))+moment_cd_relationship!B49)*'LiFFT_v1.4.0'!$J$20 ->  | I50: =(('LiFFT_v1.4.0'!$H$23-moment_cd_relationship!A49)*((moment_cd_relationship!B49-moment_cd_relationship!B50)/(moment_cd_relationship!A49-moment_cd_relationship!A50))+moment_cd_relationship!B49)*'LiFFT_v1.4.0'!$J$23 ->  | J50: =(('LiFFT_v1.4.0'!$H$26-moment_cd_relationship!A49)*((moment_cd_relationship!B49-moment_cd_relationship!B50)/(moment_cd_relationship!A49-moment_cd_relationship!A50))+moment_cd_relationship!B49)*'LiFFT_v1.4.0'!$J$26 ->  | K50: =(('LiFFT_v1.4.0'!$H$29-moment_cd_relationship!A49)*((moment_cd_relationship!B49-moment_cd_relationship!B50)/(moment_cd_relationship!A49-moment_cd_relationship!A50))+moment_cd_relationship!B49)*'LiFFT_v1.4.0'!$J$29 ->  | L50: =(('LiFFT_v1.4.0'!$H$32-moment_cd_relationship!A49)*((moment_cd_relationship!B49-moment_cd_relationship!B50)/(moment_cd_relationship!A49-moment_cd_relationship!A50))+moment_cd_relationship!B49)*'LiFFT_v1.4.0'!$J$32 -> 
A51: 48 | B51: 1.78e-05 | C51: =(('LiFFT_v1.4.0'!$H$5-moment_cd_relationship!A50)*((moment_cd_relationship!B50-moment_cd_relationship!B51)/(moment_cd_relationship!A50-moment_cd_relationship!A51))+moment_cd_relationship!B50)*'LiFFT_v1.4.0'!$J$5 -> -0.01785 | D51: =(('LiFFT_v1.4.0'!$H$8-moment_cd_relationship!A50)*((moment_cd_relationship!B50-moment_cd_relationship!B51)/(moment_cd_relationship!A50-moment_cd_relationship!A51))+moment_cd_relationship!B50)*'LiFFT_v1.4.0'!$J$8 ->  | E51: =(('LiFFT_v1.4.0'!$H$11-moment_cd_relationship!A50)*((moment_cd_relationship!B50-moment_cd_relationship!B51)/(moment_cd_relationship!A50-moment_cd_relationship!A51))+moment_cd_relationship!B50)*'LiFFT_v1.4.0'!$J$11 ->  | F51: =(('LiFFT_v1.4.0'!$H$14-moment_cd_relationship!A50)*((moment_cd_relationship!B50-moment_cd_relationship!B51)/(moment_cd_relationship!A50-moment_cd_relationship!A51))+moment_cd_relationship!B50)*'LiFFT_v1.4.0'!$J$14 ->  | G51: =(('LiFFT_v1.4.0'!$H$17-moment_cd_relationship!A50)*((moment_cd_relationship!B50-moment_cd_relationship!B51)/(moment_cd_relationship!A50-moment_cd_relationship!A51))+moment_cd_relationship!B50)*'LiFFT_v1.4.0'!$J$17 ->  | H51: =(('LiFFT_v1.4.0'!$H$20-moment_cd_relationship!A50)*((moment_cd_relationship!B50-moment_cd_relationship!B51)/(moment_cd_relationship!A50-moment_cd_relationship!A51))+moment_cd_relationship!B50)*'LiFFT_v1.4.0'!$J$20 ->  | I51: =(('LiFFT_v1.4.0'!$H$23-moment_cd_relationship!A50)*((moment_cd_relationship!B50-moment_cd_relationship!B51)/(moment_cd_relationship!A50-moment_cd_relationship!A51))+moment_cd_relationship!B50)*'LiFFT_v1.4.0'!$J$23 ->  | J51: =(('LiFFT_v1.4.0'!$H$26-moment_cd_relationship!A50)*((moment_cd_relationship!B50-moment_cd_relationship!B51)/(moment_cd_relationship!A50-moment_cd_relationship!A51))+moment_cd_relationship!B50)*'LiFFT_v1.4.0'!$J$26 ->  | K51: =(('LiFFT_v1.4.0'!$H$29-moment_cd_relationship!A50)*((moment_cd_relationship!B50-moment_cd_relationship!B51)/(moment_cd_relationship!A50-moment_cd_relationship!A51))+moment_cd_relationship!B50)*'LiFFT_v1.4.0'!$J$29 ->  | L51: =(('LiFFT_v1.4.0'!$H$32-moment_cd_relationship!A50)*((moment_cd_relationship!B50-moment_cd_relationship!B51)/(moment_cd_relationship!A50-moment_cd_relationship!A51))+moment_cd_relationship!B50)*'LiFFT_v1.4.0'!$J$32 -> 
A52: 49 | B52: 1.87e-05 | C52: =(('LiFFT_v1.4.0'!$H$5-moment_cd_relationship!A51)*((moment_cd_relationship!B51-moment_cd_relationship!B52)/(moment_cd_relationship!A51-moment_cd_relationship!A52))+moment_cd_relationship!B51)*'LiFFT_v1.4.0'!$J$5 -> -0.01785 | D52: =(('LiFFT_v1.4.0'!$H$8-moment_cd_relationship!A51)*((moment_cd_relationship!B51-moment_cd_relationship!B52)/(moment_cd_relationship!A51-moment_cd_relationship!A52))+moment_cd_relationship!B51)*'LiFFT_v1.4.0'!$J$8 ->  | E52: =(('LiFFT_v1.4.0'!$H$11-moment_cd_relationship!A51)*((moment_cd_relationship!B51-moment_cd_relationship!B52)/(moment_cd_relationship!A51-moment_cd_relationship!A52))+moment_cd_relationship!B51)*'LiFFT_v1.4.0'!$J$11 ->  | F52: =(('LiFFT_v1.4.0'!$H$14-moment_cd_relationship!A51)*((moment_cd_relationship!B51-moment_cd_relationship!B52)/(moment_cd_relationship!A51-moment_cd_relationship!A52))+moment_cd_relationship!B51)*'LiFFT_v1.4.0'!$J$14 ->  | G52: =(('LiFFT_v1.4.0'!$H$17-moment_cd_relationship!A51)*((moment_cd_relationship!B51-moment_cd_relationship!B52)/(moment_cd_relationship!A51-moment_cd_relationship!A52))+moment_cd_relationship!B51)*'LiFFT_v1.4.0'!$J$17 ->  | H52: =(('LiFFT_v1.4.0'!$H$20-moment_cd_relationship!A51)*((moment_cd_relationship!B51-moment_cd_relationship!B52)/(moment_cd_relationship!A51-moment_cd_relationship!A52))+moment_cd_relationship!B51)*'LiFFT_v1.4.0'!$J$20 ->  | I52: =(('LiFFT_v1.4.0'!$H$23-moment_cd_relationship!A51)*((moment_cd_relationship!B51-moment_cd_relationship!B52)/(moment_cd_relationship!A51-moment_cd_relationship!A52))+moment_cd_relationship!B51)*'LiFFT_v1.4.0'!$J$23 ->  | J52: =(('LiFFT_v1.4.0'!$H$26-moment_cd_relationship!A51)*((moment_cd_relationship!B51-moment_cd_relationship!B52)/(moment_cd_relationship!A51-moment_cd_relationship!A52))+moment_cd_relationship!B51)*'LiFFT_v1.4.0'!$J$26 ->  | K52: =(('LiFFT_v1.4.0'!$H$29-moment_cd_relationship!A51)*((moment_cd_relationship!B51-moment_cd_relationship!B52)/(moment_cd_relationship!A51-moment_cd_relationship!A52))+moment_cd_relationship!B51)*'LiFFT_v1.4.0'!$J$29 ->  | L52: =(('LiFFT_v1.4.0'!$H$32-moment_cd_relationship!A51)*((moment_cd_relationship!B51-moment_cd_relationship!B52)/(moment_cd_relationship!A51-moment_cd_relationship!A52))+moment_cd_relationship!B51)*'LiFFT_v1.4.0'!$J$32 -> 
A53: 50 | B53: 1.97e-05 | C53: =(('LiFFT_v1.4.0'!$H$5-moment_cd_relationship!A52)*((moment_cd_relationship!B52-moment_cd_relationship!B53)/(moment_cd_relationship!A52-moment_cd_relationship!A53))+moment_cd_relationship!B52)*'LiFFT_v1.4.0'!$J$5 -> -0.02295 | D53: =(('LiFFT_v1.4.0'!$H$8-moment_cd_relationship!A52)*((moment_cd_relationship!B52-moment_cd_relationship!B53)/(moment_cd_relationship!A52-moment_cd_relationship!A53))+moment_cd_relationship!B52)*'LiFFT_v1.4.0'!$J$8 ->  | E53: =(('LiFFT_v1.4.0'!$H$11-moment_cd_relationship!A52)*((moment_cd_relationship!B52-moment_cd_relationship!B53)/(moment_cd_relationship!A52-moment_cd_relationship!A53))+moment_cd_relationship!B52)*'LiFFT_v1.4.0'!$J$11 ->  | F53: =(('LiFFT_v1.4.0'!$H$14-moment_cd_relationship!A52)*((moment_cd_relationship!B52-moment_cd_relationship!B53)/(moment_cd_relationship!A52-moment_cd_relationship!A53))+moment_cd_relationship!B52)*'LiFFT_v1.4.0'!$J$14 ->  | G53: =(('LiFFT_v1.4.0'!$H$17-moment_cd_relationship!A52)*((moment_cd_relationship!B52-moment_cd_relationship!B53)/(moment_cd_relationship!A52-moment_cd_relationship!A53))+moment_cd_relationship!B52)*'LiFFT_v1.4.0'!$J$17 ->  | H53: =(('LiFFT_v1.4.0'!$H$20-moment_cd_relationship!A52)*((moment_cd_relationship!B52-moment_cd_relationship!B53)/(moment_cd_relationship!A52-moment_cd_relationship!A53))+moment_cd_relationship!B52)*'LiFFT_v1.4.0'!$J$20 ->  | I53: =(('LiFFT_v1.4.0'!$H$23-moment_cd_relationship!A52)*((moment_cd_relationship!B52-moment_cd_relationship!B53)/(moment_cd_relationship!A52-moment_cd_relationship!A53))+moment_cd_relationship!B52)*'LiFFT_v1.4.0'!$J$23 ->  | J53: =(('LiFFT_v1.4.0'!$H$26-moment_cd_relationship!A52)*((moment_cd_relationship!B52-moment_cd_relationship!B53)/(moment_cd_relationship!A52-moment_cd_relationship!A53))+moment_cd_relationship!B52)*'LiFFT_v1.4.0'!$J$26 ->  | K53: =(('LiFFT_v1.4.0'!$H$29-moment_cd_relationship!A52)*((moment_cd_relationship!B52-moment_cd_relationship!B53)/(moment_cd_relationship!A52-moment_cd_relationship!A53))+moment_cd_relationship!B52)*'LiFFT_v1.4.0'!$J$29 ->  | L53: =(('LiFFT_v1.4.0'!$H$32-moment_cd_relationship!A52)*((moment_cd_relationship!B52-moment_cd_relationship!B53)/(moment_cd_relationship!A52-moment_cd_relationship!A53))+moment_cd_relationship!B52)*'LiFFT_v1.4.0'!$J$32 -> 
A54: 51 | B54: 2.07e-05 | C54: =(('LiFFT_v1.4.0'!$H$5-moment_cd_relationship!A53)*((moment_cd_relationship!B53-moment_cd_relationship!B54)/(moment_cd_relationship!A53-moment_cd_relationship!A54))+moment_cd_relationship!B53)*'LiFFT_v1.4.0'!$J$5 -> -0.02295 | D54: =(('LiFFT_v1.4.0'!$H$8-moment_cd_relationship!A53)*((moment_cd_relationship!B53-moment_cd_relationship!B54)/(moment_cd_relationship!A53-moment_cd_relationship!A54))+moment_cd_relationship!B53)*'LiFFT_v1.4.0'!$J$8 ->  | E54: =(('LiFFT_v1.4.0'!$H$11-moment_cd_relationship!A53)*((moment_cd_relationship!B53-moment_cd_relationship!B54)/(moment_cd_relationship!A53-moment_cd_relationship!A54))+moment_cd_relationship!B53)*'LiFFT_v1.4.0'!$J$11 ->  | F54: =(('LiFFT_v1.4.0'!$H$14-moment_cd_relationship!A53)*((moment_cd_relationship!B53-moment_cd_relationship!B54)/(moment_cd_relationship!A53-moment_cd_relationship!A54))+moment_cd_relationship!B53)*'LiFFT_v1.4.0'!$J$14 ->  | G54: =(('LiFFT_v1.4.0'!$H$17-moment_cd_relationship!A53)*((moment_cd_relationship!B53-moment_cd_relationship!B54)/(moment_cd_relationship!A53-moment_cd_relationship!A54))+moment_cd_relationship!B53)*'LiFFT_v1.4.0'!$J$17 ->  | H54: =(('LiFFT_v1.4.0'!$H$20-moment_cd_relationship!A53)*((moment_cd_relationship!B53-moment_cd_relationship!B54)/(moment_cd_relationship!A53-moment_cd_relationship!A54))+moment_cd_relationship!B53)*'LiFFT_v1.4.0'!$J$20 ->  | I54: =(('LiFFT_v1.4.0'!$H$23-moment_cd_relationship!A53)*((moment_cd_relationship!B53-moment_cd_relationship!B54)/(moment_cd_relationship!A53-moment_cd_relationship!A54))+moment_cd_relationship!B53)*'LiFFT_v1.4.0'!$J$23 ->  | J54: =(('LiFFT_v1.4.0'!$H$26-moment_cd_relationship!A53)*((moment_cd_relationship!B53-moment_cd_relationship!B54)/(moment_cd_relationship!A53-moment_cd_relationship!A54))+moment_cd_relationship!B53)*'LiFFT_v1.4.0'!$J$26 ->  | K54: =(('LiFFT_v1.4.0'!$H$29-moment_cd_relationship!A53)*((moment_cd_relationship!B53-moment_cd_relationship!B54)/(moment_cd_relationship!A53-moment_cd_relationship!A54))+moment_cd_relationship!B53)*'LiFFT_v1.4.0'!$J$29 ->  | L54: =(('LiFFT_v1.4.0'!$H$32-moment_cd_relationship!A53)*((moment_cd_relationship!B53-moment_cd_relationship!B54)/(moment_cd_relationship!A53-moment_cd_relationship!A54))+moment_cd_relationship!B53)*'LiFFT_v1.4.0'!$J$32 -> 
A55: 52 | B55: 2.18e-05 | C55: =(('LiFFT_v1.4.0'!$H$5-moment_cd_relationship!A54)*((moment_cd_relationship!B54-moment_cd_relationship!B55)/(moment_cd_relationship!A54-moment_cd_relationship!A55))+moment_cd_relationship!B54)*'LiFFT_v1.4.0'!$J$5 -> -0.02835 | D55: =(('LiFFT_v1.4.0'!$H$8-moment_cd_relationship!A54)*((moment_cd_relationship!B54-moment_cd_relationship!B55)/(moment_cd_relationship!A54-moment_cd_relationship!A55))+moment_cd_relationship!B54)*'LiFFT_v1.4.0'!$J$8 ->  | E55: =(('LiFFT_v1.4.0'!$H$11-moment_cd_relationship!A54)*((moment_cd_relationship!B54-moment_cd_relationship!B55)/(moment_cd_relationship!A54-moment_cd_relationship!A55))+moment_cd_relationship!B54)*'LiFFT_v1.4.0'!$J$11 ->  | F55: =(('LiFFT_v1.4.0'!$H$14-moment_cd_relationship!A54)*((moment_cd_relationship!B54-moment_cd_relationship!B55)/(moment_cd_relationship!A54-moment_cd_relationship!A55))+moment_cd_relationship!B54)*'LiFFT_v1.4.0'!$J$14 ->  | G55: =(('LiFFT_v1.4.0'!$H$17-moment_cd_relationship!A54)*((moment_cd_relationship!B54-moment_cd_relationship!B55)/(moment_cd_relationship!A54-moment_cd_relationship!A55))+moment_cd_relationship!B54)*'LiFFT_v1.4.0'!$J$17 ->  | H55: =(('LiFFT_v1.4.0'!$H$20-moment_cd_relationship!A54)*((moment_cd_relationship!B54-moment_cd_relationship!B55)/(moment_cd_relationship!A54-moment_cd_relationship!A55))+moment_cd_relationship!B54)*'LiFFT_v1.4.0'!$J$20 ->  | I55: =(('LiFFT_v1.4.0'!$H$23-moment_cd_relationship!A54)*((moment_cd_relationship!B54-moment_cd_relationship!B55)/(moment_cd_relationship!A54-moment_cd_relationship!A55))+moment_cd_relationship!B54)*'LiFFT_v1.4.0'!$J$23 ->  | J55: =(('LiFFT_v1.4.0'!$H$26-moment_cd_relationship!A54)*((moment_cd_relationship!B54-moment_cd_relationship!B55)/(moment_cd_relationship!A54-moment_cd_relationship!A55))+moment_cd_relationship!B54)*'LiFFT_v1.4.0'!$J$26 ->  | K55: =(('LiFFT_v1.4.0'!$H$29-moment_cd_relationship!A54)*((moment_cd_relationship!B54-moment_cd_relationship!B55)/(moment_cd_relationship!A54-moment_cd_relationship!A55))+moment_cd_relationship!B54)*'LiFFT_v1.4.0'!$J$29 ->  | L55: =(('LiFFT_v1.4.0'!$H$32-moment_cd_relationship!A54)*((moment_cd_relationship!B54-moment_cd_relationship!B55)/(moment_cd_relationship!A54-moment_cd_relationship!A55))+moment_cd_relationship!B54)*'LiFFT_v1.4.0'!$J$32 -> 
A56: 53 | B56: 2.29e-05 | C56: =(('LiFFT_v1.4.0'!$H$5-moment_cd_relationship!A55)*((moment_cd_relationship!B55-moment_cd_relationship!B56)/(moment_cd_relationship!A55-moment_cd_relationship!A56))+moment_cd_relationship!B55)*'LiFFT_v1.4.0'!$J$5 -> -0.02835 | D56: =(('LiFFT_v1.4.0'!$H$8-moment_cd_relationship!A55)*((moment_cd_relationship!B55-moment_cd_relationship!B56)/(moment_cd_relationship!A55-moment_cd_relationship!A56))+moment_cd_relationship!B55)*'LiFFT_v1.4.0'!$J$8 ->  | E56: =(('LiFFT_v1.4.0'!$H$11-moment_cd_relationship!A55)*((moment_cd_relationship!B55-moment_cd_relationship!B56)/(moment_cd_relationship!A55-moment_cd_relationship!A56))+moment_cd_relationship!B55)*'LiFFT_v1.4.0'!$J$11 ->  | F56: =(('LiFFT_v1.4.0'!$H$14-moment_cd_relationship!A55)*((moment_cd_relationship!B55-moment_cd_relationship!B56)/(moment_cd_relationship!A55-moment_cd_relationship!A56))+moment_cd_relationship!B55)*'LiFFT_v1.4.0'!$J$14 ->  | G56: =(('LiFFT_v1.4.0'!$H$17-moment_cd_relationship!A55)*((moment_cd_relationship!B55-moment_cd_relationship!B56)/(moment_cd_relationship!A55-moment_cd_relationship!A56))+moment_cd_relationship!B55)*'LiFFT_v1.4.0'!$J$17 ->  | H56: =(('LiFFT_v1.4.0'!$H$20-moment_cd_relationship!A55)*((moment_cd_relationship!B55-moment_cd_relationship!B56)/(moment_cd_relationship!A55-moment_cd_relationship!A56))+moment_cd_relationship!B55)*'LiFFT_v1.4.0'!$J$20 ->  | I56: =(('LiFFT_v1.4.0'!$H$23-moment_cd_relationship!A55)*((moment_cd_relationship!B55-moment_cd_relationship!B56)/(moment_cd_relationship!A55-moment_cd_relationship!A56))+moment_cd_relationship!B55)*'LiFFT_v1.4.0'!$J$23 ->  | J56: =(('LiFFT_v1.4.0'!$H$26-moment_cd_relationship!A55)*((moment_cd_relationship!B55-moment_cd_relationship!B56)/(moment_cd_relationship!A55-moment_cd_relationship!A56))+moment_cd_relationship!B55)*'LiFFT_v1.4.0'!$J$26 ->  | K56: =(('LiFFT_v1.4.0'!$H$29-moment_cd_relationship!A55)*((moment_cd_relationship!B55-moment_cd_relationship!B56)/(moment_cd_relationship!A55-moment_cd_relationship!A56))+moment_cd_relationship!B55)*'LiFFT_v1.4.0'!$J$29 ->  | L56: =(('LiFFT_v1.4.0'!$H$32-moment_cd_relationship!A55)*((moment_cd_relationship!B55-moment_cd_relationship!B56)/(moment_cd_relationship!A55-moment_cd_relationship!A56))+moment_cd_relationship!B55)*'LiFFT_v1.4.0'!$J$32 -> 
A57: 54 | B57: 2.41e-05 | C57: =(('LiFFT_v1.4.0'!$H$5-moment_cd_relationship!A56)*((moment_cd_relationship!B56-moment_cd_relationship!B57)/(moment_cd_relationship!A56-moment_cd_relationship!A57))+moment_cd_relationship!B56)*'LiFFT_v1.4.0'!$J$5 -> -0.03405 | D57: =(('LiFFT_v1.4.0'!$H$8-moment_cd_relationship!A56)*((moment_cd_relationship!B56-moment_cd_relationship!B57)/(moment_cd_relationship!A56-moment_cd_relationship!A57))+moment_cd_relationship!B56)*'LiFFT_v1.4.0'!$J$8 ->  | E57: =(('LiFFT_v1.4.0'!$H$11-moment_cd_relationship!A56)*((moment_cd_relationship!B56-moment_cd_relationship!B57)/(moment_cd_relationship!A56-moment_cd_relationship!A57))+moment_cd_relationship!B56)*'LiFFT_v1.4.0'!$J$11 ->  | F57: =(('LiFFT_v1.4.0'!$H$14-moment_cd_relationship!A56)*((moment_cd_relationship!B56-moment_cd_relationship!B57)/(moment_cd_relationship!A56-moment_cd_relationship!A57))+moment_cd_relationship!B56)*'LiFFT_v1.4.0'!$J$14 ->  | G57: =(('LiFFT_v1.4.0'!$H$17-moment_cd_relationship!A56)*((moment_cd_relationship!B56-moment_cd_relationship!B57)/(moment_cd_relationship!A56-moment_cd_relationship!A57))+moment_cd_relationship!B56)*'LiFFT_v1.4.0'!$J$17 ->  | H57: =(('LiFFT_v1.4.0'!$H$20-moment_cd_relationship!A56)*((moment_cd_relationship!B56-moment_cd_relationship!B57)/(moment_cd_relationship!A56-moment_cd_relationship!A57))+moment_cd_relationship!B56)*'LiFFT_v1.4.0'!$J$20 ->  | I57: =(('LiFFT_v1.4.0'!$H$23-moment_cd_relationship!A56)*((moment_cd_relationship!B56-moment_cd_relationship!B57)/(moment_cd_relationship!A56-moment_cd_relationship!A57))+moment_cd_relationship!B56)*'LiFFT_v1.4.0'!$J$23 ->  | J57: =(('LiFFT_v1.4.0'!$H$26-moment_cd_relationship!A56)*((moment_cd_relationship!B56-moment_cd_relationship!B57)/(moment_cd_relationship!A56-moment_cd_relationship!A57))+moment_cd_relationship!B56)*'LiFFT_v1.4.0'!$J$26 ->  | K57: =(('LiFFT_v1.4.0'!$H$29-moment_cd_relationship!A56)*((moment_cd_relationship!B56-moment_cd_relationship!B57)/(moment_cd_relationship!A56-moment_cd_relationship!A57))+moment_cd_relationship!B56)*'LiFFT_v1.4.0'!$J$29 ->  | L57: =(('LiFFT_v1.4.0'!$H$32-moment_cd_relationship!A56)*((moment_cd_relationship!B56-moment_cd_relationship!B57)/(moment_cd_relationship!A56-moment_cd_relationship!A57))+moment_cd_relationship!B56)*'LiFFT_v1.4.0'!$J$32 -> 
A58: 55 | B58: 2.54e-05 | C58: =(('LiFFT_v1.4.0'!$H$5-moment_cd_relationship!A57)*((moment_cd_relationship!B57-moment_cd_relationship!B58)/(moment_cd_relationship!A57-moment_cd_relationship!A58))+moment_cd_relationship!B57)*'LiFFT_v1.4.0'!$J$5 -> -0.0399 | D58: =(('LiFFT_v1.4.0'!$H$8-moment_cd_relationship!A57)*((moment_cd_relationship!B57-moment_cd_relationship!B58)/(moment_cd_relationship!A57-moment_cd_relationship!A58))+moment_cd_relationship!B57)*'LiFFT_v1.4.0'!$J$8 ->  | E58: =(('LiFFT_v1.4.0'!$H$11-moment_cd_relationship!A57)*((moment_cd_relationship!B57-moment_cd_relationship!B58)/(moment_cd_relationship!A57-moment_cd_relationship!A58))+moment_cd_relationship!B57)*'LiFFT_v1.4.0'!$J$11 ->  | F58: =(('LiFFT_v1.4.0'!$H$14-moment_cd_relationship!A57)*((moment_cd_relationship!B57-moment_cd_relationship!B58)/(moment_cd_relationship!A57-moment_cd_relationship!A58))+moment_cd_relationship!B57)*'LiFFT_v1.4.0'!$J$14 ->  | G58: =(('LiFFT_v1.4.0'!$H$17-moment_cd_relationship!A57)*((moment_cd_relationship!B57-moment_cd_relationship!B58)/(moment_cd_relationship!A57-moment_cd_relationship!A58))+moment_cd_relationship!B57)*'LiFFT_v1.4.0'!$J$17 ->  | H58: =(('LiFFT_v1.4.0'!$H$20-moment_cd_relationship!A57)*((moment_cd_relationship!B57-moment_cd_relationship!B58)/(moment_cd_relationship!A57-moment_cd_relationship!A58))+moment_cd_relationship!B57)*'LiFFT_v1.4.0'!$J$20 ->  | I58: =(('LiFFT_v1.4.0'!$H$23-moment_cd_relationship!A57)*((moment_cd_relationship!B57-moment_cd_relationship!B58)/(moment_cd_relationship!A57-moment_cd_relationship!A58))+moment_cd_relationship!B57)*'LiFFT_v1.4.0'!$J$23 ->  | J58: =(('LiFFT_v1.4.0'!$H$26-moment_cd_relationship!A57)*((moment_cd_relationship!B57-moment_cd_relationship!B58)/(moment_cd_relationship!A57-moment_cd_relationship!A58))+moment_cd_relationship!B57)*'LiFFT_v1.4.0'!$J$26 ->  | K58: =(('LiFFT_v1.4.0'!$H$29-moment_cd_relationship!A57)*((moment_cd_relationship!B57-moment_cd_relationship!B58)/(moment_cd_relationship!A57-moment_cd_relationship!A58))+moment_cd_relationship!B57)*'LiFFT_v1.4.0'!$J$29 ->  | L58: =(('LiFFT_v1.4.0'!$H$32-moment_cd_relationship!A57)*((moment_cd_relationship!B57-moment_cd_relationship!B58)/(moment_cd_relationship!A57-moment_cd_relationship!A58))+moment_cd_relationship!B57)*'LiFFT_v1.4.0'!$J$32 -> 
A59: 56 | B59: 2.67e-05 | C59: =(('LiFFT_v1.4.0'!$H$5-moment_cd_relationship!A58)*((moment_cd_relationship!B58-moment_cd_relationship!B59)/(moment_cd_relationship!A58-moment_cd_relationship!A59))+moment_cd_relationship!B58)*'LiFFT_v1.4.0'!$J$5 -> -0.0399 | D59: =(('LiFFT_v1.4.0'!$H$8-moment_cd_relationship!A58)*((moment_cd_relationship!B58-moment_cd_relationship!B59)/(moment_cd_relationship!A58-moment_cd_relationship!A59))+moment_cd_relationship!B58)*'LiFFT_v1.4.0'!$J$8 ->  | E59: =(('LiFFT_v1.4.0'!$H$11-moment_cd_relationship!A58)*((moment_cd_relationship!B58-moment_cd_relationship!B59)/(moment_cd_relationship!A58-moment_cd_relationship!A59))+moment_cd_relationship!B58)*'LiFFT_v1.4.0'!$J$11 ->  | F59: =(('LiFFT_v1.4.0'!$H$14-moment_cd_relationship!A58)*((moment_cd_relationship!B58-moment_cd_relationship!B59)/(moment_cd_relationship!A58-moment_cd_relationship!A59))+moment_cd_relationship!B58)*'LiFFT_v1.4.0'!$J$14 ->  | G59: =(('LiFFT_v1.4.0'!$H$17-moment_cd_relationship!A58)*((moment_cd_relationship!B58-moment_cd_relationship!B59)/(moment_cd_relationship!A58-moment_cd_relationship!A59))+moment_cd_relationship!B58)*'LiFFT_v1.4.0'!$J$17 ->  | H59: =(('LiFFT_v1.4.0'!$H$20-moment_cd_relationship!A58)*((moment_cd_relationship!B58-moment_cd_relationship!B59)/(moment_cd_relationship!A58-moment_cd_relationship!A59))+moment_cd_relationship!B58)*'LiFFT_v1.4.0'!$J$20 ->  | I59: =(('LiFFT_v1.4.0'!$H$23-moment_cd_relationship!A58)*((moment_cd_relationship!B58-moment_cd_relationship!B59)/(moment_cd_relationship!A58-moment_cd_relationship!A59))+moment_cd_relationship!B58)*'LiFFT_v1.4.0'!$J$23 ->  | J59: =(('LiFFT_v1.4.0'!$H$26-moment_cd_relationship!A58)*((moment_cd_relationship!B58-moment_cd_relationship!B59)/(moment_cd_relationship!A58-moment_cd_relationship!A59))+moment_cd_relationship!B58)*'LiFFT_v1.4.0'!$J$26 ->  | K59: =(('LiFFT_v1.4.0'!$H$29-moment_cd_relationship!A58)*((moment_cd_relationship!B58-moment_cd_relationship!B59)/(moment_cd_relationship!A58-moment_cd_relationship!A59))+moment_cd_relationship!B58)*'LiFFT_v1.4.0'!$J$29 ->  | L59: =(('LiFFT_v1.4.0'!$H$32-moment_cd_relationship!A58)*((moment_cd_relationship!B58-moment_cd_relationship!B59)/(moment_cd_relationship!A58-moment_cd_relationship!A59))+moment_cd_relationship!B58)*'LiFFT_v1.4.0'!$J$32 -> 
A60: 57 | B60: 2.81e-05 | C60: =(('LiFFT_v1.4.0'!$H$5-moment_cd_relationship!A59)*((moment_cd_relationship!B59-moment_cd_relationship!B60)/(moment_cd_relationship!A59-moment_cd_relationship!A60))+moment_cd_relationship!B59)*'LiFFT_v1.4.0'!$J$5 -> -0.04605 | D60: =(('LiFFT_v1.4.0'!$H$8-moment_cd_relationship!A59)*((moment_cd_relationship!B59-moment_cd_relationship!B60)/(moment_cd_relationship!A59-moment_cd_relationship!A60))+moment_cd_relationship!B59)*'LiFFT_v1.4.0'!$J$8 ->  | E60: =(('LiFFT_v1.4.0'!$H$11-moment_cd_relationship!A59)*((moment_cd_relationship!B59-moment_cd_relationship!B60)/(moment_cd_relationship!A59-moment_cd_relationship!A60))+moment_cd_relationship!B59)*'LiFFT_v1.4.0'!$J$11 ->  | F60: =(('LiFFT_v1.4.0'!$H$14-moment_cd_relationship!A59)*((moment_cd_relationship!B59-moment_cd_relationship!B60)/(moment_cd_relationship!A59-moment_cd_relationship!A60))+moment_cd_relationship!B59)*'LiFFT_v1.4.0'!$J$14 ->  | G60: =(('LiFFT_v1.4.0'!$H$17-moment_cd_relationship!A59)*((moment_cd_relationship!B59-moment_cd_relationship!B60)/(moment_cd_relationship!A59-moment_cd_relationship!A60))+moment_cd_relationship!B59)*'LiFFT_v1.4.0'!$J$17 ->  | H60: =(('LiFFT_v1.4.0'!$H$20-moment_cd_relationship!A59)*((moment_cd_relationship!B59-moment_cd_relationship!B60)/(moment_cd_relationship!A59-moment_cd_relationship!A60))+moment_cd_relationship!B59)*'LiFFT_v1.4.0'!$J$20 ->  | I60: =(('LiFFT_v1.4.0'!$H$23-moment_cd_relationship!A59)*((moment_cd_relationship!B59-moment_cd_relationship!B60)/(moment_cd_relationship!A59-moment_cd_relationship!A60))+moment_cd_relationship!B59)*'LiFFT_v1.4.0'!$J$23 ->  | J60: =(('LiFFT_v1.4.0'!$H$26-moment_cd_relationship!A59)*((moment_cd_relationship!B59-moment_cd_relationship!B60)/(moment_cd_relationship!A59-moment_cd_relationship!A60))+moment_cd_relationship!B59)*'LiFFT_v1.4.0'!$J$26 ->  | K60: =(('LiFFT_v1.4.0'!$H$29-moment_cd_relationship!A59)*((moment_cd_relationship!B59-moment_cd_relationship!B60)/(moment_cd_relationship!A59-moment_cd_relationship!A60))+moment_cd_relationship!B59)*'LiFFT_v1.4.0'!$J$29 ->  | L60: =(('LiFFT_v1.4.0'!$H$32-moment_cd_relationship!A59)*((moment_cd_relationship!B59-moment_cd_relationship!B60)/(moment_cd_relationship!A59-moment_cd_relationship!A60))+moment_cd_relationship!B59)*'LiFFT_v1.4.0'!$J$32 -> 
A61: 58 | B61: 2.95e-05 | C61: =(('LiFFT_v1.4.0'!$H$5-moment_cd_relationship!A60)*((moment_cd_relationship!B60-moment_cd_relationship!B61)/(moment_cd_relationship!A60-moment_cd_relationship!A61))+moment_cd_relationship!B60)*'LiFFT_v1.4.0'!$J$5 -> -0.04605 | D61: =(('LiFFT_v1.4.0'!$H$8-moment_cd_relationship!A60)*((moment_cd_relationship!B60-moment_cd_relationship!B61)/(moment_cd_relationship!A60-moment_cd_relationship!A61))+moment_cd_relationship!B60)*'LiFFT_v1.4.0'!$J$8 ->  | E61: =(('LiFFT_v1.4.0'!$H$11-moment_cd_relationship!A60)*((moment_cd_relationship!B60-moment_cd_relationship!B61)/(moment_cd_relationship!A60-moment_cd_relationship!A61))+moment_cd_relationship!B60)*'LiFFT_v1.4.0'!$J$11 ->  | F61: =(('LiFFT_v1.4.0'!$H$14-moment_cd_relationship!A60)*((moment_cd_relationship!B60-moment_cd_relationship!B61)/(moment_cd_relationship!A60-moment_cd_relationship!A61))+moment_cd_relationship!B60)*'LiFFT_v1.4.0'!$J$14 ->  | G61: =(('LiFFT_v1.4.0'!$H$17-moment_cd_relationship!A60)*((moment_cd_relationship!B60-moment_cd_relationship!B61)/(moment_cd_relationship!A60-moment_cd_relationship!A61))+moment_cd_relationship!B60)*'LiFFT_v1.4.0'!$J$17 ->  | H61: =(('LiFFT_v1.4.0'!$H$20-moment_cd_relationship!A60)*((moment_cd_relationship!B60-moment_cd_relationship!B61)/(moment_cd_relationship!A60-moment_cd_relationship!A61))+moment_cd_relationship!B60)*'LiFFT_v1.4.0'!$J$20 ->  | I61: =(('LiFFT_v1.4.0'!$H$23-moment_cd_relationship!A60)*((moment_cd_relationship!B60-moment_cd_relationship!B61)/(moment_cd_relationship!A60-moment_cd_relationship!A61))+moment_cd_relationship!B60)*'LiFFT_v1.4.0'!$J$23 ->  | J61: =(('LiFFT_v1.4.0'!$H$26-moment_cd_relationship!A60)*((moment_cd_relationship!B60-moment_cd_relationship!B61)/(moment_cd_relationship!A60-moment_cd_relationship!A61))+moment_cd_relationship!B60)*'LiFFT_v1.4.0'!$J$26 ->  | K61: =(('LiFFT_v1.4.0'!$H$29-moment_cd_relationship!A60)*((moment_cd_relationship!B60-moment_cd_relationship!B61)/(moment_cd_relationship!A60-moment_cd_relationship!A61))+moment_cd_relationship!B60)*'LiFFT_v1.4.0'!$J$29 ->  | L61: =(('LiFFT_v1.4.0'!$H$32-moment_cd_relationship!A60)*((moment_cd_relationship!B60-moment_cd_relationship!B61)/(moment_cd_relationship!A60-moment_cd_relationship!A61))+moment_cd_relationship!B60)*'LiFFT_v1.4.0'!$J$32 -> 
A62: 59 | B62: 3.1e-05 | C62: =(('LiFFT_v1.4.0'!$H$5-moment_cd_relationship!A61)*((moment_cd_relationship!B61-moment_cd_relationship!B62)/(moment_cd_relationship!A61-moment_cd_relationship!A62))+moment_cd_relationship!B61)*'LiFFT_v1.4.0'!$J$5 -> -0.0525 | D62: =(('LiFFT_v1.4.0'!$H$8-moment_cd_relationship!A61)*((moment_cd_relationship!B61-moment_cd_relationship!B62)/(moment_cd_relationship!A61-moment_cd_relationship!A62))+moment_cd_relationship!B61)*'LiFFT_v1.4.0'!$J$8 ->  | E62: =(('LiFFT_v1.4.0'!$H$11-moment_cd_relationship!A61)*((moment_cd_relationship!B61-moment_cd_relationship!B62)/(moment_cd_relationship!A61-moment_cd_relationship!A62))+moment_cd_relationship!B61)*'LiFFT_v1.4.0'!$J$11 ->  | F62: =(('LiFFT_v1.4.0'!$H$14-moment_cd_relationship!A61)*((moment_cd_relationship!B61-moment_cd_relationship!B62)/(moment_cd_relationship!A61-moment_cd_relationship!A62))+moment_cd_relationship!B61)*'LiFFT_v1.4.0'!$J$14 ->  | G62: =(('LiFFT_v1.4.0'!$H$17-moment_cd_relationship!A61)*((moment_cd_relationship!B61-moment_cd_relationship!B62)/(moment_cd_relationship!A61-moment_cd_relationship!A62))+moment_cd_relationship!B61)*'LiFFT_v1.4.0'!$J$17 ->  | H62: =(('LiFFT_v1.4.0'!$H$20-moment_cd_relationship!A61)*((moment_cd_relationship!B61-moment_cd_relationship!B62)/(moment_cd_relationship!A61-moment_cd_relationship!A62))+moment_cd_relationship!B61)*'LiFFT_v1.4.0'!$J$20 ->  | I62: =(('LiFFT_v1.4.0'!$H$23-moment_cd_relationship!A61)*((moment_cd_relationship!B61-moment_cd_relationship!B62)/(moment_cd_relationship!A61-moment_cd_relationship!A62))+moment_cd_relationship!B61)*'LiFFT_v1.4.0'!$J$23 ->  | J62: =(('LiFFT_v1.4.0'!$H$26-moment_cd_relationship!A61)*((moment_cd_relationship!B61-moment_cd_relationship!B62)/(moment_cd_relationship!A61-moment_cd_relationship!A62))+moment_cd_relationship!B61)*'LiFFT_v1.4.0'!$J$26 ->  | K62: =(('LiFFT_v1.4.0'!$H$29-moment_cd_relationship!A61)*((moment_cd_relationship!B61-moment_cd_relationship!B62)/(moment_cd_relationship!A61-moment_cd_relationship!A62))+moment_cd_relationship!B61)*'LiFFT_v1.4.0'!$J$29 ->  | L62: =(('LiFFT_v1.4.0'!$H$32-moment_cd_relationship!A61)*((moment_cd_relationship!B61-moment_cd_relationship!B62)/(moment_cd_relationship!A61-moment_cd_relationship!A62))+moment_cd_relationship!B61)*'LiFFT_v1.4.0'!$J$32 -> 
A63: 60 | B63: 3.27e-05 | C63: =(('LiFFT_v1.4.0'!$H$5-moment_cd_relationship!A62)*((moment_cd_relationship!B62-moment_cd_relationship!B63)/(moment_cd_relationship!A62-moment_cd_relationship!A63))+moment_cd_relationship!B62)*'LiFFT_v1.4.0'!$J$5 -> -0.0657 | D63: =(('LiFFT_v1.4.0'!$H$8-moment_cd_relationship!A62)*((moment_cd_relationship!B62-moment_cd_relationship!B63)/(moment_cd_relationship!A62-moment_cd_relationship!A63))+moment_cd_relationship!B62)*'LiFFT_v1.4.0'!$J$8 ->  | E63: =(('LiFFT_v1.4.0'!$H$11-moment_cd_relationship!A62)*((moment_cd_relationship!B62-moment_cd_relationship!B63)/(moment_cd_relationship!A62-moment_cd_relationship!A63))+moment_cd_relationship!B62)*'LiFFT_v1.4.0'!$J$11 ->  | F63: =(('LiFFT_v1.4.0'!$H$14-moment_cd_relationship!A62)*((moment_cd_relationship!B62-moment_cd_relationship!B63)/(moment_cd_relationship!A62-moment_cd_relationship!A63))+moment_cd_relationship!B62)*'LiFFT_v1.4.0'!$J$14 ->  | G63: =(('LiFFT_v1.4.0'!$H$17-moment_cd_relationship!A62)*((moment_cd_relationship!B62-moment_cd_relationship!B63)/(moment_cd_relationship!A62-moment_cd_relationship!A63))+moment_cd_relationship!B62)*'LiFFT_v1.4.0'!$J$17 ->  | H63: =(('LiFFT_v1.4.0'!$H$20-moment_cd_relationship!A62)*((moment_cd_relationship!B62-moment_cd_relationship!B63)/(moment_cd_relationship!A62-moment_cd_relationship!A63))+moment_cd_relationship!B62)*'LiFFT_v1.4.0'!$J$20 ->  | I63: =(('LiFFT_v1.4.0'!$H$23-moment_cd_relationship!A62)*((moment_cd_relationship!B62-moment_cd_relationship!B63)/(moment_cd_relationship!A62-moment_cd_relationship!A63))+moment_cd_relationship!B62)*'LiFFT_v1.4.0'!$J$23 ->  | J63: =(('LiFFT_v1.4.0'!$H$26-moment_cd_relationship!A62)*((moment_cd_relationship!B62-moment_cd_relationship!B63)/(moment_cd_relationship!A62-moment_cd_relationship!A63))+moment_cd_relationship!B62)*'LiFFT_v1.4.0'!$J$26 ->  | K63: =(('LiFFT_v1.4.0'!$H$29-moment_cd_relationship!A62)*((moment_cd_relationship!B62-moment_cd_relationship!B63)/(moment_cd_relationship!A62-moment_cd_relationship!A63))+moment_cd_relationship!B62)*'LiFFT_v1.4.0'!$J$29 ->  | L63: =(('LiFFT_v1.4.0'!$H$32-moment_cd_relationship!A62)*((moment_cd_relationship!B62-moment_cd_relationship!B63)/(moment_cd_relationship!A62-moment_cd_relationship!A63))+moment_cd_relationship!B62)*'LiFFT_v1.4.0'!$J$32 -> 
A64: 61 | B64: 3.43e-05 | C64: =(('LiFFT_v1.4.0'!$H$5-moment_cd_relationship!A63)*((moment_cd_relationship!B63-moment_cd_relationship!B64)/(moment_cd_relationship!A63-moment_cd_relationship!A64))+moment_cd_relationship!B63)*'LiFFT_v1.4.0'!$J$5 -> -0.05895 | D64: =(('LiFFT_v1.4.0'!$H$8-moment_cd_relationship!A63)*((moment_cd_relationship!B63-moment_cd_relationship!B64)/(moment_cd_relationship!A63-moment_cd_relationship!A64))+moment_cd_relationship!B63)*'LiFFT_v1.4.0'!$J$8 ->  | E64: =(('LiFFT_v1.4.0'!$H$11-moment_cd_relationship!A63)*((moment_cd_relationship!B63-moment_cd_relationship!B64)/(moment_cd_relationship!A63-moment_cd_relationship!A64))+moment_cd_relationship!B63)*'LiFFT_v1.4.0'!$J$11 ->  | F64: =(('LiFFT_v1.4.0'!$H$14-moment_cd_relationship!A63)*((moment_cd_relationship!B63-moment_cd_relationship!B64)/(moment_cd_relationship!A63-moment_cd_relationship!A64))+moment_cd_relationship!B63)*'LiFFT_v1.4.0'!$J$14 ->  | G64: =(('LiFFT_v1.4.0'!$H$17-moment_cd_relationship!A63)*((moment_cd_relationship!B63-moment_cd_relationship!B64)/(moment_cd_relationship!A63-moment_cd_relationship!A64))+moment_cd_relationship!B63)*'LiFFT_v1.4.0'!$J$17 ->  | H64: =(('LiFFT_v1.4.0'!$H$20-moment_cd_relationship!A63)*((moment_cd_relationship!B63-moment_cd_relationship!B64)/(moment_cd_relationship!A63-moment_cd_relationship!A64))+moment_cd_relationship!B63)*'LiFFT_v1.4.0'!$J$20 ->  | I64: =(('LiFFT_v1.4.0'!$H$23-moment_cd_relationship!A63)*((moment_cd_relationship!B63-moment_cd_relationship!B64)/(moment_cd_relationship!A63-moment_cd_relationship!A64))+moment_cd_relationship!B63)*'LiFFT_v1.4.0'!$J$23 ->  | J64: =(('LiFFT_v1.4.0'!$H$26-moment_cd_relationship!A63)*((moment_cd_relationship!B63-moment_cd_relationship!B64)/(moment_cd_relationship!A63-moment_cd_relationship!A64))+moment_cd_relationship!B63)*'LiFFT_v1.4.0'!$J$26 ->  | K64: =(('LiFFT_v1.4.0'!$H$29-moment_cd_relationship!A63)*((moment_cd_relationship!B63-moment_cd_relationship!B64)/(moment_cd_relationship!A63-moment_cd_relationship!A64))+moment_cd_relationship!B63)*'LiFFT_v1.4.0'!$J$29 ->  | L64: =(('LiFFT_v1.4.0'!$H$32-moment_cd_relationship!A63)*((moment_cd_relationship!B63-moment_cd_relationship!B64)/(moment_cd_relationship!A63-moment_cd_relationship!A64))+moment_cd_relationship!B63)*'LiFFT_v1.4.0'!$J$32 -> 
A65: 62 | B65: 3.61e-05 | C65: =(('LiFFT_v1.4.0'!$H$5-moment_cd_relationship!A64)*((moment_cd_relationship!B64-moment_cd_relationship!B65)/(moment_cd_relationship!A64-moment_cd_relationship!A65))+moment_cd_relationship!B64)*'LiFFT_v1.4.0'!$J$5 -> -0.07275 | D65: =(('LiFFT_v1.4.0'!$H$8-moment_cd_relationship!A64)*((moment_cd_relationship!B64-moment_cd_relationship!B65)/(moment_cd_relationship!A64-moment_cd_relationship!A65))+moment_cd_relationship!B64)*'LiFFT_v1.4.0'!$J$8 ->  | E65: =(('LiFFT_v1.4.0'!$H$11-moment_cd_relationship!A64)*((moment_cd_relationship!B64-moment_cd_relationship!B65)/(moment_cd_relationship!A64-moment_cd_relationship!A65))+moment_cd_relationship!B64)*'LiFFT_v1.4.0'!$J$11 ->  | F65: =(('LiFFT_v1.4.0'!$H$14-moment_cd_relationship!A64)*((moment_cd_relationship!B64-moment_cd_relationship!B65)/(moment_cd_relationship!A64-moment_cd_relationship!A65))+moment_cd_relationship!B64)*'LiFFT_v1.4.0'!$J$14 ->  | G65: =(('LiFFT_v1.4.0'!$H$17-moment_cd_relationship!A64)*((moment_cd_relationship!B64-moment_cd_relationship!B65)/(moment_cd_relationship!A64-moment_cd_relationship!A65))+moment_cd_relationship!B64)*'LiFFT_v1.4.0'!$J$17 ->  | H65: =(('LiFFT_v1.4.0'!$H$20-moment_cd_relationship!A64)*((moment_cd_relationship!B64-moment_cd_relationship!B65)/(moment_cd_relationship!A64-moment_cd_relationship!A65))+moment_cd_relationship!B64)*'LiFFT_v1.4.0'!$J$20 ->  | I65: =(('LiFFT_v1.4.0'!$H$23-moment_cd_relationship!A64)*((moment_cd_relationship!B64-moment_cd_relationship!B65)/(moment_cd_relationship!A64-moment_cd_relationship!A65))+moment_cd_relationship!B64)*'LiFFT_v1.4.0'!$J$23 ->  | J65: =(('LiFFT_v1.4.0'!$H$26-moment_cd_relationship!A64)*((moment_cd_relationship!B64-moment_cd_relationship!B65)/(moment_cd_relationship!A64-moment_cd_relationship!A65))+moment_cd_relationship!B64)*'LiFFT_v1.4.0'!$J$26 ->  | K65: =(('LiFFT_v1.4.0'!$H$29-moment_cd_relationship!A64)*((moment_cd_relationship!B64-moment_cd_relationship!B65)/(moment_cd_relationship!A64-moment_cd_relationship!A65))+moment_cd_relationship!B64)*'LiFFT_v1.4.0'!$J$29 ->  | L65: =(('LiFFT_v1.4.0'!$H$32-moment_cd_relationship!A64)*((moment_cd_relationship!B64-moment_cd_relationship!B65)/(moment_cd_relationship!A64-moment_cd_relationship!A65))+moment_cd_relationship!B64)*'LiFFT_v1.4.0'!$J$32 -> 
A66: 63 | B66: 3.8e-05 | C66: =(('LiFFT_v1.4.0'!$H$5-moment_cd_relationship!A65)*((moment_cd_relationship!B65-moment_cd_relationship!B66)/(moment_cd_relationship!A65-moment_cd_relationship!A66))+moment_cd_relationship!B65)*'LiFFT_v1.4.0'!$J$5 -> -0.0798 | D66: =(('LiFFT_v1.4.0'!$H$8-moment_cd_relationship!A65)*((moment_cd_relationship!B65-moment_cd_relationship!B66)/(moment_cd_relationship!A65-moment_cd_relationship!A66))+moment_cd_relationship!B65)*'LiFFT_v1.4.0'!$J$8 ->  | E66: =(('LiFFT_v1.4.0'!$H$11-moment_cd_relationship!A65)*((moment_cd_relationship!B65-moment_cd_relationship!B66)/(moment_cd_relationship!A65-moment_cd_relationship!A66))+moment_cd_relationship!B65)*'LiFFT_v1.4.0'!$J$11 ->  | F66: =(('LiFFT_v1.4.0'!$H$14-moment_cd_relationship!A65)*((moment_cd_relationship!B65-moment_cd_relationship!B66)/(moment_cd_relationship!A65-moment_cd_relationship!A66))+moment_cd_relationship!B65)*'LiFFT_v1.4.0'!$J$14 ->  | G66: =(('LiFFT_v1.4.0'!$H$17-moment_cd_relationship!A65)*((moment_cd_relationship!B65-moment_cd_relationship!B66)/(moment_cd_relationship!A65-moment_cd_relationship!A66))+moment_cd_relationship!B65)*'LiFFT_v1.4.0'!$J$17 ->  | H66: =(('LiFFT_v1.4.0'!$H$20-moment_cd_relationship!A65)*((moment_cd_relationship!B65-moment_cd_relationship!B66)/(moment_cd_relationship!A65-moment_cd_relationship!A66))+moment_cd_relationship!B65)*'LiFFT_v1.4.0'!$J$20 ->  | I66: =(('LiFFT_v1.4.0'!$H$23-moment_cd_relationship!A65)*((moment_cd_relationship!B65-moment_cd_relationship!B66)/(moment_cd_relationship!A65-moment_cd_relationship!A66))+moment_cd_relationship!B65)*'LiFFT_v1.4.0'!$J$23 ->  | J66: =(('LiFFT_v1.4.0'!$H$26-moment_cd_relationship!A65)*((moment_cd_relationship!B65-moment_cd_relationship!B66)/(moment_cd_relationship!A65-moment_cd_relationship!A66))+moment_cd_relationship!B65)*'LiFFT_v1.4.0'!$J$26 ->  | K66: =(('LiFFT_v1.4.0'!$H$29-moment_cd_relationship!A65)*((moment_cd_relationship!B65-moment_cd_relationship!B66)/(moment_cd_relationship!A65-moment_cd_relationship!A66))+moment_cd_relationship!B65)*'LiFFT_v1.4.0'!$J$29 ->  | L66: =(('LiFFT_v1.4.0'!$H$32-moment_cd_relationship!A65)*((moment_cd_relationship!B65-moment_cd_relationship!B66)/(moment_cd_relationship!A65-moment_cd_relationship!A66))+moment_cd_relationship!B65)*'LiFFT_v1.4.0'!$J$32 -> 
A67: 64 | B67: 4e-05 | C67: =(('LiFFT_v1.4.0'!$H$5-moment_cd_relationship!A66)*((moment_cd_relationship!B66-moment_cd_relationship!B67)/(moment_cd_relationship!A66-moment_cd_relationship!A67))+moment_cd_relationship!B66)*'LiFFT_v1.4.0'!$J$5 -> -0.087 | D67: =(('LiFFT_v1.4.0'!$H$8-moment_cd_relationship!A66)*((moment_cd_relationship!B66-moment_cd_relationship!B67)/(moment_cd_relationship!A66-moment_cd_relationship!A67))+moment_cd_relationship!B66)*'LiFFT_v1.4.0'!$J$8 ->  | E67: =(('LiFFT_v1.4.0'!$H$11-moment_cd_relationship!A66)*((moment_cd_relationship!B66-moment_cd_relationship!B67)/(moment_cd_relationship!A66-moment_cd_relationship!A67))+moment_cd_relationship!B66)*'LiFFT_v1.4.0'!$J$11 ->  | F67: =(('LiFFT_v1.4.0'!$H$14-moment_cd_relationship!A66)*((moment_cd_relationship!B66-moment_cd_relationship!B67)/(moment_cd_relationship!A66-moment_cd_relationship!A67))+moment_cd_relationship!B66)*'LiFFT_v1.4.0'!$J$14 ->  | G67: =(('LiFFT_v1.4.0'!$H$17-moment_cd_relationship!A66)*((moment_cd_relationship!B66-moment_cd_relationship!B67)/(moment_cd_relationship!A66-moment_cd_relationship!A67))+moment_cd_relationship!B66)*'LiFFT_v1.4.0'!$J$17 ->  | H67: =(('LiFFT_v1.4.0'!$H$20-moment_cd_relationship!A66)*((moment_cd_relationship!B66-moment_cd_relationship!B67)/(moment_cd_relationship!A66-moment_cd_relationship!A67))+moment_cd_relationship!B66)*'LiFFT_v1.4.0'!$J$20 ->  | I67: =(('LiFFT_v1.4.0'!$H$23-moment_cd_relationship!A66)*((moment_cd_relationship!B66-moment_cd_relationship!B67)/(moment_cd_relationship!A66-moment_cd_relationship!A67))+moment_cd_relationship!B66)*'LiFFT_v1.4.0'!$J$23 ->  | J67: =(('LiFFT_v1.4.0'!$H$26-moment_cd_relationship!A66)*((moment_cd_relationship!B66-moment_cd_relationship!B67)/(moment_cd_relationship!A66-moment_cd_relationship!A67))+moment_cd_relationship!B66)*'LiFFT_v1.4.0'!$J$26 ->  | K67: =(('LiFFT_v1.4.0'!$H$29-moment_cd_relationship!A66)*((moment_cd_relationship!B66-moment_cd_relationship!B67)/(moment_cd_relationship!A66-moment_cd_relationship!A67))+moment_cd_relationship!B66)*'LiFFT_v1.4.0'!$J$29 ->  | L67: =(('LiFFT_v1.4.0'!$H$32-moment_cd_relationship!A66)*((moment_cd_relationship!B66-moment_cd_relationship!B67)/(moment_cd_relationship!A66-moment_cd_relationship!A67))+moment_cd_relationship!B66)*'LiFFT_v1.4.0'!$J$32 -> 
A68: 65 | B68: 4.21e-05 | C68: =(('LiFFT_v1.4.0'!$H$5-moment_cd_relationship!A67)*((moment_cd_relationship!B67-moment_cd_relationship!B68)/(moment_cd_relationship!A67-moment_cd_relationship!A68))+moment_cd_relationship!B67)*'LiFFT_v1.4.0'!$J$5 -> -0.09435 | D68: =(('LiFFT_v1.4.0'!$H$8-moment_cd_relationship!A67)*((moment_cd_relationship!B67-moment_cd_relationship!B68)/(moment_cd_relationship!A67-moment_cd_relationship!A68))+moment_cd_relationship!B67)*'LiFFT_v1.4.0'!$J$8 ->  | E68: =(('LiFFT_v1.4.0'!$H$11-moment_cd_relationship!A67)*((moment_cd_relationship!B67-moment_cd_relationship!B68)/(moment_cd_relationship!A67-moment_cd_relationship!A68))+moment_cd_relationship!B67)*'LiFFT_v1.4.0'!$J$11 ->  | F68: =(('LiFFT_v1.4.0'!$H$14-moment_cd_relationship!A67)*((moment_cd_relationship!B67-moment_cd_relationship!B68)/(moment_cd_relationship!A67-moment_cd_relationship!A68))+moment_cd_relationship!B67)*'LiFFT_v1.4.0'!$J$14 ->  | G68: =(('LiFFT_v1.4.0'!$H$17-moment_cd_relationship!A67)*((moment_cd_relationship!B67-moment_cd_relationship!B68)/(moment_cd_relationship!A67-moment_cd_relationship!A68))+moment_cd_relationship!B67)*'LiFFT_v1.4.0'!$J$17 ->  | H68: =(('LiFFT_v1.4.0'!$H$20-moment_cd_relationship!A67)*((moment_cd_relationship!B67-moment_cd_relationship!B68)/(moment_cd_relationship!A67-moment_cd_relationship!A68))+moment_cd_relationship!B67)*'LiFFT_v1.4.0'!$J$20 ->  | I68: =(('LiFFT_v1.4.0'!$H$23-moment_cd_relationship!A67)*((moment_cd_relationship!B67-moment_cd_relationship!B68)/(moment_cd_relationship!A67-moment_cd_relationship!A68))+moment_cd_relationship!B67)*'LiFFT_v1.4.0'!$J$23 ->  | J68: =(('LiFFT_v1.4.0'!$H$26-moment_cd_relationship!A67)*((moment_cd_relationship!B67-moment_cd_relationship!B68)/(moment_cd_relationship!A67-moment_cd_relationship!A68))+moment_cd_relationship!B67)*'LiFFT_v1.4.0'!$J$26 ->  | K68: =(('LiFFT_v1.4.0'!$H$29-moment_cd_relationship!A67)*((moment_cd_relationship!B67-moment_cd_relationship!B68)/(moment_cd_relationship!A67-moment_cd_relationship!A68))+moment_cd_relationship!B67)*'LiFFT_v1.4.0'!$J$29 ->  | L68: =(('LiFFT_v1.4.0'!$H$32-moment_cd_relationship!A67)*((moment_cd_relationship!B67-moment_cd_relationship!B68)/(moment_cd_relationship!A67-moment_cd_relationship!A68))+moment_cd_relationship!B67)*'LiFFT_v1.4.0'!$J$32 -> 
A69: 66 | B69: 4.43e-05 | C69: =(('LiFFT_v1.4.0'!$H$5-moment_cd_relationship!A68)*((moment_cd_relationship!B68-moment_cd_relationship!B69)/(moment_cd_relationship!A68-moment_cd_relationship!A69))+moment_cd_relationship!B68)*'LiFFT_v1.4.0'!$J$5 -> -0.10185 | D69: =(('LiFFT_v1.4.0'!$H$8-moment_cd_relationship!A68)*((moment_cd_relationship!B68-moment_cd_relationship!B69)/(moment_cd_relationship!A68-moment_cd_relationship!A69))+moment_cd_relationship!B68)*'LiFFT_v1.4.0'!$J$8 ->  | E69: =(('LiFFT_v1.4.0'!$H$11-moment_cd_relationship!A68)*((moment_cd_relationship!B68-moment_cd_relationship!B69)/(moment_cd_relationship!A68-moment_cd_relationship!A69))+moment_cd_relationship!B68)*'LiFFT_v1.4.0'!$J$11 ->  | F69: =(('LiFFT_v1.4.0'!$H$14-moment_cd_relationship!A68)*((moment_cd_relationship!B68-moment_cd_relationship!B69)/(moment_cd_relationship!A68-moment_cd_relationship!A69))+moment_cd_relationship!B68)*'LiFFT_v1.4.0'!$J$14 ->  | G69: =(('LiFFT_v1.4.0'!$H$17-moment_cd_relationship!A68)*((moment_cd_relationship!B68-moment_cd_relationship!B69)/(moment_cd_relationship!A68-moment_cd_relationship!A69))+moment_cd_relationship!B68)*'LiFFT_v1.4.0'!$J$17 ->  | H69: =(('LiFFT_v1.4.0'!$H$20-moment_cd_relationship!A68)*((moment_cd_relationship!B68-moment_cd_relationship!B69)/(moment_cd_relationship!A68-moment_cd_relationship!A69))+moment_cd_relationship!B68)*'LiFFT_v1.4.0'!$J$20 ->  | I69: =(('LiFFT_v1.4.0'!$H$23-moment_cd_relationship!A68)*((moment_cd_relationship!B68-moment_cd_relationship!B69)/(moment_cd_relationship!A68-moment_cd_relationship!A69))+moment_cd_relationship!B68)*'LiFFT_v1.4.0'!$J$23 ->  | J69: =(('LiFFT_v1.4.0'!$H$26-moment_cd_relationship!A68)*((moment_cd_relationship!B68-moment_cd_relationship!B69)/(moment_cd_relationship!A68-moment_cd_relationship!A69))+moment_cd_relationship!B68)*'LiFFT_v1.4.0'!$J$26 ->  | K69: =(('LiFFT_v1.4.0'!$H$29-moment_cd_relationship!A68)*((moment_cd_relationship!B68-moment_cd_relationship!B69)/(moment_cd_relationship!A68-moment_cd_relationship!A69))+moment_cd_relationship!B68)*'LiFFT_v1.4.0'!$J$29 ->  | L69: =(('LiFFT_v1.4.0'!$H$32-moment_cd_relationship!A68)*((moment_cd_relationship!B68-moment_cd_relationship!B69)/(moment_cd_relationship!A68-moment_cd_relationship!A69))+moment_cd_relationship!B68)*'LiFFT_v1.4.0'!$J$32 -> 
A70: 67 | B70: 4.66e-05 | C70: =(('LiFFT_v1.4.0'!$H$5-moment_cd_relationship!A69)*((moment_cd_relationship!B69-moment_cd_relationship!B70)/(moment_cd_relationship!A69-moment_cd_relationship!A70))+moment_cd_relationship!B69)*'LiFFT_v1.4.0'!$J$5 -> -0.1095 | D70: =(('LiFFT_v1.4.0'!$H$8-moment_cd_relationship!A69)*((moment_cd_relationship!B69-moment_cd_relationship!B70)/(moment_cd_relationship!A69-moment_cd_relationship!A70))+moment_cd_relationship!B69)*'LiFFT_v1.4.0'!$J$8 ->  | E70: =(('LiFFT_v1.4.0'!$H$11-moment_cd_relationship!A69)*((moment_cd_relationship!B69-moment_cd_relationship!B70)/(moment_cd_relationship!A69-moment_cd_relationship!A70))+moment_cd_relationship!B69)*'LiFFT_v1.4.0'!$J$11 ->  | F70: =(('LiFFT_v1.4.0'!$H$14-moment_cd_relationship!A69)*((moment_cd_relationship!B69-moment_cd_relationship!B70)/(moment_cd_relationship!A69-moment_cd_relationship!A70))+moment_cd_relationship!B69)*'LiFFT_v1.4.0'!$J$14 ->  | G70: =(('LiFFT_v1.4.0'!$H$17-moment_cd_relationship!A69)*((moment_cd_relationship!B69-moment_cd_relationship!B70)/(moment_cd_relationship!A69-moment_cd_relationship!A70))+moment_cd_relationship!B69)*'LiFFT_v1.4.0'!$J$17 ->  | H70: =(('LiFFT_v1.4.0'!$H$20-moment_cd_relationship!A69)*((moment_cd_relationship!B69-moment_cd_relationship!B70)/(moment_cd_relationship!A69-moment_cd_relationship!A70))+moment_cd_relationship!B69)*'LiFFT_v1.4.0'!$J$20 ->  | I70: =(('LiFFT_v1.4.0'!$H$23-moment_cd_relationship!A69)*((moment_cd_relationship!B69-moment_cd_relationship!B70)/(moment_cd_relationship!A69-moment_cd_relationship!A70))+moment_cd_relationship!B69)*'LiFFT_v1.4.0'!$J$23 ->  | J70: =(('LiFFT_v1.4.0'!$H$26-moment_cd_relationship!A69)*((moment_cd_relationship!B69-moment_cd_relationship!B70)/(moment_cd_relationship!A69-moment_cd_relationship!A70))+moment_cd_relationship!B69)*'LiFFT_v1.4.0'!$J$26 ->  | K70: =(('LiFFT_v1.4.0'!$H$29-moment_cd_relationship!A69)*((moment_cd_relationship!B69-moment_cd_relationship!B70)/(moment_cd_relationship!A69-moment_cd_relationship!A70))+moment_cd_relationship!B69)*'LiFFT_v1.4.0'!$J$29 ->  | L70: =(('LiFFT_v1.4.0'!$H$32-moment_cd_relationship!A69)*((moment_cd_relationship!B69-moment_cd_relationship!B70)/(moment_cd_relationship!A69-moment_cd_relationship!A70))+moment_cd_relationship!B69)*'LiFFT_v1.4.0'!$J$32 -> 
A71: 68 | B71: 4.9e-05 | C71: =(('LiFFT_v1.4.0'!$H$5-moment_cd_relationship!A70)*((moment_cd_relationship!B70-moment_cd_relationship!B71)/(moment_cd_relationship!A70-moment_cd_relationship!A71))+moment_cd_relationship!B70)*'LiFFT_v1.4.0'!$J$5 -> -0.1173 | D71: =(('LiFFT_v1.4.0'!$H$8-moment_cd_relationship!A70)*((moment_cd_relationship!B70-moment_cd_relationship!B71)/(moment_cd_relationship!A70-moment_cd_relationship!A71))+moment_cd_relationship!B70)*'LiFFT_v1.4.0'!$J$8 ->  | E71: =(('LiFFT_v1.4.0'!$H$11-moment_cd_relationship!A70)*((moment_cd_relationship!B70-moment_cd_relationship!B71)/(moment_cd_relationship!A70-moment_cd_relationship!A71))+moment_cd_relationship!B70)*'LiFFT_v1.4.0'!$J$11 ->  | F71: =(('LiFFT_v1.4.0'!$H$14-moment_cd_relationship!A70)*((moment_cd_relationship!B70-moment_cd_relationship!B71)/(moment_cd_relationship!A70-moment_cd_relationship!A71))+moment_cd_relationship!B70)*'LiFFT_v1.4.0'!$J$14 ->  | G71: =(('LiFFT_v1.4.0'!$H$17-moment_cd_relationship!A70)*((moment_cd_relationship!B70-moment_cd_relationship!B71)/(moment_cd_relationship!A70-moment_cd_relationship!A71))+moment_cd_relationship!B70)*'LiFFT_v1.4.0'!$J$17 ->  | H71: =(('LiFFT_v1.4.0'!$H$20-moment_cd_relationship!A70)*((moment_cd_relationship!B70-moment_cd_relationship!B71)/(moment_cd_relationship!A70-moment_cd_relationship!A71))+moment_cd_relationship!B70)*'LiFFT_v1.4.0'!$J$20 ->  | I71: =(('LiFFT_v1.4.0'!$H$23-moment_cd_relationship!A70)*((moment_cd_relationship!B70-moment_cd_relationship!B71)/(moment_cd_relationship!A70-moment_cd_relationship!A71))+moment_cd_relationship!B70)*'LiFFT_v1.4.0'!$J$23 ->  | J71: =(('LiFFT_v1.4.0'!$H$26-moment_cd_relationship!A70)*((moment_cd_relationship!B70-moment_cd_relationship!B71)/(moment_cd_relationship!A70-moment_cd_relationship!A71))+moment_cd_relationship!B70)*'LiFFT_v1.4.0'!$J$26 ->  | K71: =(('LiFFT_v1.4.0'!$H$29-moment_cd_relationship!A70)*((moment_cd_relationship!B70-moment_cd_relationship!B71)/(moment_cd_relationship!A70-moment_cd_relationship!A71))+moment_cd_relationship!B70)*'LiFFT_v1.4.0'!$J$29 ->  | L71: =(('LiFFT_v1.4.0'!$H$32-moment_cd_relationship!A70)*((moment_cd_relationship!B70-moment_cd_relationship!B71)/(moment_cd_relationship!A70-moment_cd_relationship!A71))+moment_cd_relationship!B70)*'LiFFT_v1.4.0'!$J$32 -> 
A72: 69 | B72: 5.16e-05 | C72: =(('LiFFT_v1.4.0'!$H$5-moment_cd_relationship!A71)*((moment_cd_relationship!B71-moment_cd_relationship!B72)/(moment_cd_relationship!A71-moment_cd_relationship!A72))+moment_cd_relationship!B71)*'LiFFT_v1.4.0'!$J$5 -> -0.1332 | D72: =(('LiFFT_v1.4.0'!$H$8-moment_cd_relationship!A71)*((moment_cd_relationship!B71-moment_cd_relationship!B72)/(moment_cd_relationship!A71-moment_cd_relationship!A72))+moment_cd_relationship!B71)*'LiFFT_v1.4.0'!$J$8 ->  | E72: =(('LiFFT_v1.4.0'!$H$11-moment_cd_relationship!A71)*((moment_cd_relationship!B71-moment_cd_relationship!B72)/(moment_cd_relationship!A71-moment_cd_relationship!A72))+moment_cd_relationship!B71)*'LiFFT_v1.4.0'!$J$11 ->  | F72: =(('LiFFT_v1.4.0'!$H$14-moment_cd_relationship!A71)*((moment_cd_relationship!B71-moment_cd_relationship!B72)/(moment_cd_relationship!A71-moment_cd_relationship!A72))+moment_cd_relationship!B71)*'LiFFT_v1.4.0'!$J$14 ->  | G72: =(('LiFFT_v1.4.0'!$H$17-moment_cd_relationship!A71)*((moment_cd_relationship!B71-moment_cd_relationship!B72)/(moment_cd_relationship!A71-moment_cd_relationship!A72))+moment_cd_relationship!B71)*'LiFFT_v1.4.0'!$J$17 ->  | H72: =(('LiFFT_v1.4.0'!$H$20-moment_cd_relationship!A71)*((moment_cd_relationship!B71-moment_cd_relationship!B72)/(moment_cd_relationship!A71-moment_cd_relationship!A72))+moment_cd_relationship!B71)*'LiFFT_v1.4.0'!$J$20 ->  | I72: =(('LiFFT_v1.4.0'!$H$23-moment_cd_relationship!A71)*((moment_cd_relationship!B71-moment_cd_relationship!B72)/(moment_cd_relationship!A71-moment_cd_relationship!A72))+moment_cd_relationship!B71)*'LiFFT_v1.4.0'!$J$23 ->  | J72: =(('LiFFT_v1.4.0'!$H$26-moment_cd_relationship!A71)*((moment_cd_relationship!B71-moment_cd_relationship!B72)/(moment_cd_relationship!A71-moment_cd_relationship!A72))+moment_cd_relationship!B71)*'LiFFT_v1.4.0'!$J$26 ->  | K72: =(('LiFFT_v1.4.0'!$H$29-moment_cd_relationship!A71)*((moment_cd_relationship!B71-moment_cd_relationship!B72)/(moment_cd_relationship!A71-moment_cd_relationship!A72))+moment_cd_relationship!B71)*'LiFFT_v1.4.0'!$J$29 ->  | L72: =(('LiFFT_v1.4.0'!$H$32-moment_cd_relationship!A71)*((moment_cd_relationship!B71-moment_cd_relationship!B72)/(moment_cd_relationship!A71-moment_cd_relationship!A72))+moment_cd_relationship!B71)*'LiFFT_v1.4.0'!$J$32 -> 
A73: 70 | B73: 5.42e-05 | C73: =(('LiFFT_v1.4.0'!$H$5-moment_cd_relationship!A72)*((moment_cd_relationship!B72-moment_cd_relationship!B73)/(moment_cd_relationship!A72-moment_cd_relationship!A73))+moment_cd_relationship!B72)*'LiFFT_v1.4.0'!$J$5 -> -0.1332 | D73: =(('LiFFT_v1.4.0'!$H$8-moment_cd_relationship!A72)*((moment_cd_relationship!B72-moment_cd_relationship!B73)/(moment_cd_relationship!A72-moment_cd_relationship!A73))+moment_cd_relationship!B72)*'LiFFT_v1.4.0'!$J$8 ->  | E73: =(('LiFFT_v1.4.0'!$H$11-moment_cd_relationship!A72)*((moment_cd_relationship!B72-moment_cd_relationship!B73)/(moment_cd_relationship!A72-moment_cd_relationship!A73))+moment_cd_relationship!B72)*'LiFFT_v1.4.0'!$J$11 ->  | F73: =(('LiFFT_v1.4.0'!$H$14-moment_cd_relationship!A72)*((moment_cd_relationship!B72-moment_cd_relationship!B73)/(moment_cd_relationship!A72-moment_cd_relationship!A73))+moment_cd_relationship!B72)*'LiFFT_v1.4.0'!$J$14 ->  | G73: =(('LiFFT_v1.4.0'!$H$17-moment_cd_relationship!A72)*((moment_cd_relationship!B72-moment_cd_relationship!B73)/(moment_cd_relationship!A72-moment_cd_relationship!A73))+moment_cd_relationship!B72)*'LiFFT_v1.4.0'!$J$17 ->  | H73: =(('LiFFT_v1.4.0'!$H$20-moment_cd_relationship!A72)*((moment_cd_relationship!B72-moment_cd_relationship!B73)/(moment_cd_relationship!A72-moment_cd_relationship!A73))+moment_cd_relationship!B72)*'LiFFT_v1.4.0'!$J$20 ->  | I73: =(('LiFFT_v1.4.0'!$H$23-moment_cd_relationship!A72)*((moment_cd_relationship!B72-moment_cd_relationship!B73)/(moment_cd_relationship!A72-moment_cd_relationship!A73))+moment_cd_relationship!B72)*'LiFFT_v1.4.0'!$J$23 ->  | J73: =(('LiFFT_v1.4.0'!$H$26-moment_cd_relationship!A72)*((moment_cd_relationship!B72-moment_cd_relationship!B73)/(moment_cd_relationship!A72-moment_cd_relationship!A73))+moment_cd_relationship!B72)*'LiFFT_v1.4.0'!$J$26 ->  | K73: =(('LiFFT_v1.4.0'!$H$29-moment_cd_relationship!A72)*((moment_cd_relationship!B72-moment_cd_relationship!B73)/(moment_cd_relationship!A72-moment_cd_relationship!A73))+moment_cd_relationship!B72)*'LiFFT_v1.4.0'!$J$29 ->  | L73: =(('LiFFT_v1.4.0'!$H$32-moment_cd_relationship!A72)*((moment_cd_relationship!B72-moment_cd_relationship!B73)/(moment_cd_relationship!A72-moment_cd_relationship!A73))+moment_cd_relationship!B72)*'LiFFT_v1.4.0'!$J$32 -> 
A74: 71 | B74: 5.71e-05 | C74: =(('LiFFT_v1.4.0'!$H$5-moment_cd_relationship!A73)*((moment_cd_relationship!B73-moment_cd_relationship!B74)/(moment_cd_relationship!A73-moment_cd_relationship!A74))+moment_cd_relationship!B73)*'LiFFT_v1.4.0'!$J$5 -> -0.15795 | D74: =(('LiFFT_v1.4.0'!$H$8-moment_cd_relationship!A73)*((moment_cd_relationship!B73-moment_cd_relationship!B74)/(moment_cd_relationship!A73-moment_cd_relationship!A74))+moment_cd_relationship!B73)*'LiFFT_v1.4.0'!$J$8 ->  | E74: =(('LiFFT_v1.4.0'!$H$11-moment_cd_relationship!A73)*((moment_cd_relationship!B73-moment_cd_relationship!B74)/(moment_cd_relationship!A73-moment_cd_relationship!A74))+moment_cd_relationship!B73)*'LiFFT_v1.4.0'!$J$11 ->  | F74: =(('LiFFT_v1.4.0'!$H$14-moment_cd_relationship!A73)*((moment_cd_relationship!B73-moment_cd_relationship!B74)/(moment_cd_relationship!A73-moment_cd_relationship!A74))+moment_cd_relationship!B73)*'LiFFT_v1.4.0'!$J$14 ->  | G74: =(('LiFFT_v1.4.0'!$H$17-moment_cd_relationship!A73)*((moment_cd_relationship!B73-moment_cd_relationship!B74)/(moment_cd_relationship!A73-moment_cd_relationship!A74))+moment_cd_relationship!B73)*'LiFFT_v1.4.0'!$J$17 ->  | H74: =(('LiFFT_v1.4.0'!$H$20-moment_cd_relationship!A73)*((moment_cd_relationship!B73-moment_cd_relationship!B74)/(moment_cd_relationship!A73-moment_cd_relationship!A74))+moment_cd_relationship!B73)*'LiFFT_v1.4.0'!$J$20 ->  | I74: =(('LiFFT_v1.4.0'!$H$23-moment_cd_relationship!A73)*((moment_cd_relationship!B73-moment_cd_relationship!B74)/(moment_cd_relationship!A73-moment_cd_relationship!A74))+moment_cd_relationship!B73)*'LiFFT_v1.4.0'!$J$23 ->  | J74: =(('LiFFT_v1.4.0'!$H$26-moment_cd_relationship!A73)*((moment_cd_relationship!B73-moment_cd_relationship!B74)/(moment_cd_relationship!A73-moment_cd_relationship!A74))+moment_cd_relationship!B73)*'LiFFT_v1.4.0'!$J$26 ->  | K74: =(('LiFFT_v1.4.0'!$H$29-moment_cd_relationship!A73)*((moment_cd_relationship!B73-moment_cd_relationship!B74)/(moment_cd_relationship!A73-moment_cd_relationship!A74))+moment_cd_relationship!B73)*'LiFFT_v1.4.0'!$J$29 ->  | L74: =(('LiFFT_v1.4.0'!$H$32-moment_cd_relationship!A73)*((moment_cd_relationship!B73-moment_cd_relationship!B74)/(moment_cd_relationship!A73-moment_cd_relationship!A74))+moment_cd_relationship!B73)*'LiFFT_v1.4.0'!$J$32 -> 
A75: 72 | B75: 6e-05 | C75: =(('LiFFT_v1.4.0'!$H$5-moment_cd_relationship!A74)*((moment_cd_relationship!B74-moment_cd_relationship!B75)/(moment_cd_relationship!A74-moment_cd_relationship!A75))+moment_cd_relationship!B74)*'LiFFT_v1.4.0'!$J$5 -> -0.15795 | D75: =(('LiFFT_v1.4.0'!$H$8-moment_cd_relationship!A74)*((moment_cd_relationship!B74-moment_cd_relationship!B75)/(moment_cd_relationship!A74-moment_cd_relationship!A75))+moment_cd_relationship!B74)*'LiFFT_v1.4.0'!$J$8 ->  | E75: =(('LiFFT_v1.4.0'!$H$11-moment_cd_relationship!A74)*((moment_cd_relationship!B74-moment_cd_relationship!B75)/(moment_cd_relationship!A74-moment_cd_relationship!A75))+moment_cd_relationship!B74)*'LiFFT_v1.4.0'!$J$11 ->  | F75: =(('LiFFT_v1.4.0'!$H$14-moment_cd_relationship!A74)*((moment_cd_relationship!B74-moment_cd_relationship!B75)/(moment_cd_relationship!A74-moment_cd_relationship!A75))+moment_cd_relationship!B74)*'LiFFT_v1.4.0'!$J$14 ->  | G75: =(('LiFFT_v1.4.0'!$H$17-moment_cd_relationship!A74)*((moment_cd_relationship!B74-moment_cd_relationship!B75)/(moment_cd_relationship!A74-moment_cd_relationship!A75))+moment_cd_relationship!B74)*'LiFFT_v1.4.0'!$J$17 ->  | H75: =(('LiFFT_v1.4.0'!$H$20-moment_cd_relationship!A74)*((moment_cd_relationship!B74-moment_cd_relationship!B75)/(moment_cd_relationship!A74-moment_cd_relationship!A75))+moment_cd_relationship!B74)*'LiFFT_v1.4.0'!$J$20 ->  | I75: =(('LiFFT_v1.4.0'!$H$23-moment_cd_relationship!A74)*((moment_cd_relationship!B74-moment_cd_relationship!B75)/(moment_cd_relationship!A74-moment_cd_relationship!A75))+moment_cd_relationship!B74)*'LiFFT_v1.4.0'!$J$23 ->  | J75: =(('LiFFT_v1.4.0'!$H$26-moment_cd_relationship!A74)*((moment_cd_relationship!B74-moment_cd_relationship!B75)/(moment_cd_relationship!A74-moment_cd_relationship!A75))+moment_cd_relationship!B74)*'LiFFT_v1.4.0'!$J$26 ->  | K75: =(('LiFFT_v1.4.0'!$H$29-moment_cd_relationship!A74)*((moment_cd_relationship!B74-moment_cd_relationship!B75)/(moment_cd_relationship!A74-moment_cd_relationship!A75))+moment_cd_relationship!B74)*'LiFFT_v1.4.0'!$J$29 ->  | L75: =(('LiFFT_v1.4.0'!$H$32-moment_cd_relationship!A74)*((moment_cd_relationship!B74-moment_cd_relationship!B75)/(moment_cd_relationship!A74-moment_cd_relationship!A75))+moment_cd_relationship!B74)*'LiFFT_v1.4.0'!$J$32 -> 
A76: 73 | B76: 6.32e-05 | C76: =(('LiFFT_v1.4.0'!$H$5-moment_cd_relationship!A75)*((moment_cd_relationship!B75-moment_cd_relationship!B76)/(moment_cd_relationship!A75-moment_cd_relationship!A76))+moment_cd_relationship!B75)*'LiFFT_v1.4.0'!$J$5 -> -0.1836 | D76: =(('LiFFT_v1.4.0'!$H$8-moment_cd_relationship!A75)*((moment_cd_relationship!B75-moment_cd_relationship!B76)/(moment_cd_relationship!A75-moment_cd_relationship!A76))+moment_cd_relationship!B75)*'LiFFT_v1.4.0'!$J$8 ->  | E76: =(('LiFFT_v1.4.0'!$H$11-moment_cd_relationship!A75)*((moment_cd_relationship!B75-moment_cd_relationship!B76)/(moment_cd_relationship!A75-moment_cd_relationship!A76))+moment_cd_relationship!B75)*'LiFFT_v1.4.0'!$J$11 ->  | F76: =(('LiFFT_v1.4.0'!$H$14-moment_cd_relationship!A75)*((moment_cd_relationship!B75-moment_cd_relationship!B76)/(moment_cd_relationship!A75-moment_cd_relationship!A76))+moment_cd_relationship!B75)*'LiFFT_v1.4.0'!$J$14 ->  | G76: =(('LiFFT_v1.4.0'!$H$17-moment_cd_relationship!A75)*((moment_cd_relationship!B75-moment_cd_relationship!B76)/(moment_cd_relationship!A75-moment_cd_relationship!A76))+moment_cd_relationship!B75)*'LiFFT_v1.4.0'!$J$17 ->  | H76: =(('LiFFT_v1.4.0'!$H$20-moment_cd_relationship!A75)*((moment_cd_relationship!B75-moment_cd_relationship!B76)/(moment_cd_relationship!A75-moment_cd_relationship!A76))+moment_cd_relationship!B75)*'LiFFT_v1.4.0'!$J$20 ->  | I76: =(('LiFFT_v1.4.0'!$H$23-moment_cd_relationship!A75)*((moment_cd_relationship!B75-moment_cd_relationship!B76)/(moment_cd_relationship!A75-moment_cd_relationship!A76))+moment_cd_relationship!B75)*'LiFFT_v1.4.0'!$J$23 ->  | J76: =(('LiFFT_v1.4.0'!$H$26-moment_cd_relationship!A75)*((moment_cd_relationship!B75-moment_cd_relationship!B76)/(moment_cd_relationship!A75-moment_cd_relationship!A76))+moment_cd_relationship!B75)*'LiFFT_v1.4.0'!$J$26 ->  | K76: =(('LiFFT_v1.4.0'!$H$29-moment_cd_relationship!A75)*((moment_cd_relationship!B75-moment_cd_relationship!B76)/(moment_cd_relationship!A75-moment_cd_relationship!A76))+moment_cd_relationship!B75)*'LiFFT_v1.4.0'!$J$29 ->  | L76: =(('LiFFT_v1.4.0'!$H$32-moment_cd_relationship!A75)*((moment_cd_relationship!B75-moment_cd_relationship!B76)/(moment_cd_relationship!A75-moment_cd_relationship!A76))+moment_cd_relationship!B75)*'LiFFT_v1.4.0'!$J$32 -> 
A77: 74 | B77: 6.65e-05 | C77: =(('LiFFT_v1.4.0'!$H$5-moment_cd_relationship!A76)*((moment_cd_relationship!B76-moment_cd_relationship!B77)/(moment_cd_relationship!A76-moment_cd_relationship!A77))+moment_cd_relationship!B76)*'LiFFT_v1.4.0'!$J$5 -> -0.1923 | D77: =(('LiFFT_v1.4.0'!$H$8-moment_cd_relationship!A76)*((moment_cd_relationship!B76-moment_cd_relationship!B77)/(moment_cd_relationship!A76-moment_cd_relationship!A77))+moment_cd_relationship!B76)*'LiFFT_v1.4.0'!$J$8 ->  | E77: =(('LiFFT_v1.4.0'!$H$11-moment_cd_relationship!A76)*((moment_cd_relationship!B76-moment_cd_relationship!B77)/(moment_cd_relationship!A76-moment_cd_relationship!A77))+moment_cd_relationship!B76)*'LiFFT_v1.4.0'!$J$11 ->  | F77: =(('LiFFT_v1.4.0'!$H$14-moment_cd_relationship!A76)*((moment_cd_relationship!B76-moment_cd_relationship!B77)/(moment_cd_relationship!A76-moment_cd_relationship!A77))+moment_cd_relationship!B76)*'LiFFT_v1.4.0'!$J$14 ->  | G77: =(('LiFFT_v1.4.0'!$H$17-moment_cd_relationship!A76)*((moment_cd_relationship!B76-moment_cd_relationship!B77)/(moment_cd_relationship!A76-moment_cd_relationship!A77))+moment_cd_relationship!B76)*'LiFFT_v1.4.0'!$J$17 ->  | H77: =(('LiFFT_v1.4.0'!$H$20-moment_cd_relationship!A76)*((moment_cd_relationship!B76-moment_cd_relationship!B77)/(moment_cd_relationship!A76-moment_cd_relationship!A77))+moment_cd_relationship!B76)*'LiFFT_v1.4.0'!$J$20 ->  | I77: =(('LiFFT_v1.4.0'!$H$23-moment_cd_relationship!A76)*((moment_cd_relationship!B76-moment_cd_relationship!B77)/(moment_cd_relationship!A76-moment_cd_relationship!A77))+moment_cd_relationship!B76)*'LiFFT_v1.4.0'!$J$23 ->  | J77: =(('LiFFT_v1.4.0'!$H$26-moment_cd_relationship!A76)*((moment_cd_relationship!B76-moment_cd_relationship!B77)/(moment_cd_relationship!A76-moment_cd_relationship!A77))+moment_cd_relationship!B76)*'LiFFT_v1.4.0'!$J$26 ->  | K77: =(('LiFFT_v1.4.0'!$H$29-moment_cd_relationship!A76)*((moment_cd_relationship!B76-moment_cd_relationship!B77)/(moment_cd_relationship!A76-moment_cd_relationship!A77))+moment_cd_relationship!B76)*'LiFFT_v1.4.0'!$J$29 ->  | L77: =(('LiFFT_v1.4.0'!$H$32-moment_cd_relationship!A76)*((moment_cd_relationship!B76-moment_cd_relationship!B77)/(moment_cd_relationship!A76-moment_cd_relationship!A77))+moment_cd_relationship!B76)*'LiFFT_v1.4.0'!$J$32 -> 
A78: 75 | B78: 7e-05 | C78: =(('LiFFT_v1.4.0'!$H$5-moment_cd_relationship!A77)*((moment_cd_relationship!B77-moment_cd_relationship!B78)/(moment_cd_relationship!A77-moment_cd_relationship!A78))+moment_cd_relationship!B77)*'LiFFT_v1.4.0'!$J$5 -> -0.21 | D78: =(('LiFFT_v1.4.0'!$H$8-moment_cd_relationship!A77)*((moment_cd_relationship!B77-moment_cd_relationship!B78)/(moment_cd_relationship!A77-moment_cd_relationship!A78))+moment_cd_relationship!B77)*'LiFFT_v1.4.0'!$J$8 ->  | E78: =(('LiFFT_v1.4.0'!$H$11-moment_cd_relationship!A77)*((moment_cd_relationship!B77-moment_cd_relationship!B78)/(moment_cd_relationship!A77-moment_cd_relationship!A78))+moment_cd_relationship!B77)*'LiFFT_v1.4.0'!$J$11 ->  | F78: =(('LiFFT_v1.4.0'!$H$14-moment_cd_relationship!A77)*((moment_cd_relationship!B77-moment_cd_relationship!B78)/(moment_cd_relationship!A77-moment_cd_relationship!A78))+moment_cd_relationship!B77)*'LiFFT_v1.4.0'!$J$14 ->  | G78: =(('LiFFT_v1.4.0'!$H$17-moment_cd_relationship!A77)*((moment_cd_relationship!B77-moment_cd_relationship!B78)/(moment_cd_relationship!A77-moment_cd_relationship!A78))+moment_cd_relationship!B77)*'LiFFT_v1.4.0'!$J$17 ->  | H78: =(('LiFFT_v1.4.0'!$H$20-moment_cd_relationship!A77)*((moment_cd_relationship!B77-moment_cd_relationship!B78)/(moment_cd_relationship!A77-moment_cd_relationship!A78))+moment_cd_relationship!B77)*'LiFFT_v1.4.0'!$J$20 ->  | I78: =(('LiFFT_v1.4.0'!$H$23-moment_cd_relationship!A77)*((moment_cd_relationship!B77-moment_cd_relationship!B78)/(moment_cd_relationship!A77-moment_cd_relationship!A78))+moment_cd_relationship!B77)*'LiFFT_v1.4.0'!$J$23 ->  | J78: =(('LiFFT_v1.4.0'!$H$26-moment_cd_relationship!A77)*((moment_cd_relationship!B77-moment_cd_relationship!B78)/(moment_cd_relationship!A77-moment_cd_relationship!A78))+moment_cd_relationship!B77)*'LiFFT_v1.4.0'!$J$26 ->  | K78: =(('LiFFT_v1.4.0'!$H$29-moment_cd_relationship!A77)*((moment_cd_relationship!B77-moment_cd_relationship!B78)/(moment_cd_relationship!A77-moment_cd_relationship!A78))+moment_cd_relationship!B77)*'LiFFT_v1.4.0'!$J$29 ->  | L78: =(('LiFFT_v1.4.0'!$H$32-moment_cd_relationship!A77)*((moment_cd_relationship!B77-moment_cd_relationship!B78)/(moment_cd_relationship!A77-moment_cd_relationship!A78))+moment_cd_relationship!B77)*'LiFFT_v1.4.0'!$J$32 -> 
A79: 76 | B79: 7.36e-05 | C79: =(('LiFFT_v1.4.0'!$H$5-moment_cd_relationship!A78)*((moment_cd_relationship!B78-moment_cd_relationship!B79)/(moment_cd_relationship!A78-moment_cd_relationship!A79))+moment_cd_relationship!B78)*'LiFFT_v1.4.0'!$J$5 -> -0.219 | D79: =(('LiFFT_v1.4.0'!$H$8-moment_cd_relationship!A78)*((moment_cd_relationship!B78-moment_cd_relationship!B79)/(moment_cd_relationship!A78-moment_cd_relationship!A79))+moment_cd_relationship!B78)*'LiFFT_v1.4.0'!$J$8 ->  | E79: =(('LiFFT_v1.4.0'!$H$11-moment_cd_relationship!A78)*((moment_cd_relationship!B78-moment_cd_relationship!B79)/(moment_cd_relationship!A78-moment_cd_relationship!A79))+moment_cd_relationship!B78)*'LiFFT_v1.4.0'!$J$11 ->  | F79: =(('LiFFT_v1.4.0'!$H$14-moment_cd_relationship!A78)*((moment_cd_relationship!B78-moment_cd_relationship!B79)/(moment_cd_relationship!A78-moment_cd_relationship!A79))+moment_cd_relationship!B78)*'LiFFT_v1.4.0'!$J$14 ->  | G79: =(('LiFFT_v1.4.0'!$H$17-moment_cd_relationship!A78)*((moment_cd_relationship!B78-moment_cd_relationship!B79)/(moment_cd_relationship!A78-moment_cd_relationship!A79))+moment_cd_relationship!B78)*'LiFFT_v1.4.0'!$J$17 ->  | H79: =(('LiFFT_v1.4.0'!$H$20-moment_cd_relationship!A78)*((moment_cd_relationship!B78-moment_cd_relationship!B79)/(moment_cd_relationship!A78-moment_cd_relationship!A79))+moment_cd_relationship!B78)*'LiFFT_v1.4.0'!$J$20 ->  | I79: =(('LiFFT_v1.4.0'!$H$23-moment_cd_relationship!A78)*((moment_cd_relationship!B78-moment_cd_relationship!B79)/(moment_cd_relationship!A78-moment_cd_relationship!A79))+moment_cd_relationship!B78)*'LiFFT_v1.4.0'!$J$23 ->  | J79: =(('LiFFT_v1.4.0'!$H$26-moment_cd_relationship!A78)*((moment_cd_relationship!B78-moment_cd_relationship!B79)/(moment_cd_relationship!A78-moment_cd_relationship!A79))+moment_cd_relationship!B78)*'LiFFT_v1.4.0'!$J$26 ->  | K79: =(('LiFFT_v1.4.0'!$H$29-moment_cd_relationship!A78)*((moment_cd_relationship!B78-moment_cd_relationship!B79)/(moment_cd_relationship!A78-moment_cd_relationship!A79))+moment_cd_relationship!B78)*'LiFFT_v1.4.0'!$J$29 ->  | L79: =(('LiFFT_v1.4.0'!$H$32-moment_cd_relationship!A78)*((moment_cd_relationship!B78-moment_cd_relationship!B79)/(moment_cd_relationship!A78-moment_cd_relationship!A79))+moment_cd_relationship!B78)*'LiFFT_v1.4.0'!$J$32 -> 
A80: 77 | B80: 7.75e-05 | C80: =(('LiFFT_v1.4.0'!$H$5-moment_cd_relationship!A79)*((moment_cd_relationship!B79-moment_cd_relationship!B80)/(moment_cd_relationship!A79-moment_cd_relationship!A80))+moment_cd_relationship!B79)*'LiFFT_v1.4.0'!$J$5 -> -0.24645 | D80: =(('LiFFT_v1.4.0'!$H$8-moment_cd_relationship!A79)*((moment_cd_relationship!B79-moment_cd_relationship!B80)/(moment_cd_relationship!A79-moment_cd_relationship!A80))+moment_cd_relationship!B79)*'LiFFT_v1.4.0'!$J$8 ->  | E80: =(('LiFFT_v1.4.0'!$H$11-moment_cd_relationship!A79)*((moment_cd_relationship!B79-moment_cd_relationship!B80)/(moment_cd_relationship!A79-moment_cd_relationship!A80))+moment_cd_relationship!B79)*'LiFFT_v1.4.0'!$J$11 ->  | F80: =(('LiFFT_v1.4.0'!$H$14-moment_cd_relationship!A79)*((moment_cd_relationship!B79-moment_cd_relationship!B80)/(moment_cd_relationship!A79-moment_cd_relationship!A80))+moment_cd_relationship!B79)*'LiFFT_v1.4.0'!$J$14 ->  | G80: =(('LiFFT_v1.4.0'!$H$17-moment_cd_relationship!A79)*((moment_cd_relationship!B79-moment_cd_relationship!B80)/(moment_cd_relationship!A79-moment_cd_relationship!A80))+moment_cd_relationship!B79)*'LiFFT_v1.4.0'!$J$17 ->  | H80: =(('LiFFT_v1.4.0'!$H$20-moment_cd_relationship!A79)*((moment_cd_relationship!B79-moment_cd_relationship!B80)/(moment_cd_relationship!A79-moment_cd_relationship!A80))+moment_cd_relationship!B79)*'LiFFT_v1.4.0'!$J$20 ->  | I80: =(('LiFFT_v1.4.0'!$H$23-moment_cd_relationship!A79)*((moment_cd_relationship!B79-moment_cd_relationship!B80)/(moment_cd_relationship!A79-moment_cd_relationship!A80))+moment_cd_relationship!B79)*'LiFFT_v1.4.0'!$J$23 ->  | J80: =(('LiFFT_v1.4.0'!$H$26-moment_cd_relationship!A79)*((moment_cd_relationship!B79-moment_cd_relationship!B80)/(moment_cd_relationship!A79-moment_cd_relationship!A80))+moment_cd_relationship!B79)*'LiFFT_v1.4.0'!$J$26 ->  | K80: =(('LiFFT_v1.4.0'!$H$29-moment_cd_relationship!A79)*((moment_cd_relationship!B79-moment_cd_relationship!B80)/(moment_cd_relationship!A79-moment_cd_relationship!A80))+moment_cd_relationship!B79)*'LiFFT_v1.4.0'!$J$29 ->  | L80: =(('LiFFT_v1.4.0'!$H$32-moment_cd_relationship!A79)*((moment_cd_relationship!B79-moment_cd_relationship!B80)/(moment_cd_relationship!A79-moment_cd_relationship!A80))+moment_cd_relationship!B79)*'LiFFT_v1.4.0'!$J$32 -> 
A81: 78 | B81: 8.15e-05 | C81: =(('LiFFT_v1.4.0'!$H$5-moment_cd_relationship!A80)*((moment_cd_relationship!B80-moment_cd_relationship!B81)/(moment_cd_relationship!A80-moment_cd_relationship!A81))+moment_cd_relationship!B80)*'LiFFT_v1.4.0'!$J$5 -> -0.25575 | D81: =(('LiFFT_v1.4.0'!$H$8-moment_cd_relationship!A80)*((moment_cd_relationship!B80-moment_cd_relationship!B81)/(moment_cd_relationship!A80-moment_cd_relationship!A81))+moment_cd_relationship!B80)*'LiFFT_v1.4.0'!$J$8 ->  | E81: =(('LiFFT_v1.4.0'!$H$11-moment_cd_relationship!A80)*((moment_cd_relationship!B80-moment_cd_relationship!B81)/(moment_cd_relationship!A80-moment_cd_relationship!A81))+moment_cd_relationship!B80)*'LiFFT_v1.4.0'!$J$11 ->  | F81: =(('LiFFT_v1.4.0'!$H$14-moment_cd_relationship!A80)*((moment_cd_relationship!B80-moment_cd_relationship!B81)/(moment_cd_relationship!A80-moment_cd_relationship!A81))+moment_cd_relationship!B80)*'LiFFT_v1.4.0'!$J$14 ->  | G81: =(('LiFFT_v1.4.0'!$H$17-moment_cd_relationship!A80)*((moment_cd_relationship!B80-moment_cd_relationship!B81)/(moment_cd_relationship!A80-moment_cd_relationship!A81))+moment_cd_relationship!B80)*'LiFFT_v1.4.0'!$J$17 ->  | H81: =(('LiFFT_v1.4.0'!$H$20-moment_cd_relationship!A80)*((moment_cd_relationship!B80-moment_cd_relationship!B81)/(moment_cd_relationship!A80-moment_cd_relationship!A81))+moment_cd_relationship!B80)*'LiFFT_v1.4.0'!$J$20 ->  | I81: =(('LiFFT_v1.4.0'!$H$23-moment_cd_relationship!A80)*((moment_cd_relationship!B80-moment_cd_relationship!B81)/(moment_cd_relationship!A80-moment_cd_relationship!A81))+moment_cd_relationship!B80)*'LiFFT_v1.4.0'!$J$23 ->  | J81: =(('LiFFT_v1.4.0'!$H$26-moment_cd_relationship!A80)*((moment_cd_relationship!B80-moment_cd_relationship!B81)/(moment_cd_relationship!A80-moment_cd_relationship!A81))+moment_cd_relationship!B80)*'LiFFT_v1.4.0'!$J$26 ->  | K81: =(('LiFFT_v1.4.0'!$H$29-moment_cd_relationship!A80)*((moment_cd_relationship!B80-moment_cd_relationship!B81)/(moment_cd_relationship!A80-moment_cd_relationship!A81))+moment_cd_relationship!B80)*'LiFFT_v1.4.0'!$J$29 ->  | L81: =(('LiFFT_v1.4.0'!$H$32-moment_cd_relationship!A80)*((moment_cd_relationship!B80-moment_cd_relationship!B81)/(moment_cd_relationship!A80-moment_cd_relationship!A81))+moment_cd_relationship!B80)*'LiFFT_v1.4.0'!$J$32 -> 
A82: 79 | B82: 8.58e-05 | C82: =(('LiFFT_v1.4.0'!$H$5-moment_cd_relationship!A81)*((moment_cd_relationship!B81-moment_cd_relationship!B82)/(moment_cd_relationship!A81-moment_cd_relationship!A82))+moment_cd_relationship!B81)*'LiFFT_v1.4.0'!$J$5 -> -0.2841 | D82: =(('LiFFT_v1.4.0'!$H$8-moment_cd_relationship!A81)*((moment_cd_relationship!B81-moment_cd_relationship!B82)/(moment_cd_relationship!A81-moment_cd_relationship!A82))+moment_cd_relationship!B81)*'LiFFT_v1.4.0'!$J$8 ->  | E82: =(('LiFFT_v1.4.0'!$H$11-moment_cd_relationship!A81)*((moment_cd_relationship!B81-moment_cd_relationship!B82)/(moment_cd_relationship!A81-moment_cd_relationship!A82))+moment_cd_relationship!B81)*'LiFFT_v1.4.0'!$J$11 ->  | F82: =(('LiFFT_v1.4.0'!$H$14-moment_cd_relationship!A81)*((moment_cd_relationship!B81-moment_cd_relationship!B82)/(moment_cd_relationship!A81-moment_cd_relationship!A82))+moment_cd_relationship!B81)*'LiFFT_v1.4.0'!$J$14 ->  | G82: =(('LiFFT_v1.4.0'!$H$17-moment_cd_relationship!A81)*((moment_cd_relationship!B81-moment_cd_relationship!B82)/(moment_cd_relationship!A81-moment_cd_relationship!A82))+moment_cd_relationship!B81)*'LiFFT_v1.4.0'!$J$17 ->  | H82: =(('LiFFT_v1.4.0'!$H$20-moment_cd_relationship!A81)*((moment_cd_relationship!B81-moment_cd_relationship!B82)/(moment_cd_relationship!A81-moment_cd_relationship!A82))+moment_cd_relationship!B81)*'LiFFT_v1.4.0'!$J$20 ->  | I82: =(('LiFFT_v1.4.0'!$H$23-moment_cd_relationship!A81)*((moment_cd_relationship!B81-moment_cd_relationship!B82)/(moment_cd_relationship!A81-moment_cd_relationship!A82))+moment_cd_relationship!B81)*'LiFFT_v1.4.0'!$J$23 ->  | J82: =(('LiFFT_v1.4.0'!$H$26-moment_cd_relationship!A81)*((moment_cd_relationship!B81-moment_cd_relationship!B82)/(moment_cd_relationship!A81-moment_cd_relationship!A82))+moment_cd_relationship!B81)*'LiFFT_v1.4.0'!$J$26 ->  | K82: =(('LiFFT_v1.4.0'!$H$29-moment_cd_relationship!A81)*((moment_cd_relationship!B81-moment_cd_relationship!B82)/(moment_cd_relationship!A81-moment_cd_relationship!A82))+moment_cd_relationship!B81)*'LiFFT_v1.4.0'!$J$29 ->  | L82: =(('LiFFT_v1.4.0'!$H$32-moment_cd_relationship!A81)*((moment_cd_relationship!B81-moment_cd_relationship!B82)/(moment_cd_relationship!A81-moment_cd_relationship!A82))+moment_cd_relationship!B81)*'LiFFT_v1.4.0'!$J$32 -> 
A83: 80 | B83: 9.03e-05 | C83: =(('LiFFT_v1.4.0'!$H$5-moment_cd_relationship!A82)*((moment_cd_relationship!B82-moment_cd_relationship!B83)/(moment_cd_relationship!A82-moment_cd_relationship!A83))+moment_cd_relationship!B82)*'LiFFT_v1.4.0'!$J$5 -> -0.3033 | D83: =(('LiFFT_v1.4.0'!$H$8-moment_cd_relationship!A82)*((moment_cd_relationship!B82-moment_cd_relationship!B83)/(moment_cd_relationship!A82-moment_cd_relationship!A83))+moment_cd_relationship!B82)*'LiFFT_v1.4.0'!$J$8 ->  | E83: =(('LiFFT_v1.4.0'!$H$11-moment_cd_relationship!A82)*((moment_cd_relationship!B82-moment_cd_relationship!B83)/(moment_cd_relationship!A82-moment_cd_relationship!A83))+moment_cd_relationship!B82)*'LiFFT_v1.4.0'!$J$11 ->  | F83: =(('LiFFT_v1.4.0'!$H$14-moment_cd_relationship!A82)*((moment_cd_relationship!B82-moment_cd_relationship!B83)/(moment_cd_relationship!A82-moment_cd_relationship!A83))+moment_cd_relationship!B82)*'LiFFT_v1.4.0'!$J$14 ->  | G83: =(('LiFFT_v1.4.0'!$H$17-moment_cd_relationship!A82)*((moment_cd_relationship!B82-moment_cd_relationship!B83)/(moment_cd_relationship!A82-moment_cd_relationship!A83))+moment_cd_relationship!B82)*'LiFFT_v1.4.0'!$J$17 ->  | H83: =(('LiFFT_v1.4.0'!$H$20-moment_cd_relationship!A82)*((moment_cd_relationship!B82-moment_cd_relationship!B83)/(moment_cd_relationship!A82-moment_cd_relationship!A83))+moment_cd_relationship!B82)*'LiFFT_v1.4.0'!$J$20 ->  | I83: =(('LiFFT_v1.4.0'!$H$23-moment_cd_relationship!A82)*((moment_cd_relationship!B82-moment_cd_relationship!B83)/(moment_cd_relationship!A82-moment_cd_relationship!A83))+moment_cd_relationship!B82)*'LiFFT_v1.4.0'!$J$23 ->  | J83: =(('LiFFT_v1.4.0'!$H$26-moment_cd_relationship!A82)*((moment_cd_relationship!B82-moment_cd_relationship!B83)/(moment_cd_relationship!A82-moment_cd_relationship!A83))+moment_cd_relationship!B82)*'LiFFT_v1.4.0'!$J$26 ->  | K83: =(('LiFFT_v1.4.0'!$H$29-moment_cd_relationship!A82)*((moment_cd_relationship!B82-moment_cd_relationship!B83)/(moment_cd_relationship!A82-moment_cd_relationship!A83))+moment_cd_relationship!B82)*'LiFFT_v1.4.0'!$J$29 ->  | L83: =(('LiFFT_v1.4.0'!$H$32-moment_cd_relationship!A82)*((moment_cd_relationship!B82-moment_cd_relationship!B83)/(moment_cd_relationship!A82-moment_cd_relationship!A83))+moment_cd_relationship!B82)*'LiFFT_v1.4.0'!$J$32 -> 
A84: 81 | B84: 9.5e-05 | C84: =(('LiFFT_v1.4.0'!$H$5-moment_cd_relationship!A83)*((moment_cd_relationship!B83-moment_cd_relationship!B84)/(moment_cd_relationship!A83-moment_cd_relationship!A84))+moment_cd_relationship!B83)*'LiFFT_v1.4.0'!$J$5 -> -0.3228 | D84: =(('LiFFT_v1.4.0'!$H$8-moment_cd_relationship!A83)*((moment_cd_relationship!B83-moment_cd_relationship!B84)/(moment_cd_relationship!A83-moment_cd_relationship!A84))+moment_cd_relationship!B83)*'LiFFT_v1.4.0'!$J$8 ->  | E84: =(('LiFFT_v1.4.0'!$H$11-moment_cd_relationship!A83)*((moment_cd_relationship!B83-moment_cd_relationship!B84)/(moment_cd_relationship!A83-moment_cd_relationship!A84))+moment_cd_relationship!B83)*'LiFFT_v1.4.0'!$J$11 ->  | F84: =(('LiFFT_v1.4.0'!$H$14-moment_cd_relationship!A83)*((moment_cd_relationship!B83-moment_cd_relationship!B84)/(moment_cd_relationship!A83-moment_cd_relationship!A84))+moment_cd_relationship!B83)*'LiFFT_v1.4.0'!$J$14 ->  | G84: =(('LiFFT_v1.4.0'!$H$17-moment_cd_relationship!A83)*((moment_cd_relationship!B83-moment_cd_relationship!B84)/(moment_cd_relationship!A83-moment_cd_relationship!A84))+moment_cd_relationship!B83)*'LiFFT_v1.4.0'!$J$17 ->  | H84: =(('LiFFT_v1.4.0'!$H$20-moment_cd_relationship!A83)*((moment_cd_relationship!B83-moment_cd_relationship!B84)/(moment_cd_relationship!A83-moment_cd_relationship!A84))+moment_cd_relationship!B83)*'LiFFT_v1.4.0'!$J$20 ->  | I84: =(('LiFFT_v1.4.0'!$H$23-moment_cd_relationship!A83)*((moment_cd_relationship!B83-moment_cd_relationship!B84)/(moment_cd_relationship!A83-moment_cd_relationship!A84))+moment_cd_relationship!B83)*'LiFFT_v1.4.0'!$J$23 ->  | J84: =(('LiFFT_v1.4.0'!$H$26-moment_cd_relationship!A83)*((moment_cd_relationship!B83-moment_cd_relationship!B84)/(moment_cd_relationship!A83-moment_cd_relationship!A84))+moment_cd_relationship!B83)*'LiFFT_v1.4.0'!$J$26 ->  | K84: =(('LiFFT_v1.4.0'!$H$29-moment_cd_relationship!A83)*((moment_cd_relationship!B83-moment_cd_relationship!B84)/(moment_cd_relationship!A83-moment_cd_relationship!A84))+moment_cd_relationship!B83)*'LiFFT_v1.4.0'!$J$29 ->  | L84: =(('LiFFT_v1.4.0'!$H$32-moment_cd_relationship!A83)*((moment_cd_relationship!B83-moment_cd_relationship!B84)/(moment_cd_relationship!A83-moment_cd_relationship!A84))+moment_cd_relationship!B83)*'LiFFT_v1.4.0'!$J$32 -> 
A85: 82 | B85: 0.0001 | C85: =(('LiFFT_v1.4.0'!$H$5-moment_cd_relationship!A84)*((moment_cd_relationship!B84-moment_cd_relationship!B85)/(moment_cd_relationship!A84-moment_cd_relationship!A85))+moment_cd_relationship!B84)*'LiFFT_v1.4.0'!$J$5 -> -0.3525 | D85: =(('LiFFT_v1.4.0'!$H$8-moment_cd_relationship!A84)*((moment_cd_relationship!B84-moment_cd_relationship!B85)/(moment_cd_relationship!A84-moment_cd_relationship!A85))+moment_cd_relationship!B84)*'LiFFT_v1.4.0'!$J$8 ->  | E85: =(('LiFFT_v1.4.0'!$H$11-moment_cd_relationship!A84)*((moment_cd_relationship!B84-moment_cd_relationship!B85)/(moment_cd_relationship!A84-moment_cd_relationship!A85))+moment_cd_relationship!B84)*'LiFFT_v1.4.0'!$J$11 ->  | F85: =(('LiFFT_v1.4.0'!$H$14-moment_cd_relationship!A84)*((moment_cd_relationship!B84-moment_cd_relationship!B85)/(moment_cd_relationship!A84-moment_cd_relationship!A85))+moment_cd_relationship!B84)*'LiFFT_v1.4.0'!$J$14 ->  | G85: =(('LiFFT_v1.4.0'!$H$17-moment_cd_relationship!A84)*((moment_cd_relationship!B84-moment_cd_relationship!B85)/(moment_cd_relationship!A84-moment_cd_relationship!A85))+moment_cd_relationship!B84)*'LiFFT_v1.4.0'!$J$17 ->  | H85: =(('LiFFT_v1.4.0'!$H$20-moment_cd_relationship!A84)*((moment_cd_relationship!B84-moment_cd_relationship!B85)/(moment_cd_relationship!A84-moment_cd_relationship!A85))+moment_cd_relationship!B84)*'LiFFT_v1.4.0'!$J$20 ->  | I85: =(('LiFFT_v1.4.0'!$H$23-moment_cd_relationship!A84)*((moment_cd_relationship!B84-moment_cd_relationship!B85)/(moment_cd_relationship!A84-moment_cd_relationship!A85))+moment_cd_relationship!B84)*'LiFFT_v1.4.0'!$J$23 ->  | J85: =(('LiFFT_v1.4.0'!$H$26-moment_cd_relationship!A84)*((moment_cd_relationship!B84-moment_cd_relationship!B85)/(moment_cd_relationship!A84-moment_cd_relationship!A85))+moment_cd_relationship!B84)*'LiFFT_v1.4.0'!$J$26 ->  | K85: =(('LiFFT_v1.4.0'!$H$29-moment_cd_relationship!A84)*((moment_cd_relationship!B84-moment_cd_relationship!B85)/(moment_cd_relationship!A84-moment_cd_relationship!A85))+moment_cd_relationship!B84)*'LiFFT_v1.4.0'!$J$29 ->  | L85: =(('LiFFT_v1.4.0'!$H$32-moment_cd_relationship!A84)*((moment_cd_relationship!B84-moment_cd_relationship!B85)/(moment_cd_relationship!A84-moment_cd_relationship!A85))+moment_cd_relationship!B84)*'LiFFT_v1.4.0'!$J$32 -> 
A86: 83 | B86: 0.0001052 | C86: =(('LiFFT_v1.4.0'!$H$5-moment_cd_relationship!A85)*((moment_cd_relationship!B85-moment_cd_relationship!B86)/(moment_cd_relationship!A85-moment_cd_relationship!A86))+moment_cd_relationship!B85)*'LiFFT_v1.4.0'!$J$5 -> -0.3726 | D86: =(('LiFFT_v1.4.0'!$H$8-moment_cd_relationship!A85)*((moment_cd_relationship!B85-moment_cd_relationship!B86)/(moment_cd_relationship!A85-moment_cd_relationship!A86))+moment_cd_relationship!B85)*'LiFFT_v1.4.0'!$J$8 ->  | E86: =(('LiFFT_v1.4.0'!$H$11-moment_cd_relationship!A85)*((moment_cd_relationship!B85-moment_cd_relationship!B86)/(moment_cd_relationship!A85-moment_cd_relationship!A86))+moment_cd_relationship!B85)*'LiFFT_v1.4.0'!$J$11 ->  | F86: =(('LiFFT_v1.4.0'!$H$14-moment_cd_relationship!A85)*((moment_cd_relationship!B85-moment_cd_relationship!B86)/(moment_cd_relationship!A85-moment_cd_relationship!A86))+moment_cd_relationship!B85)*'LiFFT_v1.4.0'!$J$14 ->  | G86: =(('LiFFT_v1.4.0'!$H$17-moment_cd_relationship!A85)*((moment_cd_relationship!B85-moment_cd_relationship!B86)/(moment_cd_relationship!A85-moment_cd_relationship!A86))+moment_cd_relationship!B85)*'LiFFT_v1.4.0'!$J$17 ->  | H86: =(('LiFFT_v1.4.0'!$H$20-moment_cd_relationship!A85)*((moment_cd_relationship!B85-moment_cd_relationship!B86)/(moment_cd_relationship!A85-moment_cd_relationship!A86))+moment_cd_relationship!B85)*'LiFFT_v1.4.0'!$J$20 ->  | I86: =(('LiFFT_v1.4.0'!$H$23-moment_cd_relationship!A85)*((moment_cd_relationship!B85-moment_cd_relationship!B86)/(moment_cd_relationship!A85-moment_cd_relationship!A86))+moment_cd_relationship!B85)*'LiFFT_v1.4.0'!$J$23 ->  | J86: =(('LiFFT_v1.4.0'!$H$26-moment_cd_relationship!A85)*((moment_cd_relationship!B85-moment_cd_relationship!B86)/(moment_cd_relationship!A85-moment_cd_relationship!A86))+moment_cd_relationship!B85)*'LiFFT_v1.4.0'!$J$26 ->  | K86: =(('LiFFT_v1.4.0'!$H$29-moment_cd_relationship!A85)*((moment_cd_relationship!B85-moment_cd_relationship!B86)/(moment_cd_relationship!A85-moment_cd_relationship!A86))+moment_cd_relationship!B85)*'LiFFT_v1.4.0'!$J$29 ->  | L86: =(('LiFFT_v1.4.0'!$H$32-moment_cd_relationship!A85)*((moment_cd_relationship!B85-moment_cd_relationship!B86)/(moment_cd_relationship!A85-moment_cd_relationship!A86))+moment_cd_relationship!B85)*'LiFFT_v1.4.0'!$J$32 -> 
A87: 84 | B87: 0.0001107 | C87: =(('LiFFT_v1.4.0'!$H$5-moment_cd_relationship!A86)*((moment_cd_relationship!B86-moment_cd_relationship!B87)/(moment_cd_relationship!A86-moment_cd_relationship!A87))+moment_cd_relationship!B86)*'LiFFT_v1.4.0'!$J$5 -> -0.4032 | D87: =(('LiFFT_v1.4.0'!$H$8-moment_cd_relationship!A86)*((moment_cd_relationship!B86-moment_cd_relationship!B87)/(moment_cd_relationship!A86-moment_cd_relationship!A87))+moment_cd_relationship!B86)*'LiFFT_v1.4.0'!$J$8 ->  | E87: =(('LiFFT_v1.4.0'!$H$11-moment_cd_relationship!A86)*((moment_cd_relationship!B86-moment_cd_relationship!B87)/(moment_cd_relationship!A86-moment_cd_relationship!A87))+moment_cd_relationship!B86)*'LiFFT_v1.4.0'!$J$11 ->  | F87: =(('LiFFT_v1.4.0'!$H$14-moment_cd_relationship!A86)*((moment_cd_relationship!B86-moment_cd_relationship!B87)/(moment_cd_relationship!A86-moment_cd_relationship!A87))+moment_cd_relationship!B86)*'LiFFT_v1.4.0'!$J$14 ->  | G87: =(('LiFFT_v1.4.0'!$H$17-moment_cd_relationship!A86)*((moment_cd_relationship!B86-moment_cd_relationship!B87)/(moment_cd_relationship!A86-moment_cd_relationship!A87))+moment_cd_relationship!B86)*'LiFFT_v1.4.0'!$J$17 ->  | H87: =(('LiFFT_v1.4.0'!$H$20-moment_cd_relationship!A86)*((moment_cd_relationship!B86-moment_cd_relationship!B87)/(moment_cd_relationship!A86-moment_cd_relationship!A87))+moment_cd_relationship!B86)*'LiFFT_v1.4.0'!$J$20 ->  | I87: =(('LiFFT_v1.4.0'!$H$23-moment_cd_relationship!A86)*((moment_cd_relationship!B86-moment_cd_relationship!B87)/(moment_cd_relationship!A86-moment_cd_relationship!A87))+moment_cd_relationship!B86)*'LiFFT_v1.4.0'!$J$23 ->  | J87: =(('LiFFT_v1.4.0'!$H$26-moment_cd_relationship!A86)*((moment_cd_relationship!B86-moment_cd_relationship!B87)/(moment_cd_relationship!A86-moment_cd_relationship!A87))+moment_cd_relationship!B86)*'LiFFT_v1.4.0'!$J$26 ->  | K87: =(('LiFFT_v1.4.0'!$H$29-moment_cd_relationship!A86)*((moment_cd_relationship!B86-moment_cd_relationship!B87)/(moment_cd_relationship!A86-moment_cd_relationship!A87))+moment_cd_relationship!B86)*'LiFFT_v1.4.0'!$J$29 ->  | L87: =(('LiFFT_v1.4.0'!$H$32-moment_cd_relationship!A86)*((moment_cd_relationship!B86-moment_cd_relationship!B87)/(moment_cd_relationship!A86-moment_cd_relationship!A87))+moment_cd_relationship!B86)*'LiFFT_v1.4.0'!$J$32 -> 
A88: 85 | B88: 0.0001165 | C88: =(('LiFFT_v1.4.0'!$H$5-moment_cd_relationship!A87)*((moment_cd_relationship!B87-moment_cd_relationship!B88)/(moment_cd_relationship!A87-moment_cd_relationship!A88))+moment_cd_relationship!B87)*'LiFFT_v1.4.0'!$J$5 -> -0.43425 | D88: =(('LiFFT_v1.4.0'!$H$8-moment_cd_relationship!A87)*((moment_cd_relationship!B87-moment_cd_relationship!B88)/(moment_cd_relationship!A87-moment_cd_relationship!A88))+moment_cd_relationship!B87)*'LiFFT_v1.4.0'!$J$8 ->  | E88: =(('LiFFT_v1.4.0'!$H$11-moment_cd_relationship!A87)*((moment_cd_relationship!B87-moment_cd_relationship!B88)/(moment_cd_relationship!A87-moment_cd_relationship!A88))+moment_cd_relationship!B87)*'LiFFT_v1.4.0'!$J$11 ->  | F88: =(('LiFFT_v1.4.0'!$H$14-moment_cd_relationship!A87)*((moment_cd_relationship!B87-moment_cd_relationship!B88)/(moment_cd_relationship!A87-moment_cd_relationship!A88))+moment_cd_relationship!B87)*'LiFFT_v1.4.0'!$J$14 ->  | G88: =(('LiFFT_v1.4.0'!$H$17-moment_cd_relationship!A87)*((moment_cd_relationship!B87-moment_cd_relationship!B88)/(moment_cd_relationship!A87-moment_cd_relationship!A88))+moment_cd_relationship!B87)*'LiFFT_v1.4.0'!$J$17 ->  | H88: =(('LiFFT_v1.4.0'!$H$20-moment_cd_relationship!A87)*((moment_cd_relationship!B87-moment_cd_relationship!B88)/(moment_cd_relationship!A87-moment_cd_relationship!A88))+moment_cd_relationship!B87)*'LiFFT_v1.4.0'!$J$20 ->  | I88: =(('LiFFT_v1.4.0'!$H$23-moment_cd_relationship!A87)*((moment_cd_relationship!B87-moment_cd_relationship!B88)/(moment_cd_relationship!A87-moment_cd_relationship!A88))+moment_cd_relationship!B87)*'LiFFT_v1.4.0'!$J$23 ->  | J88: =(('LiFFT_v1.4.0'!$H$26-moment_cd_relationship!A87)*((moment_cd_relationship!B87-moment_cd_relationship!B88)/(moment_cd_relationship!A87-moment_cd_relationship!A88))+moment_cd_relationship!B87)*'LiFFT_v1.4.0'!$J$26 ->  | K88: =(('LiFFT_v1.4.0'!$H$29-moment_cd_relationship!A87)*((moment_cd_relationship!B87-moment_cd_relationship!B88)/(moment_cd_relationship!A87-moment_cd_relationship!A88))+moment_cd_relationship!B87)*'LiFFT_v1.4.0'!$J$29 ->  | L88: =(('LiFFT_v1.4.0'!$H$32-moment_cd_relationship!A87)*((moment_cd_relationship!B87-moment_cd_relationship!B88)/(moment_cd_relationship!A87-moment_cd_relationship!A88))+moment_cd_relationship!B87)*'LiFFT_v1.4.0'!$J$32 -> 
A89: 86 | B89: 0.0001227 | C89: =(('LiFFT_v1.4.0'!$H$5-moment_cd_relationship!A88)*((moment_cd_relationship!B88-moment_cd_relationship!B89)/(moment_cd_relationship!A88-moment_cd_relationship!A89))+moment_cd_relationship!B88)*'LiFFT_v1.4.0'!$J$5 -> -0.47625 | D89: =(('LiFFT_v1.4.0'!$H$8-moment_cd_relationship!A88)*((moment_cd_relationship!B88-moment_cd_relationship!B89)/(moment_cd_relationship!A88-moment_cd_relationship!A89))+moment_cd_relationship!B88)*'LiFFT_v1.4.0'!$J$8 ->  | E89: =(('LiFFT_v1.4.0'!$H$11-moment_cd_relationship!A88)*((moment_cd_relationship!B88-moment_cd_relationship!B89)/(moment_cd_relationship!A88-moment_cd_relationship!A89))+moment_cd_relationship!B88)*'LiFFT_v1.4.0'!$J$11 ->  | F89: =(('LiFFT_v1.4.0'!$H$14-moment_cd_relationship!A88)*((moment_cd_relationship!B88-moment_cd_relationship!B89)/(moment_cd_relationship!A88-moment_cd_relationship!A89))+moment_cd_relationship!B88)*'LiFFT_v1.4.0'!$J$14 ->  | G89: =(('LiFFT_v1.4.0'!$H$17-moment_cd_relationship!A88)*((moment_cd_relationship!B88-moment_cd_relationship!B89)/(moment_cd_relationship!A88-moment_cd_relationship!A89))+moment_cd_relationship!B88)*'LiFFT_v1.4.0'!$J$17 ->  | H89: =(('LiFFT_v1.4.0'!$H$20-moment_cd_relationship!A88)*((moment_cd_relationship!B88-moment_cd_relationship!B89)/(moment_cd_relationship!A88-moment_cd_relationship!A89))+moment_cd_relationship!B88)*'LiFFT_v1.4.0'!$J$20 ->  | I89: =(('LiFFT_v1.4.0'!$H$23-moment_cd_relationship!A88)*((moment_cd_relationship!B88-moment_cd_relationship!B89)/(moment_cd_relationship!A88-moment_cd_relationship!A89))+moment_cd_relationship!B88)*'LiFFT_v1.4.0'!$J$23 ->  | J89: =(('LiFFT_v1.4.0'!$H$26-moment_cd_relationship!A88)*((moment_cd_relationship!B88-moment_cd_relationship!B89)/(moment_cd_relationship!A88-moment_cd_relationship!A89))+moment_cd_relationship!B88)*'LiFFT_v1.4.0'!$J$26 ->  | K89: =(('LiFFT_v1.4.0'!$H$29-moment_cd_relationship!A88)*((moment_cd_relationship!B88-moment_cd_relationship!B89)/(moment_cd_relationship!A88-moment_cd_relationship!A89))+moment_cd_relationship!B88)*'LiFFT_v1.4.0'!$J$29 ->  | L89: =(('LiFFT_v1.4.0'!$H$32-moment_cd_relationship!A88)*((moment_cd_relationship!B88-moment_cd_relationship!B89)/(moment_cd_relationship!A88-moment_cd_relationship!A89))+moment_cd_relationship!B88)*'LiFFT_v1.4.0'!$J$32 -> 
A90: 87 | B90: 0.0001291 | C90: =(('LiFFT_v1.4.0'!$H$5-moment_cd_relationship!A89)*((moment_cd_relationship!B89-moment_cd_relationship!B90)/(moment_cd_relationship!A89-moment_cd_relationship!A90))+moment_cd_relationship!B89)*'LiFFT_v1.4.0'!$J$5 -> -0.49755 | D90: =(('LiFFT_v1.4.0'!$H$8-moment_cd_relationship!A89)*((moment_cd_relationship!B89-moment_cd_relationship!B90)/(moment_cd_relationship!A89-moment_cd_relationship!A90))+moment_cd_relationship!B89)*'LiFFT_v1.4.0'!$J$8 ->  | E90: =(('LiFFT_v1.4.0'!$H$11-moment_cd_relationship!A89)*((moment_cd_relationship!B89-moment_cd_relationship!B90)/(moment_cd_relationship!A89-moment_cd_relationship!A90))+moment_cd_relationship!B89)*'LiFFT_v1.4.0'!$J$11 ->  | F90: =(('LiFFT_v1.4.0'!$H$14-moment_cd_relationship!A89)*((moment_cd_relationship!B89-moment_cd_relationship!B90)/(moment_cd_relationship!A89-moment_cd_relationship!A90))+moment_cd_relationship!B89)*'LiFFT_v1.4.0'!$J$14 ->  | G90: =(('LiFFT_v1.4.0'!$H$17-moment_cd_relationship!A89)*((moment_cd_relationship!B89-moment_cd_relationship!B90)/(moment_cd_relationship!A89-moment_cd_relationship!A90))+moment_cd_relationship!B89)*'LiFFT_v1.4.0'!$J$17 ->  | H90: =(('LiFFT_v1.4.0'!$H$20-moment_cd_relationship!A89)*((moment_cd_relationship!B89-moment_cd_relationship!B90)/(moment_cd_relationship!A89-moment_cd_relationship!A90))+moment_cd_relationship!B89)*'LiFFT_v1.4.0'!$J$20 ->  | I90: =(('LiFFT_v1.4.0'!$H$23-moment_cd_relationship!A89)*((moment_cd_relationship!B89-moment_cd_relationship!B90)/(moment_cd_relationship!A89-moment_cd_relationship!A90))+moment_cd_relationship!B89)*'LiFFT_v1.4.0'!$J$23 ->  | J90: =(('LiFFT_v1.4.0'!$H$26-moment_cd_relationship!A89)*((moment_cd_relationship!B89-moment_cd_relationship!B90)/(moment_cd_relationship!A89-moment_cd_relationship!A90))+moment_cd_relationship!B89)*'LiFFT_v1.4.0'!$J$26 ->  | K90: =(('LiFFT_v1.4.0'!$H$29-moment_cd_relationship!A89)*((moment_cd_relationship!B89-moment_cd_relationship!B90)/(moment_cd_relationship!A89-moment_cd_relationship!A90))+moment_cd_relationship!B89)*'LiFFT_v1.4.0'!$J$29 ->  | L90: =(('LiFFT_v1.4.0'!$H$32-moment_cd_relationship!A89)*((moment_cd_relationship!B89-moment_cd_relationship!B90)/(moment_cd_relationship!A89-moment_cd_relationship!A90))+moment_cd_relationship!B89)*'LiFFT_v1.4.0'!$J$32 -> 
A91: 88 | B91: 0.0001359 | C91: =(('LiFFT_v1.4.0'!$H$5-moment_cd_relationship!A90)*((moment_cd_relationship!B90-moment_cd_relationship!B91)/(moment_cd_relationship!A90-moment_cd_relationship!A91))+moment_cd_relationship!B90)*'LiFFT_v1.4.0'!$J$5 -> -0.54075 | D91: =(('LiFFT_v1.4.0'!$H$8-moment_cd_relationship!A90)*((moment_cd_relationship!B90-moment_cd_relationship!B91)/(moment_cd_relationship!A90-moment_cd_relationship!A91))+moment_cd_relationship!B90)*'LiFFT_v1.4.0'!$J$8 ->  | E91: =(('LiFFT_v1.4.0'!$H$11-moment_cd_relationship!A90)*((moment_cd_relationship!B90-moment_cd_relationship!B91)/(moment_cd_relationship!A90-moment_cd_relationship!A91))+moment_cd_relationship!B90)*'LiFFT_v1.4.0'!$J$11 ->  | F91: =(('LiFFT_v1.4.0'!$H$14-moment_cd_relationship!A90)*((moment_cd_relationship!B90-moment_cd_relationship!B91)/(moment_cd_relationship!A90-moment_cd_relationship!A91))+moment_cd_relationship!B90)*'LiFFT_v1.4.0'!$J$14 ->  | G91: =(('LiFFT_v1.4.0'!$H$17-moment_cd_relationship!A90)*((moment_cd_relationship!B90-moment_cd_relationship!B91)/(moment_cd_relationship!A90-moment_cd_relationship!A91))+moment_cd_relationship!B90)*'LiFFT_v1.4.0'!$J$17 ->  | H91: =(('LiFFT_v1.4.0'!$H$20-moment_cd_relationship!A90)*((moment_cd_relationship!B90-moment_cd_relationship!B91)/(moment_cd_relationship!A90-moment_cd_relationship!A91))+moment_cd_relationship!B90)*'LiFFT_v1.4.0'!$J$20 ->  | I91: =(('LiFFT_v1.4.0'!$H$23-moment_cd_relationship!A90)*((moment_cd_relationship!B90-moment_cd_relationship!B91)/(moment_cd_relationship!A90-moment_cd_relationship!A91))+moment_cd_relationship!B90)*'LiFFT_v1.4.0'!$J$23 ->  | J91: =(('LiFFT_v1.4.0'!$H$26-moment_cd_relationship!A90)*((moment_cd_relationship!B90-moment_cd_relationship!B91)/(moment_cd_relationship!A90-moment_cd_relationship!A91))+moment_cd_relationship!B90)*'LiFFT_v1.4.0'!$J$26 ->  | K91: =(('LiFFT_v1.4.0'!$H$29-moment_cd_relationship!A90)*((moment_cd_relationship!B90-moment_cd_relationship!B91)/(moment_cd_relationship!A90-moment_cd_relationship!A91))+moment_cd_relationship!B90)*'LiFFT_v1.4.0'!$J$29 ->  | L91: =(('LiFFT_v1.4.0'!$H$32-moment_cd_relationship!A90)*((moment_cd_relationship!B90-moment_cd_relationship!B91)/(moment_cd_relationship!A90-moment_cd_relationship!A91))+moment_cd_relationship!B90)*'LiFFT_v1.4.0'!$J$32 -> 
A92: 89 | B92: 0.000143 | C92: =(('LiFFT_v1.4.0'!$H$5-moment_cd_relationship!A91)*((moment_cd_relationship!B91-moment_cd_relationship!B92)/(moment_cd_relationship!A91-moment_cd_relationship!A92))+moment_cd_relationship!B91)*'LiFFT_v1.4.0'!$J$5 -> -0.5736 | D92: =(('LiFFT_v1.4.0'!$H$8-moment_cd_relationship!A91)*((moment_cd_relationship!B91-moment_cd_relationship!B92)/(moment_cd_relationship!A91-moment_cd_relationship!A92))+moment_cd_relationship!B91)*'LiFFT_v1.4.0'!$J$8 ->  | E92: =(('LiFFT_v1.4.0'!$H$11-moment_cd_relationship!A91)*((moment_cd_relationship!B91-moment_cd_relationship!B92)/(moment_cd_relationship!A91-moment_cd_relationship!A92))+moment_cd_relationship!B91)*'LiFFT_v1.4.0'!$J$11 ->  | F92: =(('LiFFT_v1.4.0'!$H$14-moment_cd_relationship!A91)*((moment_cd_relationship!B91-moment_cd_relationship!B92)/(moment_cd_relationship!A91-moment_cd_relationship!A92))+moment_cd_relationship!B91)*'LiFFT_v1.4.0'!$J$14 ->  | G92: =(('LiFFT_v1.4.0'!$H$17-moment_cd_relationship!A91)*((moment_cd_relationship!B91-moment_cd_relationship!B92)/(moment_cd_relationship!A91-moment_cd_relationship!A92))+moment_cd_relationship!B91)*'LiFFT_v1.4.0'!$J$17 ->  | H92: =(('LiFFT_v1.4.0'!$H$20-moment_cd_relationship!A91)*((moment_cd_relationship!B91-moment_cd_relationship!B92)/(moment_cd_relationship!A91-moment_cd_relationship!A92))+moment_cd_relationship!B91)*'LiFFT_v1.4.0'!$J$20 ->  | I92: =(('LiFFT_v1.4.0'!$H$23-moment_cd_relationship!A91)*((moment_cd_relationship!B91-moment_cd_relationship!B92)/(moment_cd_relationship!A91-moment_cd_relationship!A92))+moment_cd_relationship!B91)*'LiFFT_v1.4.0'!$J$23 ->  | J92: =(('LiFFT_v1.4.0'!$H$26-moment_cd_relationship!A91)*((moment_cd_relationship!B91-moment_cd_relationship!B92)/(moment_cd_relationship!A91-moment_cd_relationship!A92))+moment_cd_relationship!B91)*'LiFFT_v1.4.0'!$J$26 ->  | K92: =(('LiFFT_v1.4.0'!$H$29-moment_cd_relationship!A91)*((moment_cd_relationship!B91-moment_cd_relationship!B92)/(moment_cd_relationship!A91-moment_cd_relationship!A92))+moment_cd_relationship!B91)*'LiFFT_v1.4.0'!$J$29 ->  | L92: =(('LiFFT_v1.4.0'!$H$32-moment_cd_relationship!A91)*((moment_cd_relationship!B91-moment_cd_relationship!B92)/(moment_cd_relationship!A91-moment_cd_relationship!A92))+moment_cd_relationship!B91)*'LiFFT_v1.4.0'!$J$32 -> 
A93: 90 | B93: 0.0001505 | C93: =(('LiFFT_v1.4.0'!$H$5-moment_cd_relationship!A92)*((moment_cd_relationship!B92-moment_cd_relationship!B93)/(moment_cd_relationship!A92-moment_cd_relationship!A93))+moment_cd_relationship!B92)*'LiFFT_v1.4.0'!$J$5 -> -0.618 | D93: =(('LiFFT_v1.4.0'!$H$8-moment_cd_relationship!A92)*((moment_cd_relationship!B92-moment_cd_relationship!B93)/(moment_cd_relationship!A92-moment_cd_relationship!A93))+moment_cd_relationship!B92)*'LiFFT_v1.4.0'!$J$8 ->  | E93: =(('LiFFT_v1.4.0'!$H$11-moment_cd_relationship!A92)*((moment_cd_relationship!B92-moment_cd_relationship!B93)/(moment_cd_relationship!A92-moment_cd_relationship!A93))+moment_cd_relationship!B92)*'LiFFT_v1.4.0'!$J$11 ->  | F93: =(('LiFFT_v1.4.0'!$H$14-moment_cd_relationship!A92)*((moment_cd_relationship!B92-moment_cd_relationship!B93)/(moment_cd_relationship!A92-moment_cd_relationship!A93))+moment_cd_relationship!B92)*'LiFFT_v1.4.0'!$J$14 ->  | G93: =(('LiFFT_v1.4.0'!$H$17-moment_cd_relationship!A92)*((moment_cd_relationship!B92-moment_cd_relationship!B93)/(moment_cd_relationship!A92-moment_cd_relationship!A93))+moment_cd_relationship!B92)*'LiFFT_v1.4.0'!$J$17 ->  | H93: =(('LiFFT_v1.4.0'!$H$20-moment_cd_relationship!A92)*((moment_cd_relationship!B92-moment_cd_relationship!B93)/(moment_cd_relationship!A92-moment_cd_relationship!A93))+moment_cd_relationship!B92)*'LiFFT_v1.4.0'!$J$20 ->  | I93: =(('LiFFT_v1.4.0'!$H$23-moment_cd_relationship!A92)*((moment_cd_relationship!B92-moment_cd_relationship!B93)/(moment_cd_relationship!A92-moment_cd_relationship!A93))+moment_cd_relationship!B92)*'LiFFT_v1.4.0'!$J$23 ->  | J93: =(('LiFFT_v1.4.0'!$H$26-moment_cd_relationship!A92)*((moment_cd_relationship!B92-moment_cd_relationship!B93)/(moment_cd_relationship!A92-moment_cd_relationship!A93))+moment_cd_relationship!B92)*'LiFFT_v1.4.0'!$J$26 ->  | K93: =(('LiFFT_v1.4.0'!$H$29-moment_cd_relationship!A92)*((moment_cd_relationship!B92-moment_cd_relationship!B93)/(moment_cd_relationship!A92-moment_cd_relationship!A93))+moment_cd_relationship!B92)*'LiFFT_v1.4.0'!$J$29 ->  | L93: =(('LiFFT_v1.4.0'!$H$32-moment_cd_relationship!A92)*((moment_cd_relationship!B92-moment_cd_relationship!B93)/(moment_cd_relationship!A92-moment_cd_relationship!A93))+moment_cd_relationship!B92)*'LiFFT_v1.4.0'!$J$32 -> 
A94: 91 | B94: 0.0001584 | C94: =(('LiFFT_v1.4.0'!$H$5-moment_cd_relationship!A93)*((moment_cd_relationship!B93-moment_cd_relationship!B94)/(moment_cd_relationship!A93-moment_cd_relationship!A94))+moment_cd_relationship!B93)*'LiFFT_v1.4.0'!$J$5 -> -0.663 | D94: =(('LiFFT_v1.4.0'!$H$8-moment_cd_relationship!A93)*((moment_cd_relationship!B93-moment_cd_relationship!B94)/(moment_cd_relationship!A93-moment_cd_relationship!A94))+moment_cd_relationship!B93)*'LiFFT_v1.4.0'!$J$8 ->  | E94: =(('LiFFT_v1.4.0'!$H$11-moment_cd_relationship!A93)*((moment_cd_relationship!B93-moment_cd_relationship!B94)/(moment_cd_relationship!A93-moment_cd_relationship!A94))+moment_cd_relationship!B93)*'LiFFT_v1.4.0'!$J$11 ->  | F94: =(('LiFFT_v1.4.0'!$H$14-moment_cd_relationship!A93)*((moment_cd_relationship!B93-moment_cd_relationship!B94)/(moment_cd_relationship!A93-moment_cd_relationship!A94))+moment_cd_relationship!B93)*'LiFFT_v1.4.0'!$J$14 ->  | G94: =(('LiFFT_v1.4.0'!$H$17-moment_cd_relationship!A93)*((moment_cd_relationship!B93-moment_cd_relationship!B94)/(moment_cd_relationship!A93-moment_cd_relationship!A94))+moment_cd_relationship!B93)*'LiFFT_v1.4.0'!$J$17 ->  | H94: =(('LiFFT_v1.4.0'!$H$20-moment_cd_relationship!A93)*((moment_cd_relationship!B93-moment_cd_relationship!B94)/(moment_cd_relationship!A93-moment_cd_relationship!A94))+moment_cd_relationship!B93)*'LiFFT_v1.4.0'!$J$20 ->  | I94: =(('LiFFT_v1.4.0'!$H$23-moment_cd_relationship!A93)*((moment_cd_relationship!B93-moment_cd_relationship!B94)/(moment_cd_relationship!A93-moment_cd_relationship!A94))+moment_cd_relationship!B93)*'LiFFT_v1.4.0'!$J$23 ->  | J94: =(('LiFFT_v1.4.0'!$H$26-moment_cd_relationship!A93)*((moment_cd_relationship!B93-moment_cd_relationship!B94)/(moment_cd_relationship!A93-moment_cd_relationship!A94))+moment_cd_relationship!B93)*'LiFFT_v1.4.0'!$J$26 ->  | K94: =(('LiFFT_v1.4.0'!$H$29-moment_cd_relationship!A93)*((moment_cd_relationship!B93-moment_cd_relationship!B94)/(moment_cd_relationship!A93-moment_cd_relationship!A94))+moment_cd_relationship!B93)*'LiFFT_v1.4.0'!$J$29 ->  | L94: =(('LiFFT_v1.4.0'!$H$32-moment_cd_relationship!A93)*((moment_cd_relationship!B93-moment_cd_relationship!B94)/(moment_cd_relationship!A93-moment_cd_relationship!A94))+moment_cd_relationship!B93)*'LiFFT_v1.4.0'!$J$32 -> 
A95: 92 | B95: 0.0001668 | C95: =(('LiFFT_v1.4.0'!$H$5-moment_cd_relationship!A94)*((moment_cd_relationship!B94-moment_cd_relationship!B95)/(moment_cd_relationship!A94-moment_cd_relationship!A95))+moment_cd_relationship!B94)*'LiFFT_v1.4.0'!$J$5 -> -0.72 | D95: =(('LiFFT_v1.4.0'!$H$8-moment_cd_relationship!A94)*((moment_cd_relationship!B94-moment_cd_relationship!B95)/(moment_cd_relationship!A94-moment_cd_relationship!A95))+moment_cd_relationship!B94)*'LiFFT_v1.4.0'!$J$8 ->  | E95: =(('LiFFT_v1.4.0'!$H$11-moment_cd_relationship!A94)*((moment_cd_relationship!B94-moment_cd_relationship!B95)/(moment_cd_relationship!A94-moment_cd_relationship!A95))+moment_cd_relationship!B94)*'LiFFT_v1.4.0'!$J$11 ->  | F95: =(('LiFFT_v1.4.0'!$H$14-moment_cd_relationship!A94)*((moment_cd_relationship!B94-moment_cd_relationship!B95)/(moment_cd_relationship!A94-moment_cd_relationship!A95))+moment_cd_relationship!B94)*'LiFFT_v1.4.0'!$J$14 ->  | G95: =(('LiFFT_v1.4.0'!$H$17-moment_cd_relationship!A94)*((moment_cd_relationship!B94-moment_cd_relationship!B95)/(moment_cd_relationship!A94-moment_cd_relationship!A95))+moment_cd_relationship!B94)*'LiFFT_v1.4.0'!$J$17 ->  | H95: =(('LiFFT_v1.4.0'!$H$20-moment_cd_relationship!A94)*((moment_cd_relationship!B94-moment_cd_relationship!B95)/(moment_cd_relationship!A94-moment_cd_relationship!A95))+moment_cd_relationship!B94)*'LiFFT_v1.4.0'!$J$20 ->  | I95: =(('LiFFT_v1.4.0'!$H$23-moment_cd_relationship!A94)*((moment_cd_relationship!B94-moment_cd_relationship!B95)/(moment_cd_relationship!A94-moment_cd_relationship!A95))+moment_cd_relationship!B94)*'LiFFT_v1.4.0'!$J$23 ->  | J95: =(('LiFFT_v1.4.0'!$H$26-moment_cd_relationship!A94)*((moment_cd_relationship!B94-moment_cd_relationship!B95)/(moment_cd_relationship!A94-moment_cd_relationship!A95))+moment_cd_relationship!B94)*'LiFFT_v1.4.0'!$J$26 ->  | K95: =(('LiFFT_v1.4.0'!$H$29-moment_cd_relationship!A94)*((moment_cd_relationship!B94-moment_cd_relationship!B95)/(moment_cd_relationship!A94-moment_cd_relationship!A95))+moment_cd_relationship!B94)*'LiFFT_v1.4.0'!$J$29 ->  | L95: =(('LiFFT_v1.4.0'!$H$32-moment_cd_relationship!A94)*((moment_cd_relationship!B94-moment_cd_relationship!B95)/(moment_cd_relationship!A94-moment_cd_relationship!A95))+moment_cd_relationship!B94)*'LiFFT_v1.4.0'!$J$32 -> 
A96: 93 | B96: 0.0001755 | C96: =(('LiFFT_v1.4.0'!$H$5-moment_cd_relationship!A95)*((moment_cd_relationship!B95-moment_cd_relationship!B96)/(moment_cd_relationship!A95-moment_cd_relationship!A96))+moment_cd_relationship!B95)*'LiFFT_v1.4.0'!$J$5 -> -0.75465 | D96: =(('LiFFT_v1.4.0'!$H$8-moment_cd_relationship!A95)*((moment_cd_relationship!B95-moment_cd_relationship!B96)/(moment_cd_relationship!A95-moment_cd_relationship!A96))+moment_cd_relationship!B95)*'LiFFT_v1.4.0'!$J$8 ->  | E96: =(('LiFFT_v1.4.0'!$H$11-moment_cd_relationship!A95)*((moment_cd_relationship!B95-moment_cd_relationship!B96)/(moment_cd_relationship!A95-moment_cd_relationship!A96))+moment_cd_relationship!B95)*'LiFFT_v1.4.0'!$J$11 ->  | F96: =(('LiFFT_v1.4.0'!$H$14-moment_cd_relationship!A95)*((moment_cd_relationship!B95-moment_cd_relationship!B96)/(moment_cd_relationship!A95-moment_cd_relationship!A96))+moment_cd_relationship!B95)*'LiFFT_v1.4.0'!$J$14 ->  | G96: =(('LiFFT_v1.4.0'!$H$17-moment_cd_relationship!A95)*((moment_cd_relationship!B95-moment_cd_relationship!B96)/(moment_cd_relationship!A95-moment_cd_relationship!A96))+moment_cd_relationship!B95)*'LiFFT_v1.4.0'!$J$17 ->  | H96: =(('LiFFT_v1.4.0'!$H$20-moment_cd_relationship!A95)*((moment_cd_relationship!B95-moment_cd_relationship!B96)/(moment_cd_relationship!A95-moment_cd_relationship!A96))+moment_cd_relationship!B95)*'LiFFT_v1.4.0'!$J$20 ->  | I96: =(('LiFFT_v1.4.0'!$H$23-moment_cd_relationship!A95)*((moment_cd_relationship!B95-moment_cd_relationship!B96)/(moment_cd_relationship!A95-moment_cd_relationship!A96))+moment_cd_relationship!B95)*'LiFFT_v1.4.0'!$J$23 ->  | J96: =(('LiFFT_v1.4.0'!$H$26-moment_cd_relationship!A95)*((moment_cd_relationship!B95-moment_cd_relationship!B96)/(moment_cd_relationship!A95-moment_cd_relationship!A96))+moment_cd_relationship!B95)*'LiFFT_v1.4.0'!$J$26 ->  | K96: =(('LiFFT_v1.4.0'!$H$29-moment_cd_relationship!A95)*((moment_cd_relationship!B95-moment_cd_relationship!B96)/(moment_cd_relationship!A95-moment_cd_relationship!A96))+moment_cd_relationship!B95)*'LiFFT_v1.4.0'!$J$29 ->  | L96: =(('LiFFT_v1.4.0'!$H$32-moment_cd_relationship!A95)*((moment_cd_relationship!B95-moment_cd_relationship!B96)/(moment_cd_relationship!A95-moment_cd_relationship!A96))+moment_cd_relationship!B95)*'LiFFT_v1.4.0'!$J$32 -> 
A97: 94 | B97: 0.0001848 | C97: =(('LiFFT_v1.4.0'!$H$5-moment_cd_relationship!A96)*((moment_cd_relationship!B96-moment_cd_relationship!B97)/(moment_cd_relationship!A96-moment_cd_relationship!A97))+moment_cd_relationship!B96)*'LiFFT_v1.4.0'!$J$5 -> -0.82485 | D97: =(('LiFFT_v1.4.0'!$H$8-moment_cd_relationship!A96)*((moment_cd_relationship!B96-moment_cd_relationship!B97)/(moment_cd_relationship!A96-moment_cd_relationship!A97))+moment_cd_relationship!B96)*'LiFFT_v1.4.0'!$J$8 ->  | E97: =(('LiFFT_v1.4.0'!$H$11-moment_cd_relationship!A96)*((moment_cd_relationship!B96-moment_cd_relationship!B97)/(moment_cd_relationship!A96-moment_cd_relationship!A97))+moment_cd_relationship!B96)*'LiFFT_v1.4.0'!$J$11 ->  | F97: =(('LiFFT_v1.4.0'!$H$14-moment_cd_relationship!A96)*((moment_cd_relationship!B96-moment_cd_relationship!B97)/(moment_cd_relationship!A96-moment_cd_relationship!A97))+moment_cd_relationship!B96)*'LiFFT_v1.4.0'!$J$14 ->  | G97: =(('LiFFT_v1.4.0'!$H$17-moment_cd_relationship!A96)*((moment_cd_relationship!B96-moment_cd_relationship!B97)/(moment_cd_relationship!A96-moment_cd_relationship!A97))+moment_cd_relationship!B96)*'LiFFT_v1.4.0'!$J$17 ->  | H97: =(('LiFFT_v1.4.0'!$H$20-moment_cd_relationship!A96)*((moment_cd_relationship!B96-moment_cd_relationship!B97)/(moment_cd_relationship!A96-moment_cd_relationship!A97))+moment_cd_relationship!B96)*'LiFFT_v1.4.0'!$J$20 ->  | I97: =(('LiFFT_v1.4.0'!$H$23-moment_cd_relationship!A96)*((moment_cd_relationship!B96-moment_cd_relationship!B97)/(moment_cd_relationship!A96-moment_cd_relationship!A97))+moment_cd_relationship!B96)*'LiFFT_v1.4.0'!$J$23 ->  | J97: =(('LiFFT_v1.4.0'!$H$26-moment_cd_relationship!A96)*((moment_cd_relationship!B96-moment_cd_relationship!B97)/(moment_cd_relationship!A96-moment_cd_relationship!A97))+moment_cd_relationship!B96)*'LiFFT_v1.4.0'!$J$26 ->  | K97: =(('LiFFT_v1.4.0'!$H$29-moment_cd_relationship!A96)*((moment_cd_relationship!B96-moment_cd_relationship!B97)/(moment_cd_relationship!A96-moment_cd_relationship!A97))+moment_cd_relationship!B96)*'LiFFT_v1.4.0'!$J$29 ->  | L97: =(('LiFFT_v1.4.0'!$H$32-moment_cd_relationship!A96)*((moment_cd_relationship!B96-moment_cd_relationship!B97)/(moment_cd_relationship!A96-moment_cd_relationship!A97))+moment_cd_relationship!B96)*'LiFFT_v1.4.0'!$J$32 -> 
A98: 95 | B98: 0.0001945 | C98: =(('LiFFT_v1.4.0'!$H$5-moment_cd_relationship!A97)*((moment_cd_relationship!B97-moment_cd_relationship!B98)/(moment_cd_relationship!A97-moment_cd_relationship!A98))+moment_cd_relationship!B97)*'LiFFT_v1.4.0'!$J$5 -> -0.87225 | D98: =(('LiFFT_v1.4.0'!$H$8-moment_cd_relationship!A97)*((moment_cd_relationship!B97-moment_cd_relationship!B98)/(moment_cd_relationship!A97-moment_cd_relationship!A98))+moment_cd_relationship!B97)*'LiFFT_v1.4.0'!$J$8 ->  | E98: =(('LiFFT_v1.4.0'!$H$11-moment_cd_relationship!A97)*((moment_cd_relationship!B97-moment_cd_relationship!B98)/(moment_cd_relationship!A97-moment_cd_relationship!A98))+moment_cd_relationship!B97)*'LiFFT_v1.4.0'!$J$11 ->  | F98: =(('LiFFT_v1.4.0'!$H$14-moment_cd_relationship!A97)*((moment_cd_relationship!B97-moment_cd_relationship!B98)/(moment_cd_relationship!A97-moment_cd_relationship!A98))+moment_cd_relationship!B97)*'LiFFT_v1.4.0'!$J$14 ->  | G98: =(('LiFFT_v1.4.0'!$H$17-moment_cd_relationship!A97)*((moment_cd_relationship!B97-moment_cd_relationship!B98)/(moment_cd_relationship!A97-moment_cd_relationship!A98))+moment_cd_relationship!B97)*'LiFFT_v1.4.0'!$J$17 ->  | H98: =(('LiFFT_v1.4.0'!$H$20-moment_cd_relationship!A97)*((moment_cd_relationship!B97-moment_cd_relationship!B98)/(moment_cd_relationship!A97-moment_cd_relationship!A98))+moment_cd_relationship!B97)*'LiFFT_v1.4.0'!$J$20 ->  | I98: =(('LiFFT_v1.4.0'!$H$23-moment_cd_relationship!A97)*((moment_cd_relationship!B97-moment_cd_relationship!B98)/(moment_cd_relationship!A97-moment_cd_relationship!A98))+moment_cd_relationship!B97)*'LiFFT_v1.4.0'!$J$23 ->  | J98: =(('LiFFT_v1.4.0'!$H$26-moment_cd_relationship!A97)*((moment_cd_relationship!B97-moment_cd_relationship!B98)/(moment_cd_relationship!A97-moment_cd_relationship!A98))+moment_cd_relationship!B97)*'LiFFT_v1.4.0'!$J$26 ->  | K98: =(('LiFFT_v1.4.0'!$H$29-moment_cd_relationship!A97)*((moment_cd_relationship!B97-moment_cd_relationship!B98)/(moment_cd_relationship!A97-moment_cd_relationship!A98))+moment_cd_relationship!B97)*'LiFFT_v1.4.0'!$J$29 ->  | L98: =(('LiFFT_v1.4.0'!$H$32-moment_cd_relationship!A97)*((moment_cd_relationship!B97-moment_cd_relationship!B98)/(moment_cd_relationship!A97-moment_cd_relationship!A98))+moment_cd_relationship!B97)*'LiFFT_v1.4.0'!$J$32 -> 
A99: 96 | B99: 0.0002047 | C99: =(('LiFFT_v1.4.0'!$H$5-moment_cd_relationship!A98)*((moment_cd_relationship!B98-moment_cd_relationship!B99)/(moment_cd_relationship!A98-moment_cd_relationship!A99))+moment_cd_relationship!B98)*'LiFFT_v1.4.0'!$J$5 -> -0.93225 | D99: =(('LiFFT_v1.4.0'!$H$8-moment_cd_relationship!A98)*((moment_cd_relationship!B98-moment_cd_relationship!B99)/(moment_cd_relationship!A98-moment_cd_relationship!A99))+moment_cd_relationship!B98)*'LiFFT_v1.4.0'!$J$8 ->  | E99: =(('LiFFT_v1.4.0'!$H$11-moment_cd_relationship!A98)*((moment_cd_relationship!B98-moment_cd_relationship!B99)/(moment_cd_relationship!A98-moment_cd_relationship!A99))+moment_cd_relationship!B98)*'LiFFT_v1.4.0'!$J$11 ->  | F99: =(('LiFFT_v1.4.0'!$H$14-moment_cd_relationship!A98)*((moment_cd_relationship!B98-moment_cd_relationship!B99)/(moment_cd_relationship!A98-moment_cd_relationship!A99))+moment_cd_relationship!B98)*'LiFFT_v1.4.0'!$J$14 ->  | G99: =(('LiFFT_v1.4.0'!$H$17-moment_cd_relationship!A98)*((moment_cd_relationship!B98-moment_cd_relationship!B99)/(moment_cd_relationship!A98-moment_cd_relationship!A99))+moment_cd_relationship!B98)*'LiFFT_v1.4.0'!$J$17 ->  | H99: =(('LiFFT_v1.4.0'!$H$20-moment_cd_relationship!A98)*((moment_cd_relationship!B98-moment_cd_relationship!B99)/(moment_cd_relationship!A98-moment_cd_relationship!A99))+moment_cd_relationship!B98)*'LiFFT_v1.4.0'!$J$20 ->  | I99: =(('LiFFT_v1.4.0'!$H$23-moment_cd_relationship!A98)*((moment_cd_relationship!B98-moment_cd_relationship!B99)/(moment_cd_relationship!A98-moment_cd_relationship!A99))+moment_cd_relationship!B98)*'LiFFT_v1.4.0'!$J$23 ->  | J99: =(('LiFFT_v1.4.0'!$H$26-moment_cd_relationship!A98)*((moment_cd_relationship!B98-moment_cd_relationship!B99)/(moment_cd_relationship!A98-moment_cd_relationship!A99))+moment_cd_relationship!B98)*'LiFFT_v1.4.0'!$J$26 ->  | K99: =(('LiFFT_v1.4.0'!$H$29-moment_cd_relationship!A98)*((moment_cd_relationship!B98-moment_cd_relationship!B99)/(moment_cd_relationship!A98-moment_cd_relationship!A99))+moment_cd_relationship!B98)*'LiFFT_v1.4.0'!$J$29 ->  | L99: =(('LiFFT_v1.4.0'!$H$32-moment_cd_relationship!A98)*((moment_cd_relationship!B98-moment_cd_relationship!B99)/(moment_cd_relationship!A98-moment_cd_relationship!A99))+moment_cd_relationship!B98)*'LiFFT_v1.4.0'!$J$32 -> 
A100: 97 | B100: 0.0002155 | C100: =(('LiFFT_v1.4.0'!$H$5-moment_cd_relationship!A99)*((moment_cd_relationship!B99-moment_cd_relationship!B100)/(moment_cd_relationship!A99-moment_cd_relationship!A100))+moment_cd_relationship!B99)*'LiFFT_v1.4.0'!$J$5 -> -1.00515 | D100: =(('LiFFT_v1.4.0'!$H$8-moment_cd_relationship!A99)*((moment_cd_relationship!B99-moment_cd_relationship!B100)/(moment_cd_relationship!A99-moment_cd_relationship!A100))+moment_cd_relationship!B99)*'LiFFT_v1.4.0'!$J$8 ->  | E100: =(('LiFFT_v1.4.0'!$H$11-moment_cd_relationship!A99)*((moment_cd_relationship!B99-moment_cd_relationship!B100)/(moment_cd_relationship!A99-moment_cd_relationship!A100))+moment_cd_relationship!B99)*'LiFFT_v1.4.0'!$J$11 ->  | F100: =(('LiFFT_v1.4.0'!$H$14-moment_cd_relationship!A99)*((moment_cd_relationship!B99-moment_cd_relationship!B100)/(moment_cd_relationship!A99-moment_cd_relationship!A100))+moment_cd_relationship!B99)*'LiFFT_v1.4.0'!$J$14 ->  | G100: =(('LiFFT_v1.4.0'!$H$17-moment_cd_relationship!A99)*((moment_cd_relationship!B99-moment_cd_relationship!B100)/(moment_cd_relationship!A99-moment_cd_relationship!A100))+moment_cd_relationship!B99)*'LiFFT_v1.4.0'!$J$17 ->  | H100: =(('LiFFT_v1.4.0'!$H$20-moment_cd_relationship!A99)*((moment_cd_relationship!B99-moment_cd_relationship!B100)/(moment_cd_relationship!A99-moment_cd_relationship!A100))+moment_cd_relationship!B99)*'LiFFT_v1.4.0'!$J$20 ->  | I100: =(('LiFFT_v1.4.0'!$H$23-moment_cd_relationship!A99)*((moment_cd_relationship!B99-moment_cd_relationship!B100)/(moment_cd_relationship!A99-moment_cd_relationship!A100))+moment_cd_relationship!B99)*'LiFFT_v1.4.0'!$J$23 ->  | J100: =(('LiFFT_v1.4.0'!$H$26-moment_cd_relationship!A99)*((moment_cd_relationship!B99-moment_cd_relationship!B100)/(moment_cd_relationship!A99-moment_cd_relationship!A100))+moment_cd_relationship!B99)*'LiFFT_v1.4.0'!$J$26 ->  | K100: =(('LiFFT_v1.4.0'!$H$29-moment_cd_relationship!A99)*((moment_cd_relationship!B99-moment_cd_relationship!B100)/(moment_cd_relationship!A99-moment_cd_relationship!A100))+moment_cd_relationship!B99)*'LiFFT_v1.4.0'!$J$29 ->  | L100: =(('LiFFT_v1.4.0'!$H$32-moment_cd_relationship!A99)*((moment_cd_relationship!B99-moment_cd_relationship!B100)/(moment_cd_relationship!A99-moment_cd_relationship!A100))+moment_cd_relationship!B99)*'LiFFT_v1.4.0'!$J$32 -> 
A101: 98 | B101: 0.0002269 | C101: =(('LiFFT_v1.4.0'!$H$5-moment_cd_relationship!A100)*((moment_cd_relationship!B100-moment_cd_relationship!B101)/(moment_cd_relationship!A100-moment_cd_relationship!A101))+moment_cd_relationship!B100)*'LiFFT_v1.4.0'!$J$5 -> -1.07895 | D101: =(('LiFFT_v1.4.0'!$H$8-moment_cd_relationship!A100)*((moment_cd_relationship!B100-moment_cd_relationship!B101)/(moment_cd_relationship!A100-moment_cd_relationship!A101))+moment_cd_relationship!B100)*'LiFFT_v1.4.0'!$J$8 ->  | E101: =(('LiFFT_v1.4.0'!$H$11-moment_cd_relationship!A100)*((moment_cd_relationship!B100-moment_cd_relationship!B101)/(moment_cd_relationship!A100-moment_cd_relationship!A101))+moment_cd_relationship!B100)*'LiFFT_v1.4.0'!$J$11 ->  | F101: =(('LiFFT_v1.4.0'!$H$14-moment_cd_relationship!A100)*((moment_cd_relationship!B100-moment_cd_relationship!B101)/(moment_cd_relationship!A100-moment_cd_relationship!A101))+moment_cd_relationship!B100)*'LiFFT_v1.4.0'!$J$14 ->  | G101: =(('LiFFT_v1.4.0'!$H$17-moment_cd_relationship!A100)*((moment_cd_relationship!B100-moment_cd_relationship!B101)/(moment_cd_relationship!A100-moment_cd_relationship!A101))+moment_cd_relationship!B100)*'LiFFT_v1.4.0'!$J$17 ->  | H101: =(('LiFFT_v1.4.0'!$H$20-moment_cd_relationship!A100)*((moment_cd_relationship!B100-moment_cd_relationship!B101)/(moment_cd_relationship!A100-moment_cd_relationship!A101))+moment_cd_relationship!B100)*'LiFFT_v1.4.0'!$J$20 ->  | I101: =(('LiFFT_v1.4.0'!$H$23-moment_cd_relationship!A100)*((moment_cd_relationship!B100-moment_cd_relationship!B101)/(moment_cd_relationship!A100-moment_cd_relationship!A101))+moment_cd_relationship!B100)*'LiFFT_v1.4.0'!$J$23 ->  | J101: =(('LiFFT_v1.4.0'!$H$26-moment_cd_relationship!A100)*((moment_cd_relationship!B100-moment_cd_relationship!B101)/(moment_cd_relationship!A100-moment_cd_relationship!A101))+moment_cd_relationship!B100)*'LiFFT_v1.4.0'!$J$26 ->  | K101: =(('LiFFT_v1.4.0'!$H$29-moment_cd_relationship!A100)*((moment_cd_relationship!B100-moment_cd_relationship!B101)/(moment_cd_relationship!A100-moment_cd_relationship!A101))+moment_cd_relationship!B100)*'LiFFT_v1.4.0'!$J$29 ->  | L101: =(('LiFFT_v1.4.0'!$H$32-moment_cd_relationship!A100)*((moment_cd_relationship!B100-moment_cd_relationship!B101)/(moment_cd_relationship!A100-moment_cd_relationship!A101))+moment_cd_relationship!B100)*'LiFFT_v1.4.0'!$J$32 -> 
A102: 99 | B102: 0.0002388 | C102: =(('LiFFT_v1.4.0'!$H$5-moment_cd_relationship!A101)*((moment_cd_relationship!B101-moment_cd_relationship!B102)/(moment_cd_relationship!A101-moment_cd_relationship!A102))+moment_cd_relationship!B101)*'LiFFT_v1.4.0'!$J$5 -> -1.1412 | D102: =(('LiFFT_v1.4.0'!$H$8-moment_cd_relationship!A101)*((moment_cd_relationship!B101-moment_cd_relationship!B102)/(moment_cd_relationship!A101-moment_cd_relationship!A102))+moment_cd_relationship!B101)*'LiFFT_v1.4.0'!$J$8 ->  | E102: =(('LiFFT_v1.4.0'!$H$11-moment_cd_relationship!A101)*((moment_cd_relationship!B101-moment_cd_relationship!B102)/(moment_cd_relationship!A101-moment_cd_relationship!A102))+moment_cd_relationship!B101)*'LiFFT_v1.4.0'!$J$11 ->  | F102: =(('LiFFT_v1.4.0'!$H$14-moment_cd_relationship!A101)*((moment_cd_relationship!B101-moment_cd_relationship!B102)/(moment_cd_relationship!A101-moment_cd_relationship!A102))+moment_cd_relationship!B101)*'LiFFT_v1.4.0'!$J$14 ->  | G102: =(('LiFFT_v1.4.0'!$H$17-moment_cd_relationship!A101)*((moment_cd_relationship!B101-moment_cd_relationship!B102)/(moment_cd_relationship!A101-moment_cd_relationship!A102))+moment_cd_relationship!B101)*'LiFFT_v1.4.0'!$J$17 ->  | H102: =(('LiFFT_v1.4.0'!$H$20-moment_cd_relationship!A101)*((moment_cd_relationship!B101-moment_cd_relationship!B102)/(moment_cd_relationship!A101-moment_cd_relationship!A102))+moment_cd_relationship!B101)*'LiFFT_v1.4.0'!$J$20 ->  | I102: =(('LiFFT_v1.4.0'!$H$23-moment_cd_relationship!A101)*((moment_cd_relationship!B101-moment_cd_relationship!B102)/(moment_cd_relationship!A101-moment_cd_relationship!A102))+moment_cd_relationship!B101)*'LiFFT_v1.4.0'!$J$23 ->  | J102: =(('LiFFT_v1.4.0'!$H$26-moment_cd_relationship!A101)*((moment_cd_relationship!B101-moment_cd_relationship!B102)/(moment_cd_relationship!A101-moment_cd_relationship!A102))+moment_cd_relationship!B101)*'LiFFT_v1.4.0'!$J$26 ->  | K102: =(('LiFFT_v1.4.0'!$H$29-moment_cd_relationship!A101)*((moment_cd_relationship!B101-moment_cd_relationship!B102)/(moment_cd_relationship!A101-moment_cd_relationship!A102))+moment_cd_relationship!B101)*'LiFFT_v1.4.0'!$J$29 ->  | L102: =(('LiFFT_v1.4.0'!$H$32-moment_cd_relationship!A101)*((moment_cd_relationship!B101-moment_cd_relationship!B102)/(moment_cd_relationship!A101-moment_cd_relationship!A102))+moment_cd_relationship!B101)*'LiFFT_v1.4.0'!$J$32 -> 
A103: 100 | B103: 0.0002514 | C103: =(('LiFFT_v1.4.0'!$H$5-moment_cd_relationship!A102)*((moment_cd_relationship!B102-moment_cd_relationship!B103)/(moment_cd_relationship!A102-moment_cd_relationship!A103))+moment_cd_relationship!B102)*'LiFFT_v1.4.0'!$J$5 -> -1.2294 | D103: =(('LiFFT_v1.4.0'!$H$8-moment_cd_relationship!A102)*((moment_cd_relationship!B102-moment_cd_relationship!B103)/(moment_cd_relationship!A102-moment_cd_relationship!A103))+moment_cd_relationship!B102)*'LiFFT_v1.4.0'!$J$8 ->  | E103: =(('LiFFT_v1.4.0'!$H$11-moment_cd_relationship!A102)*((moment_cd_relationship!B102-moment_cd_relationship!B103)/(moment_cd_relationship!A102-moment_cd_relationship!A103))+moment_cd_relationship!B102)*'LiFFT_v1.4.0'!$J$11 ->  | F103: =(('LiFFT_v1.4.0'!$H$14-moment_cd_relationship!A102)*((moment_cd_relationship!B102-moment_cd_relationship!B103)/(moment_cd_relationship!A102-moment_cd_relationship!A103))+moment_cd_relationship!B102)*'LiFFT_v1.4.0'!$J$14 ->  | G103: =(('LiFFT_v1.4.0'!$H$17-moment_cd_relationship!A102)*((moment_cd_relationship!B102-moment_cd_relationship!B103)/(moment_cd_relationship!A102-moment_cd_relationship!A103))+moment_cd_relationship!B102)*'LiFFT_v1.4.0'!$J$17 ->  | H103: =(('LiFFT_v1.4.0'!$H$20-moment_cd_relationship!A102)*((moment_cd_relationship!B102-moment_cd_relationship!B103)/(moment_cd_relationship!A102-moment_cd_relationship!A103))+moment_cd_relationship!B102)*'LiFFT_v1.4.0'!$J$20 ->  | I103: =(('LiFFT_v1.4.0'!$H$23-moment_cd_relationship!A102)*((moment_cd_relationship!B102-moment_cd_relationship!B103)/(moment_cd_relationship!A102-moment_cd_relationship!A103))+moment_cd_relationship!B102)*'LiFFT_v1.4.0'!$J$23 ->  | J103: =(('LiFFT_v1.4.0'!$H$26-moment_cd_relationship!A102)*((moment_cd_relationship!B102-moment_cd_relationship!B103)/(moment_cd_relationship!A102-moment_cd_relationship!A103))+moment_cd_relationship!B102)*'LiFFT_v1.4.0'!$J$26 ->  | K103: =(('LiFFT_v1.4.0'!$H$29-moment_cd_relationship!A102)*((moment_cd_relationship!B102-moment_cd_relationship!B103)/(moment_cd_relationship!A102-moment_cd_relationship!A103))+moment_cd_relationship!B102)*'LiFFT_v1.4.0'!$J$29 ->  | L103: =(('LiFFT_v1.4.0'!$H$32-moment_cd_relationship!A102)*((moment_cd_relationship!B102-moment_cd_relationship!B103)/(moment_cd_relationship!A102-moment_cd_relationship!A103))+moment_cd_relationship!B102)*'LiFFT_v1.4.0'!$J$32 -> 
A104: 101 | B104: 0.0002647 | C104: =(('LiFFT_v1.4.0'!$H$5-moment_cd_relationship!A103)*((moment_cd_relationship!B103-moment_cd_relationship!B104)/(moment_cd_relationship!A103-moment_cd_relationship!A104))+moment_cd_relationship!B103)*'LiFFT_v1.4.0'!$J$5 -> -1.31865 | D104: =(('LiFFT_v1.4.0'!$H$8-moment_cd_relationship!A103)*((moment_cd_relationship!B103-moment_cd_relationship!B104)/(moment_cd_relationship!A103-moment_cd_relationship!A104))+moment_cd_relationship!B103)*'LiFFT_v1.4.0'!$J$8 ->  | E104: =(('LiFFT_v1.4.0'!$H$11-moment_cd_relationship!A103)*((moment_cd_relationship!B103-moment_cd_relationship!B104)/(moment_cd_relationship!A103-moment_cd_relationship!A104))+moment_cd_relationship!B103)*'LiFFT_v1.4.0'!$J$11 ->  | F104: =(('LiFFT_v1.4.0'!$H$14-moment_cd_relationship!A103)*((moment_cd_relationship!B103-moment_cd_relationship!B104)/(moment_cd_relationship!A103-moment_cd_relationship!A104))+moment_cd_relationship!B103)*'LiFFT_v1.4.0'!$J$14 ->  | G104: =(('LiFFT_v1.4.0'!$H$17-moment_cd_relationship!A103)*((moment_cd_relationship!B103-moment_cd_relationship!B104)/(moment_cd_relationship!A103-moment_cd_relationship!A104))+moment_cd_relationship!B103)*'LiFFT_v1.4.0'!$J$17 ->  | H104: =(('LiFFT_v1.4.0'!$H$20-moment_cd_relationship!A103)*((moment_cd_relationship!B103-moment_cd_relationship!B104)/(moment_cd_relationship!A103-moment_cd_relationship!A104))+moment_cd_relationship!B103)*'LiFFT_v1.4.0'!$J$20 ->  | I104: =(('LiFFT_v1.4.0'!$H$23-moment_cd_relationship!A103)*((moment_cd_relationship!B103-moment_cd_relationship!B104)/(moment_cd_relationship!A103-moment_cd_relationship!A104))+moment_cd_relationship!B103)*'LiFFT_v1.4.0'!$J$23 ->  | J104: =(('LiFFT_v1.4.0'!$H$26-moment_cd_relationship!A103)*((moment_cd_relationship!B103-moment_cd_relationship!B104)/(moment_cd_relationship!A103-moment_cd_relationship!A104))+moment_cd_relationship!B103)*'LiFFT_v1.4.0'!$J$26 ->  | K104: =(('LiFFT_v1.4.0'!$H$29-moment_cd_relationship!A103)*((moment_cd_relationship!B103-moment_cd_relationship!B104)/(moment_cd_relationship!A103-moment_cd_relationship!A104))+moment_cd_relationship!B103)*'LiFFT_v1.4.0'!$J$29 ->  | L104: =(('LiFFT_v1.4.0'!$H$32-moment_cd_relationship!A103)*((moment_cd_relationship!B103-moment_cd_relationship!B104)/(moment_cd_relationship!A103-moment_cd_relationship!A104))+moment_cd_relationship!B103)*'LiFFT_v1.4.0'!$J$32 -> 
A105: 102 | B105: 0.0002787 | C105: =(('LiFFT_v1.4.0'!$H$5-moment_cd_relationship!A104)*((moment_cd_relationship!B104-moment_cd_relationship!B105)/(moment_cd_relationship!A104-moment_cd_relationship!A105))+moment_cd_relationship!B104)*'LiFFT_v1.4.0'!$J$5 -> -1.40895 | D105: =(('LiFFT_v1.4.0'!$H$8-moment_cd_relationship!A104)*((moment_cd_relationship!B104-moment_cd_relationship!B105)/(moment_cd_relationship!A104-moment_cd_relationship!A105))+moment_cd_relationship!B104)*'LiFFT_v1.4.0'!$J$8 ->  | E105: =(('LiFFT_v1.4.0'!$H$11-moment_cd_relationship!A104)*((moment_cd_relationship!B104-moment_cd_relationship!B105)/(moment_cd_relationship!A104-moment_cd_relationship!A105))+moment_cd_relationship!B104)*'LiFFT_v1.4.0'!$J$11 ->  | F105: =(('LiFFT_v1.4.0'!$H$14-moment_cd_relationship!A104)*((moment_cd_relationship!B104-moment_cd_relationship!B105)/(moment_cd_relationship!A104-moment_cd_relationship!A105))+moment_cd_relationship!B104)*'LiFFT_v1.4.0'!$J$14 ->  | G105: =(('LiFFT_v1.4.0'!$H$17-moment_cd_relationship!A104)*((moment_cd_relationship!B104-moment_cd_relationship!B105)/(moment_cd_relationship!A104-moment_cd_relationship!A105))+moment_cd_relationship!B104)*'LiFFT_v1.4.0'!$J$17 ->  | H105: =(('LiFFT_v1.4.0'!$H$20-moment_cd_relationship!A104)*((moment_cd_relationship!B104-moment_cd_relationship!B105)/(moment_cd_relationship!A104-moment_cd_relationship!A105))+moment_cd_relationship!B104)*'LiFFT_v1.4.0'!$J$20 ->  | I105: =(('LiFFT_v1.4.0'!$H$23-moment_cd_relationship!A104)*((moment_cd_relationship!B104-moment_cd_relationship!B105)/(moment_cd_relationship!A104-moment_cd_relationship!A105))+moment_cd_relationship!B104)*'LiFFT_v1.4.0'!$J$23 ->  | J105: =(('LiFFT_v1.4.0'!$H$26-moment_cd_relationship!A104)*((moment_cd_relationship!B104-moment_cd_relationship!B105)/(moment_cd_relationship!A104-moment_cd_relationship!A105))+moment_cd_relationship!B104)*'LiFFT_v1.4.0'!$J$26 ->  | K105: =(('LiFFT_v1.4.0'!$H$29-moment_cd_relationship!A104)*((moment_cd_relationship!B104-moment_cd_relationship!B105)/(moment_cd_relationship!A104-moment_cd_relationship!A105))+moment_cd_relationship!B104)*'LiFFT_v1.4.0'!$J$29 ->  | L105: =(('LiFFT_v1.4.0'!$H$32-moment_cd_relationship!A104)*((moment_cd_relationship!B104-moment_cd_relationship!B105)/(moment_cd_relationship!A104-moment_cd_relationship!A105))+moment_cd_relationship!B104)*'LiFFT_v1.4.0'!$J$32 -> 
A106: 103 | B106: 0.0002934 | C106: =(('LiFFT_v1.4.0'!$H$5-moment_cd_relationship!A105)*((moment_cd_relationship!B105-moment_cd_relationship!B106)/(moment_cd_relationship!A105-moment_cd_relationship!A106))+moment_cd_relationship!B105)*'LiFFT_v1.4.0'!$J$5 -> -1.5003 | D106: =(('LiFFT_v1.4.0'!$H$8-moment_cd_relationship!A105)*((moment_cd_relationship!B105-moment_cd_relationship!B106)/(moment_cd_relationship!A105-moment_cd_relationship!A106))+moment_cd_relationship!B105)*'LiFFT_v1.4.0'!$J$8 ->  | E106: =(('LiFFT_v1.4.0'!$H$11-moment_cd_relationship!A105)*((moment_cd_relationship!B105-moment_cd_relationship!B106)/(moment_cd_relationship!A105-moment_cd_relationship!A106))+moment_cd_relationship!B105)*'LiFFT_v1.4.0'!$J$11 ->  | F106: =(('LiFFT_v1.4.0'!$H$14-moment_cd_relationship!A105)*((moment_cd_relationship!B105-moment_cd_relationship!B106)/(moment_cd_relationship!A105-moment_cd_relationship!A106))+moment_cd_relationship!B105)*'LiFFT_v1.4.0'!$J$14 ->  | G106: =(('LiFFT_v1.4.0'!$H$17-moment_cd_relationship!A105)*((moment_cd_relationship!B105-moment_cd_relationship!B106)/(moment_cd_relationship!A105-moment_cd_relationship!A106))+moment_cd_relationship!B105)*'LiFFT_v1.4.0'!$J$17 ->  | H106: =(('LiFFT_v1.4.0'!$H$20-moment_cd_relationship!A105)*((moment_cd_relationship!B105-moment_cd_relationship!B106)/(moment_cd_relationship!A105-moment_cd_relationship!A106))+moment_cd_relationship!B105)*'LiFFT_v1.4.0'!$J$20 ->  | I106: =(('LiFFT_v1.4.0'!$H$23-moment_cd_relationship!A105)*((moment_cd_relationship!B105-moment_cd_relationship!B106)/(moment_cd_relationship!A105-moment_cd_relationship!A106))+moment_cd_relationship!B105)*'LiFFT_v1.4.0'!$J$23 ->  | J106: =(('LiFFT_v1.4.0'!$H$26-moment_cd_relationship!A105)*((moment_cd_relationship!B105-moment_cd_relationship!B106)/(moment_cd_relationship!A105-moment_cd_relationship!A106))+moment_cd_relationship!B105)*'LiFFT_v1.4.0'!$J$26 ->  | K106: =(('LiFFT_v1.4.0'!$H$29-moment_cd_relationship!A105)*((moment_cd_relationship!B105-moment_cd_relationship!B106)/(moment_cd_relationship!A105-moment_cd_relationship!A106))+moment_cd_relationship!B105)*'LiFFT_v1.4.0'!$J$29 ->  | L106: =(('LiFFT_v1.4.0'!$H$32-moment_cd_relationship!A105)*((moment_cd_relationship!B105-moment_cd_relationship!B106)/(moment_cd_relationship!A105-moment_cd_relationship!A106))+moment_cd_relationship!B105)*'LiFFT_v1.4.0'!$J$32 -> 
A107: 104 | B107: 0.0003089 | C107: =(('LiFFT_v1.4.0'!$H$5-moment_cd_relationship!A106)*((moment_cd_relationship!B106-moment_cd_relationship!B107)/(moment_cd_relationship!A106-moment_cd_relationship!A107))+moment_cd_relationship!B106)*'LiFFT_v1.4.0'!$J$5 -> -1.6059 | D107: =(('LiFFT_v1.4.0'!$H$8-moment_cd_relationship!A106)*((moment_cd_relationship!B106-moment_cd_relationship!B107)/(moment_cd_relationship!A106-moment_cd_relationship!A107))+moment_cd_relationship!B106)*'LiFFT_v1.4.0'!$J$8 ->  | E107: =(('LiFFT_v1.4.0'!$H$11-moment_cd_relationship!A106)*((moment_cd_relationship!B106-moment_cd_relationship!B107)/(moment_cd_relationship!A106-moment_cd_relationship!A107))+moment_cd_relationship!B106)*'LiFFT_v1.4.0'!$J$11 ->  | F107: =(('LiFFT_v1.4.0'!$H$14-moment_cd_relationship!A106)*((moment_cd_relationship!B106-moment_cd_relationship!B107)/(moment_cd_relationship!A106-moment_cd_relationship!A107))+moment_cd_relationship!B106)*'LiFFT_v1.4.0'!$J$14 ->  | G107: =(('LiFFT_v1.4.0'!$H$17-moment_cd_relationship!A106)*((moment_cd_relationship!B106-moment_cd_relationship!B107)/(moment_cd_relationship!A106-moment_cd_relationship!A107))+moment_cd_relationship!B106)*'LiFFT_v1.4.0'!$J$17 ->  | H107: =(('LiFFT_v1.4.0'!$H$20-moment_cd_relationship!A106)*((moment_cd_relationship!B106-moment_cd_relationship!B107)/(moment_cd_relationship!A106-moment_cd_relationship!A107))+moment_cd_relationship!B106)*'LiFFT_v1.4.0'!$J$20 ->  | I107: =(('LiFFT_v1.4.0'!$H$23-moment_cd_relationship!A106)*((moment_cd_relationship!B106-moment_cd_relationship!B107)/(moment_cd_relationship!A106-moment_cd_relationship!A107))+moment_cd_relationship!B106)*'LiFFT_v1.4.0'!$J$23 ->  | J107: =(('LiFFT_v1.4.0'!$H$26-moment_cd_relationship!A106)*((moment_cd_relationship!B106-moment_cd_relationship!B107)/(moment_cd_relationship!A106-moment_cd_relationship!A107))+moment_cd_relationship!B106)*'LiFFT_v1.4.0'!$J$26 ->  | K107: =(('LiFFT_v1.4.0'!$H$29-moment_cd_relationship!A106)*((moment_cd_relationship!B106-moment_cd_relationship!B107)/(moment_cd_relationship!A106-moment_cd_relationship!A107))+moment_cd_relationship!B106)*'LiFFT_v1.4.0'!$J$29 ->  | L107: =(('LiFFT_v1.4.0'!$H$32-moment_cd_relationship!A106)*((moment_cd_relationship!B106-moment_cd_relationship!B107)/(moment_cd_relationship!A106-moment_cd_relationship!A107))+moment_cd_relationship!B106)*'LiFFT_v1.4.0'!$J$32 -> 
A108: 105 | B108: 0.0003252 | C108: =(('LiFFT_v1.4.0'!$H$5-moment_cd_relationship!A107)*((moment_cd_relationship!B107-moment_cd_relationship!B108)/(moment_cd_relationship!A107-moment_cd_relationship!A108))+moment_cd_relationship!B107)*'LiFFT_v1.4.0'!$J$5 -> -1.7127 | D108: =(('LiFFT_v1.4.0'!$H$8-moment_cd_relationship!A107)*((moment_cd_relationship!B107-moment_cd_relationship!B108)/(moment_cd_relationship!A107-moment_cd_relationship!A108))+moment_cd_relationship!B107)*'LiFFT_v1.4.0'!$J$8 ->  | E108: =(('LiFFT_v1.4.0'!$H$11-moment_cd_relationship!A107)*((moment_cd_relationship!B107-moment_cd_relationship!B108)/(moment_cd_relationship!A107-moment_cd_relationship!A108))+moment_cd_relationship!B107)*'LiFFT_v1.4.0'!$J$11 ->  | F108: =(('LiFFT_v1.4.0'!$H$14-moment_cd_relationship!A107)*((moment_cd_relationship!B107-moment_cd_relationship!B108)/(moment_cd_relationship!A107-moment_cd_relationship!A108))+moment_cd_relationship!B107)*'LiFFT_v1.4.0'!$J$14 ->  | G108: =(('LiFFT_v1.4.0'!$H$17-moment_cd_relationship!A107)*((moment_cd_relationship!B107-moment_cd_relationship!B108)/(moment_cd_relationship!A107-moment_cd_relationship!A108))+moment_cd_relationship!B107)*'LiFFT_v1.4.0'!$J$17 ->  | H108: =(('LiFFT_v1.4.0'!$H$20-moment_cd_relationship!A107)*((moment_cd_relationship!B107-moment_cd_relationship!B108)/(moment_cd_relationship!A107-moment_cd_relationship!A108))+moment_cd_relationship!B107)*'LiFFT_v1.4.0'!$J$20 ->  | I108: =(('LiFFT_v1.4.0'!$H$23-moment_cd_relationship!A107)*((moment_cd_relationship!B107-moment_cd_relationship!B108)/(moment_cd_relationship!A107-moment_cd_relationship!A108))+moment_cd_relationship!B107)*'LiFFT_v1.4.0'!$J$23 ->  | J108: =(('LiFFT_v1.4.0'!$H$26-moment_cd_relationship!A107)*((moment_cd_relationship!B107-moment_cd_relationship!B108)/(moment_cd_relationship!A107-moment_cd_relationship!A108))+moment_cd_relationship!B107)*'LiFFT_v1.4.0'!$J$26 ->  | K108: =(('LiFFT_v1.4.0'!$H$29-moment_cd_relationship!A107)*((moment_cd_relationship!B107-moment_cd_relationship!B108)/(moment_cd_relationship!A107-moment_cd_relationship!A108))+moment_cd_relationship!B107)*'LiFFT_v1.4.0'!$J$29 ->  | L108: =(('LiFFT_v1.4.0'!$H$32-moment_cd_relationship!A107)*((moment_cd_relationship!B107-moment_cd_relationship!B108)/(moment_cd_relationship!A107-moment_cd_relationship!A108))+moment_cd_relationship!B107)*'LiFFT_v1.4.0'!$J$32 -> 
A109: 106 | B109: 0.0003423 | C109: =(('LiFFT_v1.4.0'!$H$5-moment_cd_relationship!A108)*((moment_cd_relationship!B108-moment_cd_relationship!B109)/(moment_cd_relationship!A108-moment_cd_relationship!A109))+moment_cd_relationship!B108)*'LiFFT_v1.4.0'!$J$5 -> -1.8207 | D109: =(('LiFFT_v1.4.0'!$H$8-moment_cd_relationship!A108)*((moment_cd_relationship!B108-moment_cd_relationship!B109)/(moment_cd_relationship!A108-moment_cd_relationship!A109))+moment_cd_relationship!B108)*'LiFFT_v1.4.0'!$J$8 ->  | E109: =(('LiFFT_v1.4.0'!$H$11-moment_cd_relationship!A108)*((moment_cd_relationship!B108-moment_cd_relationship!B109)/(moment_cd_relationship!A108-moment_cd_relationship!A109))+moment_cd_relationship!B108)*'LiFFT_v1.4.0'!$J$11 ->  | F109: =(('LiFFT_v1.4.0'!$H$14-moment_cd_relationship!A108)*((moment_cd_relationship!B108-moment_cd_relationship!B109)/(moment_cd_relationship!A108-moment_cd_relationship!A109))+moment_cd_relationship!B108)*'LiFFT_v1.4.0'!$J$14 ->  | G109: =(('LiFFT_v1.4.0'!$H$17-moment_cd_relationship!A108)*((moment_cd_relationship!B108-moment_cd_relationship!B109)/(moment_cd_relationship!A108-moment_cd_relationship!A109))+moment_cd_relationship!B108)*'LiFFT_v1.4.0'!$J$17 ->  | H109: =(('LiFFT_v1.4.0'!$H$20-moment_cd_relationship!A108)*((moment_cd_relationship!B108-moment_cd_relationship!B109)/(moment_cd_relationship!A108-moment_cd_relationship!A109))+moment_cd_relationship!B108)*'LiFFT_v1.4.0'!$J$20 ->  | I109: =(('LiFFT_v1.4.0'!$H$23-moment_cd_relationship!A108)*((moment_cd_relationship!B108-moment_cd_relationship!B109)/(moment_cd_relationship!A108-moment_cd_relationship!A109))+moment_cd_relationship!B108)*'LiFFT_v1.4.0'!$J$23 ->  | J109: =(('LiFFT_v1.4.0'!$H$26-moment_cd_relationship!A108)*((moment_cd_relationship!B108-moment_cd_relationship!B109)/(moment_cd_relationship!A108-moment_cd_relationship!A109))+moment_cd_relationship!B108)*'LiFFT_v1.4.0'!$J$26 ->  | K109: =(('LiFFT_v1.4.0'!$H$29-moment_cd_relationship!A108)*((moment_cd_relationship!B108-moment_cd_relationship!B109)/(moment_cd_relationship!A108-moment_cd_relationship!A109))+moment_cd_relationship!B108)*'LiFFT_v1.4.0'!$J$29 ->  | L109: =(('LiFFT_v1.4.0'!$H$32-moment_cd_relationship!A108)*((moment_cd_relationship!B108-moment_cd_relationship!B109)/(moment_cd_relationship!A108-moment_cd_relationship!A109))+moment_cd_relationship!B108)*'LiFFT_v1.4.0'!$J$32 -> 
A110: 107 | B110: 0.0003604 | C110: =(('LiFFT_v1.4.0'!$H$5-moment_cd_relationship!A109)*((moment_cd_relationship!B109-moment_cd_relationship!B110)/(moment_cd_relationship!A109-moment_cd_relationship!A110))+moment_cd_relationship!B109)*'LiFFT_v1.4.0'!$J$5 -> -1.9572 | D110: =(('LiFFT_v1.4.0'!$H$8-moment_cd_relationship!A109)*((moment_cd_relationship!B109-moment_cd_relationship!B110)/(moment_cd_relationship!A109-moment_cd_relationship!A110))+moment_cd_relationship!B109)*'LiFFT_v1.4.0'!$J$8 ->  | E110: =(('LiFFT_v1.4.0'!$H$11-moment_cd_relationship!A109)*((moment_cd_relationship!B109-moment_cd_relationship!B110)/(moment_cd_relationship!A109-moment_cd_relationship!A110))+moment_cd_relationship!B109)*'LiFFT_v1.4.0'!$J$11 ->  | F110: =(('LiFFT_v1.4.0'!$H$14-moment_cd_relationship!A109)*((moment_cd_relationship!B109-moment_cd_relationship!B110)/(moment_cd_relationship!A109-moment_cd_relationship!A110))+moment_cd_relationship!B109)*'LiFFT_v1.4.0'!$J$14 ->  | G110: =(('LiFFT_v1.4.0'!$H$17-moment_cd_relationship!A109)*((moment_cd_relationship!B109-moment_cd_relationship!B110)/(moment_cd_relationship!A109-moment_cd_relationship!A110))+moment_cd_relationship!B109)*'LiFFT_v1.4.0'!$J$17 ->  | H110: =(('LiFFT_v1.4.0'!$H$20-moment_cd_relationship!A109)*((moment_cd_relationship!B109-moment_cd_relationship!B110)/(moment_cd_relationship!A109-moment_cd_relationship!A110))+moment_cd_relationship!B109)*'LiFFT_v1.4.0'!$J$20 ->  | I110: =(('LiFFT_v1.4.0'!$H$23-moment_cd_relationship!A109)*((moment_cd_relationship!B109-moment_cd_relationship!B110)/(moment_cd_relationship!A109-moment_cd_relationship!A110))+moment_cd_relationship!B109)*'LiFFT_v1.4.0'!$J$23 ->  | J110: =(('LiFFT_v1.4.0'!$H$26-moment_cd_relationship!A109)*((moment_cd_relationship!B109-moment_cd_relationship!B110)/(moment_cd_relationship!A109-moment_cd_relationship!A110))+moment_cd_relationship!B109)*'LiFFT_v1.4.0'!$J$26 ->  | K110: =(('LiFFT_v1.4.0'!$H$29-moment_cd_relationship!A109)*((moment_cd_relationship!B109-moment_cd_relationship!B110)/(moment_cd_relationship!A109-moment_cd_relationship!A110))+moment_cd_relationship!B109)*'LiFFT_v1.4.0'!$J$29 ->  | L110: =(('LiFFT_v1.4.0'!$H$32-moment_cd_relationship!A109)*((moment_cd_relationship!B109-moment_cd_relationship!B110)/(moment_cd_relationship!A109-moment_cd_relationship!A110))+moment_cd_relationship!B109)*'LiFFT_v1.4.0'!$J$32 -> 
A111: 108 | B111: 0.0003795 | C111: =(('LiFFT_v1.4.0'!$H$5-moment_cd_relationship!A110)*((moment_cd_relationship!B110-moment_cd_relationship!B111)/(moment_cd_relationship!A110-moment_cd_relationship!A111))+moment_cd_relationship!B110)*'LiFFT_v1.4.0'!$J$5 -> -2.0952 | D111: =(('LiFFT_v1.4.0'!$H$8-moment_cd_relationship!A110)*((moment_cd_relationship!B110-moment_cd_relationship!B111)/(moment_cd_relationship!A110-moment_cd_relationship!A111))+moment_cd_relationship!B110)*'LiFFT_v1.4.0'!$J$8 ->  | E111: =(('LiFFT_v1.4.0'!$H$11-moment_cd_relationship!A110)*((moment_cd_relationship!B110-moment_cd_relationship!B111)/(moment_cd_relationship!A110-moment_cd_relationship!A111))+moment_cd_relationship!B110)*'LiFFT_v1.4.0'!$J$11 ->  | F111: =(('LiFFT_v1.4.0'!$H$14-moment_cd_relationship!A110)*((moment_cd_relationship!B110-moment_cd_relationship!B111)/(moment_cd_relationship!A110-moment_cd_relationship!A111))+moment_cd_relationship!B110)*'LiFFT_v1.4.0'!$J$14 ->  | G111: =(('LiFFT_v1.4.0'!$H$17-moment_cd_relationship!A110)*((moment_cd_relationship!B110-moment_cd_relationship!B111)/(moment_cd_relationship!A110-moment_cd_relationship!A111))+moment_cd_relationship!B110)*'LiFFT_v1.4.0'!$J$17 ->  | H111: =(('LiFFT_v1.4.0'!$H$20-moment_cd_relationship!A110)*((moment_cd_relationship!B110-moment_cd_relationship!B111)/(moment_cd_relationship!A110-moment_cd_relationship!A111))+moment_cd_relationship!B110)*'LiFFT_v1.4.0'!$J$20 ->  | I111: =(('LiFFT_v1.4.0'!$H$23-moment_cd_relationship!A110)*((moment_cd_relationship!B110-moment_cd_relationship!B111)/(moment_cd_relationship!A110-moment_cd_relationship!A111))+moment_cd_relationship!B110)*'LiFFT_v1.4.0'!$J$23 ->  | J111: =(('LiFFT_v1.4.0'!$H$26-moment_cd_relationship!A110)*((moment_cd_relationship!B110-moment_cd_relationship!B111)/(moment_cd_relationship!A110-moment_cd_relationship!A111))+moment_cd_relationship!B110)*'LiFFT_v1.4.0'!$J$26 ->  | K111: =(('LiFFT_v1.4.0'!$H$29-moment_cd_relationship!A110)*((moment_cd_relationship!B110-moment_cd_relationship!B111)/(moment_cd_relationship!A110-moment_cd_relationship!A111))+moment_cd_relationship!B110)*'LiFFT_v1.4.0'!$J$29 ->  | L111: =(('LiFFT_v1.4.0'!$H$32-moment_cd_relationship!A110)*((moment_cd_relationship!B110-moment_cd_relationship!B111)/(moment_cd_relationship!A110-moment_cd_relationship!A111))+moment_cd_relationship!B110)*'LiFFT_v1.4.0'!$J$32 -> 
A112: 109 | B112: 0.0003996 | C112: =(('LiFFT_v1.4.0'!$H$5-moment_cd_relationship!A111)*((moment_cd_relationship!B111-moment_cd_relationship!B112)/(moment_cd_relationship!A111-moment_cd_relationship!A112))+moment_cd_relationship!B111)*'LiFFT_v1.4.0'!$J$5 -> -2.2347 | D112: =(('LiFFT_v1.4.0'!$H$8-moment_cd_relationship!A111)*((moment_cd_relationship!B111-moment_cd_relationship!B112)/(moment_cd_relationship!A111-moment_cd_relationship!A112))+moment_cd_relationship!B111)*'LiFFT_v1.4.0'!$J$8 ->  | E112: =(('LiFFT_v1.4.0'!$H$11-moment_cd_relationship!A111)*((moment_cd_relationship!B111-moment_cd_relationship!B112)/(moment_cd_relationship!A111-moment_cd_relationship!A112))+moment_cd_relationship!B111)*'LiFFT_v1.4.0'!$J$11 ->  | F112: =(('LiFFT_v1.4.0'!$H$14-moment_cd_relationship!A111)*((moment_cd_relationship!B111-moment_cd_relationship!B112)/(moment_cd_relationship!A111-moment_cd_relationship!A112))+moment_cd_relationship!B111)*'LiFFT_v1.4.0'!$J$14 ->  | G112: =(('LiFFT_v1.4.0'!$H$17-moment_cd_relationship!A111)*((moment_cd_relationship!B111-moment_cd_relationship!B112)/(moment_cd_relationship!A111-moment_cd_relationship!A112))+moment_cd_relationship!B111)*'LiFFT_v1.4.0'!$J$17 ->  | H112: =(('LiFFT_v1.4.0'!$H$20-moment_cd_relationship!A111)*((moment_cd_relationship!B111-moment_cd_relationship!B112)/(moment_cd_relationship!A111-moment_cd_relationship!A112))+moment_cd_relationship!B111)*'LiFFT_v1.4.0'!$J$20 ->  | I112: =(('LiFFT_v1.4.0'!$H$23-moment_cd_relationship!A111)*((moment_cd_relationship!B111-moment_cd_relationship!B112)/(moment_cd_relationship!A111-moment_cd_relationship!A112))+moment_cd_relationship!B111)*'LiFFT_v1.4.0'!$J$23 ->  | J112: =(('LiFFT_v1.4.0'!$H$26-moment_cd_relationship!A111)*((moment_cd_relationship!B111-moment_cd_relationship!B112)/(moment_cd_relationship!A111-moment_cd_relationship!A112))+moment_cd_relationship!B111)*'LiFFT_v1.4.0'!$J$26 ->  | K112: =(('LiFFT_v1.4.0'!$H$29-moment_cd_relationship!A111)*((moment_cd_relationship!B111-moment_cd_relationship!B112)/(moment_cd_relationship!A111-moment_cd_relationship!A112))+moment_cd_relationship!B111)*'LiFFT_v1.4.0'!$J$29 ->  | L112: =(('LiFFT_v1.4.0'!$H$32-moment_cd_relationship!A111)*((moment_cd_relationship!B111-moment_cd_relationship!B112)/(moment_cd_relationship!A111-moment_cd_relationship!A112))+moment_cd_relationship!B111)*'LiFFT_v1.4.0'!$J$32 -> 
A113: 110 | B113: 0.0004207 | C113: =(('LiFFT_v1.4.0'!$H$5-moment_cd_relationship!A112)*((moment_cd_relationship!B112-moment_cd_relationship!B113)/(moment_cd_relationship!A112-moment_cd_relationship!A113))+moment_cd_relationship!B112)*'LiFFT_v1.4.0'!$J$5 -> -2.3757 | D113: =(('LiFFT_v1.4.0'!$H$8-moment_cd_relationship!A112)*((moment_cd_relationship!B112-moment_cd_relationship!B113)/(moment_cd_relationship!A112-moment_cd_relationship!A113))+moment_cd_relationship!B112)*'LiFFT_v1.4.0'!$J$8 ->  | E113: =(('LiFFT_v1.4.0'!$H$11-moment_cd_relationship!A112)*((moment_cd_relationship!B112-moment_cd_relationship!B113)/(moment_cd_relationship!A112-moment_cd_relationship!A113))+moment_cd_relationship!B112)*'LiFFT_v1.4.0'!$J$11 ->  | F113: =(('LiFFT_v1.4.0'!$H$14-moment_cd_relationship!A112)*((moment_cd_relationship!B112-moment_cd_relationship!B113)/(moment_cd_relationship!A112-moment_cd_relationship!A113))+moment_cd_relationship!B112)*'LiFFT_v1.4.0'!$J$14 ->  | G113: =(('LiFFT_v1.4.0'!$H$17-moment_cd_relationship!A112)*((moment_cd_relationship!B112-moment_cd_relationship!B113)/(moment_cd_relationship!A112-moment_cd_relationship!A113))+moment_cd_relationship!B112)*'LiFFT_v1.4.0'!$J$17 ->  | H113: =(('LiFFT_v1.4.0'!$H$20-moment_cd_relationship!A112)*((moment_cd_relationship!B112-moment_cd_relationship!B113)/(moment_cd_relationship!A112-moment_cd_relationship!A113))+moment_cd_relationship!B112)*'LiFFT_v1.4.0'!$J$20 ->  | I113: =(('LiFFT_v1.4.0'!$H$23-moment_cd_relationship!A112)*((moment_cd_relationship!B112-moment_cd_relationship!B113)/(moment_cd_relationship!A112-moment_cd_relationship!A113))+moment_cd_relationship!B112)*'LiFFT_v1.4.0'!$J$23 ->  | J113: =(('LiFFT_v1.4.0'!$H$26-moment_cd_relationship!A112)*((moment_cd_relationship!B112-moment_cd_relationship!B113)/(moment_cd_relationship!A112-moment_cd_relationship!A113))+moment_cd_relationship!B112)*'LiFFT_v1.4.0'!$J$26 ->  | K113: =(('LiFFT_v1.4.0'!$H$29-moment_cd_relationship!A112)*((moment_cd_relationship!B112-moment_cd_relationship!B113)/(moment_cd_relationship!A112-moment_cd_relationship!A113))+moment_cd_relationship!B112)*'LiFFT_v1.4.0'!$J$29 ->  | L113: =(('LiFFT_v1.4.0'!$H$32-moment_cd_relationship!A112)*((moment_cd_relationship!B112-moment_cd_relationship!B113)/(moment_cd_relationship!A112-moment_cd_relationship!A113))+moment_cd_relationship!B112)*'LiFFT_v1.4.0'!$J$32 -> 
A114: 111 | B114: 0.000443 | C114: =(('LiFFT_v1.4.0'!$H$5-moment_cd_relationship!A113)*((moment_cd_relationship!B113-moment_cd_relationship!B114)/(moment_cd_relationship!A113-moment_cd_relationship!A114))+moment_cd_relationship!B113)*'LiFFT_v1.4.0'!$J$5 -> -2.5467 | D114: =(('LiFFT_v1.4.0'!$H$8-moment_cd_relationship!A113)*((moment_cd_relationship!B113-moment_cd_relationship!B114)/(moment_cd_relationship!A113-moment_cd_relationship!A114))+moment_cd_relationship!B113)*'LiFFT_v1.4.0'!$J$8 ->  | E114: =(('LiFFT_v1.4.0'!$H$11-moment_cd_relationship!A113)*((moment_cd_relationship!B113-moment_cd_relationship!B114)/(moment_cd_relationship!A113-moment_cd_relationship!A114))+moment_cd_relationship!B113)*'LiFFT_v1.4.0'!$J$11 ->  | F114: =(('LiFFT_v1.4.0'!$H$14-moment_cd_relationship!A113)*((moment_cd_relationship!B113-moment_cd_relationship!B114)/(moment_cd_relationship!A113-moment_cd_relationship!A114))+moment_cd_relationship!B113)*'LiFFT_v1.4.0'!$J$14 ->  | G114: =(('LiFFT_v1.4.0'!$H$17-moment_cd_relationship!A113)*((moment_cd_relationship!B113-moment_cd_relationship!B114)/(moment_cd_relationship!A113-moment_cd_relationship!A114))+moment_cd_relationship!B113)*'LiFFT_v1.4.0'!$J$17 ->  | H114: =(('LiFFT_v1.4.0'!$H$20-moment_cd_relationship!A113)*((moment_cd_relationship!B113-moment_cd_relationship!B114)/(moment_cd_relationship!A113-moment_cd_relationship!A114))+moment_cd_relationship!B113)*'LiFFT_v1.4.0'!$J$20 ->  | I114: =(('LiFFT_v1.4.0'!$H$23-moment_cd_relationship!A113)*((moment_cd_relationship!B113-moment_cd_relationship!B114)/(moment_cd_relationship!A113-moment_cd_relationship!A114))+moment_cd_relationship!B113)*'LiFFT_v1.4.0'!$J$23 ->  | J114: =(('LiFFT_v1.4.0'!$H$26-moment_cd_relationship!A113)*((moment_cd_relationship!B113-moment_cd_relationship!B114)/(moment_cd_relationship!A113-moment_cd_relationship!A114))+moment_cd_relationship!B113)*'LiFFT_v1.4.0'!$J$26 ->  | K114: =(('LiFFT_v1.4.0'!$H$29-moment_cd_relationship!A113)*((moment_cd_relationship!B113-moment_cd_relationship!B114)/(moment_cd_relationship!A113-moment_cd_relationship!A114))+moment_cd_relationship!B113)*'LiFFT_v1.4.0'!$J$29 ->  | L114: =(('LiFFT_v1.4.0'!$H$32-moment_cd_relationship!A113)*((moment_cd_relationship!B113-moment_cd_relationship!B114)/(moment_cd_relationship!A113-moment_cd_relationship!A114))+moment_cd_relationship!B113)*'LiFFT_v1.4.0'!$J$32 -> 
A115: 112 | B115: 0.0004664 | C115: =(('LiFFT_v1.4.0'!$H$5-moment_cd_relationship!A114)*((moment_cd_relationship!B114-moment_cd_relationship!B115)/(moment_cd_relationship!A114-moment_cd_relationship!A115))+moment_cd_relationship!B114)*'LiFFT_v1.4.0'!$J$5 -> -2.7051 | D115: =(('LiFFT_v1.4.0'!$H$8-moment_cd_relationship!A114)*((moment_cd_relationship!B114-moment_cd_relationship!B115)/(moment_cd_relationship!A114-moment_cd_relationship!A115))+moment_cd_relationship!B114)*'LiFFT_v1.4.0'!$J$8 ->  | E115: =(('LiFFT_v1.4.0'!$H$11-moment_cd_relationship!A114)*((moment_cd_relationship!B114-moment_cd_relationship!B115)/(moment_cd_relationship!A114-moment_cd_relationship!A115))+moment_cd_relationship!B114)*'LiFFT_v1.4.0'!$J$11 ->  | F115: =(('LiFFT_v1.4.0'!$H$14-moment_cd_relationship!A114)*((moment_cd_relationship!B114-moment_cd_relationship!B115)/(moment_cd_relationship!A114-moment_cd_relationship!A115))+moment_cd_relationship!B114)*'LiFFT_v1.4.0'!$J$14 ->  | G115: =(('LiFFT_v1.4.0'!$H$17-moment_cd_relationship!A114)*((moment_cd_relationship!B114-moment_cd_relationship!B115)/(moment_cd_relationship!A114-moment_cd_relationship!A115))+moment_cd_relationship!B114)*'LiFFT_v1.4.0'!$J$17 ->  | H115: =(('LiFFT_v1.4.0'!$H$20-moment_cd_relationship!A114)*((moment_cd_relationship!B114-moment_cd_relationship!B115)/(moment_cd_relationship!A114-moment_cd_relationship!A115))+moment_cd_relationship!B114)*'LiFFT_v1.4.0'!$J$20 ->  | I115: =(('LiFFT_v1.4.0'!$H$23-moment_cd_relationship!A114)*((moment_cd_relationship!B114-moment_cd_relationship!B115)/(moment_cd_relationship!A114-moment_cd_relationship!A115))+moment_cd_relationship!B114)*'LiFFT_v1.4.0'!$J$23 ->  | J115: =(('LiFFT_v1.4.0'!$H$26-moment_cd_relationship!A114)*((moment_cd_relationship!B114-moment_cd_relationship!B115)/(moment_cd_relationship!A114-moment_cd_relationship!A115))+moment_cd_relationship!B114)*'LiFFT_v1.4.0'!$J$26 ->  | K115: =(('LiFFT_v1.4.0'!$H$29-moment_cd_relationship!A114)*((moment_cd_relationship!B114-moment_cd_relationship!B115)/(moment_cd_relationship!A114-moment_cd_relationship!A115))+moment_cd_relationship!B114)*'LiFFT_v1.4.0'!$J$29 ->  | L115: =(('LiFFT_v1.4.0'!$H$32-moment_cd_relationship!A114)*((moment_cd_relationship!B114-moment_cd_relationship!B115)/(moment_cd_relationship!A114-moment_cd_relationship!A115))+moment_cd_relationship!B114)*'LiFFT_v1.4.0'!$J$32 -> 
A116: 113 | B116: 0.0004911 | C116: =(('LiFFT_v1.4.0'!$H$5-moment_cd_relationship!A115)*((moment_cd_relationship!B115-moment_cd_relationship!B116)/(moment_cd_relationship!A115-moment_cd_relationship!A116))+moment_cd_relationship!B115)*'LiFFT_v1.4.0'!$J$5 -> -2.89425 | D116: =(('LiFFT_v1.4.0'!$H$8-moment_cd_relationship!A115)*((moment_cd_relationship!B115-moment_cd_relationship!B116)/(moment_cd_relationship!A115-moment_cd_relationship!A116))+moment_cd_relationship!B115)*'LiFFT_v1.4.0'!$J$8 ->  | E116: =(('LiFFT_v1.4.0'!$H$11-moment_cd_relationship!A115)*((moment_cd_relationship!B115-moment_cd_relationship!B116)/(moment_cd_relationship!A115-moment_cd_relationship!A116))+moment_cd_relationship!B115)*'LiFFT_v1.4.0'!$J$11 ->  | F116: =(('LiFFT_v1.4.0'!$H$14-moment_cd_relationship!A115)*((moment_cd_relationship!B115-moment_cd_relationship!B116)/(moment_cd_relationship!A115-moment_cd_relationship!A116))+moment_cd_relationship!B115)*'LiFFT_v1.4.0'!$J$14 ->  | G116: =(('LiFFT_v1.4.0'!$H$17-moment_cd_relationship!A115)*((moment_cd_relationship!B115-moment_cd_relationship!B116)/(moment_cd_relationship!A115-moment_cd_relationship!A116))+moment_cd_relationship!B115)*'LiFFT_v1.4.0'!$J$17 ->  | H116: =(('LiFFT_v1.4.0'!$H$20-moment_cd_relationship!A115)*((moment_cd_relationship!B115-moment_cd_relationship!B116)/(moment_cd_relationship!A115-moment_cd_relationship!A116))+moment_cd_relationship!B115)*'LiFFT_v1.4.0'!$J$20 ->  | I116: =(('LiFFT_v1.4.0'!$H$23-moment_cd_relationship!A115)*((moment_cd_relationship!B115-moment_cd_relationship!B116)/(moment_cd_relationship!A115-moment_cd_relationship!A116))+moment_cd_relationship!B115)*'LiFFT_v1.4.0'!$J$23 ->  | J116: =(('LiFFT_v1.4.0'!$H$26-moment_cd_relationship!A115)*((moment_cd_relationship!B115-moment_cd_relationship!B116)/(moment_cd_relationship!A115-moment_cd_relationship!A116))+moment_cd_relationship!B115)*'LiFFT_v1.4.0'!$J$26 ->  | K116: =(('LiFFT_v1.4.0'!$H$29-moment_cd_relationship!A115)*((moment_cd_relationship!B115-moment_cd_relationship!B116)/(moment_cd_relationship!A115-moment_cd_relationship!A116))+moment_cd_relationship!B115)*'LiFFT_v1.4.0'!$J$29 ->  | L116: =(('LiFFT_v1.4.0'!$H$32-moment_cd_relationship!A115)*((moment_cd_relationship!B115-moment_cd_relationship!B116)/(moment_cd_relationship!A115-moment_cd_relationship!A116))+moment_cd_relationship!B115)*'LiFFT_v1.4.0'!$J$32 -> 
A117: 114 | B117: 0.0005171 | C117: =(('LiFFT_v1.4.0'!$H$5-moment_cd_relationship!A116)*((moment_cd_relationship!B116-moment_cd_relationship!B117)/(moment_cd_relationship!A116-moment_cd_relationship!A117))+moment_cd_relationship!B116)*'LiFFT_v1.4.0'!$J$5 -> -3.08535 | D117: =(('LiFFT_v1.4.0'!$H$8-moment_cd_relationship!A116)*((moment_cd_relationship!B116-moment_cd_relationship!B117)/(moment_cd_relationship!A116-moment_cd_relationship!A117))+moment_cd_relationship!B116)*'LiFFT_v1.4.0'!$J$8 ->  | E117: =(('LiFFT_v1.4.0'!$H$11-moment_cd_relationship!A116)*((moment_cd_relationship!B116-moment_cd_relationship!B117)/(moment_cd_relationship!A116-moment_cd_relationship!A117))+moment_cd_relationship!B116)*'LiFFT_v1.4.0'!$J$11 ->  | F117: =(('LiFFT_v1.4.0'!$H$14-moment_cd_relationship!A116)*((moment_cd_relationship!B116-moment_cd_relationship!B117)/(moment_cd_relationship!A116-moment_cd_relationship!A117))+moment_cd_relationship!B116)*'LiFFT_v1.4.0'!$J$14 ->  | G117: =(('LiFFT_v1.4.0'!$H$17-moment_cd_relationship!A116)*((moment_cd_relationship!B116-moment_cd_relationship!B117)/(moment_cd_relationship!A116-moment_cd_relationship!A117))+moment_cd_relationship!B116)*'LiFFT_v1.4.0'!$J$17 ->  | H117: =(('LiFFT_v1.4.0'!$H$20-moment_cd_relationship!A116)*((moment_cd_relationship!B116-moment_cd_relationship!B117)/(moment_cd_relationship!A116-moment_cd_relationship!A117))+moment_cd_relationship!B116)*'LiFFT_v1.4.0'!$J$20 ->  | I117: =(('LiFFT_v1.4.0'!$H$23-moment_cd_relationship!A116)*((moment_cd_relationship!B116-moment_cd_relationship!B117)/(moment_cd_relationship!A116-moment_cd_relationship!A117))+moment_cd_relationship!B116)*'LiFFT_v1.4.0'!$J$23 ->  | J117: =(('LiFFT_v1.4.0'!$H$26-moment_cd_relationship!A116)*((moment_cd_relationship!B116-moment_cd_relationship!B117)/(moment_cd_relationship!A116-moment_cd_relationship!A117))+moment_cd_relationship!B116)*'LiFFT_v1.4.0'!$J$26 ->  | K117: =(('LiFFT_v1.4.0'!$H$29-moment_cd_relationship!A116)*((moment_cd_relationship!B116-moment_cd_relationship!B117)/(moment_cd_relationship!A116-moment_cd_relationship!A117))+moment_cd_relationship!B116)*'LiFFT_v1.4.0'!$J$29 ->  | L117: =(('LiFFT_v1.4.0'!$H$32-moment_cd_relationship!A116)*((moment_cd_relationship!B116-moment_cd_relationship!B117)/(moment_cd_relationship!A116-moment_cd_relationship!A117))+moment_cd_relationship!B116)*'LiFFT_v1.4.0'!$J$32 -> 
A118: 115 | B118: 0.0005445 | C118: =(('LiFFT_v1.4.0'!$H$5-moment_cd_relationship!A117)*((moment_cd_relationship!B117-moment_cd_relationship!B118)/(moment_cd_relationship!A117-moment_cd_relationship!A118))+moment_cd_relationship!B117)*'LiFFT_v1.4.0'!$J$5 -> -3.29325 | D118: =(('LiFFT_v1.4.0'!$H$8-moment_cd_relationship!A117)*((moment_cd_relationship!B117-moment_cd_relationship!B118)/(moment_cd_relationship!A117-moment_cd_relationship!A118))+moment_cd_relationship!B117)*'LiFFT_v1.4.0'!$J$8 ->  | E118: =(('LiFFT_v1.4.0'!$H$11-moment_cd_relationship!A117)*((moment_cd_relationship!B117-moment_cd_relationship!B118)/(moment_cd_relationship!A117-moment_cd_relationship!A118))+moment_cd_relationship!B117)*'LiFFT_v1.4.0'!$J$11 ->  | F118: =(('LiFFT_v1.4.0'!$H$14-moment_cd_relationship!A117)*((moment_cd_relationship!B117-moment_cd_relationship!B118)/(moment_cd_relationship!A117-moment_cd_relationship!A118))+moment_cd_relationship!B117)*'LiFFT_v1.4.0'!$J$14 ->  | G118: =(('LiFFT_v1.4.0'!$H$17-moment_cd_relationship!A117)*((moment_cd_relationship!B117-moment_cd_relationship!B118)/(moment_cd_relationship!A117-moment_cd_relationship!A118))+moment_cd_relationship!B117)*'LiFFT_v1.4.0'!$J$17 ->  | H118: =(('LiFFT_v1.4.0'!$H$20-moment_cd_relationship!A117)*((moment_cd_relationship!B117-moment_cd_relationship!B118)/(moment_cd_relationship!A117-moment_cd_relationship!A118))+moment_cd_relationship!B117)*'LiFFT_v1.4.0'!$J$20 ->  | I118: =(('LiFFT_v1.4.0'!$H$23-moment_cd_relationship!A117)*((moment_cd_relationship!B117-moment_cd_relationship!B118)/(moment_cd_relationship!A117-moment_cd_relationship!A118))+moment_cd_relationship!B117)*'LiFFT_v1.4.0'!$J$23 ->  | J118: =(('LiFFT_v1.4.0'!$H$26-moment_cd_relationship!A117)*((moment_cd_relationship!B117-moment_cd_relationship!B118)/(moment_cd_relationship!A117-moment_cd_relationship!A118))+moment_cd_relationship!B117)*'LiFFT_v1.4.0'!$J$26 ->  | K118: =(('LiFFT_v1.4.0'!$H$29-moment_cd_relationship!A117)*((moment_cd_relationship!B117-moment_cd_relationship!B118)/(moment_cd_relationship!A117-moment_cd_relationship!A118))+moment_cd_relationship!B117)*'LiFFT_v1.4.0'!$J$29 ->  | L118: =(('LiFFT_v1.4.0'!$H$32-moment_cd_relationship!A117)*((moment_cd_relationship!B117-moment_cd_relationship!B118)/(moment_cd_relationship!A117-moment_cd_relationship!A118))+moment_cd_relationship!B117)*'LiFFT_v1.4.0'!$J$32 -> 
A119: 116 | B119: 0.0005734 | C119: =(('LiFFT_v1.4.0'!$H$5-moment_cd_relationship!A118)*((moment_cd_relationship!B118-moment_cd_relationship!B119)/(moment_cd_relationship!A118-moment_cd_relationship!A119))+moment_cd_relationship!B118)*'LiFFT_v1.4.0'!$J$5 -> -3.51825 | D119: =(('LiFFT_v1.4.0'!$H$8-moment_cd_relationship!A118)*((moment_cd_relationship!B118-moment_cd_relationship!B119)/(moment_cd_relationship!A118-moment_cd_relationship!A119))+moment_cd_relationship!B118)*'LiFFT_v1.4.0'!$J$8 ->  | E119: =(('LiFFT_v1.4.0'!$H$11-moment_cd_relationship!A118)*((moment_cd_relationship!B118-moment_cd_relationship!B119)/(moment_cd_relationship!A118-moment_cd_relationship!A119))+moment_cd_relationship!B118)*'LiFFT_v1.4.0'!$J$11 ->  | F119: =(('LiFFT_v1.4.0'!$H$14-moment_cd_relationship!A118)*((moment_cd_relationship!B118-moment_cd_relationship!B119)/(moment_cd_relationship!A118-moment_cd_relationship!A119))+moment_cd_relationship!B118)*'LiFFT_v1.4.0'!$J$14 ->  | G119: =(('LiFFT_v1.4.0'!$H$17-moment_cd_relationship!A118)*((moment_cd_relationship!B118-moment_cd_relationship!B119)/(moment_cd_relationship!A118-moment_cd_relationship!A119))+moment_cd_relationship!B118)*'LiFFT_v1.4.0'!$J$17 ->  | H119: =(('LiFFT_v1.4.0'!$H$20-moment_cd_relationship!A118)*((moment_cd_relationship!B118-moment_cd_relationship!B119)/(moment_cd_relationship!A118-moment_cd_relationship!A119))+moment_cd_relationship!B118)*'LiFFT_v1.4.0'!$J$20 ->  | I119: =(('LiFFT_v1.4.0'!$H$23-moment_cd_relationship!A118)*((moment_cd_relationship!B118-moment_cd_relationship!B119)/(moment_cd_relationship!A118-moment_cd_relationship!A119))+moment_cd_relationship!B118)*'LiFFT_v1.4.0'!$J$23 ->  | J119: =(('LiFFT_v1.4.0'!$H$26-moment_cd_relationship!A118)*((moment_cd_relationship!B118-moment_cd_relationship!B119)/(moment_cd_relationship!A118-moment_cd_relationship!A119))+moment_cd_relationship!B118)*'LiFFT_v1.4.0'!$J$26 ->  | K119: =(('LiFFT_v1.4.0'!$H$29-moment_cd_relationship!A118)*((moment_cd_relationship!B118-moment_cd_relationship!B119)/(moment_cd_relationship!A118-moment_cd_relationship!A119))+moment_cd_relationship!B118)*'LiFFT_v1.4.0'!$J$29 ->  | L119: =(('LiFFT_v1.4.0'!$H$32-moment_cd_relationship!A118)*((moment_cd_relationship!B118-moment_cd_relationship!B119)/(moment_cd_relationship!A118-moment_cd_relationship!A119))+moment_cd_relationship!B118)*'LiFFT_v1.4.0'!$J$32 -> 
A120: 117 | B120: 0.0006037 | C120: =(('LiFFT_v1.4.0'!$H$5-moment_cd_relationship!A119)*((moment_cd_relationship!B119-moment_cd_relationship!B120)/(moment_cd_relationship!A119-moment_cd_relationship!A120))+moment_cd_relationship!B119)*'LiFFT_v1.4.0'!$J$5 -> -3.73035 | D120: =(('LiFFT_v1.4.0'!$H$8-moment_cd_relationship!A119)*((moment_cd_relationship!B119-moment_cd_relationship!B120)/(moment_cd_relationship!A119-moment_cd_relationship!A120))+moment_cd_relationship!B119)*'LiFFT_v1.4.0'!$J$8 ->  | E120: =(('LiFFT_v1.4.0'!$H$11-moment_cd_relationship!A119)*((moment_cd_relationship!B119-moment_cd_relationship!B120)/(moment_cd_relationship!A119-moment_cd_relationship!A120))+moment_cd_relationship!B119)*'LiFFT_v1.4.0'!$J$11 ->  | F120: =(('LiFFT_v1.4.0'!$H$14-moment_cd_relationship!A119)*((moment_cd_relationship!B119-moment_cd_relationship!B120)/(moment_cd_relationship!A119-moment_cd_relationship!A120))+moment_cd_relationship!B119)*'LiFFT_v1.4.0'!$J$14 ->  | G120: =(('LiFFT_v1.4.0'!$H$17-moment_cd_relationship!A119)*((moment_cd_relationship!B119-moment_cd_relationship!B120)/(moment_cd_relationship!A119-moment_cd_relationship!A120))+moment_cd_relationship!B119)*'LiFFT_v1.4.0'!$J$17 ->  | H120: =(('LiFFT_v1.4.0'!$H$20-moment_cd_relationship!A119)*((moment_cd_relationship!B119-moment_cd_relationship!B120)/(moment_cd_relationship!A119-moment_cd_relationship!A120))+moment_cd_relationship!B119)*'LiFFT_v1.4.0'!$J$20 ->  | I120: =(('LiFFT_v1.4.0'!$H$23-moment_cd_relationship!A119)*((moment_cd_relationship!B119-moment_cd_relationship!B120)/(moment_cd_relationship!A119-moment_cd_relationship!A120))+moment_cd_relationship!B119)*'LiFFT_v1.4.0'!$J$23 ->  | J120: =(('LiFFT_v1.4.0'!$H$26-moment_cd_relationship!A119)*((moment_cd_relationship!B119-moment_cd_relationship!B120)/(moment_cd_relationship!A119-moment_cd_relationship!A120))+moment_cd_relationship!B119)*'LiFFT_v1.4.0'!$J$26 ->  | K120: =(('LiFFT_v1.4.0'!$H$29-moment_cd_relationship!A119)*((moment_cd_relationship!B119-moment_cd_relationship!B120)/(moment_cd_relationship!A119-moment_cd_relationship!A120))+moment_cd_relationship!B119)*'LiFFT_v1.4.0'!$J$29 ->  | L120: =(('LiFFT_v1.4.0'!$H$32-moment_cd_relationship!A119)*((moment_cd_relationship!B119-moment_cd_relationship!B120)/(moment_cd_relationship!A119-moment_cd_relationship!A120))+moment_cd_relationship!B119)*'LiFFT_v1.4.0'!$J$32 -> 
A121: 118 | B121: 0.0006358 | C121: =(('LiFFT_v1.4.0'!$H$5-moment_cd_relationship!A120)*((moment_cd_relationship!B120-moment_cd_relationship!B121)/(moment_cd_relationship!A120-moment_cd_relationship!A121))+moment_cd_relationship!B120)*'LiFFT_v1.4.0'!$J$5 -> -4.00575 | D121: =(('LiFFT_v1.4.0'!$H$8-moment_cd_relationship!A120)*((moment_cd_relationship!B120-moment_cd_relationship!B121)/(moment_cd_relationship!A120-moment_cd_relationship!A121))+moment_cd_relationship!B120)*'LiFFT_v1.4.0'!$J$8 ->  | E121: =(('LiFFT_v1.4.0'!$H$11-moment_cd_relationship!A120)*((moment_cd_relationship!B120-moment_cd_relationship!B121)/(moment_cd_relationship!A120-moment_cd_relationship!A121))+moment_cd_relationship!B120)*'LiFFT_v1.4.0'!$J$11 ->  | F121: =(('LiFFT_v1.4.0'!$H$14-moment_cd_relationship!A120)*((moment_cd_relationship!B120-moment_cd_relationship!B121)/(moment_cd_relationship!A120-moment_cd_relationship!A121))+moment_cd_relationship!B120)*'LiFFT_v1.4.0'!$J$14 ->  | G121: =(('LiFFT_v1.4.0'!$H$17-moment_cd_relationship!A120)*((moment_cd_relationship!B120-moment_cd_relationship!B121)/(moment_cd_relationship!A120-moment_cd_relationship!A121))+moment_cd_relationship!B120)*'LiFFT_v1.4.0'!$J$17 ->  | H121: =(('LiFFT_v1.4.0'!$H$20-moment_cd_relationship!A120)*((moment_cd_relationship!B120-moment_cd_relationship!B121)/(moment_cd_relationship!A120-moment_cd_relationship!A121))+moment_cd_relationship!B120)*'LiFFT_v1.4.0'!$J$20 ->  | I121: =(('LiFFT_v1.4.0'!$H$23-moment_cd_relationship!A120)*((moment_cd_relationship!B120-moment_cd_relationship!B121)/(moment_cd_relationship!A120-moment_cd_relationship!A121))+moment_cd_relationship!B120)*'LiFFT_v1.4.0'!$J$23 ->  | J121: =(('LiFFT_v1.4.0'!$H$26-moment_cd_relationship!A120)*((moment_cd_relationship!B120-moment_cd_relationship!B121)/(moment_cd_relationship!A120-moment_cd_relationship!A121))+moment_cd_relationship!B120)*'LiFFT_v1.4.0'!$J$26 ->  | K121: =(('LiFFT_v1.4.0'!$H$29-moment_cd_relationship!A120)*((moment_cd_relationship!B120-moment_cd_relationship!B121)/(moment_cd_relationship!A120-moment_cd_relationship!A121))+moment_cd_relationship!B120)*'LiFFT_v1.4.0'!$J$29 ->  | L121: =(('LiFFT_v1.4.0'!$H$32-moment_cd_relationship!A120)*((moment_cd_relationship!B120-moment_cd_relationship!B121)/(moment_cd_relationship!A120-moment_cd_relationship!A121))+moment_cd_relationship!B120)*'LiFFT_v1.4.0'!$J$32 -> 
A122: 119 | B122: 0.0006695 | C122: =(('LiFFT_v1.4.0'!$H$5-moment_cd_relationship!A121)*((moment_cd_relationship!B121-moment_cd_relationship!B122)/(moment_cd_relationship!A121-moment_cd_relationship!A122))+moment_cd_relationship!B121)*'LiFFT_v1.4.0'!$J$5 -> -4.25295 | D122: =(('LiFFT_v1.4.0'!$H$8-moment_cd_relationship!A121)*((moment_cd_relationship!B121-moment_cd_relationship!B122)/(moment_cd_relationship!A121-moment_cd_relationship!A122))+moment_cd_relationship!B121)*'LiFFT_v1.4.0'!$J$8 ->  | E122: =(('LiFFT_v1.4.0'!$H$11-moment_cd_relationship!A121)*((moment_cd_relationship!B121-moment_cd_relationship!B122)/(moment_cd_relationship!A121-moment_cd_relationship!A122))+moment_cd_relationship!B121)*'LiFFT_v1.4.0'!$J$11 ->  | F122: =(('LiFFT_v1.4.0'!$H$14-moment_cd_relationship!A121)*((moment_cd_relationship!B121-moment_cd_relationship!B122)/(moment_cd_relationship!A121-moment_cd_relationship!A122))+moment_cd_relationship!B121)*'LiFFT_v1.4.0'!$J$14 ->  | G122: =(('LiFFT_v1.4.0'!$H$17-moment_cd_relationship!A121)*((moment_cd_relationship!B121-moment_cd_relationship!B122)/(moment_cd_relationship!A121-moment_cd_relationship!A122))+moment_cd_relationship!B121)*'LiFFT_v1.4.0'!$J$17 ->  | H122: =(('LiFFT_v1.4.0'!$H$20-moment_cd_relationship!A121)*((moment_cd_relationship!B121-moment_cd_relationship!B122)/(moment_cd_relationship!A121-moment_cd_relationship!A122))+moment_cd_relationship!B121)*'LiFFT_v1.4.0'!$J$20 ->  | I122: =(('LiFFT_v1.4.0'!$H$23-moment_cd_relationship!A121)*((moment_cd_relationship!B121-moment_cd_relationship!B122)/(moment_cd_relationship!A121-moment_cd_relationship!A122))+moment_cd_relationship!B121)*'LiFFT_v1.4.0'!$J$23 ->  | J122: =(('LiFFT_v1.4.0'!$H$26-moment_cd_relationship!A121)*((moment_cd_relationship!B121-moment_cd_relationship!B122)/(moment_cd_relationship!A121-moment_cd_relationship!A122))+moment_cd_relationship!B121)*'LiFFT_v1.4.0'!$J$26 ->  | K122: =(('LiFFT_v1.4.0'!$H$29-moment_cd_relationship!A121)*((moment_cd_relationship!B121-moment_cd_relationship!B122)/(moment_cd_relationship!A121-moment_cd_relationship!A122))+moment_cd_relationship!B121)*'LiFFT_v1.4.0'!$J$29 ->  | L122: =(('LiFFT_v1.4.0'!$H$32-moment_cd_relationship!A121)*((moment_cd_relationship!B121-moment_cd_relationship!B122)/(moment_cd_relationship!A121-moment_cd_relationship!A122))+moment_cd_relationship!B121)*'LiFFT_v1.4.0'!$J$32 -> 
A123: 120 | B123: 0.000705 | C123: =(('LiFFT_v1.4.0'!$H$5-moment_cd_relationship!A122)*((moment_cd_relationship!B122-moment_cd_relationship!B123)/(moment_cd_relationship!A122-moment_cd_relationship!A123))+moment_cd_relationship!B122)*'LiFFT_v1.4.0'!$J$5 -> -4.53375 | D123: =(('LiFFT_v1.4.0'!$H$8-moment_cd_relationship!A122)*((moment_cd_relationship!B122-moment_cd_relationship!B123)/(moment_cd_relationship!A122-moment_cd_relationship!A123))+moment_cd_relationship!B122)*'LiFFT_v1.4.0'!$J$8 ->  | E123: =(('LiFFT_v1.4.0'!$H$11-moment_cd_relationship!A122)*((moment_cd_relationship!B122-moment_cd_relationship!B123)/(moment_cd_relationship!A122-moment_cd_relationship!A123))+moment_cd_relationship!B122)*'LiFFT_v1.4.0'!$J$11 ->  | F123: =(('LiFFT_v1.4.0'!$H$14-moment_cd_relationship!A122)*((moment_cd_relationship!B122-moment_cd_relationship!B123)/(moment_cd_relationship!A122-moment_cd_relationship!A123))+moment_cd_relationship!B122)*'LiFFT_v1.4.0'!$J$14 ->  | G123: =(('LiFFT_v1.4.0'!$H$17-moment_cd_relationship!A122)*((moment_cd_relationship!B122-moment_cd_relationship!B123)/(moment_cd_relationship!A122-moment_cd_relationship!A123))+moment_cd_relationship!B122)*'LiFFT_v1.4.0'!$J$17 ->  | H123: =(('LiFFT_v1.4.0'!$H$20-moment_cd_relationship!A122)*((moment_cd_relationship!B122-moment_cd_relationship!B123)/(moment_cd_relationship!A122-moment_cd_relationship!A123))+moment_cd_relationship!B122)*'LiFFT_v1.4.0'!$J$20 ->  | I123: =(('LiFFT_v1.4.0'!$H$23-moment_cd_relationship!A122)*((moment_cd_relationship!B122-moment_cd_relationship!B123)/(moment_cd_relationship!A122-moment_cd_relationship!A123))+moment_cd_relationship!B122)*'LiFFT_v1.4.0'!$J$23 ->  | J123: =(('LiFFT_v1.4.0'!$H$26-moment_cd_relationship!A122)*((moment_cd_relationship!B122-moment_cd_relationship!B123)/(moment_cd_relationship!A122-moment_cd_relationship!A123))+moment_cd_relationship!B122)*'LiFFT_v1.4.0'!$J$26 ->  | K123: =(('LiFFT_v1.4.0'!$H$29-moment_cd_relationship!A122)*((moment_cd_relationship!B122-moment_cd_relationship!B123)/(moment_cd_relationship!A122-moment_cd_relationship!A123))+moment_cd_relationship!B122)*'LiFFT_v1.4.0'!$J$29 ->  | L123: =(('LiFFT_v1.4.0'!$H$32-moment_cd_relationship!A122)*((moment_cd_relationship!B122-moment_cd_relationship!B123)/(moment_cd_relationship!A122-moment_cd_relationship!A123))+moment_cd_relationship!B122)*'LiFFT_v1.4.0'!$J$32 -> 
A124: 121 | B124: 0.0007424 | C124: =(('LiFFT_v1.4.0'!$H$5-moment_cd_relationship!A123)*((moment_cd_relationship!B123-moment_cd_relationship!B124)/(moment_cd_relationship!A123-moment_cd_relationship!A124))+moment_cd_relationship!B123)*'LiFFT_v1.4.0'!$J$5 -> -4.833 | D124: =(('LiFFT_v1.4.0'!$H$8-moment_cd_relationship!A123)*((moment_cd_relationship!B123-moment_cd_relationship!B124)/(moment_cd_relationship!A123-moment_cd_relationship!A124))+moment_cd_relationship!B123)*'LiFFT_v1.4.0'!$J$8 ->  | E124: =(('LiFFT_v1.4.0'!$H$11-moment_cd_relationship!A123)*((moment_cd_relationship!B123-moment_cd_relationship!B124)/(moment_cd_relationship!A123-moment_cd_relationship!A124))+moment_cd_relationship!B123)*'LiFFT_v1.4.0'!$J$11 ->  | F124: =(('LiFFT_v1.4.0'!$H$14-moment_cd_relationship!A123)*((moment_cd_relationship!B123-moment_cd_relationship!B124)/(moment_cd_relationship!A123-moment_cd_relationship!A124))+moment_cd_relationship!B123)*'LiFFT_v1.4.0'!$J$14 ->  | G124: =(('LiFFT_v1.4.0'!$H$17-moment_cd_relationship!A123)*((moment_cd_relationship!B123-moment_cd_relationship!B124)/(moment_cd_relationship!A123-moment_cd_relationship!A124))+moment_cd_relationship!B123)*'LiFFT_v1.4.0'!$J$17 ->  | H124: =(('LiFFT_v1.4.0'!$H$20-moment_cd_relationship!A123)*((moment_cd_relationship!B123-moment_cd_relationship!B124)/(moment_cd_relationship!A123-moment_cd_relationship!A124))+moment_cd_relationship!B123)*'LiFFT_v1.4.0'!$J$20 ->  | I124: =(('LiFFT_v1.4.0'!$H$23-moment_cd_relationship!A123)*((moment_cd_relationship!B123-moment_cd_relationship!B124)/(moment_cd_relationship!A123-moment_cd_relationship!A124))+moment_cd_relationship!B123)*'LiFFT_v1.4.0'!$J$23 ->  | J124: =(('LiFFT_v1.4.0'!$H$26-moment_cd_relationship!A123)*((moment_cd_relationship!B123-moment_cd_relationship!B124)/(moment_cd_relationship!A123-moment_cd_relationship!A124))+moment_cd_relationship!B123)*'LiFFT_v1.4.0'!$J$26 ->  | K124: =(('LiFFT_v1.4.0'!$H$29-moment_cd_relationship!A123)*((moment_cd_relationship!B123-moment_cd_relationship!B124)/(moment_cd_relationship!A123-moment_cd_relationship!A124))+moment_cd_relationship!B123)*'LiFFT_v1.4.0'!$J$29 ->  | L124: =(('LiFFT_v1.4.0'!$H$32-moment_cd_relationship!A123)*((moment_cd_relationship!B123-moment_cd_relationship!B124)/(moment_cd_relationship!A123-moment_cd_relationship!A124))+moment_cd_relationship!B123)*'LiFFT_v1.4.0'!$J$32 -> 
A125: 122 | B125: 0.0007818 | C125: =(('LiFFT_v1.4.0'!$H$5-moment_cd_relationship!A124)*((moment_cd_relationship!B124-moment_cd_relationship!B125)/(moment_cd_relationship!A124-moment_cd_relationship!A125))+moment_cd_relationship!B124)*'LiFFT_v1.4.0'!$J$5 -> -5.151 | D125: =(('LiFFT_v1.4.0'!$H$8-moment_cd_relationship!A124)*((moment_cd_relationship!B124-moment_cd_relationship!B125)/(moment_cd_relationship!A124-moment_cd_relationship!A125))+moment_cd_relationship!B124)*'LiFFT_v1.4.0'!$J$8 ->  | E125: =(('LiFFT_v1.4.0'!$H$11-moment_cd_relationship!A124)*((moment_cd_relationship!B124-moment_cd_relationship!B125)/(moment_cd_relationship!A124-moment_cd_relationship!A125))+moment_cd_relationship!B124)*'LiFFT_v1.4.0'!$J$11 ->  | F125: =(('LiFFT_v1.4.0'!$H$14-moment_cd_relationship!A124)*((moment_cd_relationship!B124-moment_cd_relationship!B125)/(moment_cd_relationship!A124-moment_cd_relationship!A125))+moment_cd_relationship!B124)*'LiFFT_v1.4.0'!$J$14 ->  | G125: =(('LiFFT_v1.4.0'!$H$17-moment_cd_relationship!A124)*((moment_cd_relationship!B124-moment_cd_relationship!B125)/(moment_cd_relationship!A124-moment_cd_relationship!A125))+moment_cd_relationship!B124)*'LiFFT_v1.4.0'!$J$17 ->  | H125: =(('LiFFT_v1.4.0'!$H$20-moment_cd_relationship!A124)*((moment_cd_relationship!B124-moment_cd_relationship!B125)/(moment_cd_relationship!A124-moment_cd_relationship!A125))+moment_cd_relationship!B124)*'LiFFT_v1.4.0'!$J$20 ->  | I125: =(('LiFFT_v1.4.0'!$H$23-moment_cd_relationship!A124)*((moment_cd_relationship!B124-moment_cd_relationship!B125)/(moment_cd_relationship!A124-moment_cd_relationship!A125))+moment_cd_relationship!B124)*'LiFFT_v1.4.0'!$J$23 ->  | J125: =(('LiFFT_v1.4.0'!$H$26-moment_cd_relationship!A124)*((moment_cd_relationship!B124-moment_cd_relationship!B125)/(moment_cd_relationship!A124-moment_cd_relationship!A125))+moment_cd_relationship!B124)*'LiFFT_v1.4.0'!$J$26 ->  | K125: =(('LiFFT_v1.4.0'!$H$29-moment_cd_relationship!A124)*((moment_cd_relationship!B124-moment_cd_relationship!B125)/(moment_cd_relationship!A124-moment_cd_relationship!A125))+moment_cd_relationship!B124)*'LiFFT_v1.4.0'!$J$29 ->  | L125: =(('LiFFT_v1.4.0'!$H$32-moment_cd_relationship!A124)*((moment_cd_relationship!B124-moment_cd_relationship!B125)/(moment_cd_relationship!A124-moment_cd_relationship!A125))+moment_cd_relationship!B124)*'LiFFT_v1.4.0'!$J$32 -> 
A126: 123 | B126: 0.0008234 | C126: =(('LiFFT_v1.4.0'!$H$5-moment_cd_relationship!A125)*((moment_cd_relationship!B125-moment_cd_relationship!B126)/(moment_cd_relationship!A125-moment_cd_relationship!A126))+moment_cd_relationship!B125)*'LiFFT_v1.4.0'!$J$5 -> -5.5041 | D126: =(('LiFFT_v1.4.0'!$H$8-moment_cd_relationship!A125)*((moment_cd_relationship!B125-moment_cd_relationship!B126)/(moment_cd_relationship!A125-moment_cd_relationship!A126))+moment_cd_relationship!B125)*'LiFFT_v1.4.0'!$J$8 ->  | E126: =(('LiFFT_v1.4.0'!$H$11-moment_cd_relationship!A125)*((moment_cd_relationship!B125-moment_cd_relationship!B126)/(moment_cd_relationship!A125-moment_cd_relationship!A126))+moment_cd_relationship!B125)*'LiFFT_v1.4.0'!$J$11 ->  | F126: =(('LiFFT_v1.4.0'!$H$14-moment_cd_relationship!A125)*((moment_cd_relationship!B125-moment_cd_relationship!B126)/(moment_cd_relationship!A125-moment_cd_relationship!A126))+moment_cd_relationship!B125)*'LiFFT_v1.4.0'!$J$14 ->  | G126: =(('LiFFT_v1.4.0'!$H$17-moment_cd_relationship!A125)*((moment_cd_relationship!B125-moment_cd_relationship!B126)/(moment_cd_relationship!A125-moment_cd_relationship!A126))+moment_cd_relationship!B125)*'LiFFT_v1.4.0'!$J$17 ->  | H126: =(('LiFFT_v1.4.0'!$H$20-moment_cd_relationship!A125)*((moment_cd_relationship!B125-moment_cd_relationship!B126)/(moment_cd_relationship!A125-moment_cd_relationship!A126))+moment_cd_relationship!B125)*'LiFFT_v1.4.0'!$J$20 ->  | I126: =(('LiFFT_v1.4.0'!$H$23-moment_cd_relationship!A125)*((moment_cd_relationship!B125-moment_cd_relationship!B126)/(moment_cd_relationship!A125-moment_cd_relationship!A126))+moment_cd_relationship!B125)*'LiFFT_v1.4.0'!$J$23 ->  | J126: =(('LiFFT_v1.4.0'!$H$26-moment_cd_relationship!A125)*((moment_cd_relationship!B125-moment_cd_relationship!B126)/(moment_cd_relationship!A125-moment_cd_relationship!A126))+moment_cd_relationship!B125)*'LiFFT_v1.4.0'!$J$26 ->  | K126: =(('LiFFT_v1.4.0'!$H$29-moment_cd_relationship!A125)*((moment_cd_relationship!B125-moment_cd_relationship!B126)/(moment_cd_relationship!A125-moment_cd_relationship!A126))+moment_cd_relationship!B125)*'LiFFT_v1.4.0'!$J$29 ->  | L126: =(('LiFFT_v1.4.0'!$H$32-moment_cd_relationship!A125)*((moment_cd_relationship!B125-moment_cd_relationship!B126)/(moment_cd_relationship!A125-moment_cd_relationship!A126))+moment_cd_relationship!B125)*'LiFFT_v1.4.0'!$J$32 -> 
A127: 124 | B127: 0.0008671 | C127: =(('LiFFT_v1.4.0'!$H$5-moment_cd_relationship!A126)*((moment_cd_relationship!B126-moment_cd_relationship!B127)/(moment_cd_relationship!A126-moment_cd_relationship!A127))+moment_cd_relationship!B126)*'LiFFT_v1.4.0'!$J$5 -> -5.8443 | D127: =(('LiFFT_v1.4.0'!$H$8-moment_cd_relationship!A126)*((moment_cd_relationship!B126-moment_cd_relationship!B127)/(moment_cd_relationship!A126-moment_cd_relationship!A127))+moment_cd_relationship!B126)*'LiFFT_v1.4.0'!$J$8 ->  | E127: =(('LiFFT_v1.4.0'!$H$11-moment_cd_relationship!A126)*((moment_cd_relationship!B126-moment_cd_relationship!B127)/(moment_cd_relationship!A126-moment_cd_relationship!A127))+moment_cd_relationship!B126)*'LiFFT_v1.4.0'!$J$11 ->  | F127: =(('LiFFT_v1.4.0'!$H$14-moment_cd_relationship!A126)*((moment_cd_relationship!B126-moment_cd_relationship!B127)/(moment_cd_relationship!A126-moment_cd_relationship!A127))+moment_cd_relationship!B126)*'LiFFT_v1.4.0'!$J$14 ->  | G127: =(('LiFFT_v1.4.0'!$H$17-moment_cd_relationship!A126)*((moment_cd_relationship!B126-moment_cd_relationship!B127)/(moment_cd_relationship!A126-moment_cd_relationship!A127))+moment_cd_relationship!B126)*'LiFFT_v1.4.0'!$J$17 ->  | H127: =(('LiFFT_v1.4.0'!$H$20-moment_cd_relationship!A126)*((moment_cd_relationship!B126-moment_cd_relationship!B127)/(moment_cd_relationship!A126-moment_cd_relationship!A127))+moment_cd_relationship!B126)*'LiFFT_v1.4.0'!$J$20 ->  | I127: =(('LiFFT_v1.4.0'!$H$23-moment_cd_relationship!A126)*((moment_cd_relationship!B126-moment_cd_relationship!B127)/(moment_cd_relationship!A126-moment_cd_relationship!A127))+moment_cd_relationship!B126)*'LiFFT_v1.4.0'!$J$23 ->  | J127: =(('LiFFT_v1.4.0'!$H$26-moment_cd_relationship!A126)*((moment_cd_relationship!B126-moment_cd_relationship!B127)/(moment_cd_relationship!A126-moment_cd_relationship!A127))+moment_cd_relationship!B126)*'LiFFT_v1.4.0'!$J$26 ->  | K127: =(('LiFFT_v1.4.0'!$H$29-moment_cd_relationship!A126)*((moment_cd_relationship!B126-moment_cd_relationship!B127)/(moment_cd_relationship!A126-moment_cd_relationship!A127))+moment_cd_relationship!B126)*'LiFFT_v1.4.0'!$J$29 ->  | L127: =(('LiFFT_v1.4.0'!$H$32-moment_cd_relationship!A126)*((moment_cd_relationship!B126-moment_cd_relationship!B127)/(moment_cd_relationship!A126-moment_cd_relationship!A127))+moment_cd_relationship!B126)*'LiFFT_v1.4.0'!$J$32 -> 
A128: 125 | B128: 0.0009132 | C128: =(('LiFFT_v1.4.0'!$H$5-moment_cd_relationship!A127)*((moment_cd_relationship!B127-moment_cd_relationship!B128)/(moment_cd_relationship!A127-moment_cd_relationship!A128))+moment_cd_relationship!B127)*'LiFFT_v1.4.0'!$J$5 -> -6.2367 | D128: =(('LiFFT_v1.4.0'!$H$8-moment_cd_relationship!A127)*((moment_cd_relationship!B127-moment_cd_relationship!B128)/(moment_cd_relationship!A127-moment_cd_relationship!A128))+moment_cd_relationship!B127)*'LiFFT_v1.4.0'!$J$8 ->  | E128: =(('LiFFT_v1.4.0'!$H$11-moment_cd_relationship!A127)*((moment_cd_relationship!B127-moment_cd_relationship!B128)/(moment_cd_relationship!A127-moment_cd_relationship!A128))+moment_cd_relationship!B127)*'LiFFT_v1.4.0'!$J$11 ->  | F128: =(('LiFFT_v1.4.0'!$H$14-moment_cd_relationship!A127)*((moment_cd_relationship!B127-moment_cd_relationship!B128)/(moment_cd_relationship!A127-moment_cd_relationship!A128))+moment_cd_relationship!B127)*'LiFFT_v1.4.0'!$J$14 ->  | G128: =(('LiFFT_v1.4.0'!$H$17-moment_cd_relationship!A127)*((moment_cd_relationship!B127-moment_cd_relationship!B128)/(moment_cd_relationship!A127-moment_cd_relationship!A128))+moment_cd_relationship!B127)*'LiFFT_v1.4.0'!$J$17 ->  | H128: =(('LiFFT_v1.4.0'!$H$20-moment_cd_relationship!A127)*((moment_cd_relationship!B127-moment_cd_relationship!B128)/(moment_cd_relationship!A127-moment_cd_relationship!A128))+moment_cd_relationship!B127)*'LiFFT_v1.4.0'!$J$20 ->  | I128: =(('LiFFT_v1.4.0'!$H$23-moment_cd_relationship!A127)*((moment_cd_relationship!B127-moment_cd_relationship!B128)/(moment_cd_relationship!A127-moment_cd_relationship!A128))+moment_cd_relationship!B127)*'LiFFT_v1.4.0'!$J$23 ->  | J128: =(('LiFFT_v1.4.0'!$H$26-moment_cd_relationship!A127)*((moment_cd_relationship!B127-moment_cd_relationship!B128)/(moment_cd_relationship!A127-moment_cd_relationship!A128))+moment_cd_relationship!B127)*'LiFFT_v1.4.0'!$J$26 ->  | K128: =(('LiFFT_v1.4.0'!$H$29-moment_cd_relationship!A127)*((moment_cd_relationship!B127-moment_cd_relationship!B128)/(moment_cd_relationship!A127-moment_cd_relationship!A128))+moment_cd_relationship!B127)*'LiFFT_v1.4.0'!$J$29 ->  | L128: =(('LiFFT_v1.4.0'!$H$32-moment_cd_relationship!A127)*((moment_cd_relationship!B127-moment_cd_relationship!B128)/(moment_cd_relationship!A127-moment_cd_relationship!A128))+moment_cd_relationship!B127)*'LiFFT_v1.4.0'!$J$32 -> 
A129: 126 | B129: 0.0009617 | C129: =(('LiFFT_v1.4.0'!$H$5-moment_cd_relationship!A128)*((moment_cd_relationship!B128-moment_cd_relationship!B129)/(moment_cd_relationship!A128-moment_cd_relationship!A129))+moment_cd_relationship!B128)*'LiFFT_v1.4.0'!$J$5 -> -6.6327 | D129: =(('LiFFT_v1.4.0'!$H$8-moment_cd_relationship!A128)*((moment_cd_relationship!B128-moment_cd_relationship!B129)/(moment_cd_relationship!A128-moment_cd_relationship!A129))+moment_cd_relationship!B128)*'LiFFT_v1.4.0'!$J$8 ->  | E129: =(('LiFFT_v1.4.0'!$H$11-moment_cd_relationship!A128)*((moment_cd_relationship!B128-moment_cd_relationship!B129)/(moment_cd_relationship!A128-moment_cd_relationship!A129))+moment_cd_relationship!B128)*'LiFFT_v1.4.0'!$J$11 ->  | F129: =(('LiFFT_v1.4.0'!$H$14-moment_cd_relationship!A128)*((moment_cd_relationship!B128-moment_cd_relationship!B129)/(moment_cd_relationship!A128-moment_cd_relationship!A129))+moment_cd_relationship!B128)*'LiFFT_v1.4.0'!$J$14 ->  | G129: =(('LiFFT_v1.4.0'!$H$17-moment_cd_relationship!A128)*((moment_cd_relationship!B128-moment_cd_relationship!B129)/(moment_cd_relationship!A128-moment_cd_relationship!A129))+moment_cd_relationship!B128)*'LiFFT_v1.4.0'!$J$17 ->  | H129: =(('LiFFT_v1.4.0'!$H$20-moment_cd_relationship!A128)*((moment_cd_relationship!B128-moment_cd_relationship!B129)/(moment_cd_relationship!A128-moment_cd_relationship!A129))+moment_cd_relationship!B128)*'LiFFT_v1.4.0'!$J$20 ->  | I129: =(('LiFFT_v1.4.0'!$H$23-moment_cd_relationship!A128)*((moment_cd_relationship!B128-moment_cd_relationship!B129)/(moment_cd_relationship!A128-moment_cd_relationship!A129))+moment_cd_relationship!B128)*'LiFFT_v1.4.0'!$J$23 ->  | J129: =(('LiFFT_v1.4.0'!$H$26-moment_cd_relationship!A128)*((moment_cd_relationship!B128-moment_cd_relationship!B129)/(moment_cd_relationship!A128-moment_cd_relationship!A129))+moment_cd_relationship!B128)*'LiFFT_v1.4.0'!$J$26 ->  | K129: =(('LiFFT_v1.4.0'!$H$29-moment_cd_relationship!A128)*((moment_cd_relationship!B128-moment_cd_relationship!B129)/(moment_cd_relationship!A128-moment_cd_relationship!A129))+moment_cd_relationship!B128)*'LiFFT_v1.4.0'!$J$29 ->  | L129: =(('LiFFT_v1.4.0'!$H$32-moment_cd_relationship!A128)*((moment_cd_relationship!B128-moment_cd_relationship!B129)/(moment_cd_relationship!A128-moment_cd_relationship!A129))+moment_cd_relationship!B128)*'LiFFT_v1.4.0'!$J$32 -> 
A130: 127 | B130: 0.0010128 | C130: =(('LiFFT_v1.4.0'!$H$5-moment_cd_relationship!A129)*((moment_cd_relationship!B129-moment_cd_relationship!B130)/(moment_cd_relationship!A129-moment_cd_relationship!A130))+moment_cd_relationship!B129)*'LiFFT_v1.4.0'!$J$5 -> -7.0656 | D130: =(('LiFFT_v1.4.0'!$H$8-moment_cd_relationship!A129)*((moment_cd_relationship!B129-moment_cd_relationship!B130)/(moment_cd_relationship!A129-moment_cd_relationship!A130))+moment_cd_relationship!B129)*'LiFFT_v1.4.0'!$J$8 ->  | E130: =(('LiFFT_v1.4.0'!$H$11-moment_cd_relationship!A129)*((moment_cd_relationship!B129-moment_cd_relationship!B130)/(moment_cd_relationship!A129-moment_cd_relationship!A130))+moment_cd_relationship!B129)*'LiFFT_v1.4.0'!$J$11 ->  | F130: =(('LiFFT_v1.4.0'!$H$14-moment_cd_relationship!A129)*((moment_cd_relationship!B129-moment_cd_relationship!B130)/(moment_cd_relationship!A129-moment_cd_relationship!A130))+moment_cd_relationship!B129)*'LiFFT_v1.4.0'!$J$14 ->  | G130: =(('LiFFT_v1.4.0'!$H$17-moment_cd_relationship!A129)*((moment_cd_relationship!B129-moment_cd_relationship!B130)/(moment_cd_relationship!A129-moment_cd_relationship!A130))+moment_cd_relationship!B129)*'LiFFT_v1.4.0'!$J$17 ->  | H130: =(('LiFFT_v1.4.0'!$H$20-moment_cd_relationship!A129)*((moment_cd_relationship!B129-moment_cd_relationship!B130)/(moment_cd_relationship!A129-moment_cd_relationship!A130))+moment_cd_relationship!B129)*'LiFFT_v1.4.0'!$J$20 ->  | I130: =(('LiFFT_v1.4.0'!$H$23-moment_cd_relationship!A129)*((moment_cd_relationship!B129-moment_cd_relationship!B130)/(moment_cd_relationship!A129-moment_cd_relationship!A130))+moment_cd_relationship!B129)*'LiFFT_v1.4.0'!$J$23 ->  | J130: =(('LiFFT_v1.4.0'!$H$26-moment_cd_relationship!A129)*((moment_cd_relationship!B129-moment_cd_relationship!B130)/(moment_cd_relationship!A129-moment_cd_relationship!A130))+moment_cd_relationship!B129)*'LiFFT_v1.4.0'!$J$26 ->  | K130: =(('LiFFT_v1.4.0'!$H$29-moment_cd_relationship!A129)*((moment_cd_relationship!B129-moment_cd_relationship!B130)/(moment_cd_relationship!A129-moment_cd_relationship!A130))+moment_cd_relationship!B129)*'LiFFT_v1.4.0'!$J$29 ->  | L130: =(('LiFFT_v1.4.0'!$H$32-moment_cd_relationship!A129)*((moment_cd_relationship!B129-moment_cd_relationship!B130)/(moment_cd_relationship!A129-moment_cd_relationship!A130))+moment_cd_relationship!B129)*'LiFFT_v1.4.0'!$J$32 -> 
A131: 128 | B131: 0.0010667 | C131: =(('LiFFT_v1.4.0'!$H$5-moment_cd_relationship!A130)*((moment_cd_relationship!B130-moment_cd_relationship!B131)/(moment_cd_relationship!A130-moment_cd_relationship!A131))+moment_cd_relationship!B130)*'LiFFT_v1.4.0'!$J$5 -> -7.536 | D131: =(('LiFFT_v1.4.0'!$H$8-moment_cd_relationship!A130)*((moment_cd_relationship!B130-moment_cd_relationship!B131)/(moment_cd_relationship!A130-moment_cd_relationship!A131))+moment_cd_relationship!B130)*'LiFFT_v1.4.0'!$J$8 ->  | E131: =(('LiFFT_v1.4.0'!$H$11-moment_cd_relationship!A130)*((moment_cd_relationship!B130-moment_cd_relationship!B131)/(moment_cd_relationship!A130-moment_cd_relationship!A131))+moment_cd_relationship!B130)*'LiFFT_v1.4.0'!$J$11 ->  | F131: =(('LiFFT_v1.4.0'!$H$14-moment_cd_relationship!A130)*((moment_cd_relationship!B130-moment_cd_relationship!B131)/(moment_cd_relationship!A130-moment_cd_relationship!A131))+moment_cd_relationship!B130)*'LiFFT_v1.4.0'!$J$14 ->  | G131: =(('LiFFT_v1.4.0'!$H$17-moment_cd_relationship!A130)*((moment_cd_relationship!B130-moment_cd_relationship!B131)/(moment_cd_relationship!A130-moment_cd_relationship!A131))+moment_cd_relationship!B130)*'LiFFT_v1.4.0'!$J$17 ->  | H131: =(('LiFFT_v1.4.0'!$H$20-moment_cd_relationship!A130)*((moment_cd_relationship!B130-moment_cd_relationship!B131)/(moment_cd_relationship!A130-moment_cd_relationship!A131))+moment_cd_relationship!B130)*'LiFFT_v1.4.0'!$J$20 ->  | I131: =(('LiFFT_v1.4.0'!$H$23-moment_cd_relationship!A130)*((moment_cd_relationship!B130-moment_cd_relationship!B131)/(moment_cd_relationship!A130-moment_cd_relationship!A131))+moment_cd_relationship!B130)*'LiFFT_v1.4.0'!$J$23 ->  | J131: =(('LiFFT_v1.4.0'!$H$26-moment_cd_relationship!A130)*((moment_cd_relationship!B130-moment_cd_relationship!B131)/(moment_cd_relationship!A130-moment_cd_relationship!A131))+moment_cd_relationship!B130)*'LiFFT_v1.4.0'!$J$26 ->  | K131: =(('LiFFT_v1.4.0'!$H$29-moment_cd_relationship!A130)*((moment_cd_relationship!B130-moment_cd_relationship!B131)/(moment_cd_relationship!A130-moment_cd_relationship!A131))+moment_cd_relationship!B130)*'LiFFT_v1.4.0'!$J$29 ->  | L131: =(('LiFFT_v1.4.0'!$H$32-moment_cd_relationship!A130)*((moment_cd_relationship!B130-moment_cd_relationship!B131)/(moment_cd_relationship!A130-moment_cd_relationship!A131))+moment_cd_relationship!B130)*'LiFFT_v1.4.0'!$J$32 -> 
